Workbook

Sheet Instructions
B7: This workbook sets out amended risk-free interest rate term structures:
B9: Worksheet "Scenario Data"
B10: Scenario 1: CP interest rate risk shocks based on LLP 20Y
B11: Scenario 2: Current SCR interest rate risk shocks
B13: Worksheet "Alternative Calibration"
B14: Alternative Calibration 1: Like scenario 1, but with a constant floor at -1.25% for the down shock
B15: Alternative Calibration 2: Like scenario 1, but alternative shocks in case the FSP is less than 15Y
B17: Worksheet "SRC & Scaling Factors"
B18: Risk-corrected currency spreads and scaling factors
B21: Inputs are provided for integer term maturities
B23: Undertakings shall apply appropriate interpolation techniques for discounting inter-annual cash flows
B29: Log of changes | I29: Amendments
B31: Version
B32: v1.0 (02-03-2020) | I32: -
B33: v1.1 (05-03-2020) | I33: Scenario 2 shocks were updated
B34: v1.2 (01-04-2020) | I34: Alternative Calibration 2 with VA - Up Shock was updated for currencies with a FSP less than 15Y

Sheet Scenario Data
J6: EUR
J7: 15
B11: NO volatility adjustment | H11: WITH volatility adjustment
B12: Alternative Extrapolation Method RFR | C12: Scenario 1- Up Shock | D12: Scenario 1 - Down Shock | E12: Scenario 2 - Up Shock | F12: Scenario 2 - Down Shock | H12: Alternative Extrapolation Method RFR | I12: Scenario 1 - Up Shock | J12: Scenario 1 - Down Shock | K12: Scenario 2 - Up Shock | L12: Scenario 2 - Down Shock
A13: 1 | B13: =BaseCurve -> -0.004161 | C13: =ROUND(B13*(1+Shocks!H12)+Shocks!I12,5) -> 0.0147 | D13: =ROUND(B13*(1-Shocks!F12)-Shocks!G12,5) -> -0.01335 | E13: =ROUND(B13 + MAX(0.01,Shocks!E12*ABS(B13) ),5) -> 0.00584 | F13: =ROUND(IF(B13<0,B13, B13 - Shocks!D12 * ABS(B13)),5) -> -0.00416 | H13: =BaseCurveWithVA -> -0.0026672415 | I13: =ROUND(B13*(1+Shocks!H12)+Shocks!I12,5)+Extrapolation!T15 -> 0.0161937585 | J13: =ROUND(B13*(1-Shocks!F12)-Shocks!G12,5)+Extrapolation!T15 -> -0.0118562415 | K13: =ROUND(B13 + MAX(0.01,Shocks!E12*ABS(B13) )+Extrapolation!T15, 5) -> 0.00733 | L13: =ROUND(IF(B13<0,B13, B13 - Shocks!D12 * ABS(B13))+Extrapolation!T15, 5) -> -0.00267 | Y13: Czech Republic | Z13: 1
A14: 2 | B14: -0.003935444756 | C14: =ROUND(B14*(1+Shocks!H13)+Shocks!I13,5) -> 0.01258 | D14: =ROUND(B14*(1-Shocks!F13)-Shocks!G13,5) -> -0.01183 | E14: =ROUND(B14 + MAX(0.01,Shocks!E13*ABS(B14) ),5) -> 0.00606 | F14: =ROUND(IF(B14<0,B14, B14 - Shocks!D13 * ABS(B14)),5) -> -0.00394 | H14: -0.002441347923 | I14: =ROUND(B14*(1+Shocks!H13)+Shocks!I13,5)+Extrapolation!T16 -> 0.01407409683 | J14: =ROUND(B14*(1-Shocks!F13)-Shocks!G13,5)+Extrapolation!T16 -> -0.01033590317 | K14: =ROUND(B14 + MAX(0.01,Shocks!E13*ABS(B14) )+Extrapolation!T16, 5) -> 0.00756 | L14: =ROUND(IF(B14<0,B14, B14 - Shocks!D13 * ABS(B14))+Extrapolation!T16, 5) -> -0.00244 | Y14: Hungary | Z14: 2
A15: 3 | B15: -0.00338213028 | C15: =ROUND(B15*(1+Shocks!H14)+Shocks!I14,5) -> 0.01216 | D15: =ROUND(B15*(1-Shocks!F14)-Shocks!G14,5) -> -0.01019 | E15: =ROUND(B15 + MAX(0.01,Shocks!E14*ABS(B15) ),5) -> 0.00662 | F15: =ROUND(IF(B15<0,B15, B15 - Shocks!D14 * ABS(B15)),5) -> -0.00338 | H15: -0.001887203476 | I15: =ROUND(B15*(1+Shocks!H14)+Shocks!I14,5)+Extrapolation!T17 -> 0.0136549268 | J15: =ROUND(B15*(1-Shocks!F14)-Shocks!G14,5)+Extrapolation!T17 -> -0.008695073195 | K15: =ROUND(B15 + MAX(0.01,Shocks!E14*ABS(B15) )+Extrapolation!T17, 5) -> 0.00811 | L15: =ROUND(IF(B15<0,B15, B15 - Shocks!D14 * ABS(B15))+Extrapolation!T17, 5) -> -0.00189 | Y15: Poland | Z15: 3
A16: 4 | B16: -0.002748913431 | C16: =ROUND(B16*(1+Shocks!H15)+Shocks!I15,5) -> 0.01209 | D16: =ROUND(B16*(1-Shocks!F15)-Shocks!G15,5) -> -0.00905 | E16: =ROUND(B16 + MAX(0.01,Shocks!E15*ABS(B16) ),5) -> 0.00725 | F16: =ROUND(IF(B16<0,B16, B16 - Shocks!D15 * ABS(B16)),5) -> -0.00275 | H16: -0.001253036801 | I16: =ROUND(B16*(1+Shocks!H15)+Shocks!I15,5)+Extrapolation!T18 -> 0.01358587663 | J16: =ROUND(B16*(1-Shocks!F15)-Shocks!G15,5)+Extrapolation!T18 -> -0.00755412337 | K16: =ROUND(B16 + MAX(0.01,Shocks!E15*ABS(B16) )+Extrapolation!T18, 5) -> 0.00875 | L16: =ROUND(IF(B16<0,B16, B16 - Shocks!D15 * ABS(B16))+Extrapolation!T18, 5) -> -0.00125 | Y16: Romania | Z16: 4
A17: 5 | B17: -0.002199922184 | C17: =ROUND(B17*(1+Shocks!H16)+Shocks!I16,5) -> 0.01261 | D17: =ROUND(B17*(1-Shocks!F16)-Shocks!G16,5) -> -0.00842 | E17: =ROUND(B17 + MAX(0.01,Shocks!E16*ABS(B17) ),5) -> 0.0078 | F17: =ROUND(IF(B17<0,B17, B17 - Shocks!D16 * ABS(B17)),5) -> -0.0022 | H17: -0.0007032220672 | I17: =ROUND(B17*(1+Shocks!H16)+Shocks!I16,5)+Extrapolation!T19 -> 0.01410670012 | J17: =ROUND(B17*(1-Shocks!F16)-Shocks!G16,5)+Extrapolation!T19 -> -0.006923299883 | K17: =ROUND(B17 + MAX(0.01,Shocks!E16*ABS(B17) )+Extrapolation!T19, 5) -> 0.0093 | L17: =ROUND(IF(B17<0,B17, B17 - Shocks!D16 * ABS(B17))+Extrapolation!T19, 5) -> -0.0007 | Y17: Switzerland | Z17: 5
A18: 6 | B18: -0.001670325244 | C18: =ROUND(B18*(1+Shocks!H17)+Shocks!I17,5) -> 0.01204 | D18: =ROUND(B18*(1-Shocks!F17)-Shocks!G17,5) -> -0.00774 | E18: =ROUND(B18 + MAX(0.01,Shocks!E17*ABS(B18) ),5) -> 0.00833 | F18: =ROUND(IF(B18<0,B18, B18 - Shocks!D17 * ABS(B18)),5) -> -0.00167 | H18: -0.0001728307318 | I18: =ROUND(B18*(1+Shocks!H17)+Shocks!I17,5)+Extrapolation!T20 -> 0.01353749451 | J18: =ROUND(B18*(1-Shocks!F17)-Shocks!G17,5)+Extrapolation!T20 -> -0.006242505488 | K18: =ROUND(B18 + MAX(0.01,Shocks!E17*ABS(B18) )+Extrapolation!T20, 5) -> 0.00983 | L18: =ROUND(IF(B18<0,B18, B18 - Shocks!D17 * ABS(B18))+Extrapolation!T20, 5) -> -0.00017 | Y18: United States | Z18: 6
A19: 7 | B19: -0.0008443968012 | C19: =ROUND(B19*(1+Shocks!H18)+Shocks!I18,5) -> 0.01184 | D19: =ROUND(B19*(1-Shocks!F18)-Shocks!G18,5) -> -0.00683 | E19: =ROUND(B19 + MAX(0.01,Shocks!E18*ABS(B19) ),5) -> 0.00916 | F19: =ROUND(IF(B19<0,B19, B19 - Shocks!D18 * ABS(B19)),5) -> -0.00084 | H19: 0.0006543366036 | I19: =ROUND(B19*(1+Shocks!H18)+Shocks!I18,5)+Extrapolation!T21 -> 0.0133387334 | J19: =ROUND(B19*(1-Shocks!F18)-Shocks!G18,5)+Extrapolation!T21 -> -0.005331266595 | K19: =ROUND(B19 + MAX(0.01,Shocks!E18*ABS(B19) )+Extrapolation!T21, 5) -> 0.01065 | L19: =ROUND(IF(B19<0,B19, B19 - Shocks!D18 * ABS(B19))+Extrapolation!T21, 5) -> 0.00065
A20: 8 | B20: -0.0001812452493 | C20: =ROUND(B20*(1+Shocks!H19)+Shocks!I19,5) -> 0.01166 | D20: =ROUND(B20*(1-Shocks!F19)-Shocks!G19,5) -> -0.00631 | E20: =ROUND(B20 + MAX(0.01,Shocks!E19*ABS(B20) ),5) -> 0.00982 | F20: =ROUND(IF(B20<0,B20, B20 - Shocks!D19 * ABS(B20)),5) -> -0.00018 | H20: 0.001318482883 | I20: =ROUND(B20*(1+Shocks!H19)+Shocks!I19,5)+Extrapolation!T22 -> 0.01315972813 | J20: =ROUND(B20*(1-Shocks!F19)-Shocks!G19,5)+Extrapolation!T22 -> -0.004810271868 | K20: =ROUND(B20 + MAX(0.01,Shocks!E19*ABS(B20) )+Extrapolation!T22, 5) -> 0.01132 | L20: =ROUND(IF(B20<0,B20, B20 - Shocks!D19 * ABS(B20))+Extrapolation!T22, 5) -> 0.00132
A21: 9 | B21: 0.0004640265319 | C21: =ROUND(B21*(1+Shocks!H20)+Shocks!I20,5) -> 0.01181 | D21: =ROUND(B21*(1-Shocks!F20)-Shocks!G20,5) -> -0.00582 | E21: =ROUND(B21 + MAX(0.01,Shocks!E20*ABS(B21) ),5) -> 0.01046 | F21: =ROUND(IF(B21<0,B21, B21 - Shocks!D20 * ABS(B21)),5) -> 0.00031 | H21: 0.001964722572 | I21: =ROUND(B21*(1+Shocks!H20)+Shocks!I20,5)+Extrapolation!T23 -> 0.01331069604 | J21: =ROUND(B21*(1-Shocks!F20)-Shocks!G20,5)+Extrapolation!T23 -> -0.00431930396 | K21: =ROUND(B21 + MAX(0.01,Shocks!E20*ABS(B21) )+Extrapolation!T23, 5) -> 0.01196 | L21: =ROUND(IF(B21<0,B21, B21 - Shocks!D20 * ABS(B21))+Extrapolation!T23, 5) -> 0.00181
A22: 10 | B22: 0.001122066321 | C22: =ROUND(B22*(1+Shocks!H21)+Shocks!I21,5) -> 0.01196 | D22: =ROUND(B22*(1-Shocks!F21)-Shocks!G21,5) -> -0.00543 | E22: =ROUND(B22 + MAX(0.01,Shocks!E21*ABS(B22) ),5) -> 0.01112 | F22: =ROUND(IF(B22<0,B22, B22 - Shocks!D21 * ABS(B22)),5) -> 0.00077 | H22: 0.00262374942 | I22: =ROUND(B22*(1+Shocks!H21)+Shocks!I21,5)+Extrapolation!T24 -> 0.0134616831 | J22: =ROUND(B22*(1-Shocks!F21)-Shocks!G21,5)+Extrapolation!T24 -> -0.003928316901 | K22: =ROUND(B22 + MAX(0.01,Shocks!E21*ABS(B22) )+Extrapolation!T24, 5) -> 0.01262 | L22: =ROUND(IF(B22<0,B22, B22 - Shocks!D21 * ABS(B22))+Extrapolation!T24, 5) -> 0.00228
A23: 11 | B23: 0.001568824854 | C23: =ROUND(B23*(1+Shocks!H22)+Shocks!I22,5) -> 0.01254 | D23: =ROUND(B23*(1-Shocks!F22)-Shocks!G22,5) -> -0.00507 | E23: =ROUND(B23 + MAX(0.01,Shocks!E22*ABS(B23) ),5) -> 0.01157 | F23: =ROUND(IF(B23<0,B23, B23 - Shocks!D22 * ABS(B23)),5) -> 0.0011 | H23: 0.003071178091 | I23: =ROUND(B23*(1+Shocks!H22)+Shocks!I22,5)+Extrapolation!T25 -> 0.01404235324 | J23: =ROUND(B23*(1-Shocks!F22)-Shocks!G22,5)+Extrapolation!T25 -> -0.003567646763 | K23: =ROUND(B23 + MAX(0.01,Shocks!E22*ABS(B23) )+Extrapolation!T25, 5) -> 0.01307 | L23: =ROUND(IF(B23<0,B23, B23 - Shocks!D22 * ABS(B23))+Extrapolation!T25, 5) -> 0.0026
A24: 12 | B24: 0.002232633343 | C24: =ROUND(B24*(1+Shocks!H23)+Shocks!I23,5) -> 0.0134 | D24: =ROUND(B24*(1-Shocks!F23)-Shocks!G23,5) -> -0.00471 | E24: =ROUND(B24 + MAX(0.01,Shocks!E23*ABS(B24) ),5) -> 0.01223 | F24: =ROUND(IF(B24<0,B24, B24 - Shocks!D23 * ABS(B24)),5) -> 0.00159 | H24: 0.003735982293 | I24: =ROUND(B24*(1+Shocks!H23)+Shocks!I23,5)+Extrapolation!T26 -> 0.01490334895 | J24: =ROUND(B24*(1-Shocks!F23)-Shocks!G23,5)+Extrapolation!T26 -> -0.00320665105 | K24: =ROUND(B24 + MAX(0.01,Shocks!E23*ABS(B24) )+Extrapolation!T26, 5) -> 0.01374 | L24: =ROUND(IF(B24<0,B24, B24 - Shocks!D23 * ABS(B24))+Extrapolation!T26, 5) -> 0.00309
A25: 13 | B25: 0.002838508957 | C25: =ROUND(B25*(1+Shocks!H24)+Shocks!I24,5) -> 0.01419 | D25: =ROUND(B25*(1-Shocks!F24)-Shocks!G24,5) -> -0.00428 | E25: =ROUND(B25 + MAX(0.01,Shocks!E24*ABS(B25) ),5) -> 0.01284 | F25: =ROUND(IF(B25<0,B25, B25 - Shocks!D24 * ABS(B25)),5) -> 0.00204 | H25: 0.00434276672 | I25: =ROUND(B25*(1+Shocks!H24)+Shocks!I24,5)+Extrapolation!T27 -> 0.01569425776 | J25: =ROUND(B25*(1-Shocks!F24)-Shocks!G24,5)+Extrapolation!T27 -> -0.002775742237 | K25: =ROUND(B25 + MAX(0.01,Shocks!E24*ABS(B25) )+Extrapolation!T27, 5) -> 0.01434 | L25: =ROUND(IF(B25<0,B25, B25 - Shocks!D24 * ABS(B25))+Extrapolation!T27, 5) -> 0.00355
A26: 14 | B26: 0.003135820538 | C26: =ROUND(B26*(1+Shocks!H25)+Shocks!I25,5) -> 0.01425 | D26: =ROUND(B26*(1-Shocks!F25)-Shocks!G25,5) -> -0.00404 | E26: =ROUND(B26 + MAX(0.01,Shocks!E25*ABS(B26) ),5) -> 0.01314 | F26: =ROUND(IF(B26<0,B26, B26 - Shocks!D25 * ABS(B26)),5) -> 0.00226 | H26: 0.004640524269 | I26: =ROUND(B26*(1+Shocks!H25)+Shocks!I25,5)+Extrapolation!T28 -> 0.01575470373 | J26: =ROUND(B26*(1-Shocks!F25)-Shocks!G25,5)+Extrapolation!T28 -> -0.002535296269 | K26: =ROUND(B26 + MAX(0.01,Shocks!E25*ABS(B26) )+Extrapolation!T28, 5) -> 0.01464 | L26: =ROUND(IF(B26<0,B26, B26 - Shocks!D25 * ABS(B26))+Extrapolation!T28, 5) -> 0.00376
A27: 15 | B27: 0.003748100681 | C27: =ROUND(B27*(1+Shocks!H26)+Shocks!I26,5) -> 0.0146 | D27: =ROUND(B27*(1-Shocks!F26)-Shocks!G26,5) -> -0.00364 | E27: =ROUND(B27 + MAX(0.01,Shocks!E26*ABS(B27) ),5) -> 0.01375 | F27: =ROUND(IF(B27<0,B27, B27 - Shocks!D26 * ABS(B27)),5) -> 0.00274 | H27: 0.005253722832 | I27: =ROUND(B27*(1+Shocks!H26)+Shocks!I26,5)+Extrapolation!T29 -> 0.01610562215 | J27: =ROUND(B27*(1-Shocks!F26)-Shocks!G26,5)+Extrapolation!T29 -> -0.002134377849 | K27: =ROUND(B27 + MAX(0.01,Shocks!E26*ABS(B27) )+Extrapolation!T29, 5) -> 0.01525 | L27: =ROUND(IF(B27<0,B27, B27 - Shocks!D26 * ABS(B27))+Extrapolation!T29, 5) -> 0.00424
A28: 16 | B28: 0.004091596048 | C28: =ROUND(B28*(1+Shocks!H27)+Shocks!I27,5) -> 0.01504 | D28: =ROUND(B28*(1-Shocks!F27)-Shocks!G27,5) -> -0.00343 | E28: =ROUND(B28 + MAX(0.01,Shocks!E27*ABS(B28) ),5) -> 0.01409 | F28: =ROUND(IF(B28<0,B28, B28 - Shocks!D27 * ABS(B28)),5) -> 0.00295 | H28: 0.005597733442 | I28: =ROUND(B28*(1+Shocks!H27)+Shocks!I27,5)+Extrapolation!T30 -> 0.01654613739 | J28: =ROUND(B28*(1-Shocks!F27)-Shocks!G27,5)+Extrapolation!T30 -> -0.001923862606 | K28: =ROUND(B28 + MAX(0.01,Shocks!E27*ABS(B28) )+Extrapolation!T30, 5) -> 0.0156 | L28: =ROUND(IF(B28<0,B28, B28 - Shocks!D27 * ABS(B28))+Extrapolation!T30, 5) -> 0.00445
A29: 17 | B29: 0.004394777812 | C29: =ROUND(B29*(1+Shocks!H28)+Shocks!I28,5) -> 0.01508 | D29: =ROUND(B29*(1-Shocks!F28)-Shocks!G28,5) -> -0.00321 | E29: =ROUND(B29 + MAX(0.01,Shocks!E28*ABS(B29) ),5) -> 0.01439 | F29: =ROUND(IF(B29<0,B29, B29 - Shocks!D28 * ABS(B29)),5) -> 0.00316 | H29: 0.005901369978 | I29: =ROUND(B29*(1+Shocks!H28)+Shocks!I28,5)+Extrapolation!T31 -> 0.01658659217 | J29: =ROUND(B29*(1-Shocks!F28)-Shocks!G28,5)+Extrapolation!T31 -> -0.001703407833 | K29: =ROUND(B29 + MAX(0.01,Shocks!E28*ABS(B29) )+Extrapolation!T31, 5) -> 0.0159 | L29: =ROUND(IF(B29<0,B29, B29 - Shocks!D28 * ABS(B29))+Extrapolation!T31, 5) -> 0.00467
A30: 18 | B30: 0.004664349564 | C30: =ROUND(B30*(1+Shocks!H29)+Shocks!I29,5) -> 0.01498 | D30: =ROUND(B30*(1-Shocks!F29)-Shocks!G29,5) -> -0.00302 | E30: =ROUND(B30 + MAX(0.01,Shocks!E29*ABS(B30) ),5) -> 0.01466 | F30: =ROUND(IF(B30<0,B30, B30 - Shocks!D29 * ABS(B30)),5) -> 0.00336 | H30: 0.006171346089 | I30: =ROUND(B30*(1+Shocks!H29)+Shocks!I29,5)+Extrapolation!T32 -> 0.01648699652 | J30: =ROUND(B30*(1-Shocks!F29)-Shocks!G29,5)+Extrapolation!T32 -> -0.001513003476 | K30: =ROUND(B30 + MAX(0.01,Shocks!E29*ABS(B30) )+Extrapolation!T32, 5) -> 0.01617 | L30: =ROUND(IF(B30<0,B30, B30 - Shocks!D29 * ABS(B30))+Extrapolation!T32, 5) -> 0.00487
A31: 19 | B31: 0.00490560667 | C31: =ROUND(B31*(1+Shocks!H30)+Shocks!I30,5) -> 0.01528 | D31: =ROUND(B31*(1-Shocks!F30)-Shocks!G30,5) -> -0.0027 | E31: =ROUND(B31 + MAX(0.01,Shocks!E30*ABS(B31) ),5) -> 0.01491 | F31: =ROUND(IF(B31<0,B31, B31 - Shocks!D30 * ABS(B31)),5) -> 0.00348 | H31: 0.00641296508 | I31: =ROUND(B31*(1+Shocks!H30)+Shocks!I30,5)+Extrapolation!T33 -> 0.01678735841 | J31: =ROUND(B31*(1-Shocks!F30)-Shocks!G30,5)+Extrapolation!T33 -> -0.00119264159 | K31: =ROUND(B31 + MAX(0.01,Shocks!E30*ABS(B31) )+Extrapolation!T33, 5) -> 0.01641 | L31: =ROUND(IF(B31<0,B31, B31 - Shocks!D30 * ABS(B31))+Extrapolation!T33, 5) -> 0.00499
A32: 20 | B32: 0.005122787599 | C32: =ROUND(B32*(1+Shocks!H31)+Shocks!I31,5) -> 0.0152 | D32: =ROUND(B32*(1-Shocks!F31)-Shocks!G31,5) -> -0.00244 | E32: =ROUND(B32 + MAX(0.01,Shocks!E31*ABS(B32) ),5) -> 0.01512 | F32: =ROUND(IF(B32<0,B32, B32 - Shocks!D31 * ABS(B32)),5) -> 0.00364 | H32: 0.006630471781 | I32: =ROUND(B32*(1+Shocks!H31)+Shocks!I31,5)+Extrapolation!T34 -> 0.01670768418 | J32: =ROUND(B32*(1-Shocks!F31)-Shocks!G31,5)+Extrapolation!T34 -> -0.0009323158186 | K32: =ROUND(B32 + MAX(0.01,Shocks!E31*ABS(B32) )+Extrapolation!T34, 5) -> 0.01663 | L32: =ROUND(IF(B32<0,B32, B32 - Shocks!D31 * ABS(B32))+Extrapolation!T34, 5) -> 0.00514
A33: 21 | B33: 0.005287990132 | C33: =ROUND(B33*(1+Shocks!H32)+Shocks!I32,5) -> 0.01519 | D33: =ROUND(B33*(1-Shocks!F32)-Shocks!G32,5) -> -0.00221 | E33: =ROUND(B33 + MAX(0.01,Shocks!E32*ABS(B33) ),5) -> 0.01529 | F33: =ROUND(IF(B33<0,B33, B33 - Shocks!D32 * ABS(B33)),5) -> 0.00376 | H33: 0.006746629911 | I33: =ROUND(B33*(1+Shocks!H32)+Shocks!I32,5)+Extrapolation!T35 -> 0.01664863978 | J33: =ROUND(B33*(1-Shocks!F32)-Shocks!G32,5)+Extrapolation!T35 -> -0.0007513602211 | K33: =ROUND(B33 + MAX(0.01,Shocks!E32*ABS(B33) )+Extrapolation!T35, 5) -> 0.01675 | L33: =ROUND(IF(B33<0,B33, B33 - Shocks!D32 * ABS(B33))+Extrapolation!T35, 5) -> 0.00522
A34: 22 | B34: 0.005567364294 | C34: =ROUND(B34*(1+Shocks!H33)+Shocks!I33,5) -> 0.01531 | D34: =ROUND(B34*(1-Shocks!F33)-Shocks!G33,5) -> -0.00192 | E34: =ROUND(B34 + MAX(0.01,Shocks!E33*ABS(B34) ),5) -> 0.01557 | F34: =ROUND(IF(B34<0,B34, B34 - Shocks!D33 * ABS(B34)),5) -> 0.00397 | H34: 0.006979537713 | I34: =ROUND(B34*(1+Shocks!H33)+Shocks!I33,5)+Extrapolation!T36 -> 0.01672217342 | J34: =ROUND(B34*(1-Shocks!F33)-Shocks!G33,5)+Extrapolation!T36 -> -0.000507826581 | K34: =ROUND(B34 + MAX(0.01,Shocks!E33*ABS(B34) )+Extrapolation!T36, 5) -> 0.01698 | L34: =ROUND(IF(B34<0,B34, B34 - Shocks!D33 * ABS(B34))+Extrapolation!T36, 5) -> 0.00538
A35: 23 | B35: 0.005934347779 | C35: =ROUND(B35*(1+Shocks!H34)+Shocks!I34,5) -> 0.01555 | D35: =ROUND(B35*(1-Shocks!F34)-Shocks!G34,5) -> -0.00158 | E35: =ROUND(B35 + MAX(0.01,Shocks!E34*ABS(B35) ),5) -> 0.01593 | F35: =ROUND(IF(B35<0,B35, B35 - Shocks!D34 * ABS(B35)),5) -> 0.00424 | H35: 0.007302451872 | I35: =ROUND(B35*(1+Shocks!H34)+Shocks!I34,5)+Extrapolation!T37 -> 0.01691810409 | J35: =ROUND(B35*(1-Shocks!F34)-Shocks!G34,5)+Extrapolation!T37 -> -0.0002118959074 | K35: =ROUND(B35 + MAX(0.01,Shocks!E34*ABS(B35) )+Extrapolation!T37, 5) -> 0.0173 | L35: =ROUND(IF(B35<0,B35, B35 - Shocks!D34 * ABS(B35))+Extrapolation!T37, 5) -> 0.0056
A36: 24 | B36: 0.006367885544 | C36: =ROUND(B36*(1+Shocks!H35)+Shocks!I35,5) -> 0.01586 | D36: =ROUND(B36*(1-Shocks!F35)-Shocks!G35,5) -> -0.00121 | E36: =ROUND(B36 + MAX(0.01,Shocks!E35*ABS(B36) ),5) -> 0.01637 | F36: =ROUND(IF(B36<0,B36, B36 - Shocks!D35 * ABS(B36)),5) -> 0.00455 | H36: 0.007694154249 | I36: =ROUND(B36*(1+Shocks!H35)+Shocks!I35,5)+Extrapolation!T38 -> 0.01718626871 | J36: =ROUND(B36*(1-Shocks!F35)-Shocks!G35,5)+Extrapolation!T38 -> 0.0001162687052 | K36: =ROUND(B36 + MAX(0.01,Shocks!E35*ABS(B36) )+Extrapolation!T38, 5) -> 0.01769 | L36: =ROUND(IF(B36<0,B36, B36 - Shocks!D35 * ABS(B36))+Extrapolation!T38, 5) -> 0.00588
A37: 25 | B37: 0.006851220918 | C37: =ROUND(B37*(1+Shocks!H36)+Shocks!I36,5) -> 0.01624 | D37: =ROUND(B37*(1-Shocks!F36)-Shocks!G36,5) -> -0.0008 | E37: =ROUND(B37 + MAX(0.01,Shocks!E36*ABS(B37) ),5) -> 0.01685 | F37: =ROUND(IF(B37<0,B37, B37 - Shocks!D36 * ABS(B37)),5) -> 0.00491 | H37: 0.008137740273 | I37: =ROUND(B37*(1+Shocks!H36)+Shocks!I36,5)+Extrapolation!T39 -> 0.01752651935 | J37: =ROUND(B37*(1-Shocks!F36)-Shocks!G36,5)+Extrapolation!T39 -> 0.0004865193546 | K37: =ROUND(B37 + MAX(0.01,Shocks!E36*ABS(B37) )+Extrapolation!T39, 5) -> 0.01814 | L37: =ROUND(IF(B37<0,B37, B37 - Shocks!D36 * ABS(B37))+Extrapolation!T39, 5) -> 0.00619
A38: 26 | B38: 0.007370978567 | C38: =ROUND(B38*(1+Shocks!H37)+Shocks!I37,5) -> 0.01666 | D38: =ROUND(B38*(1-Shocks!F37)-Shocks!G37,5) -> -0.00037 | E38: =ROUND(B38 + MAX(0.01,Shocks!E37*ABS(B38) ),5) -> 0.01737 | F38: =ROUND(IF(B38<0,B38, B38 - Shocks!D37 * ABS(B38)),5) -> 0.00529 | H38: 0.008619699763 | I38: =ROUND(B38*(1+Shocks!H37)+Shocks!I37,5)+Extrapolation!T40 -> 0.0179087212 | J38: =ROUND(B38*(1-Shocks!F37)-Shocks!G37,5)+Extrapolation!T40 -> 0.0008787211958 | K38: =ROUND(B38 + MAX(0.01,Shocks!E37*ABS(B38) )+Extrapolation!T40, 5) -> 0.01862 | L38: =ROUND(IF(B38<0,B38, B38 - Shocks!D37 * ABS(B38))+Extrapolation!T40, 5) -> 0.00654
A39: 27 | B39: 0.007916461471 | C39: =ROUND(B39*(1+Shocks!H38)+Shocks!I38,5) -> 0.01712 | D39: =ROUND(B39*(1-Shocks!F38)-Shocks!G38,5) -> 7e-05 | E39: =ROUND(B39 + MAX(0.01,Shocks!E38*ABS(B39) ),5) -> 0.01792 | F39: =ROUND(IF(B39<0,B39, B39 - Shocks!D38 * ABS(B39)),5) -> 0.00569 | H39: 0.009129212208 | I39: =ROUND(B39*(1+Shocks!H38)+Shocks!I38,5)+Extrapolation!T41 -> 0.01833275074 | J39: =ROUND(B39*(1-Shocks!F38)-Shocks!G38,5)+Extrapolation!T41 -> 0.001282750738 | K39: =ROUND(B39 + MAX(0.01,Shocks!E38*ABS(B39) )+Extrapolation!T41, 5) -> 0.01913 | L39: =ROUND(IF(B39<0,B39, B39 - Shocks!D38 * ABS(B39))+Extrapolation!T41, 5) -> 0.0069
A40: 28 | B40: 0.008479106875 | C40: =ROUND(B40*(1+Shocks!H39)+Shocks!I39,5) -> 0.01759 | D40: =ROUND(B40*(1-Shocks!F39)-Shocks!G39,5) -> 0.00053 | E40: =ROUND(B40 + MAX(0.01,Shocks!E39*ABS(B40) ),5) -> 0.01848 | F40: =ROUND(IF(B40<0,B40, B40 - Shocks!D39 * ABS(B40)),5) -> 0.00611 | H40: 0.00965760134 | I40: =ROUND(B40*(1+Shocks!H39)+Shocks!I39,5)+Extrapolation!T42 -> 0.01876849446 | J40: =ROUND(B40*(1-Shocks!F39)-Shocks!G39,5)+Extrapolation!T42 -> 0.001708494465 | K40: =ROUND(B40 + MAX(0.01,Shocks!E39*ABS(B40) )+Extrapolation!T42, 5) -> 0.01966 | L40: =ROUND(IF(B40<0,B40, B40 - Shocks!D39 * ABS(B40))+Extrapolation!T42, 5) -> 0.00729
A41: 29 | B41: 0.009052061645 | C41: =ROUND(B41*(1+Shocks!H40)+Shocks!I40,5) -> 0.01808 | D41: =ROUND(B41*(1-Shocks!F40)-Shocks!G40,5) -> 0.001 | E41: =ROUND(B41 + MAX(0.01,Shocks!E40*ABS(B41) ),5) -> 0.01905 | F41: =ROUND(IF(B41<0,B41, B41 - Shocks!D40 * ABS(B41)),5) -> 0.00653 | H41: 0.01019790935 | I41: =ROUND(B41*(1+Shocks!H40)+Shocks!I40,5)+Extrapolation!T43 -> 0.0192258477 | J41: =ROUND(B41*(1-Shocks!F40)-Shocks!G40,5)+Extrapolation!T43 -> 0.002145847704 | K41: =ROUND(B41 + MAX(0.01,Shocks!E40*ABS(B41) )+Extrapolation!T43, 5) -> 0.0202 | L41: =ROUND(IF(B41<0,B41, B41 - Shocks!D40 * ABS(B41))+Extrapolation!T43, 5) -> 0.00768
A42: 30 | B42: 0.009629848279 | C42: =ROUND(B42*(1+Shocks!H41)+Shocks!I41,5) -> 0.01857 | D42: =ROUND(B42*(1-Shocks!F41)-Shocks!G41,5) -> 0.00148 | E42: =ROUND(B42 + MAX(0.01,Shocks!E41*ABS(B42) ),5) -> 0.01963 | F42: =ROUND(IF(B42<0,B42, B42 - Shocks!D41 * ABS(B42)),5) -> 0.00696 | H42: 0.01074456196 | I42: =ROUND(B42*(1+Shocks!H41)+Shocks!I41,5)+Extrapolation!T44 -> 0.01968471368 | J42: =ROUND(B42*(1-Shocks!F41)-Shocks!G41,5)+Extrapolation!T44 -> 0.002594713682 | K42: =ROUND(B42 + MAX(0.01,Shocks!E41*ABS(B42) )+Extrapolation!T44, 5) -> 0.02074 | L42: =ROUND(IF(B42<0,B42, B42 - Shocks!D41 * ABS(B42))+Extrapolation!T44, 5) -> 0.00808
A43: 31 | B43: 0.01020810041 | C43: =ROUND(B43*(1+Shocks!H42)+Shocks!I42,5) -> 0.01906 | D43: =ROUND(B43*(1-Shocks!F42)-Shocks!G42,5) -> 0.00196 | E43: =ROUND(B43 + MAX(0.01,Shocks!E42*ABS(B43) ),5) -> 0.02021 | F43: =ROUND(IF(B43<0,B43, B43 - Shocks!D42 * ABS(B43)),5) -> 0.00739 | H43: 0.01129310313 | I43: =ROUND(B43*(1+Shocks!H42)+Shocks!I42,5)+Extrapolation!T45 -> 0.02014500273 | J43: =ROUND(B43*(1-Shocks!F42)-Shocks!G42,5)+Extrapolation!T45 -> 0.003045002727 | K43: =ROUND(B43 + MAX(0.01,Shocks!E42*ABS(B43) )+Extrapolation!T45, 5) -> 0.02129 | L43: =ROUND(IF(B43<0,B43, B43 - Shocks!D42 * ABS(B43))+Extrapolation!T45, 5) -> 0.00848
A44: 32 | B44: 0.010783352 | C44: =ROUND(B44*(1+Shocks!H43)+Shocks!I43,5) -> 0.01955 | D44: =ROUND(B44*(1-Shocks!F43)-Shocks!G43,5) -> 0.00245 | E44: =ROUND(B44 + MAX(0.01,Shocks!E43*ABS(B44) ),5) -> 0.02078 | F44: =ROUND(IF(B44<0,B44, B44 - Shocks!D43 * ABS(B44)),5) -> 0.00782 | H44: 0.01183998359 | I44: =ROUND(B44*(1+Shocks!H43)+Shocks!I43,5)+Extrapolation!T46 -> 0.02060663159 | J44: =ROUND(B44*(1-Shocks!F43)-Shocks!G43,5)+Extrapolation!T46 -> 0.003506631589 | K44: =ROUND(B44 + MAX(0.01,Shocks!E43*ABS(B44) )+Extrapolation!T46, 5) -> 0.02184 | L44: =ROUND(IF(B44<0,B44, B44 - Shocks!D43 * ABS(B44))+Extrapolation!T46, 5) -> 0.00888
A45: 33 | B45: 0.01135286847 | C45: =ROUND(B45*(1+Shocks!H44)+Shocks!I44,5) -> 0.02003 | D45: =ROUND(B45*(1-Shocks!F44)-Shocks!G44,5) -> 0.00293 | E45: =ROUND(B45 + MAX(0.01,Shocks!E44*ABS(B45) ),5) -> 0.02135 | F45: =ROUND(IF(B45<0,B45, B45 - Shocks!D44 * ABS(B45)),5) -> 0.00825 | H45: 0.01238239132 | I45: =ROUND(B45*(1+Shocks!H44)+Shocks!I44,5)+Extrapolation!T47 -> 0.02105952285 | J45: =ROUND(B45*(1-Shocks!F44)-Shocks!G44,5)+Extrapolation!T47 -> 0.003959522855 | K45: =ROUND(B45 + MAX(0.01,Shocks!E44*ABS(B45) )+Extrapolation!T47, 5) -> 0.02238 | L45: =ROUND(IF(B45<0,B45, B45 - Shocks!D44 * ABS(B45))+Extrapolation!T47, 5) -> 0.00928
A46: 34 | B46: 0.0119145106 | C46: =ROUND(B46*(1+Shocks!H45)+Shocks!I45,5) -> 0.02049 | D46: =ROUND(B46*(1-Shocks!F45)-Shocks!G45,5) -> 0.00342 | E46: =ROUND(B46 + MAX(0.01,Shocks!E45*ABS(B46) ),5) -> 0.02191 | F46: =ROUND(IF(B46<0,B46, B46 - Shocks!D45 * ABS(B46)),5) -> 0.00867 | H46: 0.01291811503 | I46: =ROUND(B46*(1+Shocks!H45)+Shocks!I45,5)+Extrapolation!T48 -> 0.02149360444 | J46: =ROUND(B46*(1-Shocks!F45)-Shocks!G45,5)+Extrapolation!T48 -> 0.004423604436 | K46: =ROUND(B46 + MAX(0.01,Shocks!E45*ABS(B46) )+Extrapolation!T48, 5) -> 0.02292 | L46: =ROUND(IF(B46<0,B46, B46 - Shocks!D45 * ABS(B46))+Extrapolation!T48, 5) -> 0.00968
A47: 35 | B47: 0.01246662452 | C47: =ROUND(B47*(1+Shocks!H46)+Shocks!I46,5) -> 0.02095 | D47: =ROUND(B47*(1-Shocks!F46)-Shocks!G46,5) -> 0.00391 | E47: =ROUND(B47 + MAX(0.01,Shocks!E46*ABS(B47) ),5) -> 0.02247 | F47: =ROUND(IF(B47<0,B47, B47 - Shocks!D46 * ABS(B47)),5) -> 0.00909 | H47: 0.01344543364 | I47: =ROUND(B47*(1+Shocks!H46)+Shocks!I46,5)+Extrapolation!T49 -> 0.02192880912 | J47: =ROUND(B47*(1-Shocks!F46)-Shocks!G46,5)+Extrapolation!T49 -> 0.004888809116 | K47: =ROUND(B47 + MAX(0.01,Shocks!E46*ABS(B47) )+Extrapolation!T49, 5) -> 0.02345 | L47: =ROUND(IF(B47<0,B47, B47 - Shocks!D46 * ABS(B47))+Extrapolation!T49, 5) -> 0.01007
A48: 36 | B48: 0.0130079523 | C48: =ROUND(B48*(1+Shocks!H47)+Shocks!I47,5) -> 0.02139 | D48: =ROUND(B48*(1-Shocks!F47)-Shocks!G47,5) -> 0.0044 | E48: =ROUND(B48 + MAX(0.01,Shocks!E47*ABS(B48) ),5) -> 0.02301 | F48: =ROUND(IF(B48<0,B48, B48 - Shocks!D47 * ABS(B48)),5) -> 0.0095 | H48: 0.01396302646 | I48: =ROUND(B48*(1+Shocks!H47)+Shocks!I47,5)+Extrapolation!T50 -> 0.02234507416 | J48: =ROUND(B48*(1-Shocks!F47)-Shocks!G47,5)+Extrapolation!T50 -> 0.00535507416 | K48: =ROUND(B48 + MAX(0.01,Shocks!E47*ABS(B48) )+Extrapolation!T50, 5) -> 0.02396 | L48: =ROUND(IF(B48<0,B48, B48 - Shocks!D47 * ABS(B48))+Extrapolation!T50, 5) -> 0.01046
A49: 37 | B49: 0.01353755905 | C49: =ROUND(B49*(1+Shocks!H48)+Shocks!I48,5) -> 0.02182 | D49: =ROUND(B49*(1-Shocks!F48)-Shocks!G48,5) -> 0.00488 | E49: =ROUND(B49 + MAX(0.01,Shocks!E48*ABS(B49) ),5) -> 0.02354 | F49: =ROUND(IF(B49<0,B49, B49 - Shocks!D48 * ABS(B49)),5) -> 0.00991 | H49: 0.0144699 | I49: =ROUND(B49*(1+Shocks!H48)+Shocks!I48,5)+Extrapolation!T51 -> 0.02275234095 | J49: =ROUND(B49*(1-Shocks!F48)-Shocks!G48,5)+Extrapolation!T51 -> 0.00581234095 | K49: =ROUND(B49 + MAX(0.01,Shocks!E48*ABS(B49) )+Extrapolation!T51, 5) -> 0.02447 | L49: =ROUND(IF(B49<0,B49, B49 - Shocks!D48 * ABS(B49))+Extrapolation!T51, 5) -> 0.01084
A50: 38 | B50: 0.01405477341 | C50: =ROUND(B50*(1+Shocks!H49)+Shocks!I49,5) -> 0.02223 | D50: =ROUND(B50*(1-Shocks!F49)-Shocks!G49,5) -> 0.00536 | E50: =ROUND(B50 + MAX(0.01,Shocks!E49*ABS(B50) ),5) -> 0.02405 | F50: =ROUND(IF(B50<0,B50, B50 - Shocks!D49 * ABS(B50)),5) -> 0.0103 | H50: 0.01496532809 | I50: =ROUND(B50*(1+Shocks!H49)+Shocks!I49,5)+Extrapolation!T52 -> 0.02314055467 | J50: =ROUND(B50*(1-Shocks!F49)-Shocks!G49,5)+Extrapolation!T52 -> 0.006270554673 | K50: =ROUND(B50 + MAX(0.01,Shocks!E49*ABS(B50) )+Extrapolation!T52, 5) -> 0.02497 | L50: =ROUND(IF(B50<0,B50, B50 - Shocks!D49 * ABS(B50))+Extrapolation!T52, 5) -> 0.01121
A51: 39 | B51: 0.01455913863 | C51: =ROUND(B51*(1+Shocks!H50)+Shocks!I50,5) -> 0.02262 | D51: =ROUND(B51*(1-Shocks!F50)-Shocks!G50,5) -> 0.00584 | E51: =ROUND(B51 + MAX(0.01,Shocks!E50*ABS(B51) ),5) -> 0.02456 | F51: =ROUND(IF(B51<0,B51, B51 - Shocks!D50 * ABS(B51)),5) -> 0.01069 | H51: 0.01544880267 | I51: =ROUND(B51*(1+Shocks!H50)+Shocks!I50,5)+Extrapolation!T53 -> 0.02350966403 | J51: =ROUND(B51*(1-Shocks!F50)-Shocks!G50,5)+Extrapolation!T53 -> 0.006729664033 | K51: =ROUND(B51 + MAX(0.01,Shocks!E50*ABS(B51) )+Extrapolation!T53, 5) -> 0.02545 | L51: =ROUND(IF(B51<0,B51, B51 - Shocks!D50 * ABS(B51))+Extrapolation!T53, 5) -> 0.01158
A52: 40 | B52: 0.01505037248 | C52: =ROUND(B52*(1+Shocks!H51)+Shocks!I51,5) -> 0.023 | D52: =ROUND(B52*(1-Shocks!F51)-Shocks!G51,5) -> 0.00632 | E52: =ROUND(B52 + MAX(0.01,Shocks!E51*ABS(B52) ),5) -> 0.02505 | F52: =ROUND(IF(B52<0,B52, B52 - Shocks!D51 * ABS(B52)),5) -> 0.01107 | H52: 0.01591999347 | I52: =ROUND(B52*(1+Shocks!H51)+Shocks!I51,5)+Extrapolation!T54 -> 0.02386962099 | J52: =ROUND(B52*(1-Shocks!F51)-Shocks!G51,5)+Extrapolation!T54 -> 0.007189620989 | K52: =ROUND(B52 + MAX(0.01,Shocks!E51*ABS(B52) )+Extrapolation!T54, 5) -> 0.02592 | L52: =ROUND(IF(B52<0,B52, B52 - Shocks!D51 * ABS(B52))+Extrapolation!T54, 5) -> 0.01194
A53: 41 | B53: 0.01552833415 | C53: =ROUND(B53*(1+Shocks!H52)+Shocks!I52,5) -> 0.02336 | D53: =ROUND(B53*(1-Shocks!F52)-Shocks!G52,5) -> 0.00679 | E53: =ROUND(B53 + MAX(0.01,Shocks!E52*ABS(B53) ),5) -> 0.02553 | F53: =ROUND(IF(B53<0,B53, B53 - Shocks!D52 * ABS(B53)),5) -> 0.01144 | H53: 0.01637871467 | I53: =ROUND(B53*(1+Shocks!H52)+Shocks!I52,5)+Extrapolation!T55 -> 0.02421038052 | J53: =ROUND(B53*(1-Shocks!F52)-Shocks!G52,5)+Extrapolation!T55 -> 0.007640380519 | K53: =ROUND(B53 + MAX(0.01,Shocks!E52*ABS(B53) )+Extrapolation!T55, 5) -> 0.02638 | L53: =ROUND(IF(B53<0,B53, B53 - Shocks!D52 * ABS(B53))+Extrapolation!T55, 5) -> 0.01229
A54: 42 | B54: 0.01599299708 | C54: =ROUND(B54*(1+Shocks!H53)+Shocks!I53,5) -> 0.0237 | D54: =ROUND(B54*(1-Shocks!F53)-Shocks!G53,5) -> 0.00725 | E54: =ROUND(B54 + MAX(0.01,Shocks!E53*ABS(B54) ),5) -> 0.02599 | F54: =ROUND(IF(B54<0,B54, B54 - Shocks!D53 * ABS(B54)),5) -> 0.01181 | H54: 0.01682489748 | I54: =ROUND(B54*(1+Shocks!H53)+Shocks!I53,5)+Extrapolation!T56 -> 0.0245319004 | J54: =ROUND(B54*(1-Shocks!F53)-Shocks!G53,5)+Extrapolation!T56 -> 0.008081900402 | K54: =ROUND(B54 + MAX(0.01,Shocks!E53*ABS(B54) )+Extrapolation!T56, 5) -> 0.02682 | L54: =ROUND(IF(B54<0,B54, B54 - Shocks!D53 * ABS(B54))+Extrapolation!T56, 5) -> 0.01264
A55: 43 | B55: 0.01644442636 | C55: =ROUND(B55*(1+Shocks!H54)+Shocks!I54,5) -> 0.02403 | D55: =ROUND(B55*(1-Shocks!F54)-Shocks!G54,5) -> 0.00772 | E55: =ROUND(B55 + MAX(0.01,Shocks!E54*ABS(B55) ),5) -> 0.02644 | F55: =ROUND(IF(B55<0,B55, B55 - Shocks!D54 * ABS(B55)),5) -> 0.01216 | H55: 0.01725856738 | I55: =ROUND(B55*(1+Shocks!H54)+Shocks!I54,5)+Extrapolation!T57 -> 0.02484414103 | J55: =ROUND(B55*(1-Shocks!F54)-Shocks!G54,5)+Extrapolation!T57 -> 0.008534141025 | K55: =ROUND(B55 + MAX(0.01,Shocks!E54*ABS(B55) )+Extrapolation!T57, 5) -> 0.02726 | L55: =ROUND(IF(B55<0,B55, B55 - Shocks!D54 * ABS(B55))+Extrapolation!T57, 5) -> 0.01298
A56: 44 | B56: 0.01688276023 | C56: =ROUND(B56*(1+Shocks!H55)+Shocks!I55,5) -> 0.02433 | D56: =ROUND(B56*(1-Shocks!F55)-Shocks!G55,5) -> 0.00818 | E56: =ROUND(B56 + MAX(0.01,Shocks!E55*ABS(B56) ),5) -> 0.02688 | F56: =ROUND(IF(B56<0,B56, B56 - Shocks!D55 * ABS(B56)),5) -> 0.01251 | H56: 0.01767982543 | I56: =ROUND(B56*(1+Shocks!H55)+Shocks!I55,5)+Extrapolation!T58 -> 0.0251270652 | J56: =ROUND(B56*(1-Shocks!F55)-Shocks!G55,5)+Extrapolation!T58 -> 0.008977065198 | K56: =ROUND(B56 + MAX(0.01,Shocks!E55*ABS(B56) )+Extrapolation!T58, 5) -> 0.02768 | L56: =ROUND(IF(B56<0,B56, B56 - Shocks!D55 * ABS(B56))+Extrapolation!T58, 5) -> 0.0133
A57: 45 | B57: 0.01730819467 | C57: =ROUND(B57*(1+Shocks!H56)+Shocks!I56,5) -> 0.02463 | D57: =ROUND(B57*(1-Shocks!F56)-Shocks!G56,5) -> 0.00863 | E57: =ROUND(B57 + MAX(0.01,Shocks!E56*ABS(B57) ),5) -> 0.02731 | F57: =ROUND(IF(B57<0,B57, B57 - Shocks!D56 * ABS(B57)),5) -> 0.01285 | H57: 0.01808883265 | I57: =ROUND(B57*(1+Shocks!H56)+Shocks!I56,5)+Extrapolation!T59 -> 0.02541063799 | J57: =ROUND(B57*(1-Shocks!F56)-Shocks!G56,5)+Extrapolation!T59 -> 0.009410637986 | K57: =ROUND(B57 + MAX(0.01,Shocks!E56*ABS(B57) )+Extrapolation!T59, 5) -> 0.02809 | L57: =ROUND(IF(B57<0,B57, B57 - Shocks!D56 * ABS(B57))+Extrapolation!T59, 5) -> 0.01363
A58: 46 | B58: 0.01772097072 | C58: =ROUND(B58*(1+Shocks!H57)+Shocks!I57,5) -> 0.0249 | D58: =ROUND(B58*(1-Shocks!F57)-Shocks!G57,5) -> 0.00909 | E58: =ROUND(B58 + MAX(0.01,Shocks!E57*ABS(B58) ),5) -> 0.02772 | F58: =ROUND(IF(B58<0,B58, B58 - Shocks!D57 * ABS(B58)),5) -> 0.01317 | H58: 0.01848579727 | I58: =ROUND(B58*(1+Shocks!H57)+Shocks!I57,5)+Extrapolation!T60 -> 0.02566482656 | J58: =ROUND(B58*(1-Shocks!F57)-Shocks!G57,5)+Extrapolation!T60 -> 0.009854826559 | K58: =ROUND(B58 + MAX(0.01,Shocks!E57*ABS(B58) )+Extrapolation!T60, 5) -> 0.02849 | L58: =ROUND(IF(B58<0,B58, B58 - Shocks!D57 * ABS(B58))+Extrapolation!T60, 5) -> 0.01394
A59: 47 | B59: 0.01812136397 | C59: =ROUND(B59*(1+Shocks!H58)+Shocks!I58,5) -> 0.02516 | D59: =ROUND(B59*(1-Shocks!F58)-Shocks!G58,5) -> 0.00953 | E59: =ROUND(B59 + MAX(0.01,Shocks!E58*ABS(B59) ),5) -> 0.02812 | F59: =ROUND(IF(B59<0,B59, B59 - Shocks!D58 * ABS(B59)),5) -> 0.0135 | H59: 0.01887096402 | I59: =ROUND(B59*(1+Shocks!H58)+Shocks!I58,5)+Extrapolation!T61 -> 0.02590960005 | J59: =ROUND(B59*(1-Shocks!F58)-Shocks!G58,5)+Extrapolation!T61 -> 0.01027960005 | K59: =ROUND(B59 + MAX(0.01,Shocks!E58*ABS(B59) )+Extrapolation!T61, 5) -> 0.02887 | L59: =ROUND(IF(B59<0,B59, B59 - Shocks!D58 * ABS(B59))+Extrapolation!T61, 5) -> 0.01424
A60: 48 | B60: 0.01850967596 | C60: =ROUND(B60*(1+Shocks!H59)+Shocks!I59,5) -> 0.02541 | D60: =ROUND(B60*(1-Shocks!F59)-Shocks!G59,5) -> 0.00998 | E60: =ROUND(B60 + MAX(0.01,Shocks!E59*ABS(B60) ),5) -> 0.02851 | F60: =ROUND(IF(B60<0,B60, B60 - Shocks!D59 * ABS(B60)),5) -> 0.01381 | H60: 0.01924460537 | I60: =ROUND(B60*(1+Shocks!H59)+Shocks!I59,5)+Extrapolation!T62 -> 0.02614492941 | J60: =ROUND(B60*(1-Shocks!F59)-Shocks!G59,5)+Extrapolation!T62 -> 0.01071492941 | K60: =ROUND(B60 + MAX(0.01,Shocks!E59*ABS(B60) )+Extrapolation!T62, 5) -> 0.02924 | L60: =ROUND(IF(B60<0,B60, B60 - Shocks!D59 * ABS(B60))+Extrapolation!T62, 5) -> 0.01454
A61: 49 | B61: 0.01888622695 | C61: =ROUND(B61*(1+Shocks!H60)+Shocks!I60,5) -> 0.02564 | D61: =ROUND(B61*(1-Shocks!F60)-Shocks!G60,5) -> 0.01042 | E61: =ROUND(B61 + MAX(0.01,Shocks!E60*ABS(B61) ),5) -> 0.02889 | F61: =ROUND(IF(B61<0,B61, B61 - Shocks!D60 * ABS(B61)),5) -> 0.01411 | H61: 0.01960701427 | I61: =ROUND(B61*(1+Shocks!H60)+Shocks!I60,5)+Extrapolation!T63 -> 0.02636078732 | J61: =ROUND(B61*(1-Shocks!F60)-Shocks!G60,5)+Extrapolation!T63 -> 0.01114078732 | K61: =ROUND(B61 + MAX(0.01,Shocks!E60*ABS(B61) )+Extrapolation!T63, 5) -> 0.02961 | L61: =ROUND(IF(B61<0,B61, B61 - Shocks!D60 * ABS(B61))+Extrapolation!T63, 5) -> 0.01483
A62: 50 | B62: 0.01925135016 | C62: =ROUND(B62*(1+Shocks!H61)+Shocks!I61,5) -> 0.02585 | D62: =ROUND(B62*(1-Shocks!F61)-Shocks!G61,5) -> 0.01085 | E62: =ROUND(B62 + MAX(0.01,Shocks!E61*ABS(B62) ),5) -> 0.02925 | F62: =ROUND(IF(B62<0,B62, B62 - Shocks!D61 * ABS(B62)),5) -> 0.01441 | H62: 0.0199584982 | I62: =ROUND(B62*(1+Shocks!H61)+Shocks!I61,5)+Extrapolation!T64 -> 0.02655714803 | J62: =ROUND(B62*(1-Shocks!F61)-Shocks!G61,5)+Extrapolation!T64 -> 0.01155714803 | K62: =ROUND(B62 + MAX(0.01,Shocks!E61*ABS(B62) )+Extrapolation!T64, 5) -> 0.02996 | L62: =ROUND(IF(B62<0,B62, B62 - Shocks!D61 * ABS(B62))+Extrapolation!T64, 5) -> 0.01512
A63: 51 | B63: 0.01960538689 | C63: =ROUND(B63*(1+Shocks!H62)+Shocks!I62,5) -> 0.02605 | D63: =ROUND(B63*(1-Shocks!F62)-Shocks!G62,5) -> 0.01128 | E63: =ROUND(B63 + MAX(0.01,Shocks!E62*ABS(B63) ),5) -> 0.02961 | F63: =ROUND(IF(B63<0,B63, B63 - Shocks!D62 * ABS(B63)),5) -> 0.0147 | H63: 0.02029937421 | I63: =ROUND(B63*(1+Shocks!H62)+Shocks!I62,5)+Extrapolation!T65 -> 0.02674398732 | J63: =ROUND(B63*(1-Shocks!F62)-Shocks!G62,5)+Extrapolation!T65 -> 0.01197398732 | K63: =ROUND(B63 + MAX(0.01,Shocks!E62*ABS(B63) )+Extrapolation!T65, 5) -> 0.0303 | L63: =ROUND(IF(B63<0,B63, B63 - Shocks!D62 * ABS(B63))+Extrapolation!T65, 5) -> 0.0154
A64: 52 | B64: 0.01994868261 | C64: =ROUND(B64*(1+Shocks!H63)+Shocks!I63,5) -> 0.02624 | D64: =ROUND(B64*(1-Shocks!F63)-Shocks!G63,5) -> 0.01171 | E64: =ROUND(B64 + MAX(0.01,Shocks!E63*ABS(B64) ),5) -> 0.02995 | F64: =ROUND(IF(B64<0,B64, B64 - Shocks!D63 * ABS(B64)),5) -> 0.01498 | H64: 0.02062996492 | I64: =ROUND(B64*(1+Shocks!H63)+Shocks!I63,5)+Extrapolation!T66 -> 0.02692128232 | J64: =ROUND(B64*(1-Shocks!F63)-Shocks!G63,5)+Extrapolation!T66 -> 0.01239128232 | K64: =ROUND(B64 + MAX(0.01,Shocks!E63*ABS(B64) )+Extrapolation!T66, 5) -> 0.03063 | L64: =ROUND(IF(B64<0,B64, B64 - Shocks!D63 * ABS(B64))+Extrapolation!T66, 5) -> 0.01567
A65: 53 | B65: 0.02028158376 | C65: =ROUND(B65*(1+Shocks!H64)+Shocks!I64,5) -> 0.02641 | D65: =ROUND(B65*(1-Shocks!F64)-Shocks!G64,5) -> 0.01213 | E65: =ROUND(B65 + MAX(0.01,Shocks!E64*ABS(B65) ),5) -> 0.03028 | F65: =ROUND(IF(B65<0,B65, B65 - Shocks!D64 * ABS(B65)),5) -> 0.01526 | H65: 0.02095059525 | I65: =ROUND(B65*(1+Shocks!H64)+Shocks!I64,5)+Extrapolation!T67 -> 0.02707901149 | J65: =ROUND(B65*(1-Shocks!F64)-Shocks!G64,5)+Extrapolation!T67 -> 0.01279901149 | K65: =ROUND(B65 + MAX(0.01,Shocks!E64*ABS(B65) )+Extrapolation!T67, 5) -> 0.03095 | L65: =ROUND(IF(B65<0,B65, B65 - Shocks!D64 * ABS(B65))+Extrapolation!T67, 5) -> 0.01593
A66: 54 | B66: 0.0206044352 | C66: =ROUND(B66*(1+Shocks!H65)+Shocks!I65,5) -> 0.02658 | D66: =ROUND(B66*(1-Shocks!F65)-Shocks!G65,5) -> 0.01255 | E66: =ROUND(B66 + MAX(0.01,Shocks!E65*ABS(B66) ),5) -> 0.0306 | F66: =ROUND(IF(B66<0,B66, B66 - Shocks!D65 * ABS(B66)),5) -> 0.01553 | H66: 0.02126158971 | I66: =ROUND(B66*(1+Shocks!H65)+Shocks!I65,5)+Extrapolation!T68 -> 0.02723715451 | J66: =ROUND(B66*(1-Shocks!F65)-Shocks!G65,5)+Extrapolation!T68 -> 0.01320715451 | K66: =ROUND(B66 + MAX(0.01,Shocks!E65*ABS(B66) )+Extrapolation!T68, 5) -> 0.03126 | L66: =ROUND(IF(B66<0,B66, B66 - Shocks!D65 * ABS(B66))+Extrapolation!T68, 5) -> 0.01619
A67: 55 | B67: 0.02091757808 | C67: =ROUND(B67*(1+Shocks!H66)+Shocks!I66,5) -> 0.02672 | D67: =ROUND(B67*(1-Shocks!F66)-Shocks!G66,5) -> 0.01297 | E67: =ROUND(B67 + MAX(0.01,Shocks!E66*ABS(B67) ),5) -> 0.03092 | F67: =ROUND(IF(B67<0,B67, B67 - Shocks!D66 * ABS(B67)),5) -> 0.01579 | H67: 0.02156327029 | I67: =ROUND(B67*(1+Shocks!H66)+Shocks!I66,5)+Extrapolation!T69 -> 0.02736569221 | J67: =ROUND(B67*(1-Shocks!F66)-Shocks!G66,5)+Extrapolation!T69 -> 0.01361569221 | K67: =ROUND(B67 + MAX(0.01,Shocks!E66*ABS(B67) )+Extrapolation!T69, 5) -> 0.03156 | L67: =ROUND(IF(B67<0,B67, B67 - Shocks!D66 * ABS(B67))+Extrapolation!T69, 5) -> 0.01644
A68: 56 | B68: 0.02122134824 | C68: =ROUND(B68*(1+Shocks!H67)+Shocks!I67,5) -> 0.02686 | D68: =ROUND(B68*(1-Shocks!F67)-Shocks!G67,5) -> 0.01338 | E68: =ROUND(B68 + MAX(0.01,Shocks!E67*ABS(B68) ),5) -> 0.03122 | F68: =ROUND(IF(B68<0,B68, B68 - Shocks!D67 * ABS(B68)),5) -> 0.01605 | H68: 0.02185595471 | I68: =ROUND(B68*(1+Shocks!H67)+Shocks!I67,5)+Extrapolation!T70 -> 0.02749460647 | J68: =ROUND(B68*(1-Shocks!F67)-Shocks!G67,5)+Extrapolation!T70 -> 0.01401460647 | K68: =ROUND(B68 + MAX(0.01,Shocks!E67*ABS(B68) )+Extrapolation!T70, 5) -> 0.03186 | L68: =ROUND(IF(B68<0,B68, B68 - Shocks!D67 * ABS(B68))+Extrapolation!T70, 5) -> 0.01668
A69: 57 | B69: 0.02151607491 | C69: =ROUND(B69*(1+Shocks!H68)+Shocks!I68,5) -> 0.02699 | D69: =ROUND(B69*(1-Shocks!F68)-Shocks!G68,5) -> 0.01379 | E69: =ROUND(B69 + MAX(0.01,Shocks!E68*ABS(B69) ),5) -> 0.03152 | F69: =ROUND(IF(B69<0,B69, B69 - Shocks!D68 * ABS(B69)),5) -> 0.0163 | H69: 0.0221399551 | I69: =ROUND(B69*(1+Shocks!H68)+Shocks!I68,5)+Extrapolation!T71 -> 0.02761388019 | J69: =ROUND(B69*(1-Shocks!F68)-Shocks!G68,5)+Extrapolation!T71 -> 0.01441388019 | K69: =ROUND(B69 + MAX(0.01,Shocks!E68*ABS(B69) )+Extrapolation!T71, 5) -> 0.03214 | L69: =ROUND(IF(B69<0,B69, B69 - Shocks!D68 * ABS(B69))+Extrapolation!T71, 5) -> 0.01692
A70: 58 | B70: 0.0218020797 | C70: =ROUND(B70*(1+Shocks!H69)+Shocks!I69,5) -> 0.0271 | D70: =ROUND(B70*(1-Shocks!F69)-Shocks!G69,5) -> 0.0142 | E70: =ROUND(B70 + MAX(0.01,Shocks!E69*ABS(B70) ),5) -> 0.0318 | F70: =ROUND(IF(B70<0,B70, B70 - Shocks!D69 * ABS(B70)),5) -> 0.01654 | H70: 0.02241557692 | I70: =ROUND(B70*(1+Shocks!H69)+Shocks!I69,5)+Extrapolation!T72 -> 0.02771349721 | J70: =ROUND(B70*(1-Shocks!F69)-Shocks!G69,5)+Extrapolation!T72 -> 0.01481349721 | K70: =ROUND(B70 + MAX(0.01,Shocks!E69*ABS(B70) )+Extrapolation!T72, 5) -> 0.03242 | L70: =ROUND(IF(B70<0,B70, B70 - Shocks!D69 * ABS(B70))+Extrapolation!T72, 5) -> 0.01716
A71: 59 | B71: 0.02207967588 | C71: =ROUND(B71*(1+Shocks!H70)+Shocks!I70,5) -> 0.0272 | D71: =ROUND(B71*(1-Shocks!F70)-Shocks!G70,5) -> 0.01461 | E71: =ROUND(B71 + MAX(0.01,Shocks!E70*ABS(B71) ),5) -> 0.03208 | F71: =ROUND(IF(B71<0,B71, B71 - Shocks!D70 * ABS(B71)),5) -> 0.01678 | H71: 0.02268311813 | I71: =ROUND(B71*(1+Shocks!H70)+Shocks!I70,5)+Extrapolation!T73 -> 0.02780344226 | J71: =ROUND(B71*(1-Shocks!F70)-Shocks!G70,5)+Extrapolation!T73 -> 0.01521344226 | K71: =ROUND(B71 + MAX(0.01,Shocks!E70*ABS(B71) )+Extrapolation!T73, 5) -> 0.03268 | L71: =ROUND(IF(B71<0,B71, B71 - Shocks!D70 * ABS(B71))+Extrapolation!T73, 5) -> 0.01739
A72: 60 | B72: 0.02234916779 | C72: =ROUND(B72*(1+Shocks!H71)+Shocks!I71,5) -> 0.0273 | D72: =ROUND(B72*(1-Shocks!F71)-Shocks!G71,5) -> 0.01501 | E72: =ROUND(B72 + MAX(0.01,Shocks!E71*ABS(B72) ),5) -> 0.03235 | F72: =ROUND(IF(B72<0,B72, B72 - Shocks!D71 * ABS(B72)),5) -> 0.01702 | H72: 0.02294286865 | I72: =ROUND(B72*(1+Shocks!H71)+Shocks!I71,5)+Extrapolation!T74 -> 0.02789370087 | J72: =ROUND(B72*(1-Shocks!F71)-Shocks!G71,5)+Extrapolation!T74 -> 0.01560370087 | K72: =ROUND(B72 + MAX(0.01,Shocks!E71*ABS(B72) )+Extrapolation!T74, 5) -> 0.03294 | L72: =ROUND(IF(B72<0,B72, B72 - Shocks!D71 * ABS(B72))+Extrapolation!T74, 5) -> 0.01761
A73: 61 | B73: 0.0226108505 | C73: =ROUND(B73*(1+Shocks!H72)+Shocks!I72,5) -> 0.0276 | D73: =ROUND(B73*(1-Shocks!F72)-Shocks!G72,5) -> 0.01528 | E73: =ROUND(B73 + MAX(0.01,Shocks!E72*ABS(B73) ),5) -> 0.03261 | F73: =ROUND(IF(B73<0,B73, B73 - Shocks!D72 * ABS(B73)),5) -> 0.01725 | H73: 0.02319510987 | I73: =ROUND(B73*(1+Shocks!H72)+Shocks!I72,5)+Extrapolation!T75 -> 0.02818425937 | J73: =ROUND(B73*(1-Shocks!F72)-Shocks!G72,5)+Extrapolation!T75 -> 0.01586425937 | K73: =ROUND(B73 + MAX(0.01,Shocks!E72*ABS(B73) )+Extrapolation!T75, 5) -> 0.0332 | L73: =ROUND(IF(B73<0,B73, B73 - Shocks!D72 * ABS(B73))+Extrapolation!T75, 5) -> 0.01783
A74: 62 | B74: 0.02286500957 | C74: =ROUND(B74*(1+Shocks!H73)+Shocks!I73,5) -> 0.0279 | D74: =ROUND(B74*(1-Shocks!F73)-Shocks!G73,5) -> 0.01555 | E74: =ROUND(B74 + MAX(0.01,Shocks!E73*ABS(B74) ),5) -> 0.03287 | F74: =ROUND(IF(B74<0,B74, B74 - Shocks!D73 * ABS(B74)),5) -> 0.01747 | H74: 0.02344011439 | I74: =ROUND(B74*(1+Shocks!H73)+Shocks!I73,5)+Extrapolation!T76 -> 0.02847510482 | J74: =ROUND(B74*(1-Shocks!F73)-Shocks!G73,5)+Extrapolation!T76 -> 0.01612510482 | K74: =ROUND(B74 + MAX(0.01,Shocks!E73*ABS(B74) )+Extrapolation!T76, 5) -> 0.03344 | L74: =ROUND(IF(B74<0,B74, B74 - Shocks!D73 * ABS(B74))+Extrapolation!T76, 5) -> 0.01804
A75: 63 | B75: 0.02311192091 | C75: =ROUND(B75*(1+Shocks!H74)+Shocks!I74,5) -> 0.02818 | D75: =ROUND(B75*(1-Shocks!F74)-Shocks!G74,5) -> 0.01582 | E75: =ROUND(B75 + MAX(0.01,Shocks!E74*ABS(B75) ),5) -> 0.03311 | F75: =ROUND(IF(B75<0,B75, B75 - Shocks!D74 * ABS(B75)),5) -> 0.01769 | H75: 0.02367814587 | I75: =ROUND(B75*(1+Shocks!H74)+Shocks!I74,5)+Extrapolation!T77 -> 0.02874622496 | J75: =ROUND(B75*(1-Shocks!F74)-Shocks!G74,5)+Extrapolation!T77 -> 0.01638622496 | K75: =ROUND(B75 + MAX(0.01,Shocks!E74*ABS(B75) )+Extrapolation!T77, 5) -> 0.03368 | L75: =ROUND(IF(B75<0,B75, B75 - Shocks!D74 * ABS(B75))+Extrapolation!T77, 5) -> 0.01825
A76: 64 | B76: 0.02335185074 | C76: =ROUND(B76*(1+Shocks!H75)+Shocks!I75,5) -> 0.02846 | D76: =ROUND(B76*(1-Shocks!F75)-Shocks!G75,5) -> 0.01608 | E76: =ROUND(B76 + MAX(0.01,Shocks!E75*ABS(B76) ),5) -> 0.03335 | F76: =ROUND(IF(B76<0,B76, B76 - Shocks!D75 * ABS(B76)),5) -> 0.0179 | H76: 0.02390945891 | I76: =ROUND(B76*(1+Shocks!H75)+Shocks!I75,5)+Extrapolation!T78 -> 0.02901760817 | J76: =ROUND(B76*(1-Shocks!F75)-Shocks!G75,5)+Extrapolation!T78 -> 0.01663760817 | K76: =ROUND(B76 + MAX(0.01,Shocks!E75*ABS(B76) )+Extrapolation!T78, 5) -> 0.03391 | L76: =ROUND(IF(B76<0,B76, B76 - Shocks!D75 * ABS(B76))+Extrapolation!T78, 5) -> 0.01846
A77: 65 | B77: 0.02358505567 | C77: =ROUND(B77*(1+Shocks!H76)+Shocks!I76,5) -> 0.02872 | D77: =ROUND(B77*(1-Shocks!F76)-Shocks!G76,5) -> 0.01634 | E77: =ROUND(B77 + MAX(0.01,Shocks!E76*ABS(B77) ),5) -> 0.03359 | F77: =ROUND(IF(B77<0,B77, B77 - Shocks!D76 * ABS(B77)),5) -> 0.01811 | H77: 0.02413429912 | I77: =ROUND(B77*(1+Shocks!H76)+Shocks!I76,5)+Extrapolation!T79 -> 0.02926924345 | J77: =ROUND(B77*(1-Shocks!F76)-Shocks!G76,5)+Extrapolation!T79 -> 0.01688924345 | K77: =ROUND(B77 + MAX(0.01,Shocks!E76*ABS(B77) )+Extrapolation!T79, 5) -> 0.03413 | L77: =ROUND(IF(B77<0,B77, B77 - Shocks!D76 * ABS(B77))+Extrapolation!T79, 5) -> 0.01866
A78: 66 | B78: 0.02381178276 | C78: =ROUND(B78*(1+Shocks!H77)+Shocks!I77,5) -> 0.02898 | D78: =ROUND(B78*(1-Shocks!F77)-Shocks!G77,5) -> 0.0166 | E78: =ROUND(B78 + MAX(0.01,Shocks!E77*ABS(B78) ),5) -> 0.03381 | F78: =ROUND(IF(B78<0,B78, B78 - Shocks!D77 * ABS(B78)),5) -> 0.01831 | H78: 0.02435290312 | I78: =ROUND(B78*(1+Shocks!H77)+Shocks!I77,5)+Extrapolation!T80 -> 0.02952112036 | J78: =ROUND(B78*(1-Shocks!F77)-Shocks!G77,5)+Extrapolation!T80 -> 0.01714112036 | K78: =ROUND(B78 + MAX(0.01,Shocks!E77*ABS(B78) )+Extrapolation!T80, 5) -> 0.03435 | L78: =ROUND(IF(B78<0,B78, B78 - Shocks!D77 * ABS(B78))+Extrapolation!T80, 5) -> 0.01886
A79: 67 | B79: 0.02403226972 | C79: =ROUND(B79*(1+Shocks!H78)+Shocks!I78,5) -> 0.02923 | D79: =ROUND(B79*(1-Shocks!F78)-Shocks!G78,5) -> 0.01686 | E79: =ROUND(B79 + MAX(0.01,Shocks!E78*ABS(B79) ),5) -> 0.03403 | F79: =ROUND(IF(B79<0,B79, B79 - Shocks!D78 * ABS(B79)),5) -> 0.01852 | H79: 0.0245654987 | I79: =ROUND(B79*(1+Shocks!H78)+Shocks!I78,5)+Extrapolation!T81 -> 0.02976322898 | J79: =ROUND(B79*(1-Shocks!F78)-Shocks!G78,5)+Extrapolation!T81 -> 0.01739322898 | K79: =ROUND(B79 + MAX(0.01,Shocks!E78*ABS(B79) )+Extrapolation!T81, 5) -> 0.03457 | L79: =ROUND(IF(B79<0,B79, B79 - Shocks!D78 * ABS(B79))+Extrapolation!T81, 5) -> 0.01905
A80: 68 | B80: 0.02424674507 | C80: =ROUND(B80*(1+Shocks!H79)+Shocks!I79,5) -> 0.02948 | D80: =ROUND(B80*(1-Shocks!F79)-Shocks!G79,5) -> 0.01711 | E80: =ROUND(B80 + MAX(0.01,Shocks!E79*ABS(B80) ),5) -> 0.03425 | F80: =ROUND(IF(B80<0,B80, B80 - Shocks!D79 * ABS(B80)),5) -> 0.01871 | H80: 0.02477230499 | I80: =ROUND(B80*(1+Shocks!H79)+Shocks!I79,5)+Extrapolation!T82 -> 0.03000555992 | J80: =ROUND(B80*(1-Shocks!F79)-Shocks!G79,5)+Extrapolation!T82 -> 0.01763555992 | K80: =ROUND(B80 + MAX(0.01,Shocks!E79*ABS(B80) )+Extrapolation!T82, 5) -> 0.03477 | L80: =ROUND(IF(B80<0,B80, B80 - Shocks!D79 * ABS(B80))+Extrapolation!T82, 5) -> 0.01924
A81: 69 | B81: 0.02445542837 | C81: =ROUND(B81*(1+Shocks!H80)+Shocks!I80,5) -> 0.02971 | D81: =ROUND(B81*(1-Shocks!F80)-Shocks!G80,5) -> 0.01736 | E81: =ROUND(B81 + MAX(0.01,Shocks!E80*ABS(B81) ),5) -> 0.03446 | F81: =ROUND(IF(B81<0,B81, B81 - Shocks!D80 * ABS(B81)),5) -> 0.0189 | H81: 0.02497353262 | I81: =ROUND(B81*(1+Shocks!H80)+Shocks!I80,5)+Extrapolation!T83 -> 0.03022810425 | J81: =ROUND(B81*(1-Shocks!F80)-Shocks!G80,5)+Extrapolation!T83 -> 0.01787810425 | K81: =ROUND(B81 + MAX(0.01,Shocks!E80*ABS(B81) )+Extrapolation!T83, 5) -> 0.03497 | L81: =ROUND(IF(B81<0,B81, B81 - Shocks!D80 * ABS(B81))+Extrapolation!T83, 5) -> 0.01942
A82: 70 | B82: 0.02465853045 | C82: =ROUND(B82*(1+Shocks!H81)+Shocks!I81,5) -> 0.02994 | D82: =ROUND(B82*(1-Shocks!F81)-Shocks!G81,5) -> 0.01761 | E82: =ROUND(B82 + MAX(0.01,Shocks!E81*ABS(B82) ),5) -> 0.03466 | F82: =ROUND(IF(B82<0,B82, B82 - Shocks!D81 * ABS(B82)),5) -> 0.01909 | H82: 0.02516938395 | I82: =ROUND(B82*(1+Shocks!H81)+Shocks!I81,5)+Extrapolation!T84 -> 0.0304508535 | J82: =ROUND(B82*(1-Shocks!F81)-Shocks!G81,5)+Extrapolation!T84 -> 0.0181208535 | K82: =ROUND(B82 + MAX(0.01,Shocks!E81*ABS(B82) )+Extrapolation!T84, 5) -> 0.03517 | L82: =ROUND(IF(B82<0,B82, B82 - Shocks!D81 * ABS(B82))+Extrapolation!T84, 5) -> 0.0196
A83: 71 | B83: 0.0248562537 | C83: =ROUND(B83*(1+Shocks!H82)+Shocks!I82,5) -> 0.03016 | D83: =ROUND(B83*(1-Shocks!F82)-Shocks!G82,5) -> 0.01786 | E83: =ROUND(B83 + MAX(0.01,Shocks!E82*ABS(B83) ),5) -> 0.03486 | F83: =ROUND(IF(B83<0,B83, B83 - Shocks!D82 * ABS(B83)),5) -> 0.01928 | H83: 0.0253600533 | I83: =ROUND(B83*(1+Shocks!H82)+Shocks!I82,5)+Extrapolation!T85 -> 0.03066379961 | J83: =ROUND(B83*(1-Shocks!F82)-Shocks!G82,5)+Extrapolation!T85 -> 0.01836379961 | K83: =ROUND(B83 + MAX(0.01,Shocks!E82*ABS(B83) )+Extrapolation!T85, 5) -> 0.03536 | L83: =ROUND(IF(B83<0,B83, B83 - Shocks!D82 * ABS(B83))+Extrapolation!T85, 5) -> 0.01978
A84: 72 | B84: 0.02504879231 | C84: =ROUND(B84*(1+Shocks!H83)+Shocks!I83,5) -> 0.03038 | D84: =ROUND(B84*(1-Shocks!F83)-Shocks!G83,5) -> 0.01811 | E84: =ROUND(B84 + MAX(0.01,Shocks!E83*ABS(B84) ),5) -> 0.03505 | F84: =ROUND(IF(B84<0,B84, B84 - Shocks!D83 * ABS(B84)),5) -> 0.01946 | H84: 0.02554572722 | I84: =ROUND(B84*(1+Shocks!H83)+Shocks!I83,5)+Extrapolation!T86 -> 0.0308769349 | J84: =ROUND(B84*(1-Shocks!F83)-Shocks!G83,5)+Extrapolation!T86 -> 0.0186069349 | K84: =ROUND(B84 + MAX(0.01,Shocks!E83*ABS(B84) )+Extrapolation!T86, 5) -> 0.03555 | L84: =ROUND(IF(B84<0,B84, B84 - Shocks!D83 * ABS(B84))+Extrapolation!T86, 5) -> 0.01996
A85: 73 | B85: 0.02523633258 | C85: =ROUND(B85*(1+Shocks!H84)+Shocks!I84,5) -> 0.03059 | D85: =ROUND(B85*(1-Shocks!F84)-Shocks!G84,5) -> 0.01835 | E85: =ROUND(B85 + MAX(0.01,Shocks!E84*ABS(B85) ),5) -> 0.03524 | F85: =ROUND(IF(B85<0,B85, B85 - Shocks!D84 * ABS(B85)),5) -> 0.01964 | H85: 0.02572658469 | I85: =ROUND(B85*(1+Shocks!H84)+Shocks!I84,5)+Extrapolation!T87 -> 0.03108025211 | J85: =ROUND(B85*(1-Shocks!F84)-Shocks!G84,5)+Extrapolation!T87 -> 0.01884025211 | K85: =ROUND(B85 + MAX(0.01,Shocks!E84*ABS(B85) )+Extrapolation!T87, 5) -> 0.03573 | L85: =ROUND(IF(B85<0,B85, B85 - Shocks!D84 * ABS(B85))+Extrapolation!T87, 5) -> 0.02013
A86: 74 | B86: 0.02541905317 | C86: =ROUND(B86*(1+Shocks!H85)+Shocks!I85,5) -> 0.03079 | D86: =ROUND(B86*(1-Shocks!F85)-Shocks!G85,5) -> 0.01859 | E86: =ROUND(B86 + MAX(0.01,Shocks!E85*ABS(B86) ),5) -> 0.03542 | F86: =ROUND(IF(B86<0,B86, B86 - Shocks!D85 * ABS(B86)),5) -> 0.01981 | H86: 0.02590279745 | I86: =ROUND(B86*(1+Shocks!H85)+Shocks!I85,5)+Extrapolation!T88 -> 0.03127374428 | J86: =ROUND(B86*(1-Shocks!F85)-Shocks!G85,5)+Extrapolation!T88 -> 0.01907374428 | K86: =ROUND(B86 + MAX(0.01,Shocks!E85*ABS(B86) )+Extrapolation!T88, 5) -> 0.0359 | L86: =ROUND(IF(B86<0,B86, B86 - Shocks!D85 * ABS(B86))+Extrapolation!T88, 5) -> 0.0203
A87: 75 | B87: 0.02559712538 | C87: =ROUND(B87*(1+Shocks!H86)+Shocks!I86,5) -> 0.03099 | D87: =ROUND(B87*(1-Shocks!F86)-Shocks!G86,5) -> 0.01883 | E87: =ROUND(B87 + MAX(0.01,Shocks!E86*ABS(B87) ),5) -> 0.0356 | F87: =ROUND(IF(B87<0,B87, B87 - Shocks!D86 * ABS(B87)),5) -> 0.01998 | H87: 0.02607453021 | I87: =ROUND(B87*(1+Shocks!H86)+Shocks!I86,5)+Extrapolation!T89 -> 0.03146740483 | J87: =ROUND(B87*(1-Shocks!F86)-Shocks!G86,5)+Extrapolation!T89 -> 0.01930740483 | K87: =ROUND(B87 + MAX(0.01,Shocks!E86*ABS(B87) )+Extrapolation!T89, 5) -> 0.03607 | L87: =ROUND(IF(B87<0,B87, B87 - Shocks!D86 * ABS(B87))+Extrapolation!T89, 5) -> 0.02046
A88: 76 | B88: 0.02577071348 | C88: =ROUND(B88*(1+Shocks!H87)+Shocks!I87,5) -> 0.03118 | D88: =ROUND(B88*(1-Shocks!F87)-Shocks!G87,5) -> 0.01907 | E88: =ROUND(B88 + MAX(0.01,Shocks!E87*ABS(B88) ),5) -> 0.03577 | F88: =ROUND(IF(B88<0,B88, B88 - Shocks!D87 * ABS(B88)),5) -> 0.02015 | H88: 0.02624194093 | I88: =ROUND(B88*(1+Shocks!H87)+Shocks!I87,5)+Extrapolation!T90 -> 0.03165122746 | J88: =ROUND(B88*(1-Shocks!F87)-Shocks!G87,5)+Extrapolation!T90 -> 0.01954122746 | K88: =ROUND(B88 + MAX(0.01,Shocks!E87*ABS(B88) )+Extrapolation!T90, 5) -> 0.03624 | L88: =ROUND(IF(B88<0,B88, B88 - Shocks!D87 * ABS(B88))+Extrapolation!T90, 5) -> 0.02062
A89: 77 | B89: 0.02593997492 | C89: =ROUND(B89*(1+Shocks!H88)+Shocks!I88,5) -> 0.03137 | D89: =ROUND(B89*(1-Shocks!F88)-Shocks!G88,5) -> 0.01931 | E89: =ROUND(B89 + MAX(0.01,Shocks!E88*ABS(B89) ),5) -> 0.03594 | F89: =ROUND(IF(B89<0,B89, B89 - Shocks!D88 * ABS(B89)),5) -> 0.02032 | H89: 0.0264051811 | I89: =ROUND(B89*(1+Shocks!H88)+Shocks!I88,5)+Extrapolation!T91 -> 0.03183520618 | J89: =ROUND(B89*(1-Shocks!F88)-Shocks!G88,5)+Extrapolation!T91 -> 0.01977520618 | K89: =ROUND(B89 + MAX(0.01,Shocks!E88*ABS(B89) )+Extrapolation!T91, 5) -> 0.03641 | L89: =ROUND(IF(B89<0,B89, B89 - Shocks!D88 * ABS(B89))+Extrapolation!T91, 5) -> 0.02078
A90: 78 | B90: 0.02610506068 | C90: =ROUND(B90*(1+Shocks!H89)+Shocks!I89,5) -> 0.03155 | D90: =ROUND(B90*(1-Shocks!F89)-Shocks!G89,5) -> 0.01954 | E90: =ROUND(B90 + MAX(0.01,Shocks!E89*ABS(B90) ),5) -> 0.03611 | F90: =ROUND(IF(B90<0,B90, B90 - Shocks!D89 * ABS(B90)),5) -> 0.02048 | H90: 0.02656439597 | I90: =ROUND(B90*(1+Shocks!H89)+Shocks!I89,5)+Extrapolation!T92 -> 0.03200933529 | J90: =ROUND(B90*(1-Shocks!F89)-Shocks!G89,5)+Extrapolation!T92 -> 0.01999933529 | K90: =ROUND(B90 + MAX(0.01,Shocks!E89*ABS(B90) )+Extrapolation!T92, 5) -> 0.03656 | L90: =ROUND(IF(B90<0,B90, B90 - Shocks!D89 * ABS(B90))+Extrapolation!T92, 5) -> 0.02094
A91: 79 | B91: 0.02626611545 | C91: =ROUND(B91*(1+Shocks!H90)+Shocks!I90,5) -> 0.03173 | D91: =ROUND(B91*(1-Shocks!F90)-Shocks!G90,5) -> 0.01977 | E91: =ROUND(B91 + MAX(0.01,Shocks!E90*ABS(B91) ),5) -> 0.03627 | F91: =ROUND(IF(B91<0,B91, B91 - Shocks!D90 * ABS(B91)),5) -> 0.02064 | H91: 0.02671972479 | I91: =ROUND(B91*(1+Shocks!H90)+Shocks!I90,5)+Extrapolation!T93 -> 0.03218360934 | J91: =ROUND(B91*(1-Shocks!F90)-Shocks!G90,5)+Extrapolation!T93 -> 0.02022360934 | K91: =ROUND(B91 + MAX(0.01,Shocks!E90*ABS(B91) )+Extrapolation!T93, 5) -> 0.03672 | L91: =ROUND(IF(B91<0,B91, B91 - Shocks!D90 * ABS(B91))+Extrapolation!T93, 5) -> 0.0211
A92: 80 | B92: 0.02642327797 | C92: =ROUND(B92*(1+Shocks!H91)+Shocks!I91,5) -> 0.0319 | D92: =ROUND(B92*(1-Shocks!F91)-Shocks!G91,5) -> 0.02001 | E92: =ROUND(B92 + MAX(0.01,Shocks!E91*ABS(B92) ),5) -> 0.03642 | F92: =ROUND(IF(B92<0,B92, B92 - Shocks!D91 * ABS(B92)),5) -> 0.0208 | H92: 0.0268713011 | I92: =ROUND(B92*(1+Shocks!H91)+Shocks!I91,5)+Extrapolation!T94 -> 0.03234802313 | J92: =ROUND(B92*(1-Shocks!F91)-Shocks!G91,5)+Extrapolation!T94 -> 0.02045802313 | K92: =ROUND(B92 + MAX(0.01,Shocks!E91*ABS(B92) )+Extrapolation!T94, 5) -> 0.03687 | L92: =ROUND(IF(B92<0,B92, B92 - Shocks!D91 * ABS(B92))+Extrapolation!T94, 5) -> 0.02125
A93: 81 | B93: 0.02657668124 | C93: =ROUND(B93*(1+Shocks!H92)+Shocks!I92,5) -> 0.03206 | D93: =ROUND(B93*(1-Shocks!F92)-Shocks!G92,5) -> 0.02024 | E93: =ROUND(B93 + MAX(0.01,Shocks!E92*ABS(B93) ),5) -> 0.03658 | F93: =ROUND(IF(B93<0,B93, B93 - Shocks!D92 * ABS(B93)),5) -> 0.02095 | H93: 0.02701925296 | I93: =ROUND(B93*(1+Shocks!H92)+Shocks!I92,5)+Extrapolation!T95 -> 0.03250257172 | J93: =ROUND(B93*(1-Shocks!F92)-Shocks!G92,5)+Extrapolation!T95 -> 0.02068257172 | K93: =ROUND(B93 + MAX(0.01,Shocks!E92*ABS(B93) )+Extrapolation!T95, 5) -> 0.03702 | L93: =ROUND(IF(B93<0,B93, B93 - Shocks!D92 * ABS(B93))+Extrapolation!T95, 5) -> 0.0214
A94: 82 | B94: 0.02672645277 | C94: =ROUND(B94*(1+Shocks!H93)+Shocks!I93,5) -> 0.03222 | D94: =ROUND(B94*(1-Shocks!F93)-Shocks!G93,5) -> 0.02046 | E94: =ROUND(B94 + MAX(0.01,Shocks!E93*ABS(B94) ),5) -> 0.03673 | F94: =ROUND(IF(B94<0,B94, B94 - Shocks!D93 * ABS(B94)),5) -> 0.02111 | H94: 0.02716370313 | I94: =ROUND(B94*(1+Shocks!H93)+Shocks!I93,5)+Extrapolation!T96 -> 0.03265725036 | J94: =ROUND(B94*(1-Shocks!F93)-Shocks!G93,5)+Extrapolation!T96 -> 0.02089725036 | K94: =ROUND(B94 + MAX(0.01,Shocks!E93*ABS(B94) )+Extrapolation!T96, 5) -> 0.03716 | L94: =ROUND(IF(B94<0,B94, B94 - Shocks!D93 * ABS(B94))+Extrapolation!T96, 5) -> 0.02154
A95: 83 | B95: 0.02687271484 | C95: =ROUND(B95*(1+Shocks!H94)+Shocks!I94,5) -> 0.03238 | D95: =ROUND(B95*(1-Shocks!F94)-Shocks!G94,5) -> 0.02069 | E95: =ROUND(B95 + MAX(0.01,Shocks!E94*ABS(B95) ),5) -> 0.03687 | F95: =ROUND(IF(B95<0,B95, B95 - Shocks!D94 * ABS(B95)),5) -> 0.02126 | H95: 0.02730476937 | I95: =ROUND(B95*(1+Shocks!H94)+Shocks!I94,5)+Extrapolation!T97 -> 0.03281205453 | J95: =ROUND(B95*(1-Shocks!F94)-Shocks!G94,5)+Extrapolation!T97 -> 0.02112205453 | K95: =ROUND(B95 + MAX(0.01,Shocks!E94*ABS(B95) )+Extrapolation!T97, 5) -> 0.0373 | L95: =ROUND(IF(B95<0,B95, B95 - Shocks!D94 * ABS(B95))+Extrapolation!T97, 5) -> 0.02169
A96: 84 | B96: 0.0270155847 | C96: =ROUND(B96*(1+Shocks!H95)+Shocks!I95,5) -> 0.03253 | D96: =ROUND(B96*(1-Shocks!F95)-Shocks!G95,5) -> 0.02092 | E96: =ROUND(B96 + MAX(0.01,Shocks!E95*ABS(B96) ),5) -> 0.03702 | F96: =ROUND(IF(B96<0,B96, B96 - Shocks!D95 * ABS(B96)),5) -> 0.0214 | H96: 0.02744256463 | I96: =ROUND(B96*(1+Shocks!H95)+Shocks!I95,5)+Extrapolation!T98 -> 0.03295697993 | J96: =ROUND(B96*(1-Shocks!F95)-Shocks!G95,5)+Extrapolation!T98 -> 0.02134697993 | K96: =ROUND(B96 + MAX(0.01,Shocks!E95*ABS(B96) )+Extrapolation!T98, 5) -> 0.03744 | L96: =ROUND(IF(B96<0,B96, B96 - Shocks!D95 * ABS(B96))+Extrapolation!T98, 5) -> 0.02183
A97: 85 | B97: 0.02715517481 | C97: =ROUND(B97*(1+Shocks!H96)+Shocks!I96,5) -> 0.03268 | D97: =ROUND(B97*(1-Shocks!F96)-Shocks!G96,5) -> 0.02114 | E97: =ROUND(B97 + MAX(0.01,Shocks!E96*ABS(B97) ),5) -> 0.03716 | F97: =ROUND(IF(B97<0,B97, B97 - Shocks!D96 * ABS(B97)),5) -> 0.02155 | H97: 0.02757719722 | I97: =ROUND(B97*(1+Shocks!H96)+Shocks!I96,5)+Extrapolation!T99 -> 0.03310202241 | J97: =ROUND(B97*(1-Shocks!F96)-Shocks!G96,5)+Extrapolation!T99 -> 0.02156202241 | K97: =ROUND(B97 + MAX(0.01,Shocks!E96*ABS(B97) )+Extrapolation!T99, 5) -> 0.03758 | L97: =ROUND(IF(B97<0,B97, B97 - Shocks!D96 * ABS(B97))+Extrapolation!T99, 5) -> 0.02197
A98: 86 | B98: 0.02729159304 | C98: =ROUND(B98*(1+Shocks!H97)+Shocks!I97,5) -> 0.03283 | D98: =ROUND(B98*(1-Shocks!F97)-Shocks!G97,5) -> 0.02137 | E98: =ROUND(B98 + MAX(0.01,Shocks!E97*ABS(B98) ),5) -> 0.03729 | F98: =ROUND(IF(B98<0,B98, B98 - Shocks!D97 * ABS(B98)),5) -> 0.02169 | H98: 0.02770877107 | I98: =ROUND(B98*(1+Shocks!H97)+Shocks!I97,5)+Extrapolation!T100 -> 0.03324717803 | J98: =ROUND(B98*(1-Shocks!F97)-Shocks!G97,5)+Extrapolation!T100 -> 0.02178717803 | K98: =ROUND(B98 + MAX(0.01,Shocks!E97*ABS(B98) )+Extrapolation!T100, 5) -> 0.03771 | L98: =ROUND(IF(B98<0,B98, B98 - Shocks!D97 * ABS(B98))+Extrapolation!T100, 5) -> 0.02211
A99: 87 | B99: 0.0274249429 | C99: =ROUND(B99*(1+Shocks!H98)+Shocks!I98,5) -> 0.03297 | D99: =ROUND(B99*(1-Shocks!F98)-Shocks!G98,5) -> 0.02159 | E99: =ROUND(B99 + MAX(0.01,Shocks!E98*ABS(B99) ),5) -> 0.03742 | F99: =ROUND(IF(B99<0,B99, B99 - Shocks!D98 * ABS(B99)),5) -> 0.02183 | H99: 0.02783738591 | I99: =ROUND(B99*(1+Shocks!H98)+Shocks!I98,5)+Extrapolation!T101 -> 0.03338244301 | J99: =ROUND(B99*(1-Shocks!F98)-Shocks!G98,5)+Extrapolation!T101 -> 0.02200244301 | K99: =ROUND(B99 + MAX(0.01,Shocks!E98*ABS(B99) )+Extrapolation!T101, 5) -> 0.03784 | L99: =ROUND(IF(B99<0,B99, B99 - Shocks!D98 * ABS(B99))+Extrapolation!T101, 5) -> 0.02225
A100: 88 | B100: 0.0275553237 | C100: =ROUND(B100*(1+Shocks!H99)+Shocks!I99,5) -> 0.03311 | D100: =ROUND(B100*(1-Shocks!F99)-Shocks!G99,5) -> 0.02181 | E100: =ROUND(B100 + MAX(0.01,Shocks!E99*ABS(B100) ),5) -> 0.03756 | F100: =ROUND(IF(B100<0,B100, B100 - Shocks!D99 * ABS(B100)),5) -> 0.02197 | H100: 0.02796313744 | I100: =ROUND(B100*(1+Shocks!H99)+Shocks!I99,5)+Extrapolation!T102 -> 0.03351781374 | J100: =ROUND(B100*(1-Shocks!F99)-Shocks!G99,5)+Extrapolation!T102 -> 0.02221781374 | K100: =ROUND(B100 + MAX(0.01,Shocks!E99*ABS(B100) )+Extrapolation!T102, 5) -> 0.03796 | L100: =ROUND(IF(B100<0,B100, B100 - Shocks!D99 * ABS(B100))+Extrapolation!T102, 5) -> 0.02238
A101: 89 | B101: 0.02768283075 | C101: =ROUND(B101*(1+Shocks!H100)+Shocks!I100,5) -> 0.03324 | D101: =ROUND(B101*(1-Shocks!F100)-Shocks!G100,5) -> 0.02203 | E101: =ROUND(B101 + MAX(0.01,Shocks!E100*ABS(B101) ),5) -> 0.03768 | F101: =ROUND(IF(B101<0,B101, B101 - Shocks!D100 * ABS(B101)),5) -> 0.02211 | H101: 0.02808611751 | I101: =ROUND(B101*(1+Shocks!H100)+Shocks!I100,5)+Extrapolation!T103 -> 0.03364328676 | J101: =ROUND(B101*(1-Shocks!F100)-Shocks!G100,5)+Extrapolation!T103 -> 0.02243328676 | K101: =ROUND(B101 + MAX(0.01,Shocks!E100*ABS(B101) )+Extrapolation!T103, 5) -> 0.03809 | L101: =ROUND(IF(B101<0,B101, B101 - Shocks!D100 * ABS(B101))+Extrapolation!T103, 5) -> 0.02251
A102: 90 | B102: 0.02780755555 | C102: =ROUND(B102*(1+Shocks!H101)+Shocks!I101,5) -> 0.03337 | D102: =ROUND(B102*(1-Shocks!F101)-Shocks!G101,5) -> 0.02225 | E102: =ROUND(B102 + MAX(0.01,Shocks!E101*ABS(B102) ),5) -> 0.03781 | F102: =ROUND(IF(B102<0,B102, B102 - Shocks!D101 * ABS(B102)),5) -> 0.02225 | H102: 0.0282064143 | I102: =ROUND(B102*(1+Shocks!H101)+Shocks!I101,5)+Extrapolation!T104 -> 0.03376885875 | J102: =ROUND(B102*(1-Shocks!F101)-Shocks!G101,5)+Extrapolation!T104 -> 0.02264885875 | K102: =ROUND(B102 + MAX(0.01,Shocks!E101*ABS(B102) )+Extrapolation!T104, 5) -> 0.03821 | L102: =ROUND(IF(B102<0,B102, B102 - Shocks!D101 * ABS(B102))+Extrapolation!T104, 5) -> 0.02264
A103: 91 | B103: 0.02792958597 | C103: =ROUND(B103*(1+Shocks!H102)+Shocks!I102,5) -> 0.03352 | D103: =ROUND(B103*(1-Shocks!F102)-Shocks!G102,5) -> 0.02234 | E103: =ROUND(B103 + MAX(0.01,Shocks!E102*ABS(B103) ),5) -> 0.03793 | F103: =ROUND(IF(B103<0,B103, B103 - Shocks!D102 * ABS(B103)),5) -> 0.02234 | H103: 0.0283241125 | I103: =ROUND(B103*(1+Shocks!H102)+Shocks!I102,5)+Extrapolation!T105 -> 0.03391452653 | J103: =ROUND(B103*(1-Shocks!F102)-Shocks!G102,5)+Extrapolation!T105 -> 0.02273452653 | K103: =ROUND(B103 + MAX(0.01,Shocks!E102*ABS(B103) )+Extrapolation!T105, 5) -> 0.03832 | L103: =ROUND(IF(B103<0,B103, B103 - Shocks!D102 * ABS(B103))+Extrapolation!T105, 5) -> 0.02274
A104: 92 | B104: 0.02804900637 | C104: =ROUND(B104*(1+Shocks!H103)+Shocks!I103,5) -> 0.03366 | D104: =ROUND(B104*(1-Shocks!F103)-Shocks!G103,5) -> 0.02244 | E104: =ROUND(B104 + MAX(0.01,Shocks!E103*ABS(B104) ),5) -> 0.03805 | F104: =ROUND(IF(B104<0,B104, B104 - Shocks!D103 * ABS(B104)),5) -> 0.02244 | H104: 0.02843929343 | I104: =ROUND(B104*(1+Shocks!H103)+Shocks!I103,5)+Extrapolation!T106 -> 0.03405028706 | J104: =ROUND(B104*(1-Shocks!F103)-Shocks!G103,5)+Extrapolation!T106 -> 0.02283028706 | K104: =ROUND(B104 + MAX(0.01,Shocks!E103*ABS(B104) )+Extrapolation!T106, 5) -> 0.03844 | L104: =ROUND(IF(B104<0,B104, B104 - Shocks!D103 * ABS(B104))+Extrapolation!T106, 5) -> 0.02283
A105: 93 | B105: 0.02816589779 | C105: =ROUND(B105*(1+Shocks!H104)+Shocks!I104,5) -> 0.0338 | D105: =ROUND(B105*(1-Shocks!F104)-Shocks!G104,5) -> 0.02253 | E105: =ROUND(B105 + MAX(0.01,Shocks!E104*ABS(B105) ),5) -> 0.03817 | F105: =ROUND(IF(B105<0,B105, B105 - Shocks!D104 * ABS(B105)),5) -> 0.02253 | H105: 0.02855203522 | I105: =ROUND(B105*(1+Shocks!H104)+Shocks!I104,5)+Extrapolation!T107 -> 0.03418613742 | J105: =ROUND(B105*(1-Shocks!F104)-Shocks!G104,5)+Extrapolation!T107 -> 0.02291613742 | K105: =ROUND(B105 + MAX(0.01,Shocks!E104*ABS(B105) )+Extrapolation!T107, 5) -> 0.03855 | L105: =ROUND(IF(B105<0,B105, B105 - Shocks!D104 * ABS(B105))+Extrapolation!T107, 5) -> 0.02292
A106: 94 | B106: 0.02828033812 | C106: =ROUND(B106*(1+Shocks!H105)+Shocks!I105,5) -> 0.03394 | D106: =ROUND(B106*(1-Shocks!F105)-Shocks!G105,5) -> 0.02262 | E106: =ROUND(B106 + MAX(0.01,Shocks!E105*ABS(B106) ),5) -> 0.03828 | F106: =ROUND(IF(B106<0,B106, B106 - Shocks!D105 * ABS(B106)),5) -> 0.02262 | H106: 0.02866241293 | I106: =ROUND(B106*(1+Shocks!H105)+Shocks!I105,5)+Extrapolation!T108 -> 0.03432207482 | J106: =ROUND(B106*(1-Shocks!F105)-Shocks!G105,5)+Extrapolation!T108 -> 0.02300207482 | K106: =ROUND(B106 + MAX(0.01,Shocks!E105*ABS(B106) )+Extrapolation!T108, 5) -> 0.03866 | L106: =ROUND(IF(B106<0,B106, B106 - Shocks!D105 * ABS(B106))+Extrapolation!T108, 5) -> 0.02301
A107: 95 | B107: 0.02839240218 | C107: =ROUND(B107*(1+Shocks!H106)+Shocks!I106,5) -> 0.03407 | D107: =ROUND(B107*(1-Shocks!F106)-Shocks!G106,5) -> 0.02271 | E107: =ROUND(B107 + MAX(0.01,Shocks!E106*ABS(B107) ),5) -> 0.03839 | F107: =ROUND(IF(B107<0,B107, B107 - Shocks!D106 * ABS(B107)),5) -> 0.02271 | H107: 0.02877049873 | I107: =ROUND(B107*(1+Shocks!H106)+Shocks!I106,5)+Extrapolation!T109 -> 0.03444809655 | J107: =ROUND(B107*(1-Shocks!F106)-Shocks!G106,5)+Extrapolation!T109 -> 0.02308809655 | K107: =ROUND(B107 + MAX(0.01,Shocks!E106*ABS(B107) )+Extrapolation!T109, 5) -> 0.03877 | L107: =ROUND(IF(B107<0,B107, B107 - Shocks!D106 * ABS(B107))+Extrapolation!T109, 5) -> 0.02309
A108: 96 | B108: 0.02850216191 | C108: =ROUND(B108*(1+Shocks!H107)+Shocks!I107,5) -> 0.0342 | D108: =ROUND(B108*(1-Shocks!F107)-Shocks!G107,5) -> 0.0228 | E108: =ROUND(B108 + MAX(0.01,Shocks!E107*ABS(B108) ),5) -> 0.0385 | F108: =ROUND(IF(B108<0,B108, B108 - Shocks!D107 * ABS(B108)),5) -> 0.0228 | H108: 0.02887636197 | I108: =ROUND(B108*(1+Shocks!H107)+Shocks!I107,5)+Extrapolation!T110 -> 0.03457420006 | J108: =ROUND(B108*(1-Shocks!F107)-Shocks!G107,5)+Extrapolation!T110 -> 0.02317420006 | K108: =ROUND(B108 + MAX(0.01,Shocks!E107*ABS(B108) )+Extrapolation!T110, 5) -> 0.03888 | L108: =ROUND(IF(B108<0,B108, B108 - Shocks!D107 * ABS(B108))+Extrapolation!T110, 5) -> 0.02318
A109: 97 | B109: 0.02860968649 | C109: =ROUND(B109*(1+Shocks!H108)+Shocks!I108,5) -> 0.03433 | D109: =ROUND(B109*(1-Shocks!F108)-Shocks!G108,5) -> 0.02289 | E109: =ROUND(B109 + MAX(0.01,Shocks!E108*ABS(B109) ),5) -> 0.03861 | F109: =ROUND(IF(B109<0,B109, B109 - Shocks!D108 * ABS(B109)),5) -> 0.02289 | H109: 0.02898006933 | I109: =ROUND(B109*(1+Shocks!H108)+Shocks!I108,5)+Extrapolation!T111 -> 0.03470038284 | J109: =ROUND(B109*(1-Shocks!F108)-Shocks!G108,5)+Extrapolation!T111 -> 0.02326038284 | K109: =ROUND(B109 + MAX(0.01,Shocks!E108*ABS(B109) )+Extrapolation!T111, 5) -> 0.03898 | L109: =ROUND(IF(B109<0,B109, B109 - Shocks!D108 * ABS(B109))+Extrapolation!T111, 5) -> 0.02326
A110: 98 | B110: 0.02871504243 | C110: =ROUND(B110*(1+Shocks!H109)+Shocks!I109,5) -> 0.03446 | D110: =ROUND(B110*(1-Shocks!F109)-Shocks!G109,5) -> 0.02297 | E110: =ROUND(B110 + MAX(0.01,Shocks!E109*ABS(B110) ),5) -> 0.03872 | F110: =ROUND(IF(B110<0,B110, B110 - Shocks!D109 * ABS(B110)),5) -> 0.02297 | H110: 0.02908168497 | I110: =ROUND(B110*(1+Shocks!H109)+Shocks!I109,5)+Extrapolation!T112 -> 0.03482664254 | J110: =ROUND(B110*(1-Shocks!F109)-Shocks!G109,5)+Extrapolation!T112 -> 0.02333664254 | K110: =ROUND(B110 + MAX(0.01,Shocks!E109*ABS(B110) )+Extrapolation!T112, 5) -> 0.03908 | L110: =ROUND(IF(B110<0,B110, B110 - Shocks!D109 * ABS(B110))+Extrapolation!T112, 5) -> 0.02334
A111: 99 | B111: 0.02881829373 | C111: =ROUND(B111*(1+Shocks!H110)+Shocks!I110,5) -> 0.03458 | D111: =ROUND(B111*(1-Shocks!F110)-Shocks!G110,5) -> 0.02305 | E111: =ROUND(B111 + MAX(0.01,Shocks!E110*ABS(B111) ),5) -> 0.03882 | F111: =ROUND(IF(B111<0,B111, B111 - Shocks!D110 * ABS(B111)),5) -> 0.02305 | H111: 0.0291812706 | I111: =ROUND(B111*(1+Shocks!H110)+Shocks!I110,5)+Extrapolation!T113 -> 0.03494297686 | J111: =ROUND(B111*(1-Shocks!F110)-Shocks!G110,5)+Extrapolation!T113 -> 0.02341297686 | K111: =ROUND(B111 + MAX(0.01,Shocks!E110*ABS(B111) )+Extrapolation!T113, 5) -> 0.03918 | L111: =ROUND(IF(B111<0,B111, B111 - Shocks!D110 * ABS(B111))+Extrapolation!T113, 5) -> 0.02342
A112: 100 | B112: 0.02891950198 | C112: =ROUND(B112*(1+Shocks!H111)+Shocks!I111,5) -> 0.0347 | D112: =ROUND(B112*(1-Shocks!F111)-Shocks!G111,5) -> 0.02314 | E112: =ROUND(B112 + MAX(0.01,Shocks!E111*ABS(B112) ),5) -> 0.03892 | F112: =ROUND(IF(B112<0,B112, B112 - Shocks!D111 * ABS(B112)),5) -> 0.02314 | H112: 0.02927888559 | I112: =ROUND(B112*(1+Shocks!H111)+Shocks!I111,5)+Extrapolation!T114 -> 0.03505938361 | J112: =ROUND(B112*(1-Shocks!F111)-Shocks!G111,5)+Extrapolation!T114 -> 0.02349938361 | K112: =ROUND(B112 + MAX(0.01,Shocks!E111*ABS(B112) )+Extrapolation!T114, 5) -> 0.03928 | L112: =ROUND(IF(B112<0,B112, B112 - Shocks!D111 * ABS(B112))+Extrapolation!T114, 5) -> 0.02349
A113: 101 | B113: 0.02901872644 | C113: =ROUND(B113*(1+Shocks!H112)+Shocks!I112,5) -> 0.03482 | D113: =ROUND(B113*(1-Shocks!F112)-Shocks!G112,5) -> 0.02321 | E113: =ROUND(B113 + MAX(0.01,Shocks!E112*ABS(B113) ),5) -> 0.03902 | F113: =ROUND(IF(B113<0,B113, B113 - Shocks!D112 * ABS(B113)),5) -> 0.02321 | H113: 0.0293745871 | I113: =ROUND(B113*(1+Shocks!H112)+Shocks!I112,5)+Extrapolation!T115 -> 0.03517586066 | J113: =ROUND(B113*(1-Shocks!F112)-Shocks!G112,5)+Extrapolation!T115 -> 0.02356586066 | K113: =ROUND(B113 + MAX(0.01,Shocks!E112*ABS(B113) )+Extrapolation!T115, 5) -> 0.03937 | L113: =ROUND(IF(B113<0,B113, B113 - Shocks!D112 * ABS(B113))+Extrapolation!T115, 5) -> 0.02357
A114: 102 | B114: 0.02911602418 | C114: =ROUND(B114*(1+Shocks!H113)+Shocks!I113,5) -> 0.03494 | D114: =ROUND(B114*(1-Shocks!F113)-Shocks!G113,5) -> 0.02329 | E114: =ROUND(B114 + MAX(0.01,Shocks!E113*ABS(B114) ),5) -> 0.03912 | F114: =ROUND(IF(B114<0,B114, B114 - Shocks!D113 * ABS(B114)),5) -> 0.02329 | H114: 0.02946843018 | I114: =ROUND(B114*(1+Shocks!H113)+Shocks!I113,5)+Extrapolation!T116 -> 0.03529240599 | J114: =ROUND(B114*(1-Shocks!F113)-Shocks!G113,5)+Extrapolation!T116 -> 0.02364240599 | K114: =ROUND(B114 + MAX(0.01,Shocks!E113*ABS(B114) )+Extrapolation!T116, 5) -> 0.03947 | L114: =ROUND(IF(B114<0,B114, B114 - Shocks!D113 * ABS(B114))+Extrapolation!T116, 5) -> 0.02365
A115: 103 | B115: 0.02921145015 | C115: =ROUND(B115*(1+Shocks!H114)+Shocks!I114,5) -> 0.03505 | D115: =ROUND(B115*(1-Shocks!F114)-Shocks!G114,5) -> 0.02337 | E115: =ROUND(B115 + MAX(0.01,Shocks!E114*ABS(B115) ),5) -> 0.03921 | F115: =ROUND(IF(B115<0,B115, B115 - Shocks!D114 * ABS(B115)),5) -> 0.02337 | H115: 0.0295604678 | I115: =ROUND(B115*(1+Shocks!H114)+Shocks!I114,5)+Extrapolation!T117 -> 0.03539901765 | J115: =ROUND(B115*(1-Shocks!F114)-Shocks!G114,5)+Extrapolation!T117 -> 0.02371901765 | K115: =ROUND(B115 + MAX(0.01,Shocks!E114*ABS(B115) )+Extrapolation!T117, 5) -> 0.03956 | L115: =ROUND(IF(B115<0,B115, B115 - Shocks!D114 * ABS(B115))+Extrapolation!T117, 5) -> 0.02372
A116: 104 | B116: 0.02930505728 | C116: =ROUND(B116*(1+Shocks!H115)+Shocks!I115,5) -> 0.03517 | D116: =ROUND(B116*(1-Shocks!F115)-Shocks!G115,5) -> 0.02344 | E116: =ROUND(B116 + MAX(0.01,Shocks!E115*ABS(B116) ),5) -> 0.03931 | F116: =ROUND(IF(B116<0,B116, B116 - Shocks!D115 * ABS(B116)),5) -> 0.02344 | H116: 0.02965075102 | I116: =ROUND(B116*(1+Shocks!H115)+Shocks!I115,5)+Extrapolation!T118 -> 0.03551569374 | J116: =ROUND(B116*(1-Shocks!F115)-Shocks!G115,5)+Extrapolation!T118 -> 0.02378569374 | K116: =ROUND(B116 + MAX(0.01,Shocks!E115*ABS(B116) )+Extrapolation!T118, 5) -> 0.03965 | L116: =ROUND(IF(B116<0,B116, B116 - Shocks!D115 * ABS(B116))+Extrapolation!T118, 5) -> 0.02379
A117: 105 | B117: 0.02939689657 | C117: =ROUND(B117*(1+Shocks!H116)+Shocks!I116,5) -> 0.03528 | D117: =ROUND(B117*(1-Shocks!F116)-Shocks!G116,5) -> 0.02352 | E117: =ROUND(B117 + MAX(0.01,Shocks!E116*ABS(B117) ),5) -> 0.0394 | F117: =ROUND(IF(B117<0,B117, B117 - Shocks!D116 * ABS(B117)),5) -> 0.02352 | H117: 0.02973932904 | I117: =ROUND(B117*(1+Shocks!H116)+Shocks!I116,5)+Extrapolation!T119 -> 0.03562243246 | J117: =ROUND(B117*(1-Shocks!F116)-Shocks!G116,5)+Extrapolation!T119 -> 0.02386243246 | K117: =ROUND(B117 + MAX(0.01,Shocks!E116*ABS(B117) )+Extrapolation!T119, 5) -> 0.03974 | L117: =ROUND(IF(B117<0,B117, B117 - Shocks!D116 * ABS(B117))+Extrapolation!T119, 5) -> 0.02386
A118: 106 | B118: 0.02948701719 | C118: =ROUND(B118*(1+Shocks!H117)+Shocks!I117,5) -> 0.03538 | D118: =ROUND(B118*(1-Shocks!F117)-Shocks!G117,5) -> 0.02359 | E118: =ROUND(B118 + MAX(0.01,Shocks!E117*ABS(B118) ),5) -> 0.03949 | F118: =ROUND(IF(B118<0,B118, B118 - Shocks!D117 * ABS(B118)),5) -> 0.02359 | H118: 0.02982624925 | I118: =ROUND(B118*(1+Shocks!H117)+Shocks!I117,5)+Extrapolation!T120 -> 0.03571923206 | J118: =ROUND(B118*(1-Shocks!F117)-Shocks!G117,5)+Extrapolation!T120 -> 0.02392923206 | K118: =ROUND(B118 + MAX(0.01,Shocks!E117*ABS(B118) )+Extrapolation!T120, 5) -> 0.03983 | L118: =ROUND(IF(B118<0,B118, B118 - Shocks!D117 * ABS(B118))+Extrapolation!T120, 5) -> 0.02393
A119: 107 | B119: 0.02957546651 | C119: =ROUND(B119*(1+Shocks!H118)+Shocks!I118,5) -> 0.03549 | D119: =ROUND(B119*(1-Shocks!F118)-Shocks!G118,5) -> 0.02366 | E119: =ROUND(B119 + MAX(0.01,Shocks!E118*ABS(B119) ),5) -> 0.03958 | F119: =ROUND(IF(B119<0,B119, B119 - Shocks!D118 * ABS(B119)),5) -> 0.02366 | H119: 0.02991155736 | I119: =ROUND(B119*(1+Shocks!H118)+Shocks!I118,5)+Extrapolation!T121 -> 0.03582609086 | J119: =ROUND(B119*(1-Shocks!F118)-Shocks!G118,5)+Extrapolation!T121 -> 0.02399609086 | K119: =ROUND(B119 + MAX(0.01,Shocks!E118*ABS(B119) )+Extrapolation!T121, 5) -> 0.03991 | L119: =ROUND(IF(B119<0,B119, B119 - Shocks!D118 * ABS(B119))+Extrapolation!T121, 5) -> 0.024
A120: 108 | B120: 0.02966229022 | C120: =ROUND(B120*(1+Shocks!H119)+Shocks!I119,5) -> 0.03559 | D120: =ROUND(B120*(1-Shocks!F119)-Shocks!G119,5) -> 0.02373 | E120: =ROUND(B120 + MAX(0.01,Shocks!E119*ABS(B120) ),5) -> 0.03966 | F120: =ROUND(IF(B120<0,B120, B120 - Shocks!D119 * ABS(B120)),5) -> 0.02373 | H120: 0.02999529745 | I120: =ROUND(B120*(1+Shocks!H119)+Shocks!I119,5)+Extrapolation!T122 -> 0.03592300723 | J120: =ROUND(B120*(1-Shocks!F119)-Shocks!G119,5)+Extrapolation!T122 -> 0.02406300723 | K120: =ROUND(B120 + MAX(0.01,Shocks!E119*ABS(B120) )+Extrapolation!T122, 5) -> 0.04 | L120: =ROUND(IF(B120<0,B120, B120 - Shocks!D119 * ABS(B120))+Extrapolation!T122, 5) -> 0.02406
A121: 109 | B121: 0.02974753242 | C121: =ROUND(B121*(1+Shocks!H120)+Shocks!I120,5) -> 0.0357 | D121: =ROUND(B121*(1-Shocks!F120)-Shocks!G120,5) -> 0.0238 | E121: =ROUND(B121 + MAX(0.01,Shocks!E120*ABS(B121) ),5) -> 0.03975 | F121: =ROUND(IF(B121<0,B121, B121 - Shocks!D120 * ABS(B121)),5) -> 0.0238 | H121: 0.03007751203 | I121: =ROUND(B121*(1+Shocks!H120)+Shocks!I120,5)+Extrapolation!T123 -> 0.03602997961 | J121: =ROUND(B121*(1-Shocks!F120)-Shocks!G120,5)+Extrapolation!T123 -> 0.02412997961 | K121: =ROUND(B121 + MAX(0.01,Shocks!E120*ABS(B121) )+Extrapolation!T123, 5) -> 0.04008 | L121: =ROUND(IF(B121<0,B121, B121 - Shocks!D120 * ABS(B121))+Extrapolation!T123, 5) -> 0.02413
A122: 110 | B122: 0.0298312356 | C122: =ROUND(B122*(1+Shocks!H121)+Shocks!I121,5) -> 0.0358 | D122: =ROUND(B122*(1-Shocks!F121)-Shocks!G121,5) -> 0.02386 | E122: =ROUND(B122 + MAX(0.01,Shocks!E121*ABS(B122) ),5) -> 0.03983 | F122: =ROUND(IF(B122<0,B122, B122 - Shocks!D121 * ABS(B122)),5) -> 0.02386 | H122: 0.03015824211 | I122: =ROUND(B122*(1+Shocks!H121)+Shocks!I121,5)+Extrapolation!T124 -> 0.0361270065 | J122: =ROUND(B122*(1-Shocks!F121)-Shocks!G121,5)+Extrapolation!T124 -> 0.0241870065 | K122: =ROUND(B122 + MAX(0.01,Shocks!E121*ABS(B122) )+Extrapolation!T124, 5) -> 0.04016 | L122: =ROUND(IF(B122<0,B122, B122 - Shocks!D121 * ABS(B122))+Extrapolation!T124, 5) -> 0.02419
A123: 111 | B123: 0.02991344082 | C123: =ROUND(B123*(1+Shocks!H122)+Shocks!I122,5) -> 0.0359 | D123: =ROUND(B123*(1-Shocks!F122)-Shocks!G122,5) -> 0.02393 | E123: =ROUND(B123 + MAX(0.01,Shocks!E122*ABS(B123) ),5) -> 0.03991 | F123: =ROUND(IF(B123<0,B123, B123 - Shocks!D122 * ABS(B123)),5) -> 0.02393 | H123: 0.03023752726 | I123: =ROUND(B123*(1+Shocks!H122)+Shocks!I122,5)+Extrapolation!T125 -> 0.03622408644 | J123: =ROUND(B123*(1-Shocks!F122)-Shocks!G122,5)+Extrapolation!T125 -> 0.02425408644 | K123: =ROUND(B123 + MAX(0.01,Shocks!E122*ABS(B123) )+Extrapolation!T125, 5) -> 0.04024 | L123: =ROUND(IF(B123<0,B123, B123 - Shocks!D122 * ABS(B123))+Extrapolation!T125, 5) -> 0.02425
A124: 112 | B124: 0.02999418769 | C124: =ROUND(B124*(1+Shocks!H123)+Shocks!I123,5) -> 0.03599 | D124: =ROUND(B124*(1-Shocks!F123)-Shocks!G123,5) -> 0.024 | E124: =ROUND(B124 + MAX(0.01,Shocks!E123*ABS(B124) ),5) -> 0.03999 | F124: =ROUND(IF(B124<0,B124, B124 - Shocks!D123 * ABS(B124)),5) -> 0.024 | H124: 0.03031540571 | I124: =ROUND(B124*(1+Shocks!H123)+Shocks!I123,5)+Extrapolation!T126 -> 0.03631121803 | J124: =ROUND(B124*(1-Shocks!F123)-Shocks!G123,5)+Extrapolation!T126 -> 0.02432121803 | K124: =ROUND(B124 + MAX(0.01,Shocks!E123*ABS(B124) )+Extrapolation!T126, 5) -> 0.04032 | L124: =ROUND(IF(B124<0,B124, B124 - Shocks!D123 * ABS(B124))+Extrapolation!T126, 5) -> 0.02432
A125: 113 | B125: 0.03007351444 | C125: =ROUND(B125*(1+Shocks!H124)+Shocks!I124,5) -> 0.03609 | D125: =ROUND(B125*(1-Shocks!F124)-Shocks!G124,5) -> 0.02406 | E125: =ROUND(B125 + MAX(0.01,Shocks!E124*ABS(B125) ),5) -> 0.04007 | F125: =ROUND(IF(B125<0,B125, B125 - Shocks!D124 * ABS(B125)),5) -> 0.02406 | H125: 0.03039191435 | I125: =ROUND(B125*(1+Shocks!H124)+Shocks!I124,5)+Extrapolation!T127 -> 0.0364083999 | J125: =ROUND(B125*(1-Shocks!F124)-Shocks!G124,5)+Extrapolation!T127 -> 0.0243783999 | K125: =ROUND(B125 + MAX(0.01,Shocks!E124*ABS(B125) )+Extrapolation!T127, 5) -> 0.04039 | L125: =ROUND(IF(B125<0,B125, B125 - Shocks!D124 * ABS(B125))+Extrapolation!T127, 5) -> 0.02438
A126: 114 | B126: 0.03015145803 | C126: =ROUND(B126*(1+Shocks!H125)+Shocks!I125,5) -> 0.03618 | D126: =ROUND(B126*(1-Shocks!F125)-Shocks!G125,5) -> 0.02412 | E126: =ROUND(B126 + MAX(0.01,Shocks!E125*ABS(B126) ),5) -> 0.04015 | F126: =ROUND(IF(B126<0,B126, B126 - Shocks!D125 * ABS(B126)),5) -> 0.02412 | H126: 0.0304670888 | I126: =ROUND(B126*(1+Shocks!H125)+Shocks!I125,5)+Extrapolation!T128 -> 0.03649563077 | J126: =ROUND(B126*(1-Shocks!F125)-Shocks!G125,5)+Extrapolation!T128 -> 0.02443563077 | K126: =ROUND(B126 + MAX(0.01,Shocks!E125*ABS(B126) )+Extrapolation!T128, 5) -> 0.04047 | L126: =ROUND(IF(B126<0,B126, B126 - Shocks!D125 * ABS(B126))+Extrapolation!T128, 5) -> 0.02444
A127: 115 | B127: 0.03022805414 | C127: =ROUND(B127*(1+Shocks!H126)+Shocks!I126,5) -> 0.03627 | D127: =ROUND(B127*(1-Shocks!F126)-Shocks!G126,5) -> 0.02418 | E127: =ROUND(B127 + MAX(0.01,Shocks!E126*ABS(B127) ),5) -> 0.04023 | F127: =ROUND(IF(B127<0,B127, B127 - Shocks!D126 * ABS(B127)),5) -> 0.02418 | H127: 0.03054096349 | I127: =ROUND(B127*(1+Shocks!H126)+Shocks!I126,5)+Extrapolation!T129 -> 0.03658290935 | J127: =ROUND(B127*(1-Shocks!F126)-Shocks!G126,5)+Extrapolation!T129 -> 0.02449290935 | K127: =ROUND(B127 + MAX(0.01,Shocks!E126*ABS(B127) )+Extrapolation!T129, 5) -> 0.04054 | L127: =ROUND(IF(B127<0,B127, B127 - Shocks!D126 * ABS(B127))+Extrapolation!T129, 5) -> 0.0245
A128: 116 | B128: 0.03030333725 | C128: =ROUND(B128*(1+Shocks!H127)+Shocks!I127,5) -> 0.03636 | D128: =ROUND(B128*(1-Shocks!F127)-Shocks!G127,5) -> 0.02424 | E128: =ROUND(B128 + MAX(0.01,Shocks!E127*ABS(B128) ),5) -> 0.0403 | F128: =ROUND(IF(B128<0,B128, B128 - Shocks!D127 * ABS(B128)),5) -> 0.02424 | H128: 0.03061357168 | I128: =ROUND(B128*(1+Shocks!H127)+Shocks!I127,5)+Extrapolation!T130 -> 0.03667023443 | J128: =ROUND(B128*(1-Shocks!F127)-Shocks!G127,5)+Extrapolation!T130 -> 0.02455023443 | K128: =ROUND(B128 + MAX(0.01,Shocks!E127*ABS(B128) )+Extrapolation!T130, 5) -> 0.04061 | L128: =ROUND(IF(B128<0,B128, B128 - Shocks!D127 * ABS(B128))+Extrapolation!T130, 5) -> 0.02455
A129: 117 | B129: 0.03037734069 | C129: =ROUND(B129*(1+Shocks!H128)+Shocks!I128,5) -> 0.03645 | D129: =ROUND(B129*(1-Shocks!F128)-Shocks!G128,5) -> 0.0243 | E129: =ROUND(B129 + MAX(0.01,Shocks!E128*ABS(B129) ),5) -> 0.04038 | F129: =ROUND(IF(B129<0,B129, B129 - Shocks!D128 * ABS(B129)),5) -> 0.0243 | H129: 0.03068494552 | I129: =ROUND(B129*(1+Shocks!H128)+Shocks!I128,5)+Extrapolation!T131 -> 0.03675760483 | J129: =ROUND(B129*(1-Shocks!F128)-Shocks!G128,5)+Extrapolation!T131 -> 0.02460760483 | K129: =ROUND(B129 + MAX(0.01,Shocks!E128*ABS(B129) )+Extrapolation!T131, 5) -> 0.04068 | L129: =ROUND(IF(B129<0,B129, B129 - Shocks!D128 * ABS(B129))+Extrapolation!T131, 5) -> 0.02461
A130: 118 | B130: 0.03045009669 | C130: =ROUND(B130*(1+Shocks!H129)+Shocks!I129,5) -> 0.03654 | D130: =ROUND(B130*(1-Shocks!F129)-Shocks!G129,5) -> 0.02436 | E130: =ROUND(B130 + MAX(0.01,Shocks!E129*ABS(B130) ),5) -> 0.04045 | F130: =ROUND(IF(B130<0,B130, B130 - Shocks!D129 * ABS(B130)),5) -> 0.02436 | H130: 0.0307551161 | I130: =ROUND(B130*(1+Shocks!H129)+Shocks!I129,5)+Extrapolation!T132 -> 0.03684501941 | J130: =ROUND(B130*(1-Shocks!F129)-Shocks!G129,5)+Extrapolation!T132 -> 0.02466501941 | K130: =ROUND(B130 + MAX(0.01,Shocks!E129*ABS(B130) )+Extrapolation!T132, 5) -> 0.04076 | L130: =ROUND(IF(B130<0,B130, B130 - Shocks!D129 * ABS(B130))+Extrapolation!T132, 5) -> 0.02467
A131: 119 | B131: 0.03052163641 | C131: =ROUND(B131*(1+Shocks!H130)+Shocks!I130,5) -> 0.03663 | D131: =ROUND(B131*(1-Shocks!F130)-Shocks!G130,5) -> 0.02442 | E131: =ROUND(B131 + MAX(0.01,Shocks!E130*ABS(B131) ),5) -> 0.04052 | F131: =ROUND(IF(B131<0,B131, B131 - Shocks!D130 * ABS(B131)),5) -> 0.02442 | H131: 0.03082411348 | I131: =ROUND(B131*(1+Shocks!H130)+Shocks!I130,5)+Extrapolation!T133 -> 0.03693247707 | J131: =ROUND(B131*(1-Shocks!F130)-Shocks!G130,5)+Extrapolation!T133 -> 0.02472247707 | K131: =ROUND(B131 + MAX(0.01,Shocks!E130*ABS(B131) )+Extrapolation!T133, 5) -> 0.04082 | L131: =ROUND(IF(B131<0,B131, B131 - Shocks!D130 * ABS(B131))+Extrapolation!T133, 5) -> 0.02472
A132: 120 | B132: 0.03059198999 | C132: =ROUND(B132*(1+Shocks!H131)+Shocks!I131,5) -> 0.03671 | D132: =ROUND(B132*(1-Shocks!F131)-Shocks!G131,5) -> 0.02447 | E132: =ROUND(B132 + MAX(0.01,Shocks!E131*ABS(B132) ),5) -> 0.04059 | F132: =ROUND(IF(B132<0,B132, B132 - Shocks!D131 * ABS(B132)),5) -> 0.02447 | H132: 0.03089196673 | I132: =ROUND(B132*(1+Shocks!H131)+Shocks!I131,5)+Extrapolation!T134 -> 0.03700997674 | J132: =ROUND(B132*(1-Shocks!F131)-Shocks!G131,5)+Extrapolation!T134 -> 0.02476997674 | K132: =ROUND(B132 + MAX(0.01,Shocks!E131*ABS(B132) )+Extrapolation!T134, 5) -> 0.04089 | L132: =ROUND(IF(B132<0,B132, B132 - Shocks!D131 * ABS(B132))+Extrapolation!T134, 5) -> 0.02477
A133: 121 | B133: 0.03066118659 | C133: =ROUND(B133*(1+Shocks!H132)+Shocks!I132,5) -> 0.03679 | D133: =ROUND(B133*(1-Shocks!F132)-Shocks!G132,5) -> 0.02453 | E133: =ROUND(B133 + MAX(0.01,Shocks!E132*ABS(B133) ),5) -> 0.04066 | F133: =ROUND(IF(B133<0,B133, B133 - Shocks!D132 * ABS(B133)),5) -> 0.02453 | H133: 0.03095870399 | I133: =ROUND(B133*(1+Shocks!H132)+Shocks!I132,5)+Extrapolation!T135 -> 0.03708751739 | J133: =ROUND(B133*(1-Shocks!F132)-Shocks!G132,5)+Extrapolation!T135 -> 0.02482751739 | K133: =ROUND(B133 + MAX(0.01,Shocks!E132*ABS(B133) )+Extrapolation!T135, 5) -> 0.04096 | L133: =ROUND(IF(B133<0,B133, B133 - Shocks!D132 * ABS(B133))+Extrapolation!T135, 5) -> 0.02483
A134: 122 | B134: 0.03072925444 | C134: =ROUND(B134*(1+Shocks!H133)+Shocks!I133,5) -> 0.03688 | D134: =ROUND(B134*(1-Shocks!F133)-Shocks!G133,5) -> 0.02458 | E134: =ROUND(B134 + MAX(0.01,Shocks!E133*ABS(B134) ),5) -> 0.04073 | F134: =ROUND(IF(B134<0,B134, B134 - Shocks!D133 * ABS(B134)),5) -> 0.02458 | H134: 0.03102435247 | I134: =ROUND(B134*(1+Shocks!H133)+Shocks!I133,5)+Extrapolation!T136 -> 0.03717509803 | J134: =ROUND(B134*(1-Shocks!F133)-Shocks!G133,5)+Extrapolation!T136 -> 0.02487509803 | K134: =ROUND(B134 + MAX(0.01,Shocks!E133*ABS(B134) )+Extrapolation!T136, 5) -> 0.04102 | L134: =ROUND(IF(B134<0,B134, B134 - Shocks!D133 * ABS(B134))+Extrapolation!T136, 5) -> 0.02488
A135: 123 | B135: 0.03079622085 | C135: =ROUND(B135*(1+Shocks!H134)+Shocks!I134,5) -> 0.03696 | D135: =ROUND(B135*(1-Shocks!F134)-Shocks!G134,5) -> 0.02464 | E135: =ROUND(B135 + MAX(0.01,Shocks!E134*ABS(B135) ),5) -> 0.0408 | F135: =ROUND(IF(B135<0,B135, B135 - Shocks!D134 * ABS(B135)),5) -> 0.02464 | H135: 0.03108893854 | I135: =ROUND(B135*(1+Shocks!H134)+Shocks!I134,5)+Extrapolation!T137 -> 0.03725271768 | J135: =ROUND(B135*(1-Shocks!F134)-Shocks!G134,5)+Extrapolation!T137 -> 0.02493271768 | K135: =ROUND(B135 + MAX(0.01,Shocks!E134*ABS(B135) )+Extrapolation!T137, 5) -> 0.04109 | L135: =ROUND(IF(B135<0,B135, B135 - Shocks!D134 * ABS(B135))+Extrapolation!T137, 5) -> 0.02493
A136: 124 | B136: 0.03086211228 | C136: =ROUND(B136*(1+Shocks!H135)+Shocks!I135,5) -> 0.03703 | D136: =ROUND(B136*(1-Shocks!F135)-Shocks!G135,5) -> 0.02469 | E136: =ROUND(B136 + MAX(0.01,Shocks!E135*ABS(B136) ),5) -> 0.04086 | F136: =ROUND(IF(B136<0,B136, B136 - Shocks!D135 * ABS(B136)),5) -> 0.02469 | H136: 0.0311524877 | I136: =ROUND(B136*(1+Shocks!H135)+Shocks!I135,5)+Extrapolation!T138 -> 0.03732037541 | J136: =ROUND(B136*(1-Shocks!F135)-Shocks!G135,5)+Extrapolation!T138 -> 0.02498037541 | K136: =ROUND(B136 + MAX(0.01,Shocks!E135*ABS(B136) )+Extrapolation!T138, 5) -> 0.04115 | L136: =ROUND(IF(B136<0,B136, B136 - Shocks!D135 * ABS(B136))+Extrapolation!T138, 5) -> 0.02498
A137: 125 | B137: 0.03092695435 | C137: =ROUND(B137*(1+Shocks!H136)+Shocks!I136,5) -> 0.03711 | D137: =ROUND(B137*(1-Shocks!F136)-Shocks!G136,5) -> 0.02474 | E137: =ROUND(B137 + MAX(0.01,Shocks!E136*ABS(B137) ),5) -> 0.04093 | F137: =ROUND(IF(B137<0,B137, B137 - Shocks!D136 * ABS(B137)),5) -> 0.02474 | H137: 0.03121502467 | I137: =ROUND(B137*(1+Shocks!H136)+Shocks!I136,5)+Extrapolation!T139 -> 0.03739807032 | J137: =ROUND(B137*(1-Shocks!F136)-Shocks!G136,5)+Extrapolation!T139 -> 0.02502807032 | K137: =ROUND(B137 + MAX(0.01,Shocks!E136*ABS(B137) )+Extrapolation!T139, 5) -> 0.04122 | L137: =ROUND(IF(B137<0,B137, B137 - Shocks!D136 * ABS(B137))+Extrapolation!T139, 5) -> 0.02503
A138: 126 | B138: 0.03099077185 | C138: =ROUND(B138*(1+Shocks!H137)+Shocks!I137,5) -> 0.03719 | D138: =ROUND(B138*(1-Shocks!F137)-Shocks!G137,5) -> 0.02479 | E138: =ROUND(B138 + MAX(0.01,Shocks!E137*ABS(B138) ),5) -> 0.04099 | F138: =ROUND(IF(B138<0,B138, B138 - Shocks!D137 * ABS(B138)),5) -> 0.02479 | H138: 0.03127657339 | I138: =ROUND(B138*(1+Shocks!H137)+Shocks!I137,5)+Extrapolation!T140 -> 0.03747580153 | J138: =ROUND(B138*(1-Shocks!F137)-Shocks!G137,5)+Extrapolation!T140 -> 0.02507580153 | K138: =ROUND(B138 + MAX(0.01,Shocks!E137*ABS(B138) )+Extrapolation!T140, 5) -> 0.04128 | L138: =ROUND(IF(B138<0,B138, B138 - Shocks!D137 * ABS(B138))+Extrapolation!T140, 5) -> 0.02508
A139: 127 | B139: 0.03105358885 | C139: =ROUND(B139*(1+Shocks!H138)+Shocks!I138,5) -> 0.03726 | D139: =ROUND(B139*(1-Shocks!F138)-Shocks!G138,5) -> 0.02484 | E139: =ROUND(B139 + MAX(0.01,Shocks!E138*ABS(B139) ),5) -> 0.04105 | F139: =ROUND(IF(B139<0,B139, B139 - Shocks!D138 * ABS(B139)),5) -> 0.02484 | H139: 0.03133715704 | I139: =ROUND(B139*(1+Shocks!H138)+Shocks!I138,5)+Extrapolation!T141 -> 0.03754356819 | J139: =ROUND(B139*(1-Shocks!F138)-Shocks!G138,5)+Extrapolation!T141 -> 0.02512356819 | K139: =ROUND(B139 + MAX(0.01,Shocks!E138*ABS(B139) )+Extrapolation!T141, 5) -> 0.04134 | L139: =ROUND(IF(B139<0,B139, B139 - Shocks!D138 * ABS(B139))+Extrapolation!T141, 5) -> 0.02513
A140: 128 | B140: 0.03111542864 | C140: =ROUND(B140*(1+Shocks!H139)+Shocks!I139,5) -> 0.03734 | D140: =ROUND(B140*(1-Shocks!F139)-Shocks!G139,5) -> 0.02489 | E140: =ROUND(B140 + MAX(0.01,Shocks!E139*ABS(B140) ),5) -> 0.04112 | F140: =ROUND(IF(B140<0,B140, B140 - Shocks!D139 * ABS(B140)),5) -> 0.02489 | H140: 0.03139679811 | I140: =ROUND(B140*(1+Shocks!H139)+Shocks!I139,5)+Extrapolation!T142 -> 0.03762136947 | J140: =ROUND(B140*(1-Shocks!F139)-Shocks!G139,5)+Extrapolation!T142 -> 0.02517136947 | K140: =ROUND(B140 + MAX(0.01,Shocks!E139*ABS(B140) )+Extrapolation!T142, 5) -> 0.0414 | L140: =ROUND(IF(B140<0,B140, B140 - Shocks!D139 * ABS(B140))+Extrapolation!T142, 5) -> 0.02517
A141: 129 | B141: 0.0311763138 | C141: =ROUND(B141*(1+Shocks!H140)+Shocks!I140,5) -> 0.03741 | D141: =ROUND(B141*(1-Shocks!F140)-Shocks!G140,5) -> 0.02494 | E141: =ROUND(B141 + MAX(0.01,Shocks!E140*ABS(B141) ),5) -> 0.04118 | F141: =ROUND(IF(B141<0,B141, B141 - Shocks!D140 * ABS(B141)),5) -> 0.02494 | H141: 0.03145551838 | I141: =ROUND(B141*(1+Shocks!H140)+Shocks!I140,5)+Extrapolation!T143 -> 0.03768920458 | J141: =ROUND(B141*(1-Shocks!F140)-Shocks!G140,5)+Extrapolation!T143 -> 0.02521920458 | K141: =ROUND(B141 + MAX(0.01,Shocks!E140*ABS(B141) )+Extrapolation!T143, 5) -> 0.04146 | L141: =ROUND(IF(B141<0,B141, B141 - Shocks!D140 * ABS(B141))+Extrapolation!T143, 5) -> 0.02522
A142: 130 | B142: 0.03123626624 | C142: =ROUND(B142*(1+Shocks!H141)+Shocks!I141,5) -> 0.03748 | D142: =ROUND(B142*(1-Shocks!F141)-Shocks!G141,5) -> 0.02499 | E142: =ROUND(B142 + MAX(0.01,Shocks!E141*ABS(B142) ),5) -> 0.04124 | F142: =ROUND(IF(B142<0,B142, B142 - Shocks!D141 * ABS(B142)),5) -> 0.02499 | H142: 0.03151333898 | I142: =ROUND(B142*(1+Shocks!H141)+Shocks!I141,5)+Extrapolation!T144 -> 0.03775707274 | J142: =ROUND(B142*(1-Shocks!F141)-Shocks!G141,5)+Extrapolation!T144 -> 0.02526707274 | K142: =ROUND(B142 + MAX(0.01,Shocks!E141*ABS(B142) )+Extrapolation!T144, 5) -> 0.04151 | L142: =ROUND(IF(B142<0,B142, B142 - Shocks!D141 * ABS(B142))+Extrapolation!T144, 5) -> 0.02527
A143: 131 | B143: 0.03129530719 | C143: =ROUND(B143*(1+Shocks!H142)+Shocks!I142,5) -> 0.03755 | D143: =ROUND(B143*(1-Shocks!F142)-Shocks!G142,5) -> 0.02504 | E143: =ROUND(B143 + MAX(0.01,Shocks!E142*ABS(B143) ),5) -> 0.0413 | F143: =ROUND(IF(B143<0,B143, B143 - Shocks!D142 * ABS(B143)),5) -> 0.02504 | H143: 0.03157028039 | I143: =ROUND(B143*(1+Shocks!H142)+Shocks!I142,5)+Extrapolation!T145 -> 0.0378249732 | J143: =ROUND(B143*(1-Shocks!F142)-Shocks!G142,5)+Extrapolation!T145 -> 0.0253149732 | K143: =ROUND(B143 + MAX(0.01,Shocks!E142*ABS(B143) )+Extrapolation!T145, 5) -> 0.04157 | L143: =ROUND(IF(B143<0,B143, B143 - Shocks!D142 * ABS(B143))+Extrapolation!T145, 5) -> 0.02531
A144: 132 | B144: 0.03135345726 | C144: =ROUND(B144*(1+Shocks!H143)+Shocks!I143,5) -> 0.03762 | D144: =ROUND(B144*(1-Shocks!F143)-Shocks!G143,5) -> 0.02508 | E144: =ROUND(B144 + MAX(0.01,Shocks!E143*ABS(B144) ),5) -> 0.04135 | F144: =ROUND(IF(B144<0,B144, B144 - Shocks!D143 * ABS(B144)),5) -> 0.02508 | H144: 0.0316263625 | I144: =ROUND(B144*(1+Shocks!H143)+Shocks!I143,5)+Extrapolation!T146 -> 0.03789290524 | J144: =ROUND(B144*(1-Shocks!F143)-Shocks!G143,5)+Extrapolation!T146 -> 0.02535290524 | K144: =ROUND(B144 + MAX(0.01,Shocks!E143*ABS(B144) )+Extrapolation!T146, 5) -> 0.04163 | L144: =ROUND(IF(B144<0,B144, B144 - Shocks!D143 * ABS(B144))+Extrapolation!T146, 5) -> 0.02536
A145: 133 | B145: 0.03141073642 | C145: =ROUND(B145*(1+Shocks!H144)+Shocks!I144,5) -> 0.03769 | D145: =ROUND(B145*(1-Shocks!F144)-Shocks!G144,5) -> 0.02513 | E145: =ROUND(B145 + MAX(0.01,Shocks!E144*ABS(B145) ),5) -> 0.04141 | F145: =ROUND(IF(B145<0,B145, B145 - Shocks!D144 * ABS(B145)),5) -> 0.02513 | H145: 0.03168160456 | I145: =ROUND(B145*(1+Shocks!H144)+Shocks!I144,5)+Extrapolation!T147 -> 0.03796086814 | J145: =ROUND(B145*(1-Shocks!F144)-Shocks!G144,5)+Extrapolation!T147 -> 0.02540086814 | K145: =ROUND(B145 + MAX(0.01,Shocks!E144*ABS(B145) )+Extrapolation!T147, 5) -> 0.04168 | L145: =ROUND(IF(B145<0,B145, B145 - Shocks!D144 * ABS(B145))+Extrapolation!T147, 5) -> 0.0254
A146: 134 | B146: 0.03146716408 | C146: =ROUND(B146*(1+Shocks!H145)+Shocks!I145,5) -> 0.03776 | D146: =ROUND(B146*(1-Shocks!F145)-Shocks!G145,5) -> 0.02517 | E146: =ROUND(B146 + MAX(0.01,Shocks!E145*ABS(B146) ),5) -> 0.04147 | F146: =ROUND(IF(B146<0,B146, B146 - Shocks!D145 * ABS(B146)),5) -> 0.02517 | H146: 0.03173602531 | I146: =ROUND(B146*(1+Shocks!H145)+Shocks!I145,5)+Extrapolation!T148 -> 0.03802886123 | J146: =ROUND(B146*(1-Shocks!F145)-Shocks!G145,5)+Extrapolation!T148 -> 0.02543886123 | K146: =ROUND(B146 + MAX(0.01,Shocks!E145*ABS(B146) )+Extrapolation!T148, 5) -> 0.04174 | L146: =ROUND(IF(B146<0,B146, B146 - Shocks!D145 * ABS(B146))+Extrapolation!T148, 5) -> 0.02544
A147: 135 | B147: 0.03152275906 | C147: =ROUND(B147*(1+Shocks!H146)+Shocks!I146,5) -> 0.03783 | D147: =ROUND(B147*(1-Shocks!F146)-Shocks!G146,5) -> 0.02522 | E147: =ROUND(B147 + MAX(0.01,Shocks!E146*ABS(B147) ),5) -> 0.04152 | F147: =ROUND(IF(B147<0,B147, B147 - Shocks!D146 * ABS(B147)),5) -> 0.02522 | H147: 0.03178964289 | I147: =ROUND(B147*(1+Shocks!H146)+Shocks!I146,5)+Extrapolation!T149 -> 0.03809688383 | J147: =ROUND(B147*(1-Shocks!F146)-Shocks!G146,5)+Extrapolation!T149 -> 0.02548688383 | K147: =ROUND(B147 + MAX(0.01,Shocks!E146*ABS(B147) )+Extrapolation!T149, 5) -> 0.04179 | L147: =ROUND(IF(B147<0,B147, B147 - Shocks!D146 * ABS(B147))+Extrapolation!T149, 5) -> 0.02549
A148: 136 | B148: 0.03157753963 | C148: =ROUND(B148*(1+Shocks!H147)+Shocks!I147,5) -> 0.03789 | D148: =ROUND(B148*(1-Shocks!F147)-Shocks!G147,5) -> 0.02526 | E148: =ROUND(B148 + MAX(0.01,Shocks!E147*ABS(B148) ),5) -> 0.04158 | F148: =ROUND(IF(B148<0,B148, B148 - Shocks!D147 * ABS(B148)),5) -> 0.02526 | H148: 0.03184247494 | I148: =ROUND(B148*(1+Shocks!H147)+Shocks!I147,5)+Extrapolation!T150 -> 0.0381549353 | J148: =ROUND(B148*(1-Shocks!F147)-Shocks!G147,5)+Extrapolation!T150 -> 0.0255249353 | K148: =ROUND(B148 + MAX(0.01,Shocks!E147*ABS(B148) )+Extrapolation!T150, 5) -> 0.04184 | L148: =ROUND(IF(B148<0,B148, B148 - Shocks!D147 * ABS(B148))+Extrapolation!T150, 5) -> 0.02553
A149: 137 | B149: 0.03163152356 | C149: =ROUND(B149*(1+Shocks!H148)+Shocks!I148,5) -> 0.03796 | D149: =ROUND(B149*(1-Shocks!F148)-Shocks!G148,5) -> 0.02531 | E149: =ROUND(B149 + MAX(0.01,Shocks!E148*ABS(B149) ),5) -> 0.04163 | F149: =ROUND(IF(B149<0,B149, B149 - Shocks!D148 * ABS(B149)),5) -> 0.02531 | H149: 0.03189453857 | I149: =ROUND(B149*(1+Shocks!H148)+Shocks!I148,5)+Extrapolation!T151 -> 0.03822301502 | J149: =ROUND(B149*(1-Shocks!F148)-Shocks!G148,5)+Extrapolation!T151 -> 0.02557301502 | K149: =ROUND(B149 + MAX(0.01,Shocks!E148*ABS(B149) )+Extrapolation!T151, 5) -> 0.04189 | L149: =ROUND(IF(B149<0,B149, B149 - Shocks!D148 * ABS(B149))+Extrapolation!T151, 5) -> 0.02557
A150: 138 | B150: 0.03168472806 | C150: =ROUND(B150*(1+Shocks!H149)+Shocks!I149,5) -> 0.03802 | D150: =ROUND(B150*(1-Shocks!F149)-Shocks!G149,5) -> 0.02535 | E150: =ROUND(B150 + MAX(0.01,Shocks!E149*ABS(B150) ),5) -> 0.04168 | F150: =ROUND(IF(B150<0,B150, B150 - Shocks!D149 * ABS(B150)),5) -> 0.02535 | H150: 0.03194585042 | I150: =ROUND(B150*(1+Shocks!H149)+Shocks!I149,5)+Extrapolation!T152 -> 0.03828112237 | J150: =ROUND(B150*(1-Shocks!F149)-Shocks!G149,5)+Extrapolation!T152 -> 0.02561112237 | K150: =ROUND(B150 + MAX(0.01,Shocks!E149*ABS(B150) )+Extrapolation!T152, 5) -> 0.04195 | L150: =ROUND(IF(B150<0,B150, B150 - Shocks!D149 * ABS(B150))+Extrapolation!T152, 5) -> 0.02561
A151: 139 | B151: 0.03173716989 | C151: =ROUND(B151*(1+Shocks!H150)+Shocks!I150,5) -> 0.03808 | D151: =ROUND(B151*(1-Shocks!F150)-Shocks!G150,5) -> 0.02539 | E151: =ROUND(B151 + MAX(0.01,Shocks!E150*ABS(B151) ),5) -> 0.04174 | F151: =ROUND(IF(B151<0,B151, B151 - Shocks!D150 * ABS(B151)),5) -> 0.02539 | H151: 0.03199642664 | I151: =ROUND(B151*(1+Shocks!H150)+Shocks!I150,5)+Extrapolation!T153 -> 0.03833925676 | J151: =ROUND(B151*(1-Shocks!F150)-Shocks!G150,5)+Extrapolation!T153 -> 0.02564925676 | K151: =ROUND(B151 + MAX(0.01,Shocks!E150*ABS(B151) )+Extrapolation!T153, 5) -> 0.042 | L151: =ROUND(IF(B151<0,B151, B151 - Shocks!D150 * ABS(B151))+Extrapolation!T153, 5) -> 0.02565
A152: 140 | B152: 0.03178886532 | C152: =ROUND(B152*(1+Shocks!H151)+Shocks!I151,5) -> 0.03815 | D152: =ROUND(B152*(1-Shocks!F151)-Shocks!G151,5) -> 0.02543 | E152: =ROUND(B152 + MAX(0.01,Shocks!E151*ABS(B152) ),5) -> 0.04179 | F152: =ROUND(IF(B152<0,B152, B152 - Shocks!D151 * ABS(B152)),5) -> 0.02543 | H152: 0.03204628293 | I152: =ROUND(B152*(1+Shocks!H151)+Shocks!I151,5)+Extrapolation!T154 -> 0.03840741761 | J152: =ROUND(B152*(1-Shocks!F151)-Shocks!G151,5)+Extrapolation!T154 -> 0.02568741761 | K152: =ROUND(B152 + MAX(0.01,Shocks!E151*ABS(B152) )+Extrapolation!T154, 5) -> 0.04205 | L152: =ROUND(IF(B152<0,B152, B152 - Shocks!D151 * ABS(B152))+Extrapolation!T154, 5) -> 0.02569
A153: 141 | B153: 0.03183983015 | C153: =ROUND(B153*(1+Shocks!H152)+Shocks!I152,5) -> 0.03821 | D153: =ROUND(B153*(1-Shocks!F152)-Shocks!G152,5) -> 0.02547 | E153: =ROUND(B153 + MAX(0.01,Shocks!E152*ABS(B153) ),5) -> 0.04184 | F153: =ROUND(IF(B153<0,B153, B153 - Shocks!D152 * ABS(B153)),5) -> 0.02547 | H153: 0.03209543452 | I153: =ROUND(B153*(1+Shocks!H152)+Shocks!I152,5)+Extrapolation!T155 -> 0.03846560437 | J153: =ROUND(B153*(1-Shocks!F152)-Shocks!G152,5)+Extrapolation!T155 -> 0.02572560437 | K153: =ROUND(B153 + MAX(0.01,Shocks!E152*ABS(B153) )+Extrapolation!T155, 5) -> 0.0421 | L153: =ROUND(IF(B153<0,B153, B153 - Shocks!D152 * ABS(B153))+Extrapolation!T155, 5) -> 0.02573
A154: 142 | B154: 0.03189007976 | C154: =ROUND(B154*(1+Shocks!H153)+Shocks!I153,5) -> 0.03827 | D154: =ROUND(B154*(1-Shocks!F153)-Shocks!G153,5) -> 0.02551 | E154: =ROUND(B154 + MAX(0.01,Shocks!E153*ABS(B154) ),5) -> 0.04189 | F154: =ROUND(IF(B154<0,B154, B154 - Shocks!D153 * ABS(B154)),5) -> 0.02551 | H154: 0.03214389626 | I154: =ROUND(B154*(1+Shocks!H153)+Shocks!I153,5)+Extrapolation!T156 -> 0.0385238165 | J154: =ROUND(B154*(1-Shocks!F153)-Shocks!G153,5)+Extrapolation!T156 -> 0.0257638165 | K154: =ROUND(B154 + MAX(0.01,Shocks!E153*ABS(B154) )+Extrapolation!T156, 5) -> 0.04214 | L154: =ROUND(IF(B154<0,B154, B154 - Shocks!D153 * ABS(B154))+Extrapolation!T156, 5) -> 0.02577
A155: 143 | B155: 0.03193962908 | C155: =ROUND(B155*(1+Shocks!H154)+Shocks!I154,5) -> 0.03833 | D155: =ROUND(B155*(1-Shocks!F154)-Shocks!G154,5) -> 0.02555 | E155: =ROUND(B155 + MAX(0.01,Shocks!E154*ABS(B155) ),5) -> 0.04194 | F155: =ROUND(IF(B155<0,B155, B155 - Shocks!D154 * ABS(B155)),5) -> 0.02555 | H155: 0.03219168255 | I155: =ROUND(B155*(1+Shocks!H154)+Shocks!I154,5)+Extrapolation!T157 -> 0.03858205346 | J155: =ROUND(B155*(1-Shocks!F154)-Shocks!G154,5)+Extrapolation!T157 -> 0.02580205346 | K155: =ROUND(B155 + MAX(0.01,Shocks!E154*ABS(B155) )+Extrapolation!T157, 5) -> 0.04219 | L155: =ROUND(IF(B155<0,B155, B155 - Shocks!D154 * ABS(B155))+Extrapolation!T157, 5) -> 0.0258
A156: 144 | B156: 0.03198849266 | C156: =ROUND(B156*(1+Shocks!H155)+Shocks!I155,5) -> 0.03839 | D156: =ROUND(B156*(1-Shocks!F155)-Shocks!G155,5) -> 0.02559 | E156: =ROUND(B156 + MAX(0.01,Shocks!E155*ABS(B156) ),5) -> 0.04199 | F156: =ROUND(IF(B156<0,B156, B156 - Shocks!D155 * ABS(B156)),5) -> 0.02559 | H156: 0.03223880741 | I156: =ROUND(B156*(1+Shocks!H155)+Shocks!I155,5)+Extrapolation!T158 -> 0.03864031475 | J156: =ROUND(B156*(1-Shocks!F155)-Shocks!G155,5)+Extrapolation!T158 -> 0.02584031475 | K156: =ROUND(B156 + MAX(0.01,Shocks!E155*ABS(B156) )+Extrapolation!T158, 5) -> 0.04224 | L156: =ROUND(IF(B156<0,B156, B156 - Shocks!D155 * ABS(B156))+Extrapolation!T158, 5) -> 0.02584
A157: 145 | B157: 0.03203668461 | C157: =ROUND(B157*(1+Shocks!H156)+Shocks!I156,5) -> 0.03844 | D157: =ROUND(B157*(1-Shocks!F156)-Shocks!G156,5) -> 0.02563 | E157: =ROUND(B157 + MAX(0.01,Shocks!E156*ABS(B157) ),5) -> 0.04204 | F157: =ROUND(IF(B157<0,B157, B157 - Shocks!D156 * ABS(B157)),5) -> 0.02563 | H157: 0.03228528446 | I157: =ROUND(B157*(1+Shocks!H156)+Shocks!I156,5)+Extrapolation!T159 -> 0.03868859985 | J157: =ROUND(B157*(1-Shocks!F156)-Shocks!G156,5)+Extrapolation!T159 -> 0.02587859985 | K157: =ROUND(B157 + MAX(0.01,Shocks!E156*ABS(B157) )+Extrapolation!T159, 5) -> 0.04229 | L157: =ROUND(IF(B157<0,B157, B157 - Shocks!D156 * ABS(B157))+Extrapolation!T159, 5) -> 0.02588
A158: 146 | B158: 0.03208421868 | C158: =ROUND(B158*(1+Shocks!H157)+Shocks!I157,5) -> 0.0385 | D158: =ROUND(B158*(1-Shocks!F157)-Shocks!G157,5) -> 0.02567 | E158: =ROUND(B158 + MAX(0.01,Shocks!E157*ABS(B158) ),5) -> 0.04208 | F158: =ROUND(IF(B158<0,B158, B158 - Shocks!D157 * ABS(B158)),5) -> 0.02567 | H158: 0.03233112698 | I158: =ROUND(B158*(1+Shocks!H157)+Shocks!I157,5)+Extrapolation!T160 -> 0.03874690829 | J158: =ROUND(B158*(1-Shocks!F157)-Shocks!G157,5)+Extrapolation!T160 -> 0.02591690829 | K158: =ROUND(B158 + MAX(0.01,Shocks!E157*ABS(B158) )+Extrapolation!T160, 5) -> 0.04233 | L158: =ROUND(IF(B158<0,B158, B158 - Shocks!D157 * ABS(B158))+Extrapolation!T160, 5) -> 0.02591
A159: 147 | B159: 0.03213110825 | C159: =ROUND(B159*(1+Shocks!H158)+Shocks!I158,5) -> 0.03856 | D159: =ROUND(B159*(1-Shocks!F158)-Shocks!G158,5) -> 0.0257 | E159: =ROUND(B159 + MAX(0.01,Shocks!E158*ABS(B159) ),5) -> 0.04213 | F159: =ROUND(IF(B159<0,B159, B159 - Shocks!D158 * ABS(B159)),5) -> 0.0257 | H159: 0.03237634785 | I159: =ROUND(B159*(1+Shocks!H158)+Shocks!I158,5)+Extrapolation!T161 -> 0.0388052396 | J159: =ROUND(B159*(1-Shocks!F158)-Shocks!G158,5)+Extrapolation!T161 -> 0.0259452396 | K159: =ROUND(B159 + MAX(0.01,Shocks!E158*ABS(B159) )+Extrapolation!T161, 5) -> 0.04238 | L159: =ROUND(IF(B159<0,B159, B159 - Shocks!D158 * ABS(B159))+Extrapolation!T161, 5) -> 0.02595
A160: 148 | B160: 0.03217736634 | C160: =ROUND(B160*(1+Shocks!H159)+Shocks!I159,5) -> 0.03861 | D160: =ROUND(B160*(1-Shocks!F159)-Shocks!G159,5) -> 0.02574 | E160: =ROUND(B160 + MAX(0.01,Shocks!E159*ABS(B160) ),5) -> 0.04218 | F160: =ROUND(IF(B160<0,B160, B160 - Shocks!D159 * ABS(B160)),5) -> 0.02574 | H160: 0.03242095964 | I160: =ROUND(B160*(1+Shocks!H159)+Shocks!I159,5)+Extrapolation!T162 -> 0.03885359331 | J160: =ROUND(B160*(1-Shocks!F159)-Shocks!G159,5)+Extrapolation!T162 -> 0.02598359331 | K160: =ROUND(B160 + MAX(0.01,Shocks!E159*ABS(B160) )+Extrapolation!T162, 5) -> 0.04242 | L160: =ROUND(IF(B160<0,B160, B160 - Shocks!D159 * ABS(B160))+Extrapolation!T162, 5) -> 0.02599
A161: 149 | B161: 0.0322230056 | C161: =ROUND(B161*(1+Shocks!H160)+Shocks!I160,5) -> 0.03867 | D161: =ROUND(B161*(1-Shocks!F160)-Shocks!G160,5) -> 0.02578 | E161: =ROUND(B161 + MAX(0.01,Shocks!E160*ABS(B161) ),5) -> 0.04222 | F161: =ROUND(IF(B161<0,B161, B161 - Shocks!D160 * ABS(B161)),5) -> 0.02578 | H161: 0.03246497456 | I161: =ROUND(B161*(1+Shocks!H160)+Shocks!I160,5)+Extrapolation!T163 -> 0.03891196897 | J161: =ROUND(B161*(1-Shocks!F160)-Shocks!G160,5)+Extrapolation!T163 -> 0.02602196897 | K161: =ROUND(B161 + MAX(0.01,Shocks!E160*ABS(B161) )+Extrapolation!T163, 5) -> 0.04246 | L161: =ROUND(IF(B161<0,B161, B161 - Shocks!D160 * ABS(B161))+Extrapolation!T163, 5) -> 0.02602
A162: 150 | B162: 0.03226803836 | C162: =ROUND(B162*(1+Shocks!H161)+Shocks!I161,5) -> 0.03872 | D162: =ROUND(B162*(1-Shocks!F161)-Shocks!G161,5) -> 0.02581 | E162: =ROUND(B162 + MAX(0.01,Shocks!E161*ABS(B162) ),5) -> 0.04227 | F162: =ROUND(IF(B162<0,B162, B162 - Shocks!D161 * ABS(B162)),5) -> 0.02581 | H162: 0.03250840451 | I162: =ROUND(B162*(1+Shocks!H161)+Shocks!I161,5)+Extrapolation!T164 -> 0.03896036615 | J162: =ROUND(B162*(1-Shocks!F161)-Shocks!G161,5)+Extrapolation!T164 -> 0.02605036615 | K162: =ROUND(B162 + MAX(0.01,Shocks!E161*ABS(B162) )+Extrapolation!T164, 5) -> 0.04251 | L162: =ROUND(IF(B162<0,B162, B162 - Shocks!D161 * ABS(B162))+Extrapolation!T164, 5) -> 0.02605

Sheet Alternative Calibration
J6: ='Scenario Data'!J6 -> EUR
J7: ='Scenario Data'!J7 -> 15
B11: NO volatility adjustment | H11: WITH volatility adjustment
B12: Alternative Extrapolation Method RFR | C12: Alternative Calibration 1 - Up Shock | D12: Alternative Calibration 1 - Down Shock | E12: Alternative Calibration 2 - Up Shock | F12: Alternative Calibration 2 - Down Shock | H12: Alternative Extrapolation Method RFR | I12: Alternative Calibration 1 - Up Shock | J12: Alternative Calibration 1 - Down Shock | K12: Alternative Calibration 2 - Up Shock | L12: Alternative Calibration 2 - Down Shock
A13: 1 | B13: =BaseCurve -> -0.004161 | C13: =ROUND(B13*(1+Shocks!H12)+Shocks!I12,5) -> 0.0147 | D13: =MAX(ROUND(B13*(1-Shocks!F12)-Shocks!G12,5), -1.25%) -> -0.0125 | E13: =IF(Extrapolation!FSP >= 15, ROUND(B13*(1+Shocks!H12)+Shocks!I12,5), ROUND(B13*(1+Shocks!L12)+Shocks!M12,5)) -> 0.0147 | F13: =IF(Extrapolation!FSP >= 15, ROUND(B13*(1-Shocks!F12)-Shocks!G12,5), ROUND(B13*(1-Shocks!J12)-Shocks!K12,5)) -> -0.01335 | H13: =BaseCurveWithVA -> -0.0026672415 | I13: =ROUND(B13*(1+Shocks!H12)+Shocks!I12,5)+Extrapolation!T15 -> 0.0161937585 | J13: =MAX(ROUND(B13*(1-Shocks!F12)-Shocks!G12,5)+Extrapolation!T15, -1.25%) -> -0.0118562415 | K13: =IF(Extrapolation!FSP >= 15, ROUND(B13*(1+Shocks!H12)+Shocks!I12 + Extrapolation!T15, 5), ROUND(B13*(1+Shocks!L12)+Shocks!M12 + Extrapolation!T15,5)) -> 0.01619 | L13: =IF(Extrapolation!FSP >= 15, ROUND(B13*(1-Shocks!F12)-Shocks!G12+Extrapolation!T15, 5), ROUND(B13*(1-Shocks!J12)-Shocks!K12+Extrapolation!T15, 5)) -> -0.01185 | Y13: Czech Republic | Z13: 1
A14: 2 | B14: -0.003935444756 | C14: =ROUND(B14*(1+Shocks!H13)+Shocks!I13,5) -> 0.01258 | D14: =MAX(ROUND(B14*(1-Shocks!F13)-Shocks!G13,5), -1.25%) -> -0.01183 | E14: =IF(Extrapolation!FSP >= 15, ROUND(B14*(1+Shocks!H13)+Shocks!I13,5), ROUND(B14*(1+Shocks!L13)+Shocks!M13,5)) -> 0.01258 | F14: =IF(Extrapolation!FSP >= 15, ROUND(B14*(1-Shocks!F13)-Shocks!G13,5), ROUND(B14*(1-Shocks!J13)-Shocks!K13,5)) -> -0.01183 | H14: -0.002441347923 | I14: =ROUND(B14*(1+Shocks!H13)+Shocks!I13,5)+Extrapolation!T16 -> 0.01407409683 | J14: =MAX(ROUND(B14*(1-Shocks!F13)-Shocks!G13,5)+Extrapolation!T16, -1.25%) -> -0.01033590317 | K14: =IF(Extrapolation!FSP >= 15, ROUND(B14*(1+Shocks!H13)+Shocks!I13 + Extrapolation!T16, 5), ROUND(B14*(1+Shocks!L13)+Shocks!M13 + Extrapolation!T16,5)) -> 0.01407 | L14: =IF(Extrapolation!FSP >= 15, ROUND(B14*(1-Shocks!F13)-Shocks!G13+Extrapolation!T16, 5), ROUND(B14*(1-Shocks!J13)-Shocks!K13+Extrapolation!T16, 5)) -> -0.01033 | Y14: Hungary | Z14: 2
A15: 3 | B15: -0.00338213028 | C15: =ROUND(B15*(1+Shocks!H14)+Shocks!I14,5) -> 0.01216 | D15: =MAX(ROUND(B15*(1-Shocks!F14)-Shocks!G14,5), -1.25%) -> -0.01019 | E15: =IF(Extrapolation!FSP >= 15, ROUND(B15*(1+Shocks!H14)+Shocks!I14,5), ROUND(B15*(1+Shocks!L14)+Shocks!M14,5)) -> 0.01216 | F15: =IF(Extrapolation!FSP >= 15, ROUND(B15*(1-Shocks!F14)-Shocks!G14,5), ROUND(B15*(1-Shocks!J14)-Shocks!K14,5)) -> -0.01019 | H15: -0.001887203476 | I15: =ROUND(B15*(1+Shocks!H14)+Shocks!I14,5)+Extrapolation!T17 -> 0.0136549268 | J15: =MAX(ROUND(B15*(1-Shocks!F14)-Shocks!G14,5)+Extrapolation!T17, -1.25%) -> -0.008695073195 | K15: =IF(Extrapolation!FSP >= 15, ROUND(B15*(1+Shocks!H14)+Shocks!I14 + Extrapolation!T17, 5), ROUND(B15*(1+Shocks!L14)+Shocks!M14 + Extrapolation!T17,5)) -> 0.01366 | L15: =IF(Extrapolation!FSP >= 15, ROUND(B15*(1-Shocks!F14)-Shocks!G14+Extrapolation!T17, 5), ROUND(B15*(1-Shocks!J14)-Shocks!K14+Extrapolation!T17, 5)) -> -0.0087 | Y15: Poland | Z15: 3
A16: 4 | B16: -0.002748913431 | C16: =ROUND(B16*(1+Shocks!H15)+Shocks!I15,5) -> 0.01209 | D16: =MAX(ROUND(B16*(1-Shocks!F15)-Shocks!G15,5), -1.25%) -> -0.00905 | E16: =IF(Extrapolation!FSP >= 15, ROUND(B16*(1+Shocks!H15)+Shocks!I15,5), ROUND(B16*(1+Shocks!L15)+Shocks!M15,5)) -> 0.01209 | F16: =IF(Extrapolation!FSP >= 15, ROUND(B16*(1-Shocks!F15)-Shocks!G15,5), ROUND(B16*(1-Shocks!J15)-Shocks!K15,5)) -> -0.00905 | H16: -0.001253036801 | I16: =ROUND(B16*(1+Shocks!H15)+Shocks!I15,5)+Extrapolation!T18 -> 0.01358587663 | J16: =MAX(ROUND(B16*(1-Shocks!F15)-Shocks!G15,5)+Extrapolation!T18, -1.25%) -> -0.00755412337 | K16: =IF(Extrapolation!FSP >= 15, ROUND(B16*(1+Shocks!H15)+Shocks!I15 + Extrapolation!T18, 5), ROUND(B16*(1+Shocks!L15)+Shocks!M15 + Extrapolation!T18,5)) -> 0.01358 | L16: =IF(Extrapolation!FSP >= 15, ROUND(B16*(1-Shocks!F15)-Shocks!G15+Extrapolation!T18, 5), ROUND(B16*(1-Shocks!J15)-Shocks!K15+Extrapolation!T18, 5)) -> -0.00755 | Y16: Romania | Z16: 4
A17: 5 | B17: -0.002199922184 | C17: =ROUND(B17*(1+Shocks!H16)+Shocks!I16,5) -> 0.01261 | D17: =MAX(ROUND(B17*(1-Shocks!F16)-Shocks!G16,5), -1.25%) -> -0.00842 | E17: =IF(Extrapolation!FSP >= 15, ROUND(B17*(1+Shocks!H16)+Shocks!I16,5), ROUND(B17*(1+Shocks!L16)+Shocks!M16,5)) -> 0.01261 | F17: =IF(Extrapolation!FSP >= 15, ROUND(B17*(1-Shocks!F16)-Shocks!G16,5), ROUND(B17*(1-Shocks!J16)-Shocks!K16,5)) -> -0.00842 | H17: -0.0007032220672 | I17: =ROUND(B17*(1+Shocks!H16)+Shocks!I16,5)+Extrapolation!T19 -> 0.01410670012 | J17: =MAX(ROUND(B17*(1-Shocks!F16)-Shocks!G16,5)+Extrapolation!T19, -1.25%) -> -0.006923299883 | K17: =IF(Extrapolation!FSP >= 15, ROUND(B17*(1+Shocks!H16)+Shocks!I16 + Extrapolation!T19, 5), ROUND(B17*(1+Shocks!L16)+Shocks!M16 + Extrapolation!T19,5)) -> 0.01411 | L17: =IF(Extrapolation!FSP >= 15, ROUND(B17*(1-Shocks!F16)-Shocks!G16+Extrapolation!T19, 5), ROUND(B17*(1-Shocks!J16)-Shocks!K16+Extrapolation!T19, 5)) -> -0.00692 | Y17: Switzerland | Z17: 5
A18: 6 | B18: -0.001670325244 | C18: =ROUND(B18*(1+Shocks!H17)+Shocks!I17,5) -> 0.01204 | D18: =MAX(ROUND(B18*(1-Shocks!F17)-Shocks!G17,5), -1.25%) -> -0.00774 | E18: =IF(Extrapolation!FSP >= 15, ROUND(B18*(1+Shocks!H17)+Shocks!I17,5), ROUND(B18*(1+Shocks!L17)+Shocks!M17,5)) -> 0.01204 | F18: =IF(Extrapolation!FSP >= 15, ROUND(B18*(1-Shocks!F17)-Shocks!G17,5), ROUND(B18*(1-Shocks!J17)-Shocks!K17,5)) -> -0.00774 | H18: -0.0001728307318 | I18: =ROUND(B18*(1+Shocks!H17)+Shocks!I17,5)+Extrapolation!T20 -> 0.01353749451 | J18: =MAX(ROUND(B18*(1-Shocks!F17)-Shocks!G17,5)+Extrapolation!T20, -1.25%) -> -0.006242505488 | K18: =IF(Extrapolation!FSP >= 15, ROUND(B18*(1+Shocks!H17)+Shocks!I17 + Extrapolation!T20, 5), ROUND(B18*(1+Shocks!L17)+Shocks!M17 + Extrapolation!T20,5)) -> 0.01354 | L18: =IF(Extrapolation!FSP >= 15, ROUND(B18*(1-Shocks!F17)-Shocks!G17+Extrapolation!T20, 5), ROUND(B18*(1-Shocks!J17)-Shocks!K17+Extrapolation!T20, 5)) -> -0.00624 | Y18: United States | Z18: 6
A19: 7 | B19: -0.0008443968012 | C19: =ROUND(B19*(1+Shocks!H18)+Shocks!I18,5) -> 0.01184 | D19: =MAX(ROUND(B19*(1-Shocks!F18)-Shocks!G18,5), -1.25%) -> -0.00683 | E19: =IF(Extrapolation!FSP >= 15, ROUND(B19*(1+Shocks!H18)+Shocks!I18,5), ROUND(B19*(1+Shocks!L18)+Shocks!M18,5)) -> 0.01184 | F19: =IF(Extrapolation!FSP >= 15, ROUND(B19*(1-Shocks!F18)-Shocks!G18,5), ROUND(B19*(1-Shocks!J18)-Shocks!K18,5)) -> -0.00683 | H19: 0.0006543366036 | I19: =ROUND(B19*(1+Shocks!H18)+Shocks!I18,5)+Extrapolation!T21 -> 0.0133387334 | J19: =MAX(ROUND(B19*(1-Shocks!F18)-Shocks!G18,5)+Extrapolation!T21, -1.25%) -> -0.005331266595 | K19: =IF(Extrapolation!FSP >= 15, ROUND(B19*(1+Shocks!H18)+Shocks!I18 + Extrapolation!T21, 5), ROUND(B19*(1+Shocks!L18)+Shocks!M18 + Extrapolation!T21,5)) -> 0.01334 | L19: =IF(Extrapolation!FSP >= 15, ROUND(B19*(1-Shocks!F18)-Shocks!G18+Extrapolation!T21, 5), ROUND(B19*(1-Shocks!J18)-Shocks!K18+Extrapolation!T21, 5)) -> -0.00533
A20: 8 | B20: -0.0001812452493 | C20: =ROUND(B20*(1+Shocks!H19)+Shocks!I19,5) -> 0.01166 | D20: =MAX(ROUND(B20*(1-Shocks!F19)-Shocks!G19,5), -1.25%) -> -0.00631 | E20: =IF(Extrapolation!FSP >= 15, ROUND(B20*(1+Shocks!H19)+Shocks!I19,5), ROUND(B20*(1+Shocks!L19)+Shocks!M19,5)) -> 0.01166 | F20: =IF(Extrapolation!FSP >= 15, ROUND(B20*(1-Shocks!F19)-Shocks!G19,5), ROUND(B20*(1-Shocks!J19)-Shocks!K19,5)) -> -0.00631 | H20: 0.001318482883 | I20: =ROUND(B20*(1+Shocks!H19)+Shocks!I19,5)+Extrapolation!T22 -> 0.01315972813 | J20: =MAX(ROUND(B20*(1-Shocks!F19)-Shocks!G19,5)+Extrapolation!T22, -1.25%) -> -0.004810271868 | K20: =IF(Extrapolation!FSP >= 15, ROUND(B20*(1+Shocks!H19)+Shocks!I19 + Extrapolation!T22, 5), ROUND(B20*(1+Shocks!L19)+Shocks!M19 + Extrapolation!T22,5)) -> 0.01316 | L20: =IF(Extrapolation!FSP >= 15, ROUND(B20*(1-Shocks!F19)-Shocks!G19+Extrapolation!T22, 5), ROUND(B20*(1-Shocks!J19)-Shocks!K19+Extrapolation!T22, 5)) -> -0.00481
A21: 9 | B21: 0.0004640265319 | C21: =ROUND(B21*(1+Shocks!H20)+Shocks!I20,5) -> 0.01181 | D21: =MAX(ROUND(B21*(1-Shocks!F20)-Shocks!G20,5), -1.25%) -> -0.00582 | E21: =IF(Extrapolation!FSP >= 15, ROUND(B21*(1+Shocks!H20)+Shocks!I20,5), ROUND(B21*(1+Shocks!L20)+Shocks!M20,5)) -> 0.01181 | F21: =IF(Extrapolation!FSP >= 15, ROUND(B21*(1-Shocks!F20)-Shocks!G20,5), ROUND(B21*(1-Shocks!J20)-Shocks!K20,5)) -> -0.00582 | H21: 0.001964722572 | I21: =ROUND(B21*(1+Shocks!H20)+Shocks!I20,5)+Extrapolation!T23 -> 0.01331069604 | J21: =MAX(ROUND(B21*(1-Shocks!F20)-Shocks!G20,5)+Extrapolation!T23, -1.25%) -> -0.00431930396 | K21: =IF(Extrapolation!FSP >= 15, ROUND(B21*(1+Shocks!H20)+Shocks!I20 + Extrapolation!T23, 5), ROUND(B21*(1+Shocks!L20)+Shocks!M20 + Extrapolation!T23,5)) -> 0.01331 | L21: =IF(Extrapolation!FSP >= 15, ROUND(B21*(1-Shocks!F20)-Shocks!G20+Extrapolation!T23, 5), ROUND(B21*(1-Shocks!J20)-Shocks!K20+Extrapolation!T23, 5)) -> -0.00432
A22: 10 | B22: 0.001122066321 | C22: =ROUND(B22*(1+Shocks!H21)+Shocks!I21,5) -> 0.01196 | D22: =MAX(ROUND(B22*(1-Shocks!F21)-Shocks!G21,5), -1.25%) -> -0.00543 | E22: =IF(Extrapolation!FSP >= 15, ROUND(B22*(1+Shocks!H21)+Shocks!I21,5), ROUND(B22*(1+Shocks!L21)+Shocks!M21,5)) -> 0.01196 | F22: =IF(Extrapolation!FSP >= 15, ROUND(B22*(1-Shocks!F21)-Shocks!G21,5), ROUND(B22*(1-Shocks!J21)-Shocks!K21,5)) -> -0.00543 | H22: 0.00262374942 | I22: =ROUND(B22*(1+Shocks!H21)+Shocks!I21,5)+Extrapolation!T24 -> 0.0134616831 | J22: =MAX(ROUND(B22*(1-Shocks!F21)-Shocks!G21,5)+Extrapolation!T24, -1.25%) -> -0.003928316901 | K22: =IF(Extrapolation!FSP >= 15, ROUND(B22*(1+Shocks!H21)+Shocks!I21 + Extrapolation!T24, 5), ROUND(B22*(1+Shocks!L21)+Shocks!M21 + Extrapolation!T24,5)) -> 0.01346 | L22: =IF(Extrapolation!FSP >= 15, ROUND(B22*(1-Shocks!F21)-Shocks!G21+Extrapolation!T24, 5), ROUND(B22*(1-Shocks!J21)-Shocks!K21+Extrapolation!T24, 5)) -> -0.00393
A23: 11 | B23: 0.001568824854 | C23: =ROUND(B23*(1+Shocks!H22)+Shocks!I22,5) -> 0.01254 | D23: =MAX(ROUND(B23*(1-Shocks!F22)-Shocks!G22,5), -1.25%) -> -0.00507 | E23: =IF(Extrapolation!FSP >= 15, ROUND(B23*(1+Shocks!H22)+Shocks!I22,5), ROUND(B23*(1+Shocks!L22)+Shocks!M22,5)) -> 0.01254 | F23: =IF(Extrapolation!FSP >= 15, ROUND(B23*(1-Shocks!F22)-Shocks!G22,5), ROUND(B23*(1-Shocks!J22)-Shocks!K22,5)) -> -0.00507 | H23: 0.003071178091 | I23: =ROUND(B23*(1+Shocks!H22)+Shocks!I22,5)+Extrapolation!T25 -> 0.01404235324 | J23: =MAX(ROUND(B23*(1-Shocks!F22)-Shocks!G22,5)+Extrapolation!T25, -1.25%) -> -0.003567646763 | K23: =IF(Extrapolation!FSP >= 15, ROUND(B23*(1+Shocks!H22)+Shocks!I22 + Extrapolation!T25, 5), ROUND(B23*(1+Shocks!L22)+Shocks!M22 + Extrapolation!T25,5)) -> 0.01404 | L23: =IF(Extrapolation!FSP >= 15, ROUND(B23*(1-Shocks!F22)-Shocks!G22+Extrapolation!T25, 5), ROUND(B23*(1-Shocks!J22)-Shocks!K22+Extrapolation!T25, 5)) -> -0.00357
A24: 12 | B24: 0.002232633343 | C24: =ROUND(B24*(1+Shocks!H23)+Shocks!I23,5) -> 0.0134 | D24: =MAX(ROUND(B24*(1-Shocks!F23)-Shocks!G23,5), -1.25%) -> -0.00471 | E24: =IF(Extrapolation!FSP >= 15, ROUND(B24*(1+Shocks!H23)+Shocks!I23,5), ROUND(B24*(1+Shocks!L23)+Shocks!M23,5)) -> 0.0134 | F24: =IF(Extrapolation!FSP >= 15, ROUND(B24*(1-Shocks!F23)-Shocks!G23,5), ROUND(B24*(1-Shocks!J23)-Shocks!K23,5)) -> -0.00471 | H24: 0.003735982293 | I24: =ROUND(B24*(1+Shocks!H23)+Shocks!I23,5)+Extrapolation!T26 -> 0.01490334895 | J24: =MAX(ROUND(B24*(1-Shocks!F23)-Shocks!G23,5)+Extrapolation!T26, -1.25%) -> -0.00320665105 | K24: =IF(Extrapolation!FSP >= 15, ROUND(B24*(1+Shocks!H23)+Shocks!I23 + Extrapolation!T26, 5), ROUND(B24*(1+Shocks!L23)+Shocks!M23 + Extrapolation!T26,5)) -> 0.01491 | L24: =IF(Extrapolation!FSP >= 15, ROUND(B24*(1-Shocks!F23)-Shocks!G23+Extrapolation!T26, 5), ROUND(B24*(1-Shocks!J23)-Shocks!K23+Extrapolation!T26, 5)) -> -0.0032
A25: 13 | B25: 0.002838508957 | C25: =ROUND(B25*(1+Shocks!H24)+Shocks!I24,5) -> 0.01419 | D25: =MAX(ROUND(B25*(1-Shocks!F24)-Shocks!G24,5), -1.25%) -> -0.00428 | E25: =IF(Extrapolation!FSP >= 15, ROUND(B25*(1+Shocks!H24)+Shocks!I24,5), ROUND(B25*(1+Shocks!L24)+Shocks!M24,5)) -> 0.01419 | F25: =IF(Extrapolation!FSP >= 15, ROUND(B25*(1-Shocks!F24)-Shocks!G24,5), ROUND(B25*(1-Shocks!J24)-Shocks!K24,5)) -> -0.00428 | H25: 0.00434276672 | I25: =ROUND(B25*(1+Shocks!H24)+Shocks!I24,5)+Extrapolation!T27 -> 0.01569425776 | J25: =MAX(ROUND(B25*(1-Shocks!F24)-Shocks!G24,5)+Extrapolation!T27, -1.25%) -> -0.002775742237 | K25: =IF(Extrapolation!FSP >= 15, ROUND(B25*(1+Shocks!H24)+Shocks!I24 + Extrapolation!T27, 5), ROUND(B25*(1+Shocks!L24)+Shocks!M24 + Extrapolation!T27,5)) -> 0.01569 | L25: =IF(Extrapolation!FSP >= 15, ROUND(B25*(1-Shocks!F24)-Shocks!G24+Extrapolation!T27, 5), ROUND(B25*(1-Shocks!J24)-Shocks!K24+Extrapolation!T27, 5)) -> -0.00278
A26: 14 | B26: 0.003135820538 | C26: =ROUND(B26*(1+Shocks!H25)+Shocks!I25,5) -> 0.01425 | D26: =MAX(ROUND(B26*(1-Shocks!F25)-Shocks!G25,5), -1.25%) -> -0.00404 | E26: =IF(Extrapolation!FSP >= 15, ROUND(B26*(1+Shocks!H25)+Shocks!I25,5), ROUND(B26*(1+Shocks!L25)+Shocks!M25,5)) -> 0.01425 | F26: =IF(Extrapolation!FSP >= 15, ROUND(B26*(1-Shocks!F25)-Shocks!G25,5), ROUND(B26*(1-Shocks!J25)-Shocks!K25,5)) -> -0.00404 | H26: 0.004640524269 | I26: =ROUND(B26*(1+Shocks!H25)+Shocks!I25,5)+Extrapolation!T28 -> 0.01575470373 | J26: =MAX(ROUND(B26*(1-Shocks!F25)-Shocks!G25,5)+Extrapolation!T28, -1.25%) -> -0.002535296269 | K26: =IF(Extrapolation!FSP >= 15, ROUND(B26*(1+Shocks!H25)+Shocks!I25 + Extrapolation!T28, 5), ROUND(B26*(1+Shocks!L25)+Shocks!M25 + Extrapolation!T28,5)) -> 0.01575 | L26: =IF(Extrapolation!FSP >= 15, ROUND(B26*(1-Shocks!F25)-Shocks!G25+Extrapolation!T28, 5), ROUND(B26*(1-Shocks!J25)-Shocks!K25+Extrapolation!T28, 5)) -> -0.00254
A27: 15 | B27: 0.003748100681 | C27: =ROUND(B27*(1+Shocks!H26)+Shocks!I26,5) -> 0.0146 | D27: =MAX(ROUND(B27*(1-Shocks!F26)-Shocks!G26,5), -1.25%) -> -0.00364 | E27: =IF(Extrapolation!FSP >= 15, ROUND(B27*(1+Shocks!H26)+Shocks!I26,5), ROUND(B27*(1+Shocks!L26)+Shocks!M26,5)) -> 0.0146 | F27: =IF(Extrapolation!FSP >= 15, ROUND(B27*(1-Shocks!F26)-Shocks!G26,5), ROUND(B27*(1-Shocks!J26)-Shocks!K26,5)) -> -0.00364 | H27: 0.005253722832 | I27: =ROUND(B27*(1+Shocks!H26)+Shocks!I26,5)+Extrapolation!T29 -> 0.01610562215 | J27: =MAX(ROUND(B27*(1-Shocks!F26)-Shocks!G26,5)+Extrapolation!T29, -1.25%) -> -0.002134377849 | K27: =IF(Extrapolation!FSP >= 15, ROUND(B27*(1+Shocks!H26)+Shocks!I26 + Extrapolation!T29, 5), ROUND(B27*(1+Shocks!L26)+Shocks!M26 + Extrapolation!T29,5)) -> 0.0161 | L27: =IF(Extrapolation!FSP >= 15, ROUND(B27*(1-Shocks!F26)-Shocks!G26+Extrapolation!T29, 5), ROUND(B27*(1-Shocks!J26)-Shocks!K26+Extrapolation!T29, 5)) -> -0.00213
A28: 16 | B28: 0.004091596048 | C28: =ROUND(B28*(1+Shocks!H27)+Shocks!I27,5) -> 0.01504 | D28: =MAX(ROUND(B28*(1-Shocks!F27)-Shocks!G27,5), -1.25%) -> -0.00343 | E28: =IF(Extrapolation!FSP >= 15, ROUND(B28*(1+Shocks!H27)+Shocks!I27,5), ROUND(B28*(1+Shocks!L27)+Shocks!M27,5)) -> 0.01504 | F28: =IF(Extrapolation!FSP >= 15, ROUND(B28*(1-Shocks!F27)-Shocks!G27,5), ROUND(B28*(1-Shocks!J27)-Shocks!K27,5)) -> -0.00343 | H28: 0.005597733442 | I28: =ROUND(B28*(1+Shocks!H27)+Shocks!I27,5)+Extrapolation!T30 -> 0.01654613739 | J28: =MAX(ROUND(B28*(1-Shocks!F27)-Shocks!G27,5)+Extrapolation!T30, -1.25%) -> -0.001923862606 | K28: =IF(Extrapolation!FSP >= 15, ROUND(B28*(1+Shocks!H27)+Shocks!I27 + Extrapolation!T30, 5), ROUND(B28*(1+Shocks!L27)+Shocks!M27 + Extrapolation!T30,5)) -> 0.01654 | L28: =IF(Extrapolation!FSP >= 15, ROUND(B28*(1-Shocks!F27)-Shocks!G27+Extrapolation!T30, 5), ROUND(B28*(1-Shocks!J27)-Shocks!K27+Extrapolation!T30, 5)) -> -0.00193
A29: 17 | B29: 0.004394777812 | C29: =ROUND(B29*(1+Shocks!H28)+Shocks!I28,5) -> 0.01508 | D29: =MAX(ROUND(B29*(1-Shocks!F28)-Shocks!G28,5), -1.25%) -> -0.00321 | E29: =IF(Extrapolation!FSP >= 15, ROUND(B29*(1+Shocks!H28)+Shocks!I28,5), ROUND(B29*(1+Shocks!L28)+Shocks!M28,5)) -> 0.01508 | F29: =IF(Extrapolation!FSP >= 15, ROUND(B29*(1-Shocks!F28)-Shocks!G28,5), ROUND(B29*(1-Shocks!J28)-Shocks!K28,5)) -> -0.00321 | H29: 0.005901369978 | I29: =ROUND(B29*(1+Shocks!H28)+Shocks!I28,5)+Extrapolation!T31 -> 0.01658659217 | J29: =MAX(ROUND(B29*(1-Shocks!F28)-Shocks!G28,5)+Extrapolation!T31, -1.25%) -> -0.001703407833 | K29: =IF(Extrapolation!FSP >= 15, ROUND(B29*(1+Shocks!H28)+Shocks!I28 + Extrapolation!T31, 5), ROUND(B29*(1+Shocks!L28)+Shocks!M28 + Extrapolation!T31,5)) -> 0.01659 | L29: =IF(Extrapolation!FSP >= 15, ROUND(B29*(1-Shocks!F28)-Shocks!G28+Extrapolation!T31, 5), ROUND(B29*(1-Shocks!J28)-Shocks!K28+Extrapolation!T31, 5)) -> -0.00171
A30: 18 | B30: 0.004664349564 | C30: =ROUND(B30*(1+Shocks!H29)+Shocks!I29,5) -> 0.01498 | D30: =MAX(ROUND(B30*(1-Shocks!F29)-Shocks!G29,5), -1.25%) -> -0.00302 | E30: =IF(Extrapolation!FSP >= 15, ROUND(B30*(1+Shocks!H29)+Shocks!I29,5), ROUND(B30*(1+Shocks!L29)+Shocks!M29,5)) -> 0.01498 | F30: =IF(Extrapolation!FSP >= 15, ROUND(B30*(1-Shocks!F29)-Shocks!G29,5), ROUND(B30*(1-Shocks!J29)-Shocks!K29,5)) -> -0.00302 | H30: 0.006171346089 | I30: =ROUND(B30*(1+Shocks!H29)+Shocks!I29,5)+Extrapolation!T32 -> 0.01648699652 | J30: =MAX(ROUND(B30*(1-Shocks!F29)-Shocks!G29,5)+Extrapolation!T32, -1.25%) -> -0.001513003476 | K30: =IF(Extrapolation!FSP >= 15, ROUND(B30*(1+Shocks!H29)+Shocks!I29 + Extrapolation!T32, 5), ROUND(B30*(1+Shocks!L29)+Shocks!M29 + Extrapolation!T32,5)) -> 0.01648 | L30: =IF(Extrapolation!FSP >= 15, ROUND(B30*(1-Shocks!F29)-Shocks!G29+Extrapolation!T32, 5), ROUND(B30*(1-Shocks!J29)-Shocks!K29+Extrapolation!T32, 5)) -> -0.00151
A31: 19 | B31: 0.00490560667 | C31: =ROUND(B31*(1+Shocks!H30)+Shocks!I30,5) -> 0.01528 | D31: =MAX(ROUND(B31*(1-Shocks!F30)-Shocks!G30,5), -1.25%) -> -0.0027 | E31: =IF(Extrapolation!FSP >= 15, ROUND(B31*(1+Shocks!H30)+Shocks!I30,5), ROUND(B31*(1+Shocks!L30)+Shocks!M30,5)) -> 0.01528 | F31: =IF(Extrapolation!FSP >= 15, ROUND(B31*(1-Shocks!F30)-Shocks!G30,5), ROUND(B31*(1-Shocks!J30)-Shocks!K30,5)) -> -0.0027 | H31: 0.00641296508 | I31: =ROUND(B31*(1+Shocks!H30)+Shocks!I30,5)+Extrapolation!T33 -> 0.01678735841 | J31: =MAX(ROUND(B31*(1-Shocks!F30)-Shocks!G30,5)+Extrapolation!T33, -1.25%) -> -0.00119264159 | K31: =IF(Extrapolation!FSP >= 15, ROUND(B31*(1+Shocks!H30)+Shocks!I30 + Extrapolation!T33, 5), ROUND(B31*(1+Shocks!L30)+Shocks!M30 + Extrapolation!T33,5)) -> 0.01679 | L31: =IF(Extrapolation!FSP >= 15, ROUND(B31*(1-Shocks!F30)-Shocks!G30+Extrapolation!T33, 5), ROUND(B31*(1-Shocks!J30)-Shocks!K30+Extrapolation!T33, 5)) -> -0.00119
A32: 20 | B32: 0.005122787599 | C32: =ROUND(B32*(1+Shocks!H31)+Shocks!I31,5) -> 0.0152 | D32: =MAX(ROUND(B32*(1-Shocks!F31)-Shocks!G31,5), -1.25%) -> -0.00244 | E32: =IF(Extrapolation!FSP >= 15, ROUND(B32*(1+Shocks!H31)+Shocks!I31,5), ROUND(B32*(1+Shocks!L31)+Shocks!M31,5)) -> 0.0152 | F32: =IF(Extrapolation!FSP >= 15, ROUND(B32*(1-Shocks!F31)-Shocks!G31,5), ROUND(B32*(1-Shocks!J31)-Shocks!K31,5)) -> -0.00244 | H32: 0.006630471781 | I32: =ROUND(B32*(1+Shocks!H31)+Shocks!I31,5)+Extrapolation!T34 -> 0.01670768418 | J32: =MAX(ROUND(B32*(1-Shocks!F31)-Shocks!G31,5)+Extrapolation!T34, -1.25%) -> -0.0009323158186 | K32: =IF(Extrapolation!FSP >= 15, ROUND(B32*(1+Shocks!H31)+Shocks!I31 + Extrapolation!T34, 5), ROUND(B32*(1+Shocks!L31)+Shocks!M31 + Extrapolation!T34,5)) -> 0.01671 | L32: =IF(Extrapolation!FSP >= 15, ROUND(B32*(1-Shocks!F31)-Shocks!G31+Extrapolation!T34, 5), ROUND(B32*(1-Shocks!J31)-Shocks!K31+Extrapolation!T34, 5)) -> -0.00093
A33: 21 | B33: 0.005287990132 | C33: =ROUND(B33*(1+Shocks!H32)+Shocks!I32,5) -> 0.01519 | D33: =MAX(ROUND(B33*(1-Shocks!F32)-Shocks!G32,5), -1.25%) -> -0.00221 | E33: =IF(Extrapolation!FSP >= 15, ROUND(B33*(1+Shocks!H32)+Shocks!I32,5), ROUND(B33*(1+Shocks!L32)+Shocks!M32,5)) -> 0.01519 | F33: =IF(Extrapolation!FSP >= 15, ROUND(B33*(1-Shocks!F32)-Shocks!G32,5), ROUND(B33*(1-Shocks!J32)-Shocks!K32,5)) -> -0.00221 | H33: 0.006746629911 | I33: =ROUND(B33*(1+Shocks!H32)+Shocks!I32,5)+Extrapolation!T35 -> 0.01664863978 | J33: =MAX(ROUND(B33*(1-Shocks!F32)-Shocks!G32,5)+Extrapolation!T35, -1.25%) -> -0.0007513602211 | K33: =IF(Extrapolation!FSP >= 15, ROUND(B33*(1+Shocks!H32)+Shocks!I32 + Extrapolation!T35, 5), ROUND(B33*(1+Shocks!L32)+Shocks!M32 + Extrapolation!T35,5)) -> 0.01664 | L33: =IF(Extrapolation!FSP >= 15, ROUND(B33*(1-Shocks!F32)-Shocks!G32+Extrapolation!T35, 5), ROUND(B33*(1-Shocks!J32)-Shocks!K32+Extrapolation!T35, 5)) -> -0.00075
A34: 22 | B34: 0.005567364294 | C34: =ROUND(B34*(1+Shocks!H33)+Shocks!I33,5) -> 0.01531 | D34: =MAX(ROUND(B34*(1-Shocks!F33)-Shocks!G33,5), -1.25%) -> -0.00192 | E34: =IF(Extrapolation!FSP >= 15, ROUND(B34*(1+Shocks!H33)+Shocks!I33,5), ROUND(B34*(1+Shocks!L33)+Shocks!M33,5)) -> 0.01531 | F34: =IF(Extrapolation!FSP >= 15, ROUND(B34*(1-Shocks!F33)-Shocks!G33,5), ROUND(B34*(1-Shocks!J33)-Shocks!K33,5)) -> -0.00192 | H34: 0.006979537713 | I34: =ROUND(B34*(1+Shocks!H33)+Shocks!I33,5)+Extrapolation!T36 -> 0.01672217342 | J34: =MAX(ROUND(B34*(1-Shocks!F33)-Shocks!G33,5)+Extrapolation!T36, -1.25%) -> -0.000507826581 | K34: =IF(Extrapolation!FSP >= 15, ROUND(B34*(1+Shocks!H33)+Shocks!I33 + Extrapolation!T36, 5), ROUND(B34*(1+Shocks!L33)+Shocks!M33 + Extrapolation!T36,5)) -> 0.01672 | L34: =IF(Extrapolation!FSP >= 15, ROUND(B34*(1-Shocks!F33)-Shocks!G33+Extrapolation!T36, 5), ROUND(B34*(1-Shocks!J33)-Shocks!K33+Extrapolation!T36, 5)) -> -0.00051
A35: 23 | B35: 0.005934347779 | C35: =ROUND(B35*(1+Shocks!H34)+Shocks!I34,5) -> 0.01555 | D35: =MAX(ROUND(B35*(1-Shocks!F34)-Shocks!G34,5), -1.25%) -> -0.00158 | E35: =IF(Extrapolation!FSP >= 15, ROUND(B35*(1+Shocks!H34)+Shocks!I34,5), ROUND(B35*(1+Shocks!L34)+Shocks!M34,5)) -> 0.01555 | F35: =IF(Extrapolation!FSP >= 15, ROUND(B35*(1-Shocks!F34)-Shocks!G34,5), ROUND(B35*(1-Shocks!J34)-Shocks!K34,5)) -> -0.00158 | H35: 0.007302451872 | I35: =ROUND(B35*(1+Shocks!H34)+Shocks!I34,5)+Extrapolation!T37 -> 0.01691810409 | J35: =MAX(ROUND(B35*(1-Shocks!F34)-Shocks!G34,5)+Extrapolation!T37, -1.25%) -> -0.0002118959074 | K35: =IF(Extrapolation!FSP >= 15, ROUND(B35*(1+Shocks!H34)+Shocks!I34 + Extrapolation!T37, 5), ROUND(B35*(1+Shocks!L34)+Shocks!M34 + Extrapolation!T37,5)) -> 0.01691 | L35: =IF(Extrapolation!FSP >= 15, ROUND(B35*(1-Shocks!F34)-Shocks!G34+Extrapolation!T37, 5), ROUND(B35*(1-Shocks!J34)-Shocks!K34+Extrapolation!T37, 5)) -> -0.00021
A36: 24 | B36: 0.006367885544 | C36: =ROUND(B36*(1+Shocks!H35)+Shocks!I35,5) -> 0.01586 | D36: =MAX(ROUND(B36*(1-Shocks!F35)-Shocks!G35,5), -1.25%) -> -0.00121 | E36: =IF(Extrapolation!FSP >= 15, ROUND(B36*(1+Shocks!H35)+Shocks!I35,5), ROUND(B36*(1+Shocks!L35)+Shocks!M35,5)) -> 0.01586 | F36: =IF(Extrapolation!FSP >= 15, ROUND(B36*(1-Shocks!F35)-Shocks!G35,5), ROUND(B36*(1-Shocks!J35)-Shocks!K35,5)) -> -0.00121 | H36: 0.007694154249 | I36: =ROUND(B36*(1+Shocks!H35)+Shocks!I35,5)+Extrapolation!T38 -> 0.01718626871 | J36: =MAX(ROUND(B36*(1-Shocks!F35)-Shocks!G35,5)+Extrapolation!T38, -1.25%) -> 0.0001162687052 | K36: =IF(Extrapolation!FSP >= 15, ROUND(B36*(1+Shocks!H35)+Shocks!I35 + Extrapolation!T38, 5), ROUND(B36*(1+Shocks!L35)+Shocks!M35 + Extrapolation!T38,5)) -> 0.01719 | L36: =IF(Extrapolation!FSP >= 15, ROUND(B36*(1-Shocks!F35)-Shocks!G35+Extrapolation!T38, 5), ROUND(B36*(1-Shocks!J35)-Shocks!K35+Extrapolation!T38, 5)) -> 0.00012
A37: 25 | B37: 0.006851220918 | C37: =ROUND(B37*(1+Shocks!H36)+Shocks!I36,5) -> 0.01624 | D37: =MAX(ROUND(B37*(1-Shocks!F36)-Shocks!G36,5), -1.25%) -> -0.0008 | E37: =IF(Extrapolation!FSP >= 15, ROUND(B37*(1+Shocks!H36)+Shocks!I36,5), ROUND(B37*(1+Shocks!L36)+Shocks!M36,5)) -> 0.01624 | F37: =IF(Extrapolation!FSP >= 15, ROUND(B37*(1-Shocks!F36)-Shocks!G36,5), ROUND(B37*(1-Shocks!J36)-Shocks!K36,5)) -> -0.0008 | H37: 0.008137740273 | I37: =ROUND(B37*(1+Shocks!H36)+Shocks!I36,5)+Extrapolation!T39 -> 0.01752651935 | J37: =MAX(ROUND(B37*(1-Shocks!F36)-Shocks!G36,5)+Extrapolation!T39, -1.25%) -> 0.0004865193546 | K37: =IF(Extrapolation!FSP >= 15, ROUND(B37*(1+Shocks!H36)+Shocks!I36 + Extrapolation!T39, 5), ROUND(B37*(1+Shocks!L36)+Shocks!M36 + Extrapolation!T39,5)) -> 0.01753 | L37: =IF(Extrapolation!FSP >= 15, ROUND(B37*(1-Shocks!F36)-Shocks!G36+Extrapolation!T39, 5), ROUND(B37*(1-Shocks!J36)-Shocks!K36+Extrapolation!T39, 5)) -> 0.00048
A38: 26 | B38: 0.007370978567 | C38: =ROUND(B38*(1+Shocks!H37)+Shocks!I37,5) -> 0.01666 | D38: =MAX(ROUND(B38*(1-Shocks!F37)-Shocks!G37,5), -1.25%) -> -0.00037 | E38: =IF(Extrapolation!FSP >= 15, ROUND(B38*(1+Shocks!H37)+Shocks!I37,5), ROUND(B38*(1+Shocks!L37)+Shocks!M37,5)) -> 0.01666 | F38: =IF(Extrapolation!FSP >= 15, ROUND(B38*(1-Shocks!F37)-Shocks!G37,5), ROUND(B38*(1-Shocks!J37)-Shocks!K37,5)) -> -0.00037 | H38: 0.008619699763 | I38: =ROUND(B38*(1+Shocks!H37)+Shocks!I37,5)+Extrapolation!T40 -> 0.0179087212 | J38: =MAX(ROUND(B38*(1-Shocks!F37)-Shocks!G37,5)+Extrapolation!T40, -1.25%) -> 0.0008787211958 | K38: =IF(Extrapolation!FSP >= 15, ROUND(B38*(1+Shocks!H37)+Shocks!I37 + Extrapolation!T40, 5), ROUND(B38*(1+Shocks!L37)+Shocks!M37 + Extrapolation!T40,5)) -> 0.01791 | L38: =IF(Extrapolation!FSP >= 15, ROUND(B38*(1-Shocks!F37)-Shocks!G37+Extrapolation!T40, 5), ROUND(B38*(1-Shocks!J37)-Shocks!K37+Extrapolation!T40, 5)) -> 0.00087
A39: 27 | B39: 0.007916461471 | C39: =ROUND(B39*(1+Shocks!H38)+Shocks!I38,5) -> 0.01712 | D39: =MAX(ROUND(B39*(1-Shocks!F38)-Shocks!G38,5), -1.25%) -> 7e-05 | E39: =IF(Extrapolation!FSP >= 15, ROUND(B39*(1+Shocks!H38)+Shocks!I38,5), ROUND(B39*(1+Shocks!L38)+Shocks!M38,5)) -> 0.01712 | F39: =IF(Extrapolation!FSP >= 15, ROUND(B39*(1-Shocks!F38)-Shocks!G38,5), ROUND(B39*(1-Shocks!J38)-Shocks!K38,5)) -> 7e-05 | H39: 0.009129212208 | I39: =ROUND(B39*(1+Shocks!H38)+Shocks!I38,5)+Extrapolation!T41 -> 0.01833275074 | J39: =MAX(ROUND(B39*(1-Shocks!F38)-Shocks!G38,5)+Extrapolation!T41, -1.25%) -> 0.001282750738 | K39: =IF(Extrapolation!FSP >= 15, ROUND(B39*(1+Shocks!H38)+Shocks!I38 + Extrapolation!T41, 5), ROUND(B39*(1+Shocks!L38)+Shocks!M38 + Extrapolation!T41,5)) -> 0.01833 | L39: =IF(Extrapolation!FSP >= 15, ROUND(B39*(1-Shocks!F38)-Shocks!G38+Extrapolation!T41, 5), ROUND(B39*(1-Shocks!J38)-Shocks!K38+Extrapolation!T41, 5)) -> 0.00128
A40: 28 | B40: 0.008479106875 | C40: =ROUND(B40*(1+Shocks!H39)+Shocks!I39,5) -> 0.01759 | D40: =MAX(ROUND(B40*(1-Shocks!F39)-Shocks!G39,5), -1.25%) -> 0.00053 | E40: =IF(Extrapolation!FSP >= 15, ROUND(B40*(1+Shocks!H39)+Shocks!I39,5), ROUND(B40*(1+Shocks!L39)+Shocks!M39,5)) -> 0.01759 | F40: =IF(Extrapolation!FSP >= 15, ROUND(B40*(1-Shocks!F39)-Shocks!G39,5), ROUND(B40*(1-Shocks!J39)-Shocks!K39,5)) -> 0.00053 | H40: 0.00965760134 | I40: =ROUND(B40*(1+Shocks!H39)+Shocks!I39,5)+Extrapolation!T42 -> 0.01876849446 | J40: =MAX(ROUND(B40*(1-Shocks!F39)-Shocks!G39,5)+Extrapolation!T42, -1.25%) -> 0.001708494465 | K40: =IF(Extrapolation!FSP >= 15, ROUND(B40*(1+Shocks!H39)+Shocks!I39 + Extrapolation!T42, 5), ROUND(B40*(1+Shocks!L39)+Shocks!M39 + Extrapolation!T42,5)) -> 0.01877 | L40: =IF(Extrapolation!FSP >= 15, ROUND(B40*(1-Shocks!F39)-Shocks!G39+Extrapolation!T42, 5), ROUND(B40*(1-Shocks!J39)-Shocks!K39+Extrapolation!T42, 5)) -> 0.00171
A41: 29 | B41: 0.009052061645 | C41: =ROUND(B41*(1+Shocks!H40)+Shocks!I40,5) -> 0.01808 | D41: =MAX(ROUND(B41*(1-Shocks!F40)-Shocks!G40,5), -1.25%) -> 0.001 | E41: =IF(Extrapolation!FSP >= 15, ROUND(B41*(1+Shocks!H40)+Shocks!I40,5), ROUND(B41*(1+Shocks!L40)+Shocks!M40,5)) -> 0.01808 | F41: =IF(Extrapolation!FSP >= 15, ROUND(B41*(1-Shocks!F40)-Shocks!G40,5), ROUND(B41*(1-Shocks!J40)-Shocks!K40,5)) -> 0.001 | H41: 0.01019790935 | I41: =ROUND(B41*(1+Shocks!H40)+Shocks!I40,5)+Extrapolation!T43 -> 0.0192258477 | J41: =MAX(ROUND(B41*(1-Shocks!F40)-Shocks!G40,5)+Extrapolation!T43, -1.25%) -> 0.002145847704 | K41: =IF(Extrapolation!FSP >= 15, ROUND(B41*(1+Shocks!H40)+Shocks!I40 + Extrapolation!T43, 5), ROUND(B41*(1+Shocks!L40)+Shocks!M40 + Extrapolation!T43,5)) -> 0.01922 | L41: =IF(Extrapolation!FSP >= 15, ROUND(B41*(1-Shocks!F40)-Shocks!G40+Extrapolation!T43, 5), ROUND(B41*(1-Shocks!J40)-Shocks!K40+Extrapolation!T43, 5)) -> 0.00215
A42: 30 | B42: 0.009629848279 | C42: =ROUND(B42*(1+Shocks!H41)+Shocks!I41,5) -> 0.01857 | D42: =MAX(ROUND(B42*(1-Shocks!F41)-Shocks!G41,5), -1.25%) -> 0.00148 | E42: =IF(Extrapolation!FSP >= 15, ROUND(B42*(1+Shocks!H41)+Shocks!I41,5), ROUND(B42*(1+Shocks!L41)+Shocks!M41,5)) -> 0.01857 | F42: =IF(Extrapolation!FSP >= 15, ROUND(B42*(1-Shocks!F41)-Shocks!G41,5), ROUND(B42*(1-Shocks!J41)-Shocks!K41,5)) -> 0.00148 | H42: 0.01074456196 | I42: =ROUND(B42*(1+Shocks!H41)+Shocks!I41,5)+Extrapolation!T44 -> 0.01968471368 | J42: =MAX(ROUND(B42*(1-Shocks!F41)-Shocks!G41,5)+Extrapolation!T44, -1.25%) -> 0.002594713682 | K42: =IF(Extrapolation!FSP >= 15, ROUND(B42*(1+Shocks!H41)+Shocks!I41 + Extrapolation!T44, 5), ROUND(B42*(1+Shocks!L41)+Shocks!M41 + Extrapolation!T44,5)) -> 0.01968 | L42: =IF(Extrapolation!FSP >= 15, ROUND(B42*(1-Shocks!F41)-Shocks!G41+Extrapolation!T44, 5), ROUND(B42*(1-Shocks!J41)-Shocks!K41+Extrapolation!T44, 5)) -> 0.00259
A43: 31 | B43: 0.01020810041 | C43: =ROUND(B43*(1+Shocks!H42)+Shocks!I42,5) -> 0.01906 | D43: =MAX(ROUND(B43*(1-Shocks!F42)-Shocks!G42,5), -1.25%) -> 0.00196 | E43: =IF(Extrapolation!FSP >= 15, ROUND(B43*(1+Shocks!H42)+Shocks!I42,5), ROUND(B43*(1+Shocks!L42)+Shocks!M42,5)) -> 0.01906 | F43: =IF(Extrapolation!FSP >= 15, ROUND(B43*(1-Shocks!F42)-Shocks!G42,5), ROUND(B43*(1-Shocks!J42)-Shocks!K42,5)) -> 0.00196 | H43: 0.01129310313 | I43: =ROUND(B43*(1+Shocks!H42)+Shocks!I42,5)+Extrapolation!T45 -> 0.02014500273 | J43: =MAX(ROUND(B43*(1-Shocks!F42)-Shocks!G42,5)+Extrapolation!T45, -1.25%) -> 0.003045002727 | K43: =IF(Extrapolation!FSP >= 15, ROUND(B43*(1+Shocks!H42)+Shocks!I42 + Extrapolation!T45, 5), ROUND(B43*(1+Shocks!L42)+Shocks!M42 + Extrapolation!T45,5)) -> 0.02014 | L43: =IF(Extrapolation!FSP >= 15, ROUND(B43*(1-Shocks!F42)-Shocks!G42+Extrapolation!T45, 5), ROUND(B43*(1-Shocks!J42)-Shocks!K42+Extrapolation!T45, 5)) -> 0.00305
A44: 32 | B44: 0.010783352 | C44: =ROUND(B44*(1+Shocks!H43)+Shocks!I43,5) -> 0.01955 | D44: =MAX(ROUND(B44*(1-Shocks!F43)-Shocks!G43,5), -1.25%) -> 0.00245 | E44: =IF(Extrapolation!FSP >= 15, ROUND(B44*(1+Shocks!H43)+Shocks!I43,5), ROUND(B44*(1+Shocks!L43)+Shocks!M43,5)) -> 0.01955 | F44: =IF(Extrapolation!FSP >= 15, ROUND(B44*(1-Shocks!F43)-Shocks!G43,5), ROUND(B44*(1-Shocks!J43)-Shocks!K43,5)) -> 0.00245 | H44: 0.01183998359 | I44: =ROUND(B44*(1+Shocks!H43)+Shocks!I43,5)+Extrapolation!T46 -> 0.02060663159 | J44: =MAX(ROUND(B44*(1-Shocks!F43)-Shocks!G43,5)+Extrapolation!T46, -1.25%) -> 0.003506631589 | K44: =IF(Extrapolation!FSP >= 15, ROUND(B44*(1+Shocks!H43)+Shocks!I43 + Extrapolation!T46, 5), ROUND(B44*(1+Shocks!L43)+Shocks!M43 + Extrapolation!T46,5)) -> 0.0206 | L44: =IF(Extrapolation!FSP >= 15, ROUND(B44*(1-Shocks!F43)-Shocks!G43+Extrapolation!T46, 5), ROUND(B44*(1-Shocks!J43)-Shocks!K43+Extrapolation!T46, 5)) -> 0.0035
A45: 33 | B45: 0.01135286847 | C45: =ROUND(B45*(1+Shocks!H44)+Shocks!I44,5) -> 0.02003 | D45: =MAX(ROUND(B45*(1-Shocks!F44)-Shocks!G44,5), -1.25%) -> 0.00293 | E45: =IF(Extrapolation!FSP >= 15, ROUND(B45*(1+Shocks!H44)+Shocks!I44,5), ROUND(B45*(1+Shocks!L44)+Shocks!M44,5)) -> 0.02003 | F45: =IF(Extrapolation!FSP >= 15, ROUND(B45*(1-Shocks!F44)-Shocks!G44,5), ROUND(B45*(1-Shocks!J44)-Shocks!K44,5)) -> 0.00293 | H45: 0.01238239132 | I45: =ROUND(B45*(1+Shocks!H44)+Shocks!I44,5)+Extrapolation!T47 -> 0.02105952285 | J45: =MAX(ROUND(B45*(1-Shocks!F44)-Shocks!G44,5)+Extrapolation!T47, -1.25%) -> 0.003959522855 | K45: =IF(Extrapolation!FSP >= 15, ROUND(B45*(1+Shocks!H44)+Shocks!I44 + Extrapolation!T47, 5), ROUND(B45*(1+Shocks!L44)+Shocks!M44 + Extrapolation!T47,5)) -> 0.02106 | L45: =IF(Extrapolation!FSP >= 15, ROUND(B45*(1-Shocks!F44)-Shocks!G44+Extrapolation!T47, 5), ROUND(B45*(1-Shocks!J44)-Shocks!K44+Extrapolation!T47, 5)) -> 0.00396
A46: 34 | B46: 0.0119145106 | C46: =ROUND(B46*(1+Shocks!H45)+Shocks!I45,5) -> 0.02049 | D46: =MAX(ROUND(B46*(1-Shocks!F45)-Shocks!G45,5), -1.25%) -> 0.00342 | E46: =IF(Extrapolation!FSP >= 15, ROUND(B46*(1+Shocks!H45)+Shocks!I45,5), ROUND(B46*(1+Shocks!L45)+Shocks!M45,5)) -> 0.02049 | F46: =IF(Extrapolation!FSP >= 15, ROUND(B46*(1-Shocks!F45)-Shocks!G45,5), ROUND(B46*(1-Shocks!J45)-Shocks!K45,5)) -> 0.00342 | H46: 0.01291811503 | I46: =ROUND(B46*(1+Shocks!H45)+Shocks!I45,5)+Extrapolation!T48 -> 0.02149360444 | J46: =MAX(ROUND(B46*(1-Shocks!F45)-Shocks!G45,5)+Extrapolation!T48, -1.25%) -> 0.004423604436 | K46: =IF(Extrapolation!FSP >= 15, ROUND(B46*(1+Shocks!H45)+Shocks!I45 + Extrapolation!T48, 5), ROUND(B46*(1+Shocks!L45)+Shocks!M45 + Extrapolation!T48,5)) -> 0.0215 | L46: =IF(Extrapolation!FSP >= 15, ROUND(B46*(1-Shocks!F45)-Shocks!G45+Extrapolation!T48, 5), ROUND(B46*(1-Shocks!J45)-Shocks!K45+Extrapolation!T48, 5)) -> 0.00443
A47: 35 | B47: 0.01246662452 | C47: =ROUND(B47*(1+Shocks!H46)+Shocks!I46,5) -> 0.02095 | D47: =MAX(ROUND(B47*(1-Shocks!F46)-Shocks!G46,5), -1.25%) -> 0.00391 | E47: =IF(Extrapolation!FSP >= 15, ROUND(B47*(1+Shocks!H46)+Shocks!I46,5), ROUND(B47*(1+Shocks!L46)+Shocks!M46,5)) -> 0.02095 | F47: =IF(Extrapolation!FSP >= 15, ROUND(B47*(1-Shocks!F46)-Shocks!G46,5), ROUND(B47*(1-Shocks!J46)-Shocks!K46,5)) -> 0.00391 | H47: 0.01344543364 | I47: =ROUND(B47*(1+Shocks!H46)+Shocks!I46,5)+Extrapolation!T49 -> 0.02192880912 | J47: =MAX(ROUND(B47*(1-Shocks!F46)-Shocks!G46,5)+Extrapolation!T49, -1.25%) -> 0.004888809116 | K47: =IF(Extrapolation!FSP >= 15, ROUND(B47*(1+Shocks!H46)+Shocks!I46 + Extrapolation!T49, 5), ROUND(B47*(1+Shocks!L46)+Shocks!M46 + Extrapolation!T49,5)) -> 0.02193 | L47: =IF(Extrapolation!FSP >= 15, ROUND(B47*(1-Shocks!F46)-Shocks!G46+Extrapolation!T49, 5), ROUND(B47*(1-Shocks!J46)-Shocks!K46+Extrapolation!T49, 5)) -> 0.00489
A48: 36 | B48: 0.0130079523 | C48: =ROUND(B48*(1+Shocks!H47)+Shocks!I47,5) -> 0.02139 | D48: =MAX(ROUND(B48*(1-Shocks!F47)-Shocks!G47,5), -1.25%) -> 0.0044 | E48: =IF(Extrapolation!FSP >= 15, ROUND(B48*(1+Shocks!H47)+Shocks!I47,5), ROUND(B48*(1+Shocks!L47)+Shocks!M47,5)) -> 0.02139 | F48: =IF(Extrapolation!FSP >= 15, ROUND(B48*(1-Shocks!F47)-Shocks!G47,5), ROUND(B48*(1-Shocks!J47)-Shocks!K47,5)) -> 0.0044 | H48: 0.01396302646 | I48: =ROUND(B48*(1+Shocks!H47)+Shocks!I47,5)+Extrapolation!T50 -> 0.02234507416 | J48: =MAX(ROUND(B48*(1-Shocks!F47)-Shocks!G47,5)+Extrapolation!T50, -1.25%) -> 0.00535507416 | K48: =IF(Extrapolation!FSP >= 15, ROUND(B48*(1+Shocks!H47)+Shocks!I47 + Extrapolation!T50, 5), ROUND(B48*(1+Shocks!L47)+Shocks!M47 + Extrapolation!T50,5)) -> 0.02235 | L48: =IF(Extrapolation!FSP >= 15, ROUND(B48*(1-Shocks!F47)-Shocks!G47+Extrapolation!T50, 5), ROUND(B48*(1-Shocks!J47)-Shocks!K47+Extrapolation!T50, 5)) -> 0.00535
A49: 37 | B49: 0.01353755905 | C49: =ROUND(B49*(1+Shocks!H48)+Shocks!I48,5) -> 0.02182 | D49: =MAX(ROUND(B49*(1-Shocks!F48)-Shocks!G48,5), -1.25%) -> 0.00488 | E49: =IF(Extrapolation!FSP >= 15, ROUND(B49*(1+Shocks!H48)+Shocks!I48,5), ROUND(B49*(1+Shocks!L48)+Shocks!M48,5)) -> 0.02182 | F49: =IF(Extrapolation!FSP >= 15, ROUND(B49*(1-Shocks!F48)-Shocks!G48,5), ROUND(B49*(1-Shocks!J48)-Shocks!K48,5)) -> 0.00488 | H49: 0.0144699 | I49: =ROUND(B49*(1+Shocks!H48)+Shocks!I48,5)+Extrapolation!T51 -> 0.02275234095 | J49: =MAX(ROUND(B49*(1-Shocks!F48)-Shocks!G48,5)+Extrapolation!T51, -1.25%) -> 0.00581234095 | K49: =IF(Extrapolation!FSP >= 15, ROUND(B49*(1+Shocks!H48)+Shocks!I48 + Extrapolation!T51, 5), ROUND(B49*(1+Shocks!L48)+Shocks!M48 + Extrapolation!T51,5)) -> 0.02275 | L49: =IF(Extrapolation!FSP >= 15, ROUND(B49*(1-Shocks!F48)-Shocks!G48+Extrapolation!T51, 5), ROUND(B49*(1-Shocks!J48)-Shocks!K48+Extrapolation!T51, 5)) -> 0.00581
A50: 38 | B50: 0.01405477341 | C50: =ROUND(B50*(1+Shocks!H49)+Shocks!I49,5) -> 0.02223 | D50: =MAX(ROUND(B50*(1-Shocks!F49)-Shocks!G49,5), -1.25%) -> 0.00536 | E50: =IF(Extrapolation!FSP >= 15, ROUND(B50*(1+Shocks!H49)+Shocks!I49,5), ROUND(B50*(1+Shocks!L49)+Shocks!M49,5)) -> 0.02223 | F50: =IF(Extrapolation!FSP >= 15, ROUND(B50*(1-Shocks!F49)-Shocks!G49,5), ROUND(B50*(1-Shocks!J49)-Shocks!K49,5)) -> 0.00536 | H50: 0.01496532809 | I50: =ROUND(B50*(1+Shocks!H49)+Shocks!I49,5)+Extrapolation!T52 -> 0.02314055467 | J50: =MAX(ROUND(B50*(1-Shocks!F49)-Shocks!G49,5)+Extrapolation!T52, -1.25%) -> 0.006270554673 | K50: =IF(Extrapolation!FSP >= 15, ROUND(B50*(1+Shocks!H49)+Shocks!I49 + Extrapolation!T52, 5), ROUND(B50*(1+Shocks!L49)+Shocks!M49 + Extrapolation!T52,5)) -> 0.02314 | L50: =IF(Extrapolation!FSP >= 15, ROUND(B50*(1-Shocks!F49)-Shocks!G49+Extrapolation!T52, 5), ROUND(B50*(1-Shocks!J49)-Shocks!K49+Extrapolation!T52, 5)) -> 0.00627
A51: 39 | B51: 0.01455913863 | C51: =ROUND(B51*(1+Shocks!H50)+Shocks!I50,5) -> 0.02262 | D51: =MAX(ROUND(B51*(1-Shocks!F50)-Shocks!G50,5), -1.25%) -> 0.00584 | E51: =IF(Extrapolation!FSP >= 15, ROUND(B51*(1+Shocks!H50)+Shocks!I50,5), ROUND(B51*(1+Shocks!L50)+Shocks!M50,5)) -> 0.02262 | F51: =IF(Extrapolation!FSP >= 15, ROUND(B51*(1-Shocks!F50)-Shocks!G50,5), ROUND(B51*(1-Shocks!J50)-Shocks!K50,5)) -> 0.00584 | H51: 0.01544880267 | I51: =ROUND(B51*(1+Shocks!H50)+Shocks!I50,5)+Extrapolation!T53 -> 0.02350966403 | J51: =MAX(ROUND(B51*(1-Shocks!F50)-Shocks!G50,5)+Extrapolation!T53, -1.25%) -> 0.006729664033 | K51: =IF(Extrapolation!FSP >= 15, ROUND(B51*(1+Shocks!H50)+Shocks!I50 + Extrapolation!T53, 5), ROUND(B51*(1+Shocks!L50)+Shocks!M50 + Extrapolation!T53,5)) -> 0.02351 | L51: =IF(Extrapolation!FSP >= 15, ROUND(B51*(1-Shocks!F50)-Shocks!G50+Extrapolation!T53, 5), ROUND(B51*(1-Shocks!J50)-Shocks!K50+Extrapolation!T53, 5)) -> 0.00673
A52: 40 | B52: 0.01505037248 | C52: =ROUND(B52*(1+Shocks!H51)+Shocks!I51,5) -> 0.023 | D52: =MAX(ROUND(B52*(1-Shocks!F51)-Shocks!G51,5), -1.25%) -> 0.00632 | E52: =IF(Extrapolation!FSP >= 15, ROUND(B52*(1+Shocks!H51)+Shocks!I51,5), ROUND(B52*(1+Shocks!L51)+Shocks!M51,5)) -> 0.023 | F52: =IF(Extrapolation!FSP >= 15, ROUND(B52*(1-Shocks!F51)-Shocks!G51,5), ROUND(B52*(1-Shocks!J51)-Shocks!K51,5)) -> 0.00632 | H52: 0.01591999347 | I52: =ROUND(B52*(1+Shocks!H51)+Shocks!I51,5)+Extrapolation!T54 -> 0.02386962099 | J52: =MAX(ROUND(B52*(1-Shocks!F51)-Shocks!G51,5)+Extrapolation!T54, -1.25%) -> 0.007189620989 | K52: =IF(Extrapolation!FSP >= 15, ROUND(B52*(1+Shocks!H51)+Shocks!I51 + Extrapolation!T54, 5), ROUND(B52*(1+Shocks!L51)+Shocks!M51 + Extrapolation!T54,5)) -> 0.02387 | L52: =IF(Extrapolation!FSP >= 15, ROUND(B52*(1-Shocks!F51)-Shocks!G51+Extrapolation!T54, 5), ROUND(B52*(1-Shocks!J51)-Shocks!K51+Extrapolation!T54, 5)) -> 0.00718
A53: 41 | B53: 0.01552833415 | C53: =ROUND(B53*(1+Shocks!H52)+Shocks!I52,5) -> 0.02336 | D53: =MAX(ROUND(B53*(1-Shocks!F52)-Shocks!G52,5), -1.25%) -> 0.00679 | E53: =IF(Extrapolation!FSP >= 15, ROUND(B53*(1+Shocks!H52)+Shocks!I52,5), ROUND(B53*(1+Shocks!L52)+Shocks!M52,5)) -> 0.02336 | F53: =IF(Extrapolation!FSP >= 15, ROUND(B53*(1-Shocks!F52)-Shocks!G52,5), ROUND(B53*(1-Shocks!J52)-Shocks!K52,5)) -> 0.00679 | H53: 0.01637871467 | I53: =ROUND(B53*(1+Shocks!H52)+Shocks!I52,5)+Extrapolation!T55 -> 0.02421038052 | J53: =MAX(ROUND(B53*(1-Shocks!F52)-Shocks!G52,5)+Extrapolation!T55, -1.25%) -> 0.007640380519 | K53: =IF(Extrapolation!FSP >= 15, ROUND(B53*(1+Shocks!H52)+Shocks!I52 + Extrapolation!T55, 5), ROUND(B53*(1+Shocks!L52)+Shocks!M52 + Extrapolation!T55,5)) -> 0.02421 | L53: =IF(Extrapolation!FSP >= 15, ROUND(B53*(1-Shocks!F52)-Shocks!G52+Extrapolation!T55, 5), ROUND(B53*(1-Shocks!J52)-Shocks!K52+Extrapolation!T55, 5)) -> 0.00764
A54: 42 | B54: 0.01599299708 | C54: =ROUND(B54*(1+Shocks!H53)+Shocks!I53,5) -> 0.0237 | D54: =MAX(ROUND(B54*(1-Shocks!F53)-Shocks!G53,5), -1.25%) -> 0.00725 | E54: =IF(Extrapolation!FSP >= 15, ROUND(B54*(1+Shocks!H53)+Shocks!I53,5), ROUND(B54*(1+Shocks!L53)+Shocks!M53,5)) -> 0.0237 | F54: =IF(Extrapolation!FSP >= 15, ROUND(B54*(1-Shocks!F53)-Shocks!G53,5), ROUND(B54*(1-Shocks!J53)-Shocks!K53,5)) -> 0.00725 | H54: 0.01682489748 | I54: =ROUND(B54*(1+Shocks!H53)+Shocks!I53,5)+Extrapolation!T56 -> 0.0245319004 | J54: =MAX(ROUND(B54*(1-Shocks!F53)-Shocks!G53,5)+Extrapolation!T56, -1.25%) -> 0.008081900402 | K54: =IF(Extrapolation!FSP >= 15, ROUND(B54*(1+Shocks!H53)+Shocks!I53 + Extrapolation!T56, 5), ROUND(B54*(1+Shocks!L53)+Shocks!M53 + Extrapolation!T56,5)) -> 0.02453 | L54: =IF(Extrapolation!FSP >= 15, ROUND(B54*(1-Shocks!F53)-Shocks!G53+Extrapolation!T56, 5), ROUND(B54*(1-Shocks!J53)-Shocks!K53+Extrapolation!T56, 5)) -> 0.00809
A55: 43 | B55: 0.01644442636 | C55: =ROUND(B55*(1+Shocks!H54)+Shocks!I54,5) -> 0.02403 | D55: =MAX(ROUND(B55*(1-Shocks!F54)-Shocks!G54,5), -1.25%) -> 0.00772 | E55: =IF(Extrapolation!FSP >= 15, ROUND(B55*(1+Shocks!H54)+Shocks!I54,5), ROUND(B55*(1+Shocks!L54)+Shocks!M54,5)) -> 0.02403 | F55: =IF(Extrapolation!FSP >= 15, ROUND(B55*(1-Shocks!F54)-Shocks!G54,5), ROUND(B55*(1-Shocks!J54)-Shocks!K54,5)) -> 0.00772 | H55: 0.01725856738 | I55: =ROUND(B55*(1+Shocks!H54)+Shocks!I54,5)+Extrapolation!T57 -> 0.02484414103 | J55: =MAX(ROUND(B55*(1-Shocks!F54)-Shocks!G54,5)+Extrapolation!T57, -1.25%) -> 0.008534141025 | K55: =IF(Extrapolation!FSP >= 15, ROUND(B55*(1+Shocks!H54)+Shocks!I54 + Extrapolation!T57, 5), ROUND(B55*(1+Shocks!L54)+Shocks!M54 + Extrapolation!T57,5)) -> 0.02484 | L55: =IF(Extrapolation!FSP >= 15, ROUND(B55*(1-Shocks!F54)-Shocks!G54+Extrapolation!T57, 5), ROUND(B55*(1-Shocks!J54)-Shocks!K54+Extrapolation!T57, 5)) -> 0.00853
A56: 44 | B56: 0.01688276023 | C56: =ROUND(B56*(1+Shocks!H55)+Shocks!I55,5) -> 0.02433 | D56: =MAX(ROUND(B56*(1-Shocks!F55)-Shocks!G55,5), -1.25%) -> 0.00818 | E56: =IF(Extrapolation!FSP >= 15, ROUND(B56*(1+Shocks!H55)+Shocks!I55,5), ROUND(B56*(1+Shocks!L55)+Shocks!M55,5)) -> 0.02433 | F56: =IF(Extrapolation!FSP >= 15, ROUND(B56*(1-Shocks!F55)-Shocks!G55,5), ROUND(B56*(1-Shocks!J55)-Shocks!K55,5)) -> 0.00818 | H56: 0.01767982543 | I56: =ROUND(B56*(1+Shocks!H55)+Shocks!I55,5)+Extrapolation!T58 -> 0.0251270652 | J56: =MAX(ROUND(B56*(1-Shocks!F55)-Shocks!G55,5)+Extrapolation!T58, -1.25%) -> 0.008977065198 | K56: =IF(Extrapolation!FSP >= 15, ROUND(B56*(1+Shocks!H55)+Shocks!I55 + Extrapolation!T58, 5), ROUND(B56*(1+Shocks!L55)+Shocks!M55 + Extrapolation!T58,5)) -> 0.02513 | L56: =IF(Extrapolation!FSP >= 15, ROUND(B56*(1-Shocks!F55)-Shocks!G55+Extrapolation!T58, 5), ROUND(B56*(1-Shocks!J55)-Shocks!K55+Extrapolation!T58, 5)) -> 0.00897
A57: 45 | B57: 0.01730819467 | C57: =ROUND(B57*(1+Shocks!H56)+Shocks!I56,5) -> 0.02463 | D57: =MAX(ROUND(B57*(1-Shocks!F56)-Shocks!G56,5), -1.25%) -> 0.00863 | E57: =IF(Extrapolation!FSP >= 15, ROUND(B57*(1+Shocks!H56)+Shocks!I56,5), ROUND(B57*(1+Shocks!L56)+Shocks!M56,5)) -> 0.02463 | F57: =IF(Extrapolation!FSP >= 15, ROUND(B57*(1-Shocks!F56)-Shocks!G56,5), ROUND(B57*(1-Shocks!J56)-Shocks!K56,5)) -> 0.00863 | H57: 0.01808883265 | I57: =ROUND(B57*(1+Shocks!H56)+Shocks!I56,5)+Extrapolation!T59 -> 0.02541063799 | J57: =MAX(ROUND(B57*(1-Shocks!F56)-Shocks!G56,5)+Extrapolation!T59, -1.25%) -> 0.009410637986 | K57: =IF(Extrapolation!FSP >= 15, ROUND(B57*(1+Shocks!H56)+Shocks!I56 + Extrapolation!T59, 5), ROUND(B57*(1+Shocks!L56)+Shocks!M56 + Extrapolation!T59,5)) -> 0.02541 | L57: =IF(Extrapolation!FSP >= 15, ROUND(B57*(1-Shocks!F56)-Shocks!G56+Extrapolation!T59, 5), ROUND(B57*(1-Shocks!J56)-Shocks!K56+Extrapolation!T59, 5)) -> 0.00941
A58: 46 | B58: 0.01772097072 | C58: =ROUND(B58*(1+Shocks!H57)+Shocks!I57,5) -> 0.0249 | D58: =MAX(ROUND(B58*(1-Shocks!F57)-Shocks!G57,5), -1.25%) -> 0.00909 | E58: =IF(Extrapolation!FSP >= 15, ROUND(B58*(1+Shocks!H57)+Shocks!I57,5), ROUND(B58*(1+Shocks!L57)+Shocks!M57,5)) -> 0.0249 | F58: =IF(Extrapolation!FSP >= 15, ROUND(B58*(1-Shocks!F57)-Shocks!G57,5), ROUND(B58*(1-Shocks!J57)-Shocks!K57,5)) -> 0.00909 | H58: 0.01848579727 | I58: =ROUND(B58*(1+Shocks!H57)+Shocks!I57,5)+Extrapolation!T60 -> 0.02566482656 | J58: =MAX(ROUND(B58*(1-Shocks!F57)-Shocks!G57,5)+Extrapolation!T60, -1.25%) -> 0.009854826559 | K58: =IF(Extrapolation!FSP >= 15, ROUND(B58*(1+Shocks!H57)+Shocks!I57 + Extrapolation!T60, 5), ROUND(B58*(1+Shocks!L57)+Shocks!M57 + Extrapolation!T60,5)) -> 0.02567 | L58: =IF(Extrapolation!FSP >= 15, ROUND(B58*(1-Shocks!F57)-Shocks!G57+Extrapolation!T60, 5), ROUND(B58*(1-Shocks!J57)-Shocks!K57+Extrapolation!T60, 5)) -> 0.00985
A59: 47 | B59: 0.01812136397 | C59: =ROUND(B59*(1+Shocks!H58)+Shocks!I58,5) -> 0.02516 | D59: =MAX(ROUND(B59*(1-Shocks!F58)-Shocks!G58,5), -1.25%) -> 0.00953 | E59: =IF(Extrapolation!FSP >= 15, ROUND(B59*(1+Shocks!H58)+Shocks!I58,5), ROUND(B59*(1+Shocks!L58)+Shocks!M58,5)) -> 0.02516 | F59: =IF(Extrapolation!FSP >= 15, ROUND(B59*(1-Shocks!F58)-Shocks!G58,5), ROUND(B59*(1-Shocks!J58)-Shocks!K58,5)) -> 0.00953 | H59: 0.01887096402 | I59: =ROUND(B59*(1+Shocks!H58)+Shocks!I58,5)+Extrapolation!T61 -> 0.02590960005 | J59: =MAX(ROUND(B59*(1-Shocks!F58)-Shocks!G58,5)+Extrapolation!T61, -1.25%) -> 0.01027960005 | K59: =IF(Extrapolation!FSP >= 15, ROUND(B59*(1+Shocks!H58)+Shocks!I58 + Extrapolation!T61, 5), ROUND(B59*(1+Shocks!L58)+Shocks!M58 + Extrapolation!T61,5)) -> 0.02591 | L59: =IF(Extrapolation!FSP >= 15, ROUND(B59*(1-Shocks!F58)-Shocks!G58+Extrapolation!T61, 5), ROUND(B59*(1-Shocks!J58)-Shocks!K58+Extrapolation!T61, 5)) -> 0.01028
A60: 48 | B60: 0.01850967596 | C60: =ROUND(B60*(1+Shocks!H59)+Shocks!I59,5) -> 0.02541 | D60: =MAX(ROUND(B60*(1-Shocks!F59)-Shocks!G59,5), -1.25%) -> 0.00998 | E60: =IF(Extrapolation!FSP >= 15, ROUND(B60*(1+Shocks!H59)+Shocks!I59,5), ROUND(B60*(1+Shocks!L59)+Shocks!M59,5)) -> 0.02541 | F60: =IF(Extrapolation!FSP >= 15, ROUND(B60*(1-Shocks!F59)-Shocks!G59,5), ROUND(B60*(1-Shocks!J59)-Shocks!K59,5)) -> 0.00998 | H60: 0.01924460537 | I60: =ROUND(B60*(1+Shocks!H59)+Shocks!I59,5)+Extrapolation!T62 -> 0.02614492941 | J60: =MAX(ROUND(B60*(1-Shocks!F59)-Shocks!G59,5)+Extrapolation!T62, -1.25%) -> 0.01071492941 | K60: =IF(Extrapolation!FSP >= 15, ROUND(B60*(1+Shocks!H59)+Shocks!I59 + Extrapolation!T62, 5), ROUND(B60*(1+Shocks!L59)+Shocks!M59 + Extrapolation!T62,5)) -> 0.02614 | L60: =IF(Extrapolation!FSP >= 15, ROUND(B60*(1-Shocks!F59)-Shocks!G59+Extrapolation!T62, 5), ROUND(B60*(1-Shocks!J59)-Shocks!K59+Extrapolation!T62, 5)) -> 0.01071
A61: 49 | B61: 0.01888622695 | C61: =ROUND(B61*(1+Shocks!H60)+Shocks!I60,5) -> 0.02564 | D61: =MAX(ROUND(B61*(1-Shocks!F60)-Shocks!G60,5), -1.25%) -> 0.01042 | E61: =IF(Extrapolation!FSP >= 15, ROUND(B61*(1+Shocks!H60)+Shocks!I60,5), ROUND(B61*(1+Shocks!L60)+Shocks!M60,5)) -> 0.02564 | F61: =IF(Extrapolation!FSP >= 15, ROUND(B61*(1-Shocks!F60)-Shocks!G60,5), ROUND(B61*(1-Shocks!J60)-Shocks!K60,5)) -> 0.01042 | H61: 0.01960701427 | I61: =ROUND(B61*(1+Shocks!H60)+Shocks!I60,5)+Extrapolation!T63 -> 0.02636078732 | J61: =MAX(ROUND(B61*(1-Shocks!F60)-Shocks!G60,5)+Extrapolation!T63, -1.25%) -> 0.01114078732 | K61: =IF(Extrapolation!FSP >= 15, ROUND(B61*(1+Shocks!H60)+Shocks!I60 + Extrapolation!T63, 5), ROUND(B61*(1+Shocks!L60)+Shocks!M60 + Extrapolation!T63,5)) -> 0.02636 | L61: =IF(Extrapolation!FSP >= 15, ROUND(B61*(1-Shocks!F60)-Shocks!G60+Extrapolation!T63, 5), ROUND(B61*(1-Shocks!J60)-Shocks!K60+Extrapolation!T63, 5)) -> 0.01114
A62: 50 | B62: 0.01925135016 | C62: =ROUND(B62*(1+Shocks!H61)+Shocks!I61,5) -> 0.02585 | D62: =MAX(ROUND(B62*(1-Shocks!F61)-Shocks!G61,5), -1.25%) -> 0.01085 | E62: =IF(Extrapolation!FSP >= 15, ROUND(B62*(1+Shocks!H61)+Shocks!I61,5), ROUND(B62*(1+Shocks!L61)+Shocks!M61,5)) -> 0.02585 | F62: =IF(Extrapolation!FSP >= 15, ROUND(B62*(1-Shocks!F61)-Shocks!G61,5), ROUND(B62*(1-Shocks!J61)-Shocks!K61,5)) -> 0.01085 | H62: 0.0199584982 | I62: =ROUND(B62*(1+Shocks!H61)+Shocks!I61,5)+Extrapolation!T64 -> 0.02655714803 | J62: =MAX(ROUND(B62*(1-Shocks!F61)-Shocks!G61,5)+Extrapolation!T64, -1.25%) -> 0.01155714803 | K62: =IF(Extrapolation!FSP >= 15, ROUND(B62*(1+Shocks!H61)+Shocks!I61 + Extrapolation!T64, 5), ROUND(B62*(1+Shocks!L61)+Shocks!M61 + Extrapolation!T64,5)) -> 0.02656 | L62: =IF(Extrapolation!FSP >= 15, ROUND(B62*(1-Shocks!F61)-Shocks!G61+Extrapolation!T64, 5), ROUND(B62*(1-Shocks!J61)-Shocks!K61+Extrapolation!T64, 5)) -> 0.01156
A63: 51 | B63: 0.01960538689 | C63: =ROUND(B63*(1+Shocks!H62)+Shocks!I62,5) -> 0.02605 | D63: =MAX(ROUND(B63*(1-Shocks!F62)-Shocks!G62,5), -1.25%) -> 0.01128 | E63: =IF(Extrapolation!FSP >= 15, ROUND(B63*(1+Shocks!H62)+Shocks!I62,5), ROUND(B63*(1+Shocks!L62)+Shocks!M62,5)) -> 0.02605 | F63: =IF(Extrapolation!FSP >= 15, ROUND(B63*(1-Shocks!F62)-Shocks!G62,5), ROUND(B63*(1-Shocks!J62)-Shocks!K62,5)) -> 0.01128 | H63: 0.02029937421 | I63: =ROUND(B63*(1+Shocks!H62)+Shocks!I62,5)+Extrapolation!T65 -> 0.02674398732 | J63: =MAX(ROUND(B63*(1-Shocks!F62)-Shocks!G62,5)+Extrapolation!T65, -1.25%) -> 0.01197398732 | K63: =IF(Extrapolation!FSP >= 15, ROUND(B63*(1+Shocks!H62)+Shocks!I62 + Extrapolation!T65, 5), ROUND(B63*(1+Shocks!L62)+Shocks!M62 + Extrapolation!T65,5)) -> 0.02675 | L63: =IF(Extrapolation!FSP >= 15, ROUND(B63*(1-Shocks!F62)-Shocks!G62+Extrapolation!T65, 5), ROUND(B63*(1-Shocks!J62)-Shocks!K62+Extrapolation!T65, 5)) -> 0.01198
A64: 52 | B64: 0.01994868261 | C64: =ROUND(B64*(1+Shocks!H63)+Shocks!I63,5) -> 0.02624 | D64: =MAX(ROUND(B64*(1-Shocks!F63)-Shocks!G63,5), -1.25%) -> 0.01171 | E64: =IF(Extrapolation!FSP >= 15, ROUND(B64*(1+Shocks!H63)+Shocks!I63,5), ROUND(B64*(1+Shocks!L63)+Shocks!M63,5)) -> 0.02624 | F64: =IF(Extrapolation!FSP >= 15, ROUND(B64*(1-Shocks!F63)-Shocks!G63,5), ROUND(B64*(1-Shocks!J63)-Shocks!K63,5)) -> 0.01171 | H64: 0.02062996492 | I64: =ROUND(B64*(1+Shocks!H63)+Shocks!I63,5)+Extrapolation!T66 -> 0.02692128232 | J64: =MAX(ROUND(B64*(1-Shocks!F63)-Shocks!G63,5)+Extrapolation!T66, -1.25%) -> 0.01239128232 | K64: =IF(Extrapolation!FSP >= 15, ROUND(B64*(1+Shocks!H63)+Shocks!I63 + Extrapolation!T66, 5), ROUND(B64*(1+Shocks!L63)+Shocks!M63 + Extrapolation!T66,5)) -> 0.02692 | L64: =IF(Extrapolation!FSP >= 15, ROUND(B64*(1-Shocks!F63)-Shocks!G63+Extrapolation!T66, 5), ROUND(B64*(1-Shocks!J63)-Shocks!K63+Extrapolation!T66, 5)) -> 0.01239
A65: 53 | B65: 0.02028158376 | C65: =ROUND(B65*(1+Shocks!H64)+Shocks!I64,5) -> 0.02641 | D65: =MAX(ROUND(B65*(1-Shocks!F64)-Shocks!G64,5), -1.25%) -> 0.01213 | E65: =IF(Extrapolation!FSP >= 15, ROUND(B65*(1+Shocks!H64)+Shocks!I64,5), ROUND(B65*(1+Shocks!L64)+Shocks!M64,5)) -> 0.02641 | F65: =IF(Extrapolation!FSP >= 15, ROUND(B65*(1-Shocks!F64)-Shocks!G64,5), ROUND(B65*(1-Shocks!J64)-Shocks!K64,5)) -> 0.01213 | H65: 0.02095059525 | I65: =ROUND(B65*(1+Shocks!H64)+Shocks!I64,5)+Extrapolation!T67 -> 0.02707901149 | J65: =MAX(ROUND(B65*(1-Shocks!F64)-Shocks!G64,5)+Extrapolation!T67, -1.25%) -> 0.01279901149 | K65: =IF(Extrapolation!FSP >= 15, ROUND(B65*(1+Shocks!H64)+Shocks!I64 + Extrapolation!T67, 5), ROUND(B65*(1+Shocks!L64)+Shocks!M64 + Extrapolation!T67,5)) -> 0.02708 | L65: =IF(Extrapolation!FSP >= 15, ROUND(B65*(1-Shocks!F64)-Shocks!G64+Extrapolation!T67, 5), ROUND(B65*(1-Shocks!J64)-Shocks!K64+Extrapolation!T67, 5)) -> 0.0128
A66: 54 | B66: 0.0206044352 | C66: =ROUND(B66*(1+Shocks!H65)+Shocks!I65,5) -> 0.02658 | D66: =MAX(ROUND(B66*(1-Shocks!F65)-Shocks!G65,5), -1.25%) -> 0.01255 | E66: =IF(Extrapolation!FSP >= 15, ROUND(B66*(1+Shocks!H65)+Shocks!I65,5), ROUND(B66*(1+Shocks!L65)+Shocks!M65,5)) -> 0.02658 | F66: =IF(Extrapolation!FSP >= 15, ROUND(B66*(1-Shocks!F65)-Shocks!G65,5), ROUND(B66*(1-Shocks!J65)-Shocks!K65,5)) -> 0.01255 | H66: 0.02126158971 | I66: =ROUND(B66*(1+Shocks!H65)+Shocks!I65,5)+Extrapolation!T68 -> 0.02723715451 | J66: =MAX(ROUND(B66*(1-Shocks!F65)-Shocks!G65,5)+Extrapolation!T68, -1.25%) -> 0.01320715451 | K66: =IF(Extrapolation!FSP >= 15, ROUND(B66*(1+Shocks!H65)+Shocks!I65 + Extrapolation!T68, 5), ROUND(B66*(1+Shocks!L65)+Shocks!M65 + Extrapolation!T68,5)) -> 0.02723 | L66: =IF(Extrapolation!FSP >= 15, ROUND(B66*(1-Shocks!F65)-Shocks!G65+Extrapolation!T68, 5), ROUND(B66*(1-Shocks!J65)-Shocks!K65+Extrapolation!T68, 5)) -> 0.01321
A67: 55 | B67: 0.02091757808 | C67: =ROUND(B67*(1+Shocks!H66)+Shocks!I66,5) -> 0.02672 | D67: =MAX(ROUND(B67*(1-Shocks!F66)-Shocks!G66,5), -1.25%) -> 0.01297 | E67: =IF(Extrapolation!FSP >= 15, ROUND(B67*(1+Shocks!H66)+Shocks!I66,5), ROUND(B67*(1+Shocks!L66)+Shocks!M66,5)) -> 0.02672 | F67: =IF(Extrapolation!FSP >= 15, ROUND(B67*(1-Shocks!F66)-Shocks!G66,5), ROUND(B67*(1-Shocks!J66)-Shocks!K66,5)) -> 0.01297 | H67: 0.02156327029 | I67: =ROUND(B67*(1+Shocks!H66)+Shocks!I66,5)+Extrapolation!T69 -> 0.02736569221 | J67: =MAX(ROUND(B67*(1-Shocks!F66)-Shocks!G66,5)+Extrapolation!T69, -1.25%) -> 0.01361569221 | K67: =IF(Extrapolation!FSP >= 15, ROUND(B67*(1+Shocks!H66)+Shocks!I66 + Extrapolation!T69, 5), ROUND(B67*(1+Shocks!L66)+Shocks!M66 + Extrapolation!T69,5)) -> 0.02737 | L67: =IF(Extrapolation!FSP >= 15, ROUND(B67*(1-Shocks!F66)-Shocks!G66+Extrapolation!T69, 5), ROUND(B67*(1-Shocks!J66)-Shocks!K66+Extrapolation!T69, 5)) -> 0.01362
A68: 56 | B68: 0.02122134824 | C68: =ROUND(B68*(1+Shocks!H67)+Shocks!I67,5) -> 0.02686 | D68: =MAX(ROUND(B68*(1-Shocks!F67)-Shocks!G67,5), -1.25%) -> 0.01338 | E68: =IF(Extrapolation!FSP >= 15, ROUND(B68*(1+Shocks!H67)+Shocks!I67,5), ROUND(B68*(1+Shocks!L67)+Shocks!M67,5)) -> 0.02686 | F68: =IF(Extrapolation!FSP >= 15, ROUND(B68*(1-Shocks!F67)-Shocks!G67,5), ROUND(B68*(1-Shocks!J67)-Shocks!K67,5)) -> 0.01338 | H68: 0.02185595471 | I68: =ROUND(B68*(1+Shocks!H67)+Shocks!I67,5)+Extrapolation!T70 -> 0.02749460647 | J68: =MAX(ROUND(B68*(1-Shocks!F67)-Shocks!G67,5)+Extrapolation!T70, -1.25%) -> 0.01401460647 | K68: =IF(Extrapolation!FSP >= 15, ROUND(B68*(1+Shocks!H67)+Shocks!I67 + Extrapolation!T70, 5), ROUND(B68*(1+Shocks!L67)+Shocks!M67 + Extrapolation!T70,5)) -> 0.0275 | L68: =IF(Extrapolation!FSP >= 15, ROUND(B68*(1-Shocks!F67)-Shocks!G67+Extrapolation!T70, 5), ROUND(B68*(1-Shocks!J67)-Shocks!K67+Extrapolation!T70, 5)) -> 0.01402
A69: 57 | B69: 0.02151607491 | C69: =ROUND(B69*(1+Shocks!H68)+Shocks!I68,5) -> 0.02699 | D69: =MAX(ROUND(B69*(1-Shocks!F68)-Shocks!G68,5), -1.25%) -> 0.01379 | E69: =IF(Extrapolation!FSP >= 15, ROUND(B69*(1+Shocks!H68)+Shocks!I68,5), ROUND(B69*(1+Shocks!L68)+Shocks!M68,5)) -> 0.02699 | F69: =IF(Extrapolation!FSP >= 15, ROUND(B69*(1-Shocks!F68)-Shocks!G68,5), ROUND(B69*(1-Shocks!J68)-Shocks!K68,5)) -> 0.01379 | H69: 0.0221399551 | I69: =ROUND(B69*(1+Shocks!H68)+Shocks!I68,5)+Extrapolation!T71 -> 0.02761388019 | J69: =MAX(ROUND(B69*(1-Shocks!F68)-Shocks!G68,5)+Extrapolation!T71, -1.25%) -> 0.01441388019 | K69: =IF(Extrapolation!FSP >= 15, ROUND(B69*(1+Shocks!H68)+Shocks!I68 + Extrapolation!T71, 5), ROUND(B69*(1+Shocks!L68)+Shocks!M68 + Extrapolation!T71,5)) -> 0.02761 | L69: =IF(Extrapolation!FSP >= 15, ROUND(B69*(1-Shocks!F68)-Shocks!G68+Extrapolation!T71, 5), ROUND(B69*(1-Shocks!J68)-Shocks!K68+Extrapolation!T71, 5)) -> 0.01442
A70: 58 | B70: 0.0218020797 | C70: =ROUND(B70*(1+Shocks!H69)+Shocks!I69,5) -> 0.0271 | D70: =MAX(ROUND(B70*(1-Shocks!F69)-Shocks!G69,5), -1.25%) -> 0.0142 | E70: =IF(Extrapolation!FSP >= 15, ROUND(B70*(1+Shocks!H69)+Shocks!I69,5), ROUND(B70*(1+Shocks!L69)+Shocks!M69,5)) -> 0.0271 | F70: =IF(Extrapolation!FSP >= 15, ROUND(B70*(1-Shocks!F69)-Shocks!G69,5), ROUND(B70*(1-Shocks!J69)-Shocks!K69,5)) -> 0.0142 | H70: 0.02241557692 | I70: =ROUND(B70*(1+Shocks!H69)+Shocks!I69,5)+Extrapolation!T72 -> 0.02771349721 | J70: =MAX(ROUND(B70*(1-Shocks!F69)-Shocks!G69,5)+Extrapolation!T72, -1.25%) -> 0.01481349721 | K70: =IF(Extrapolation!FSP >= 15, ROUND(B70*(1+Shocks!H69)+Shocks!I69 + Extrapolation!T72, 5), ROUND(B70*(1+Shocks!L69)+Shocks!M69 + Extrapolation!T72,5)) -> 0.02771 | L70: =IF(Extrapolation!FSP >= 15, ROUND(B70*(1-Shocks!F69)-Shocks!G69+Extrapolation!T72, 5), ROUND(B70*(1-Shocks!J69)-Shocks!K69+Extrapolation!T72, 5)) -> 0.01482
A71: 59 | B71: 0.02207967588 | C71: =ROUND(B71*(1+Shocks!H70)+Shocks!I70,5) -> 0.0272 | D71: =MAX(ROUND(B71*(1-Shocks!F70)-Shocks!G70,5), -1.25%) -> 0.01461 | E71: =IF(Extrapolation!FSP >= 15, ROUND(B71*(1+Shocks!H70)+Shocks!I70,5), ROUND(B71*(1+Shocks!L70)+Shocks!M70,5)) -> 0.0272 | F71: =IF(Extrapolation!FSP >= 15, ROUND(B71*(1-Shocks!F70)-Shocks!G70,5), ROUND(B71*(1-Shocks!J70)-Shocks!K70,5)) -> 0.01461 | H71: 0.02268311813 | I71: =ROUND(B71*(1+Shocks!H70)+Shocks!I70,5)+Extrapolation!T73 -> 0.02780344226 | J71: =MAX(ROUND(B71*(1-Shocks!F70)-Shocks!G70,5)+Extrapolation!T73, -1.25%) -> 0.01521344226 | K71: =IF(Extrapolation!FSP >= 15, ROUND(B71*(1+Shocks!H70)+Shocks!I70 + Extrapolation!T73, 5), ROUND(B71*(1+Shocks!L70)+Shocks!M70 + Extrapolation!T73,5)) -> 0.02781 | L71: =IF(Extrapolation!FSP >= 15, ROUND(B71*(1-Shocks!F70)-Shocks!G70+Extrapolation!T73, 5), ROUND(B71*(1-Shocks!J70)-Shocks!K70+Extrapolation!T73, 5)) -> 0.01521
A72: 60 | B72: 0.02234916779 | C72: =ROUND(B72*(1+Shocks!H71)+Shocks!I71,5) -> 0.0273 | D72: =MAX(ROUND(B72*(1-Shocks!F71)-Shocks!G71,5), -1.25%) -> 0.01501 | E72: =IF(Extrapolation!FSP >= 15, ROUND(B72*(1+Shocks!H71)+Shocks!I71,5), ROUND(B72*(1+Shocks!L71)+Shocks!M71,5)) -> 0.0273 | F72: =IF(Extrapolation!FSP >= 15, ROUND(B72*(1-Shocks!F71)-Shocks!G71,5), ROUND(B72*(1-Shocks!J71)-Shocks!K71,5)) -> 0.01501 | H72: 0.02294286865 | I72: =ROUND(B72*(1+Shocks!H71)+Shocks!I71,5)+Extrapolation!T74 -> 0.02789370087 | J72: =MAX(ROUND(B72*(1-Shocks!F71)-Shocks!G71,5)+Extrapolation!T74, -1.25%) -> 0.01560370087 | K72: =IF(Extrapolation!FSP >= 15, ROUND(B72*(1+Shocks!H71)+Shocks!I71 + Extrapolation!T74, 5), ROUND(B72*(1+Shocks!L71)+Shocks!M71 + Extrapolation!T74,5)) -> 0.02789 | L72: =IF(Extrapolation!FSP >= 15, ROUND(B72*(1-Shocks!F71)-Shocks!G71+Extrapolation!T74, 5), ROUND(B72*(1-Shocks!J71)-Shocks!K71+Extrapolation!T74, 5)) -> 0.0156
A73: 61 | B73: 0.0226108505 | C73: =ROUND(B73*(1+Shocks!H72)+Shocks!I72,5) -> 0.0276 | D73: =MAX(ROUND(B73*(1-Shocks!F72)-Shocks!G72,5), -1.25%) -> 0.01528 | E73: =IF(Extrapolation!FSP >= 15, ROUND(B73*(1+Shocks!H72)+Shocks!I72,5), ROUND(B73*(1+Shocks!L72)+Shocks!M72,5)) -> 0.0276 | F73: =IF(Extrapolation!FSP >= 15, ROUND(B73*(1-Shocks!F72)-Shocks!G72,5), ROUND(B73*(1-Shocks!J72)-Shocks!K72,5)) -> 0.01528 | H73: 0.02319510987 | I73: =ROUND(B73*(1+Shocks!H72)+Shocks!I72,5)+Extrapolation!T75 -> 0.02818425937 | J73: =MAX(ROUND(B73*(1-Shocks!F72)-Shocks!G72,5)+Extrapolation!T75, -1.25%) -> 0.01586425937 | K73: =IF(Extrapolation!FSP >= 15, ROUND(B73*(1+Shocks!H72)+Shocks!I72 + Extrapolation!T75, 5), ROUND(B73*(1+Shocks!L72)+Shocks!M72 + Extrapolation!T75,5)) -> 0.02819 | L73: =IF(Extrapolation!FSP >= 15, ROUND(B73*(1-Shocks!F72)-Shocks!G72+Extrapolation!T75, 5), ROUND(B73*(1-Shocks!J72)-Shocks!K72+Extrapolation!T75, 5)) -> 0.01586
A74: 62 | B74: 0.02286500957 | C74: =ROUND(B74*(1+Shocks!H73)+Shocks!I73,5) -> 0.0279 | D74: =MAX(ROUND(B74*(1-Shocks!F73)-Shocks!G73,5), -1.25%) -> 0.01555 | E74: =IF(Extrapolation!FSP >= 15, ROUND(B74*(1+Shocks!H73)+Shocks!I73,5), ROUND(B74*(1+Shocks!L73)+Shocks!M73,5)) -> 0.0279 | F74: =IF(Extrapolation!FSP >= 15, ROUND(B74*(1-Shocks!F73)-Shocks!G73,5), ROUND(B74*(1-Shocks!J73)-Shocks!K73,5)) -> 0.01555 | H74: 0.02344011439 | I74: =ROUND(B74*(1+Shocks!H73)+Shocks!I73,5)+Extrapolation!T76 -> 0.02847510482 | J74: =MAX(ROUND(B74*(1-Shocks!F73)-Shocks!G73,5)+Extrapolation!T76, -1.25%) -> 0.01612510482 | K74: =IF(Extrapolation!FSP >= 15, ROUND(B74*(1+Shocks!H73)+Shocks!I73 + Extrapolation!T76, 5), ROUND(B74*(1+Shocks!L73)+Shocks!M73 + Extrapolation!T76,5)) -> 0.02847 | L74: =IF(Extrapolation!FSP >= 15, ROUND(B74*(1-Shocks!F73)-Shocks!G73+Extrapolation!T76, 5), ROUND(B74*(1-Shocks!J73)-Shocks!K73+Extrapolation!T76, 5)) -> 0.01612
A75: 63 | B75: 0.02311192091 | C75: =ROUND(B75*(1+Shocks!H74)+Shocks!I74,5) -> 0.02818 | D75: =MAX(ROUND(B75*(1-Shocks!F74)-Shocks!G74,5), -1.25%) -> 0.01582 | E75: =IF(Extrapolation!FSP >= 15, ROUND(B75*(1+Shocks!H74)+Shocks!I74,5), ROUND(B75*(1+Shocks!L74)+Shocks!M74,5)) -> 0.02818 | F75: =IF(Extrapolation!FSP >= 15, ROUND(B75*(1-Shocks!F74)-Shocks!G74,5), ROUND(B75*(1-Shocks!J74)-Shocks!K74,5)) -> 0.01582 | H75: 0.02367814587 | I75: =ROUND(B75*(1+Shocks!H74)+Shocks!I74,5)+Extrapolation!T77 -> 0.02874622496 | J75: =MAX(ROUND(B75*(1-Shocks!F74)-Shocks!G74,5)+Extrapolation!T77, -1.25%) -> 0.01638622496 | K75: =IF(Extrapolation!FSP >= 15, ROUND(B75*(1+Shocks!H74)+Shocks!I74 + Extrapolation!T77, 5), ROUND(B75*(1+Shocks!L74)+Shocks!M74 + Extrapolation!T77,5)) -> 0.02875 | L75: =IF(Extrapolation!FSP >= 15, ROUND(B75*(1-Shocks!F74)-Shocks!G74+Extrapolation!T77, 5), ROUND(B75*(1-Shocks!J74)-Shocks!K74+Extrapolation!T77, 5)) -> 0.01638
A76: 64 | B76: 0.02335185074 | C76: =ROUND(B76*(1+Shocks!H75)+Shocks!I75,5) -> 0.02846 | D76: =MAX(ROUND(B76*(1-Shocks!F75)-Shocks!G75,5), -1.25%) -> 0.01608 | E76: =IF(Extrapolation!FSP >= 15, ROUND(B76*(1+Shocks!H75)+Shocks!I75,5), ROUND(B76*(1+Shocks!L75)+Shocks!M75,5)) -> 0.02846 | F76: =IF(Extrapolation!FSP >= 15, ROUND(B76*(1-Shocks!F75)-Shocks!G75,5), ROUND(B76*(1-Shocks!J75)-Shocks!K75,5)) -> 0.01608 | H76: 0.02390945891 | I76: =ROUND(B76*(1+Shocks!H75)+Shocks!I75,5)+Extrapolation!T78 -> 0.02901760817 | J76: =MAX(ROUND(B76*(1-Shocks!F75)-Shocks!G75,5)+Extrapolation!T78, -1.25%) -> 0.01663760817 | K76: =IF(Extrapolation!FSP >= 15, ROUND(B76*(1+Shocks!H75)+Shocks!I75 + Extrapolation!T78, 5), ROUND(B76*(1+Shocks!L75)+Shocks!M75 + Extrapolation!T78,5)) -> 0.02901 | L76: =IF(Extrapolation!FSP >= 15, ROUND(B76*(1-Shocks!F75)-Shocks!G75+Extrapolation!T78, 5), ROUND(B76*(1-Shocks!J75)-Shocks!K75+Extrapolation!T78, 5)) -> 0.01664
A77: 65 | B77: 0.02358505567 | C77: =ROUND(B77*(1+Shocks!H76)+Shocks!I76,5) -> 0.02872 | D77: =MAX(ROUND(B77*(1-Shocks!F76)-Shocks!G76,5), -1.25%) -> 0.01634 | E77: =IF(Extrapolation!FSP >= 15, ROUND(B77*(1+Shocks!H76)+Shocks!I76,5), ROUND(B77*(1+Shocks!L76)+Shocks!M76,5)) -> 0.02872 | F77: =IF(Extrapolation!FSP >= 15, ROUND(B77*(1-Shocks!F76)-Shocks!G76,5), ROUND(B77*(1-Shocks!J76)-Shocks!K76,5)) -> 0.01634 | H77: 0.02413429912 | I77: =ROUND(B77*(1+Shocks!H76)+Shocks!I76,5)+Extrapolation!T79 -> 0.02926924345 | J77: =MAX(ROUND(B77*(1-Shocks!F76)-Shocks!G76,5)+Extrapolation!T79, -1.25%) -> 0.01688924345 | K77: =IF(Extrapolation!FSP >= 15, ROUND(B77*(1+Shocks!H76)+Shocks!I76 + Extrapolation!T79, 5), ROUND(B77*(1+Shocks!L76)+Shocks!M76 + Extrapolation!T79,5)) -> 0.02927 | L77: =IF(Extrapolation!FSP >= 15, ROUND(B77*(1-Shocks!F76)-Shocks!G76+Extrapolation!T79, 5), ROUND(B77*(1-Shocks!J76)-Shocks!K76+Extrapolation!T79, 5)) -> 0.01689
A78: 66 | B78: 0.02381178276 | C78: =ROUND(B78*(1+Shocks!H77)+Shocks!I77,5) -> 0.02898 | D78: =MAX(ROUND(B78*(1-Shocks!F77)-Shocks!G77,5), -1.25%) -> 0.0166 | E78: =IF(Extrapolation!FSP >= 15, ROUND(B78*(1+Shocks!H77)+Shocks!I77,5), ROUND(B78*(1+Shocks!L77)+Shocks!M77,5)) -> 0.02898 | F78: =IF(Extrapolation!FSP >= 15, ROUND(B78*(1-Shocks!F77)-Shocks!G77,5), ROUND(B78*(1-Shocks!J77)-Shocks!K77,5)) -> 0.0166 | H78: 0.02435290312 | I78: =ROUND(B78*(1+Shocks!H77)+Shocks!I77,5)+Extrapolation!T80 -> 0.02952112036 | J78: =MAX(ROUND(B78*(1-Shocks!F77)-Shocks!G77,5)+Extrapolation!T80, -1.25%) -> 0.01714112036 | K78: =IF(Extrapolation!FSP >= 15, ROUND(B78*(1+Shocks!H77)+Shocks!I77 + Extrapolation!T80, 5), ROUND(B78*(1+Shocks!L77)+Shocks!M77 + Extrapolation!T80,5)) -> 0.02952 | L78: =IF(Extrapolation!FSP >= 15, ROUND(B78*(1-Shocks!F77)-Shocks!G77+Extrapolation!T80, 5), ROUND(B78*(1-Shocks!J77)-Shocks!K77+Extrapolation!T80, 5)) -> 0.01714
A79: 67 | B79: 0.02403226972 | C79: =ROUND(B79*(1+Shocks!H78)+Shocks!I78,5) -> 0.02923 | D79: =MAX(ROUND(B79*(1-Shocks!F78)-Shocks!G78,5), -1.25%) -> 0.01686 | E79: =IF(Extrapolation!FSP >= 15, ROUND(B79*(1+Shocks!H78)+Shocks!I78,5), ROUND(B79*(1+Shocks!L78)+Shocks!M78,5)) -> 0.02923 | F79: =IF(Extrapolation!FSP >= 15, ROUND(B79*(1-Shocks!F78)-Shocks!G78,5), ROUND(B79*(1-Shocks!J78)-Shocks!K78,5)) -> 0.01686 | H79: 0.0245654987 | I79: =ROUND(B79*(1+Shocks!H78)+Shocks!I78,5)+Extrapolation!T81 -> 0.02976322898 | J79: =MAX(ROUND(B79*(1-Shocks!F78)-Shocks!G78,5)+Extrapolation!T81, -1.25%) -> 0.01739322898 | K79: =IF(Extrapolation!FSP >= 15, ROUND(B79*(1+Shocks!H78)+Shocks!I78 + Extrapolation!T81, 5), ROUND(B79*(1+Shocks!L78)+Shocks!M78 + Extrapolation!T81,5)) -> 0.02977 | L79: =IF(Extrapolation!FSP >= 15, ROUND(B79*(1-Shocks!F78)-Shocks!G78+Extrapolation!T81, 5), ROUND(B79*(1-Shocks!J78)-Shocks!K78+Extrapolation!T81, 5)) -> 0.01739
A80: 68 | B80: 0.02424674507 | C80: =ROUND(B80*(1+Shocks!H79)+Shocks!I79,5) -> 0.02948 | D80: =MAX(ROUND(B80*(1-Shocks!F79)-Shocks!G79,5), -1.25%) -> 0.01711 | E80: =IF(Extrapolation!FSP >= 15, ROUND(B80*(1+Shocks!H79)+Shocks!I79,5), ROUND(B80*(1+Shocks!L79)+Shocks!M79,5)) -> 0.02948 | F80: =IF(Extrapolation!FSP >= 15, ROUND(B80*(1-Shocks!F79)-Shocks!G79,5), ROUND(B80*(1-Shocks!J79)-Shocks!K79,5)) -> 0.01711 | H80: 0.02477230499 | I80: =ROUND(B80*(1+Shocks!H79)+Shocks!I79,5)+Extrapolation!T82 -> 0.03000555992 | J80: =MAX(ROUND(B80*(1-Shocks!F79)-Shocks!G79,5)+Extrapolation!T82, -1.25%) -> 0.01763555992 | K80: =IF(Extrapolation!FSP >= 15, ROUND(B80*(1+Shocks!H79)+Shocks!I79 + Extrapolation!T82, 5), ROUND(B80*(1+Shocks!L79)+Shocks!M79 + Extrapolation!T82,5)) -> 0.03 | L80: =IF(Extrapolation!FSP >= 15, ROUND(B80*(1-Shocks!F79)-Shocks!G79+Extrapolation!T82, 5), ROUND(B80*(1-Shocks!J79)-Shocks!K79+Extrapolation!T82, 5)) -> 0.01764
A81: 69 | B81: 0.02445542837 | C81: =ROUND(B81*(1+Shocks!H80)+Shocks!I80,5) -> 0.02971 | D81: =MAX(ROUND(B81*(1-Shocks!F80)-Shocks!G80,5), -1.25%) -> 0.01736 | E81: =IF(Extrapolation!FSP >= 15, ROUND(B81*(1+Shocks!H80)+Shocks!I80,5), ROUND(B81*(1+Shocks!L80)+Shocks!M80,5)) -> 0.02971 | F81: =IF(Extrapolation!FSP >= 15, ROUND(B81*(1-Shocks!F80)-Shocks!G80,5), ROUND(B81*(1-Shocks!J80)-Shocks!K80,5)) -> 0.01736 | H81: 0.02497353262 | I81: =ROUND(B81*(1+Shocks!H80)+Shocks!I80,5)+Extrapolation!T83 -> 0.03022810425 | J81: =MAX(ROUND(B81*(1-Shocks!F80)-Shocks!G80,5)+Extrapolation!T83, -1.25%) -> 0.01787810425 | K81: =IF(Extrapolation!FSP >= 15, ROUND(B81*(1+Shocks!H80)+Shocks!I80 + Extrapolation!T83, 5), ROUND(B81*(1+Shocks!L80)+Shocks!M80 + Extrapolation!T83,5)) -> 0.03023 | L81: =IF(Extrapolation!FSP >= 15, ROUND(B81*(1-Shocks!F80)-Shocks!G80+Extrapolation!T83, 5), ROUND(B81*(1-Shocks!J80)-Shocks!K80+Extrapolation!T83, 5)) -> 0.01788
A82: 70 | B82: 0.02465853045 | C82: =ROUND(B82*(1+Shocks!H81)+Shocks!I81,5) -> 0.02994 | D82: =MAX(ROUND(B82*(1-Shocks!F81)-Shocks!G81,5), -1.25%) -> 0.01761 | E82: =IF(Extrapolation!FSP >= 15, ROUND(B82*(1+Shocks!H81)+Shocks!I81,5), ROUND(B82*(1+Shocks!L81)+Shocks!M81,5)) -> 0.02994 | F82: =IF(Extrapolation!FSP >= 15, ROUND(B82*(1-Shocks!F81)-Shocks!G81,5), ROUND(B82*(1-Shocks!J81)-Shocks!K81,5)) -> 0.01761 | H82: 0.02516938395 | I82: =ROUND(B82*(1+Shocks!H81)+Shocks!I81,5)+Extrapolation!T84 -> 0.0304508535 | J82: =MAX(ROUND(B82*(1-Shocks!F81)-Shocks!G81,5)+Extrapolation!T84, -1.25%) -> 0.0181208535 | K82: =IF(Extrapolation!FSP >= 15, ROUND(B82*(1+Shocks!H81)+Shocks!I81 + Extrapolation!T84, 5), ROUND(B82*(1+Shocks!L81)+Shocks!M81 + Extrapolation!T84,5)) -> 0.03045 | L82: =IF(Extrapolation!FSP >= 15, ROUND(B82*(1-Shocks!F81)-Shocks!G81+Extrapolation!T84, 5), ROUND(B82*(1-Shocks!J81)-Shocks!K81+Extrapolation!T84, 5)) -> 0.01812
A83: 71 | B83: 0.0248562537 | C83: =ROUND(B83*(1+Shocks!H82)+Shocks!I82,5) -> 0.03016 | D83: =MAX(ROUND(B83*(1-Shocks!F82)-Shocks!G82,5), -1.25%) -> 0.01786 | E83: =IF(Extrapolation!FSP >= 15, ROUND(B83*(1+Shocks!H82)+Shocks!I82,5), ROUND(B83*(1+Shocks!L82)+Shocks!M82,5)) -> 0.03016 | F83: =IF(Extrapolation!FSP >= 15, ROUND(B83*(1-Shocks!F82)-Shocks!G82,5), ROUND(B83*(1-Shocks!J82)-Shocks!K82,5)) -> 0.01786 | H83: 0.0253600533 | I83: =ROUND(B83*(1+Shocks!H82)+Shocks!I82,5)+Extrapolation!T85 -> 0.03066379961 | J83: =MAX(ROUND(B83*(1-Shocks!F82)-Shocks!G82,5)+Extrapolation!T85, -1.25%) -> 0.01836379961 | K83: =IF(Extrapolation!FSP >= 15, ROUND(B83*(1+Shocks!H82)+Shocks!I82 + Extrapolation!T85, 5), ROUND(B83*(1+Shocks!L82)+Shocks!M82 + Extrapolation!T85,5)) -> 0.03067 | L83: =IF(Extrapolation!FSP >= 15, ROUND(B83*(1-Shocks!F82)-Shocks!G82+Extrapolation!T85, 5), ROUND(B83*(1-Shocks!J82)-Shocks!K82+Extrapolation!T85, 5)) -> 0.01836
A84: 72 | B84: 0.02504879231 | C84: =ROUND(B84*(1+Shocks!H83)+Shocks!I83,5) -> 0.03038 | D84: =MAX(ROUND(B84*(1-Shocks!F83)-Shocks!G83,5), -1.25%) -> 0.01811 | E84: =IF(Extrapolation!FSP >= 15, ROUND(B84*(1+Shocks!H83)+Shocks!I83,5), ROUND(B84*(1+Shocks!L83)+Shocks!M83,5)) -> 0.03038 | F84: =IF(Extrapolation!FSP >= 15, ROUND(B84*(1-Shocks!F83)-Shocks!G83,5), ROUND(B84*(1-Shocks!J83)-Shocks!K83,5)) -> 0.01811 | H84: 0.02554572722 | I84: =ROUND(B84*(1+Shocks!H83)+Shocks!I83,5)+Extrapolation!T86 -> 0.0308769349 | J84: =MAX(ROUND(B84*(1-Shocks!F83)-Shocks!G83,5)+Extrapolation!T86, -1.25%) -> 0.0186069349 | K84: =IF(Extrapolation!FSP >= 15, ROUND(B84*(1+Shocks!H83)+Shocks!I83 + Extrapolation!T86, 5), ROUND(B84*(1+Shocks!L83)+Shocks!M83 + Extrapolation!T86,5)) -> 0.03088 | L84: =IF(Extrapolation!FSP >= 15, ROUND(B84*(1-Shocks!F83)-Shocks!G83+Extrapolation!T86, 5), ROUND(B84*(1-Shocks!J83)-Shocks!K83+Extrapolation!T86, 5)) -> 0.0186
A85: 73 | B85: 0.02523633258 | C85: =ROUND(B85*(1+Shocks!H84)+Shocks!I84,5) -> 0.03059 | D85: =MAX(ROUND(B85*(1-Shocks!F84)-Shocks!G84,5), -1.25%) -> 0.01835 | E85: =IF(Extrapolation!FSP >= 15, ROUND(B85*(1+Shocks!H84)+Shocks!I84,5), ROUND(B85*(1+Shocks!L84)+Shocks!M84,5)) -> 0.03059 | F85: =IF(Extrapolation!FSP >= 15, ROUND(B85*(1-Shocks!F84)-Shocks!G84,5), ROUND(B85*(1-Shocks!J84)-Shocks!K84,5)) -> 0.01835 | H85: 0.02572658469 | I85: =ROUND(B85*(1+Shocks!H84)+Shocks!I84,5)+Extrapolation!T87 -> 0.03108025211 | J85: =MAX(ROUND(B85*(1-Shocks!F84)-Shocks!G84,5)+Extrapolation!T87, -1.25%) -> 0.01884025211 | K85: =IF(Extrapolation!FSP >= 15, ROUND(B85*(1+Shocks!H84)+Shocks!I84 + Extrapolation!T87, 5), ROUND(B85*(1+Shocks!L84)+Shocks!M84 + Extrapolation!T87,5)) -> 0.03108 | L85: =IF(Extrapolation!FSP >= 15, ROUND(B85*(1-Shocks!F84)-Shocks!G84+Extrapolation!T87, 5), ROUND(B85*(1-Shocks!J84)-Shocks!K84+Extrapolation!T87, 5)) -> 0.01884
A86: 74 | B86: 0.02541905317 | C86: =ROUND(B86*(1+Shocks!H85)+Shocks!I85,5) -> 0.03079 | D86: =MAX(ROUND(B86*(1-Shocks!F85)-Shocks!G85,5), -1.25%) -> 0.01859 | E86: =IF(Extrapolation!FSP >= 15, ROUND(B86*(1+Shocks!H85)+Shocks!I85,5), ROUND(B86*(1+Shocks!L85)+Shocks!M85,5)) -> 0.03079 | F86: =IF(Extrapolation!FSP >= 15, ROUND(B86*(1-Shocks!F85)-Shocks!G85,5), ROUND(B86*(1-Shocks!J85)-Shocks!K85,5)) -> 0.01859 | H86: 0.02590279745 | I86: =ROUND(B86*(1+Shocks!H85)+Shocks!I85,5)+Extrapolation!T88 -> 0.03127374428 | J86: =MAX(ROUND(B86*(1-Shocks!F85)-Shocks!G85,5)+Extrapolation!T88, -1.25%) -> 0.01907374428 | K86: =IF(Extrapolation!FSP >= 15, ROUND(B86*(1+Shocks!H85)+Shocks!I85 + Extrapolation!T88, 5), ROUND(B86*(1+Shocks!L85)+Shocks!M85 + Extrapolation!T88,5)) -> 0.03128 | L86: =IF(Extrapolation!FSP >= 15, ROUND(B86*(1-Shocks!F85)-Shocks!G85+Extrapolation!T88, 5), ROUND(B86*(1-Shocks!J85)-Shocks!K85+Extrapolation!T88, 5)) -> 0.01908
A87: 75 | B87: 0.02559712538 | C87: =ROUND(B87*(1+Shocks!H86)+Shocks!I86,5) -> 0.03099 | D87: =MAX(ROUND(B87*(1-Shocks!F86)-Shocks!G86,5), -1.25%) -> 0.01883 | E87: =IF(Extrapolation!FSP >= 15, ROUND(B87*(1+Shocks!H86)+Shocks!I86,5), ROUND(B87*(1+Shocks!L86)+Shocks!M86,5)) -> 0.03099 | F87: =IF(Extrapolation!FSP >= 15, ROUND(B87*(1-Shocks!F86)-Shocks!G86,5), ROUND(B87*(1-Shocks!J86)-Shocks!K86,5)) -> 0.01883 | H87: 0.02607453021 | I87: =ROUND(B87*(1+Shocks!H86)+Shocks!I86,5)+Extrapolation!T89 -> 0.03146740483 | J87: =MAX(ROUND(B87*(1-Shocks!F86)-Shocks!G86,5)+Extrapolation!T89, -1.25%) -> 0.01930740483 | K87: =IF(Extrapolation!FSP >= 15, ROUND(B87*(1+Shocks!H86)+Shocks!I86 + Extrapolation!T89, 5), ROUND(B87*(1+Shocks!L86)+Shocks!M86 + Extrapolation!T89,5)) -> 0.03147 | L87: =IF(Extrapolation!FSP >= 15, ROUND(B87*(1-Shocks!F86)-Shocks!G86+Extrapolation!T89, 5), ROUND(B87*(1-Shocks!J86)-Shocks!K86+Extrapolation!T89, 5)) -> 0.01931
A88: 76 | B88: 0.02577071348 | C88: =ROUND(B88*(1+Shocks!H87)+Shocks!I87,5) -> 0.03118 | D88: =MAX(ROUND(B88*(1-Shocks!F87)-Shocks!G87,5), -1.25%) -> 0.01907 | E88: =IF(Extrapolation!FSP >= 15, ROUND(B88*(1+Shocks!H87)+Shocks!I87,5), ROUND(B88*(1+Shocks!L87)+Shocks!M87,5)) -> 0.03118 | F88: =IF(Extrapolation!FSP >= 15, ROUND(B88*(1-Shocks!F87)-Shocks!G87,5), ROUND(B88*(1-Shocks!J87)-Shocks!K87,5)) -> 0.01907 | H88: 0.02624194093 | I88: =ROUND(B88*(1+Shocks!H87)+Shocks!I87,5)+Extrapolation!T90 -> 0.03165122746 | J88: =MAX(ROUND(B88*(1-Shocks!F87)-Shocks!G87,5)+Extrapolation!T90, -1.25%) -> 0.01954122746 | K88: =IF(Extrapolation!FSP >= 15, ROUND(B88*(1+Shocks!H87)+Shocks!I87 + Extrapolation!T90, 5), ROUND(B88*(1+Shocks!L87)+Shocks!M87 + Extrapolation!T90,5)) -> 0.03165 | L88: =IF(Extrapolation!FSP >= 15, ROUND(B88*(1-Shocks!F87)-Shocks!G87+Extrapolation!T90, 5), ROUND(B88*(1-Shocks!J87)-Shocks!K87+Extrapolation!T90, 5)) -> 0.01954
A89: 77 | B89: 0.02593997492 | C89: =ROUND(B89*(1+Shocks!H88)+Shocks!I88,5) -> 0.03137 | D89: =MAX(ROUND(B89*(1-Shocks!F88)-Shocks!G88,5), -1.25%) -> 0.01931 | E89: =IF(Extrapolation!FSP >= 15, ROUND(B89*(1+Shocks!H88)+Shocks!I88,5), ROUND(B89*(1+Shocks!L88)+Shocks!M88,5)) -> 0.03137 | F89: =IF(Extrapolation!FSP >= 15, ROUND(B89*(1-Shocks!F88)-Shocks!G88,5), ROUND(B89*(1-Shocks!J88)-Shocks!K88,5)) -> 0.01931 | H89: 0.0264051811 | I89: =ROUND(B89*(1+Shocks!H88)+Shocks!I88,5)+Extrapolation!T91 -> 0.03183520618 | J89: =MAX(ROUND(B89*(1-Shocks!F88)-Shocks!G88,5)+Extrapolation!T91, -1.25%) -> 0.01977520618 | K89: =IF(Extrapolation!FSP >= 15, ROUND(B89*(1+Shocks!H88)+Shocks!I88 + Extrapolation!T91, 5), ROUND(B89*(1+Shocks!L88)+Shocks!M88 + Extrapolation!T91,5)) -> 0.03183 | L89: =IF(Extrapolation!FSP >= 15, ROUND(B89*(1-Shocks!F88)-Shocks!G88+Extrapolation!T91, 5), ROUND(B89*(1-Shocks!J88)-Shocks!K88+Extrapolation!T91, 5)) -> 0.01977
A90: 78 | B90: 0.02610506068 | C90: =ROUND(B90*(1+Shocks!H89)+Shocks!I89,5) -> 0.03155 | D90: =MAX(ROUND(B90*(1-Shocks!F89)-Shocks!G89,5), -1.25%) -> 0.01954 | E90: =IF(Extrapolation!FSP >= 15, ROUND(B90*(1+Shocks!H89)+Shocks!I89,5), ROUND(B90*(1+Shocks!L89)+Shocks!M89,5)) -> 0.03155 | F90: =IF(Extrapolation!FSP >= 15, ROUND(B90*(1-Shocks!F89)-Shocks!G89,5), ROUND(B90*(1-Shocks!J89)-Shocks!K89,5)) -> 0.01954 | H90: 0.02656439597 | I90: =ROUND(B90*(1+Shocks!H89)+Shocks!I89,5)+Extrapolation!T92 -> 0.03200933529 | J90: =MAX(ROUND(B90*(1-Shocks!F89)-Shocks!G89,5)+Extrapolation!T92, -1.25%) -> 0.01999933529 | K90: =IF(Extrapolation!FSP >= 15, ROUND(B90*(1+Shocks!H89)+Shocks!I89 + Extrapolation!T92, 5), ROUND(B90*(1+Shocks!L89)+Shocks!M89 + Extrapolation!T92,5)) -> 0.03201 | L90: =IF(Extrapolation!FSP >= 15, ROUND(B90*(1-Shocks!F89)-Shocks!G89+Extrapolation!T92, 5), ROUND(B90*(1-Shocks!J89)-Shocks!K89+Extrapolation!T92, 5)) -> 0.02
A91: 79 | B91: 0.02626611545 | C91: =ROUND(B91*(1+Shocks!H90)+Shocks!I90,5) -> 0.03173 | D91: =MAX(ROUND(B91*(1-Shocks!F90)-Shocks!G90,5), -1.25%) -> 0.01977 | E91: =IF(Extrapolation!FSP >= 15, ROUND(B91*(1+Shocks!H90)+Shocks!I90,5), ROUND(B91*(1+Shocks!L90)+Shocks!M90,5)) -> 0.03173 | F91: =IF(Extrapolation!FSP >= 15, ROUND(B91*(1-Shocks!F90)-Shocks!G90,5), ROUND(B91*(1-Shocks!J90)-Shocks!K90,5)) -> 0.01977 | H91: 0.02671972479 | I91: =ROUND(B91*(1+Shocks!H90)+Shocks!I90,5)+Extrapolation!T93 -> 0.03218360934 | J91: =MAX(ROUND(B91*(1-Shocks!F90)-Shocks!G90,5)+Extrapolation!T93, -1.25%) -> 0.02022360934 | K91: =IF(Extrapolation!FSP >= 15, ROUND(B91*(1+Shocks!H90)+Shocks!I90 + Extrapolation!T93, 5), ROUND(B91*(1+Shocks!L90)+Shocks!M90 + Extrapolation!T93,5)) -> 0.03218 | L91: =IF(Extrapolation!FSP >= 15, ROUND(B91*(1-Shocks!F90)-Shocks!G90+Extrapolation!T93, 5), ROUND(B91*(1-Shocks!J90)-Shocks!K90+Extrapolation!T93, 5)) -> 0.02023
A92: 80 | B92: 0.02642327797 | C92: =ROUND(B92*(1+Shocks!H91)+Shocks!I91,5) -> 0.0319 | D92: =MAX(ROUND(B92*(1-Shocks!F91)-Shocks!G91,5), -1.25%) -> 0.02001 | E92: =IF(Extrapolation!FSP >= 15, ROUND(B92*(1+Shocks!H91)+Shocks!I91,5), ROUND(B92*(1+Shocks!L91)+Shocks!M91,5)) -> 0.0319 | F92: =IF(Extrapolation!FSP >= 15, ROUND(B92*(1-Shocks!F91)-Shocks!G91,5), ROUND(B92*(1-Shocks!J91)-Shocks!K91,5)) -> 0.02001 | H92: 0.0268713011 | I92: =ROUND(B92*(1+Shocks!H91)+Shocks!I91,5)+Extrapolation!T94 -> 0.03234802313 | J92: =MAX(ROUND(B92*(1-Shocks!F91)-Shocks!G91,5)+Extrapolation!T94, -1.25%) -> 0.02045802313 | K92: =IF(Extrapolation!FSP >= 15, ROUND(B92*(1+Shocks!H91)+Shocks!I91 + Extrapolation!T94, 5), ROUND(B92*(1+Shocks!L91)+Shocks!M91 + Extrapolation!T94,5)) -> 0.03234 | L92: =IF(Extrapolation!FSP >= 15, ROUND(B92*(1-Shocks!F91)-Shocks!G91+Extrapolation!T94, 5), ROUND(B92*(1-Shocks!J91)-Shocks!K91+Extrapolation!T94, 5)) -> 0.02045
A93: 81 | B93: 0.02657668124 | C93: =ROUND(B93*(1+Shocks!H92)+Shocks!I92,5) -> 0.03206 | D93: =MAX(ROUND(B93*(1-Shocks!F92)-Shocks!G92,5), -1.25%) -> 0.02024 | E93: =IF(Extrapolation!FSP >= 15, ROUND(B93*(1+Shocks!H92)+Shocks!I92,5), ROUND(B93*(1+Shocks!L92)+Shocks!M92,5)) -> 0.03206 | F93: =IF(Extrapolation!FSP >= 15, ROUND(B93*(1-Shocks!F92)-Shocks!G92,5), ROUND(B93*(1-Shocks!J92)-Shocks!K92,5)) -> 0.02024 | H93: 0.02701925296 | I93: =ROUND(B93*(1+Shocks!H92)+Shocks!I92,5)+Extrapolation!T95 -> 0.03250257172 | J93: =MAX(ROUND(B93*(1-Shocks!F92)-Shocks!G92,5)+Extrapolation!T95, -1.25%) -> 0.02068257172 | K93: =IF(Extrapolation!FSP >= 15, ROUND(B93*(1+Shocks!H92)+Shocks!I92 + Extrapolation!T95, 5), ROUND(B93*(1+Shocks!L92)+Shocks!M92 + Extrapolation!T95,5)) -> 0.03251 | L93: =IF(Extrapolation!FSP >= 15, ROUND(B93*(1-Shocks!F92)-Shocks!G92+Extrapolation!T95, 5), ROUND(B93*(1-Shocks!J92)-Shocks!K92+Extrapolation!T95, 5)) -> 0.02068
A94: 82 | B94: 0.02672645277 | C94: =ROUND(B94*(1+Shocks!H93)+Shocks!I93,5) -> 0.03222 | D94: =MAX(ROUND(B94*(1-Shocks!F93)-Shocks!G93,5), -1.25%) -> 0.02046 | E94: =IF(Extrapolation!FSP >= 15, ROUND(B94*(1+Shocks!H93)+Shocks!I93,5), ROUND(B94*(1+Shocks!L93)+Shocks!M93,5)) -> 0.03222 | F94: =IF(Extrapolation!FSP >= 15, ROUND(B94*(1-Shocks!F93)-Shocks!G93,5), ROUND(B94*(1-Shocks!J93)-Shocks!K93,5)) -> 0.02046 | H94: 0.02716370313 | I94: =ROUND(B94*(1+Shocks!H93)+Shocks!I93,5)+Extrapolation!T96 -> 0.03265725036 | J94: =MAX(ROUND(B94*(1-Shocks!F93)-Shocks!G93,5)+Extrapolation!T96, -1.25%) -> 0.02089725036 | K94: =IF(Extrapolation!FSP >= 15, ROUND(B94*(1+Shocks!H93)+Shocks!I93 + Extrapolation!T96, 5), ROUND(B94*(1+Shocks!L93)+Shocks!M93 + Extrapolation!T96,5)) -> 0.03266 | L94: =IF(Extrapolation!FSP >= 15, ROUND(B94*(1-Shocks!F93)-Shocks!G93+Extrapolation!T96, 5), ROUND(B94*(1-Shocks!J93)-Shocks!K93+Extrapolation!T96, 5)) -> 0.0209
A95: 83 | B95: 0.02687271484 | C95: =ROUND(B95*(1+Shocks!H94)+Shocks!I94,5) -> 0.03238 | D95: =MAX(ROUND(B95*(1-Shocks!F94)-Shocks!G94,5), -1.25%) -> 0.02069 | E95: =IF(Extrapolation!FSP >= 15, ROUND(B95*(1+Shocks!H94)+Shocks!I94,5), ROUND(B95*(1+Shocks!L94)+Shocks!M94,5)) -> 0.03238 | F95: =IF(Extrapolation!FSP >= 15, ROUND(B95*(1-Shocks!F94)-Shocks!G94,5), ROUND(B95*(1-Shocks!J94)-Shocks!K94,5)) -> 0.02069 | H95: 0.02730476937 | I95: =ROUND(B95*(1+Shocks!H94)+Shocks!I94,5)+Extrapolation!T97 -> 0.03281205453 | J95: =MAX(ROUND(B95*(1-Shocks!F94)-Shocks!G94,5)+Extrapolation!T97, -1.25%) -> 0.02112205453 | K95: =IF(Extrapolation!FSP >= 15, ROUND(B95*(1+Shocks!H94)+Shocks!I94 + Extrapolation!T97, 5), ROUND(B95*(1+Shocks!L94)+Shocks!M94 + Extrapolation!T97,5)) -> 0.03281 | L95: =IF(Extrapolation!FSP >= 15, ROUND(B95*(1-Shocks!F94)-Shocks!G94+Extrapolation!T97, 5), ROUND(B95*(1-Shocks!J94)-Shocks!K94+Extrapolation!T97, 5)) -> 0.02112
A96: 84 | B96: 0.0270155847 | C96: =ROUND(B96*(1+Shocks!H95)+Shocks!I95,5) -> 0.03253 | D96: =MAX(ROUND(B96*(1-Shocks!F95)-Shocks!G95,5), -1.25%) -> 0.02092 | E96: =IF(Extrapolation!FSP >= 15, ROUND(B96*(1+Shocks!H95)+Shocks!I95,5), ROUND(B96*(1+Shocks!L95)+Shocks!M95,5)) -> 0.03253 | F96: =IF(Extrapolation!FSP >= 15, ROUND(B96*(1-Shocks!F95)-Shocks!G95,5), ROUND(B96*(1-Shocks!J95)-Shocks!K95,5)) -> 0.02092 | H96: 0.02744256463 | I96: =ROUND(B96*(1+Shocks!H95)+Shocks!I95,5)+Extrapolation!T98 -> 0.03295697993 | J96: =MAX(ROUND(B96*(1-Shocks!F95)-Shocks!G95,5)+Extrapolation!T98, -1.25%) -> 0.02134697993 | K96: =IF(Extrapolation!FSP >= 15, ROUND(B96*(1+Shocks!H95)+Shocks!I95 + Extrapolation!T98, 5), ROUND(B96*(1+Shocks!L95)+Shocks!M95 + Extrapolation!T98,5)) -> 0.03296 | L96: =IF(Extrapolation!FSP >= 15, ROUND(B96*(1-Shocks!F95)-Shocks!G95+Extrapolation!T98, 5), ROUND(B96*(1-Shocks!J95)-Shocks!K95+Extrapolation!T98, 5)) -> 0.02134
A97: 85 | B97: 0.02715517481 | C97: =ROUND(B97*(1+Shocks!H96)+Shocks!I96,5) -> 0.03268 | D97: =MAX(ROUND(B97*(1-Shocks!F96)-Shocks!G96,5), -1.25%) -> 0.02114 | E97: =IF(Extrapolation!FSP >= 15, ROUND(B97*(1+Shocks!H96)+Shocks!I96,5), ROUND(B97*(1+Shocks!L96)+Shocks!M96,5)) -> 0.03268 | F97: =IF(Extrapolation!FSP >= 15, ROUND(B97*(1-Shocks!F96)-Shocks!G96,5), ROUND(B97*(1-Shocks!J96)-Shocks!K96,5)) -> 0.02114 | H97: 0.02757719722 | I97: =ROUND(B97*(1+Shocks!H96)+Shocks!I96,5)+Extrapolation!T99 -> 0.03310202241 | J97: =MAX(ROUND(B97*(1-Shocks!F96)-Shocks!G96,5)+Extrapolation!T99, -1.25%) -> 0.02156202241 | K97: =IF(Extrapolation!FSP >= 15, ROUND(B97*(1+Shocks!H96)+Shocks!I96 + Extrapolation!T99, 5), ROUND(B97*(1+Shocks!L96)+Shocks!M96 + Extrapolation!T99,5)) -> 0.03311 | L97: =IF(Extrapolation!FSP >= 15, ROUND(B97*(1-Shocks!F96)-Shocks!G96+Extrapolation!T99, 5), ROUND(B97*(1-Shocks!J96)-Shocks!K96+Extrapolation!T99, 5)) -> 0.02156
A98: 86 | B98: 0.02729159304 | C98: =ROUND(B98*(1+Shocks!H97)+Shocks!I97,5) -> 0.03283 | D98: =MAX(ROUND(B98*(1-Shocks!F97)-Shocks!G97,5), -1.25%) -> 0.02137 | E98: =IF(Extrapolation!FSP >= 15, ROUND(B98*(1+Shocks!H97)+Shocks!I97,5), ROUND(B98*(1+Shocks!L97)+Shocks!M97,5)) -> 0.03283 | F98: =IF(Extrapolation!FSP >= 15, ROUND(B98*(1-Shocks!F97)-Shocks!G97,5), ROUND(B98*(1-Shocks!J97)-Shocks!K97,5)) -> 0.02137 | H98: 0.02770877107 | I98: =ROUND(B98*(1+Shocks!H97)+Shocks!I97,5)+Extrapolation!T100 -> 0.03324717803 | J98: =MAX(ROUND(B98*(1-Shocks!F97)-Shocks!G97,5)+Extrapolation!T100, -1.25%) -> 0.02178717803 | K98: =IF(Extrapolation!FSP >= 15, ROUND(B98*(1+Shocks!H97)+Shocks!I97 + Extrapolation!T100, 5), ROUND(B98*(1+Shocks!L97)+Shocks!M97 + Extrapolation!T100,5)) -> 0.03325 | L98: =IF(Extrapolation!FSP >= 15, ROUND(B98*(1-Shocks!F97)-Shocks!G97+Extrapolation!T100, 5), ROUND(B98*(1-Shocks!J97)-Shocks!K97+Extrapolation!T100, 5)) -> 0.02178
A99: 87 | B99: 0.0274249429 | C99: =ROUND(B99*(1+Shocks!H98)+Shocks!I98,5) -> 0.03297 | D99: =MAX(ROUND(B99*(1-Shocks!F98)-Shocks!G98,5), -1.25%) -> 0.02159 | E99: =IF(Extrapolation!FSP >= 15, ROUND(B99*(1+Shocks!H98)+Shocks!I98,5), ROUND(B99*(1+Shocks!L98)+Shocks!M98,5)) -> 0.03297 | F99: =IF(Extrapolation!FSP >= 15, ROUND(B99*(1-Shocks!F98)-Shocks!G98,5), ROUND(B99*(1-Shocks!J98)-Shocks!K98,5)) -> 0.02159 | H99: 0.02783738591 | I99: =ROUND(B99*(1+Shocks!H98)+Shocks!I98,5)+Extrapolation!T101 -> 0.03338244301 | J99: =MAX(ROUND(B99*(1-Shocks!F98)-Shocks!G98,5)+Extrapolation!T101, -1.25%) -> 0.02200244301 | K99: =IF(Extrapolation!FSP >= 15, ROUND(B99*(1+Shocks!H98)+Shocks!I98 + Extrapolation!T101, 5), ROUND(B99*(1+Shocks!L98)+Shocks!M98 + Extrapolation!T101,5)) -> 0.03338 | L99: =IF(Extrapolation!FSP >= 15, ROUND(B99*(1-Shocks!F98)-Shocks!G98+Extrapolation!T101, 5), ROUND(B99*(1-Shocks!J98)-Shocks!K98+Extrapolation!T101, 5)) -> 0.022
A100: 88 | B100: 0.0275553237 | C100: =ROUND(B100*(1+Shocks!H99)+Shocks!I99,5) -> 0.03311 | D100: =MAX(ROUND(B100*(1-Shocks!F99)-Shocks!G99,5), -1.25%) -> 0.02181 | E100: =IF(Extrapolation!FSP >= 15, ROUND(B100*(1+Shocks!H99)+Shocks!I99,5), ROUND(B100*(1+Shocks!L99)+Shocks!M99,5)) -> 0.03311 | F100: =IF(Extrapolation!FSP >= 15, ROUND(B100*(1-Shocks!F99)-Shocks!G99,5), ROUND(B100*(1-Shocks!J99)-Shocks!K99,5)) -> 0.02181 | H100: 0.02796313744 | I100: =ROUND(B100*(1+Shocks!H99)+Shocks!I99,5)+Extrapolation!T102 -> 0.03351781374 | J100: =MAX(ROUND(B100*(1-Shocks!F99)-Shocks!G99,5)+Extrapolation!T102, -1.25%) -> 0.02221781374 | K100: =IF(Extrapolation!FSP >= 15, ROUND(B100*(1+Shocks!H99)+Shocks!I99 + Extrapolation!T102, 5), ROUND(B100*(1+Shocks!L99)+Shocks!M99 + Extrapolation!T102,5)) -> 0.03351 | L100: =IF(Extrapolation!FSP >= 15, ROUND(B100*(1-Shocks!F99)-Shocks!G99+Extrapolation!T102, 5), ROUND(B100*(1-Shocks!J99)-Shocks!K99+Extrapolation!T102, 5)) -> 0.02222
A101: 89 | B101: 0.02768283075 | C101: =ROUND(B101*(1+Shocks!H100)+Shocks!I100,5) -> 0.03324 | D101: =MAX(ROUND(B101*(1-Shocks!F100)-Shocks!G100,5), -1.25%) -> 0.02203 | E101: =IF(Extrapolation!FSP >= 15, ROUND(B101*(1+Shocks!H100)+Shocks!I100,5), ROUND(B101*(1+Shocks!L100)+Shocks!M100,5)) -> 0.03324 | F101: =IF(Extrapolation!FSP >= 15, ROUND(B101*(1-Shocks!F100)-Shocks!G100,5), ROUND(B101*(1-Shocks!J100)-Shocks!K100,5)) -> 0.02203 | H101: 0.02808611751 | I101: =ROUND(B101*(1+Shocks!H100)+Shocks!I100,5)+Extrapolation!T103 -> 0.03364328676 | J101: =MAX(ROUND(B101*(1-Shocks!F100)-Shocks!G100,5)+Extrapolation!T103, -1.25%) -> 0.02243328676 | K101: =IF(Extrapolation!FSP >= 15, ROUND(B101*(1+Shocks!H100)+Shocks!I100 + Extrapolation!T103, 5), ROUND(B101*(1+Shocks!L100)+Shocks!M100 + Extrapolation!T103,5)) -> 0.03364 | L101: =IF(Extrapolation!FSP >= 15, ROUND(B101*(1-Shocks!F100)-Shocks!G100+Extrapolation!T103, 5), ROUND(B101*(1-Shocks!J100)-Shocks!K100+Extrapolation!T103, 5)) -> 0.02243
A102: 90 | B102: 0.02780755555 | C102: =ROUND(B102*(1+Shocks!H101)+Shocks!I101,5) -> 0.03337 | D102: =MAX(ROUND(B102*(1-Shocks!F101)-Shocks!G101,5), -1.25%) -> 0.02225 | E102: =IF(Extrapolation!FSP >= 15, ROUND(B102*(1+Shocks!H101)+Shocks!I101,5), ROUND(B102*(1+Shocks!L101)+Shocks!M101,5)) -> 0.03337 | F102: =IF(Extrapolation!FSP >= 15, ROUND(B102*(1-Shocks!F101)-Shocks!G101,5), ROUND(B102*(1-Shocks!J101)-Shocks!K101,5)) -> 0.02225 | H102: 0.0282064143 | I102: =ROUND(B102*(1+Shocks!H101)+Shocks!I101,5)+Extrapolation!T104 -> 0.03376885875 | J102: =MAX(ROUND(B102*(1-Shocks!F101)-Shocks!G101,5)+Extrapolation!T104, -1.25%) -> 0.02264885875 | K102: =IF(Extrapolation!FSP >= 15, ROUND(B102*(1+Shocks!H101)+Shocks!I101 + Extrapolation!T104, 5), ROUND(B102*(1+Shocks!L101)+Shocks!M101 + Extrapolation!T104,5)) -> 0.03377 | L102: =IF(Extrapolation!FSP >= 15, ROUND(B102*(1-Shocks!F101)-Shocks!G101+Extrapolation!T104, 5), ROUND(B102*(1-Shocks!J101)-Shocks!K101+Extrapolation!T104, 5)) -> 0.02264
A103: 91 | B103: 0.02792958597 | C103: =ROUND(B103*(1+Shocks!H102)+Shocks!I102,5) -> 0.03352 | D103: =MAX(ROUND(B103*(1-Shocks!F102)-Shocks!G102,5), -1.25%) -> 0.02234 | E103: =IF(Extrapolation!FSP >= 15, ROUND(B103*(1+Shocks!H102)+Shocks!I102,5), ROUND(B103*(1+Shocks!L102)+Shocks!M102,5)) -> 0.03352 | F103: =IF(Extrapolation!FSP >= 15, ROUND(B103*(1-Shocks!F102)-Shocks!G102,5), ROUND(B103*(1-Shocks!J102)-Shocks!K102,5)) -> 0.02234 | H103: 0.0283241125 | I103: =ROUND(B103*(1+Shocks!H102)+Shocks!I102,5)+Extrapolation!T105 -> 0.03391452653 | J103: =MAX(ROUND(B103*(1-Shocks!F102)-Shocks!G102,5)+Extrapolation!T105, -1.25%) -> 0.02273452653 | K103: =IF(Extrapolation!FSP >= 15, ROUND(B103*(1+Shocks!H102)+Shocks!I102 + Extrapolation!T105, 5), ROUND(B103*(1+Shocks!L102)+Shocks!M102 + Extrapolation!T105,5)) -> 0.03391 | L103: =IF(Extrapolation!FSP >= 15, ROUND(B103*(1-Shocks!F102)-Shocks!G102+Extrapolation!T105, 5), ROUND(B103*(1-Shocks!J102)-Shocks!K102+Extrapolation!T105, 5)) -> 0.02274
A104: 92 | B104: 0.02804900637 | C104: =ROUND(B104*(1+Shocks!H103)+Shocks!I103,5) -> 0.03366 | D104: =MAX(ROUND(B104*(1-Shocks!F103)-Shocks!G103,5), -1.25%) -> 0.02244 | E104: =IF(Extrapolation!FSP >= 15, ROUND(B104*(1+Shocks!H103)+Shocks!I103,5), ROUND(B104*(1+Shocks!L103)+Shocks!M103,5)) -> 0.03366 | F104: =IF(Extrapolation!FSP >= 15, ROUND(B104*(1-Shocks!F103)-Shocks!G103,5), ROUND(B104*(1-Shocks!J103)-Shocks!K103,5)) -> 0.02244 | H104: 0.02843929343 | I104: =ROUND(B104*(1+Shocks!H103)+Shocks!I103,5)+Extrapolation!T106 -> 0.03405028706 | J104: =MAX(ROUND(B104*(1-Shocks!F103)-Shocks!G103,5)+Extrapolation!T106, -1.25%) -> 0.02283028706 | K104: =IF(Extrapolation!FSP >= 15, ROUND(B104*(1+Shocks!H103)+Shocks!I103 + Extrapolation!T106, 5), ROUND(B104*(1+Shocks!L103)+Shocks!M103 + Extrapolation!T106,5)) -> 0.03405 | L104: =IF(Extrapolation!FSP >= 15, ROUND(B104*(1-Shocks!F103)-Shocks!G103+Extrapolation!T106, 5), ROUND(B104*(1-Shocks!J103)-Shocks!K103+Extrapolation!T106, 5)) -> 0.02283
A105: 93 | B105: 0.02816589779 | C105: =ROUND(B105*(1+Shocks!H104)+Shocks!I104,5) -> 0.0338 | D105: =MAX(ROUND(B105*(1-Shocks!F104)-Shocks!G104,5), -1.25%) -> 0.02253 | E105: =IF(Extrapolation!FSP >= 15, ROUND(B105*(1+Shocks!H104)+Shocks!I104,5), ROUND(B105*(1+Shocks!L104)+Shocks!M104,5)) -> 0.0338 | F105: =IF(Extrapolation!FSP >= 15, ROUND(B105*(1-Shocks!F104)-Shocks!G104,5), ROUND(B105*(1-Shocks!J104)-Shocks!K104,5)) -> 0.02253 | H105: 0.02855203522 | I105: =ROUND(B105*(1+Shocks!H104)+Shocks!I104,5)+Extrapolation!T107 -> 0.03418613742 | J105: =MAX(ROUND(B105*(1-Shocks!F104)-Shocks!G104,5)+Extrapolation!T107, -1.25%) -> 0.02291613742 | K105: =IF(Extrapolation!FSP >= 15, ROUND(B105*(1+Shocks!H104)+Shocks!I104 + Extrapolation!T107, 5), ROUND(B105*(1+Shocks!L104)+Shocks!M104 + Extrapolation!T107,5)) -> 0.03419 | L105: =IF(Extrapolation!FSP >= 15, ROUND(B105*(1-Shocks!F104)-Shocks!G104+Extrapolation!T107, 5), ROUND(B105*(1-Shocks!J104)-Shocks!K104+Extrapolation!T107, 5)) -> 0.02292
A106: 94 | B106: 0.02828033812 | C106: =ROUND(B106*(1+Shocks!H105)+Shocks!I105,5) -> 0.03394 | D106: =MAX(ROUND(B106*(1-Shocks!F105)-Shocks!G105,5), -1.25%) -> 0.02262 | E106: =IF(Extrapolation!FSP >= 15, ROUND(B106*(1+Shocks!H105)+Shocks!I105,5), ROUND(B106*(1+Shocks!L105)+Shocks!M105,5)) -> 0.03394 | F106: =IF(Extrapolation!FSP >= 15, ROUND(B106*(1-Shocks!F105)-Shocks!G105,5), ROUND(B106*(1-Shocks!J105)-Shocks!K105,5)) -> 0.02262 | H106: 0.02866241293 | I106: =ROUND(B106*(1+Shocks!H105)+Shocks!I105,5)+Extrapolation!T108 -> 0.03432207482 | J106: =MAX(ROUND(B106*(1-Shocks!F105)-Shocks!G105,5)+Extrapolation!T108, -1.25%) -> 0.02300207482 | K106: =IF(Extrapolation!FSP >= 15, ROUND(B106*(1+Shocks!H105)+Shocks!I105 + Extrapolation!T108, 5), ROUND(B106*(1+Shocks!L105)+Shocks!M105 + Extrapolation!T108,5)) -> 0.03432 | L106: =IF(Extrapolation!FSP >= 15, ROUND(B106*(1-Shocks!F105)-Shocks!G105+Extrapolation!T108, 5), ROUND(B106*(1-Shocks!J105)-Shocks!K105+Extrapolation!T108, 5)) -> 0.02301
A107: 95 | B107: 0.02839240218 | C107: =ROUND(B107*(1+Shocks!H106)+Shocks!I106,5) -> 0.03407 | D107: =MAX(ROUND(B107*(1-Shocks!F106)-Shocks!G106,5), -1.25%) -> 0.02271 | E107: =IF(Extrapolation!FSP >= 15, ROUND(B107*(1+Shocks!H106)+Shocks!I106,5), ROUND(B107*(1+Shocks!L106)+Shocks!M106,5)) -> 0.03407 | F107: =IF(Extrapolation!FSP >= 15, ROUND(B107*(1-Shocks!F106)-Shocks!G106,5), ROUND(B107*(1-Shocks!J106)-Shocks!K106,5)) -> 0.02271 | H107: 0.02877049873 | I107: =ROUND(B107*(1+Shocks!H106)+Shocks!I106,5)+Extrapolation!T109 -> 0.03444809655 | J107: =MAX(ROUND(B107*(1-Shocks!F106)-Shocks!G106,5)+Extrapolation!T109, -1.25%) -> 0.02308809655 | K107: =IF(Extrapolation!FSP >= 15, ROUND(B107*(1+Shocks!H106)+Shocks!I106 + Extrapolation!T109, 5), ROUND(B107*(1+Shocks!L106)+Shocks!M106 + Extrapolation!T109,5)) -> 0.03445 | L107: =IF(Extrapolation!FSP >= 15, ROUND(B107*(1-Shocks!F106)-Shocks!G106+Extrapolation!T109, 5), ROUND(B107*(1-Shocks!J106)-Shocks!K106+Extrapolation!T109, 5)) -> 0.02309
A108: 96 | B108: 0.02850216191 | C108: =ROUND(B108*(1+Shocks!H107)+Shocks!I107,5) -> 0.0342 | D108: =MAX(ROUND(B108*(1-Shocks!F107)-Shocks!G107,5), -1.25%) -> 0.0228 | E108: =IF(Extrapolation!FSP >= 15, ROUND(B108*(1+Shocks!H107)+Shocks!I107,5), ROUND(B108*(1+Shocks!L107)+Shocks!M107,5)) -> 0.0342 | F108: =IF(Extrapolation!FSP >= 15, ROUND(B108*(1-Shocks!F107)-Shocks!G107,5), ROUND(B108*(1-Shocks!J107)-Shocks!K107,5)) -> 0.0228 | H108: 0.02887636197 | I108: =ROUND(B108*(1+Shocks!H107)+Shocks!I107,5)+Extrapolation!T110 -> 0.03457420006 | J108: =MAX(ROUND(B108*(1-Shocks!F107)-Shocks!G107,5)+Extrapolation!T110, -1.25%) -> 0.02317420006 | K108: =IF(Extrapolation!FSP >= 15, ROUND(B108*(1+Shocks!H107)+Shocks!I107 + Extrapolation!T110, 5), ROUND(B108*(1+Shocks!L107)+Shocks!M107 + Extrapolation!T110,5)) -> 0.03458 | L108: =IF(Extrapolation!FSP >= 15, ROUND(B108*(1-Shocks!F107)-Shocks!G107+Extrapolation!T110, 5), ROUND(B108*(1-Shocks!J107)-Shocks!K107+Extrapolation!T110, 5)) -> 0.02318
A109: 97 | B109: 0.02860968649 | C109: =ROUND(B109*(1+Shocks!H108)+Shocks!I108,5) -> 0.03433 | D109: =MAX(ROUND(B109*(1-Shocks!F108)-Shocks!G108,5), -1.25%) -> 0.02289 | E109: =IF(Extrapolation!FSP >= 15, ROUND(B109*(1+Shocks!H108)+Shocks!I108,5), ROUND(B109*(1+Shocks!L108)+Shocks!M108,5)) -> 0.03433 | F109: =IF(Extrapolation!FSP >= 15, ROUND(B109*(1-Shocks!F108)-Shocks!G108,5), ROUND(B109*(1-Shocks!J108)-Shocks!K108,5)) -> 0.02289 | H109: 0.02898006933 | I109: =ROUND(B109*(1+Shocks!H108)+Shocks!I108,5)+Extrapolation!T111 -> 0.03470038284 | J109: =MAX(ROUND(B109*(1-Shocks!F108)-Shocks!G108,5)+Extrapolation!T111, -1.25%) -> 0.02326038284 | K109: =IF(Extrapolation!FSP >= 15, ROUND(B109*(1+Shocks!H108)+Shocks!I108 + Extrapolation!T111, 5), ROUND(B109*(1+Shocks!L108)+Shocks!M108 + Extrapolation!T111,5)) -> 0.0347 | L109: =IF(Extrapolation!FSP >= 15, ROUND(B109*(1-Shocks!F108)-Shocks!G108+Extrapolation!T111, 5), ROUND(B109*(1-Shocks!J108)-Shocks!K108+Extrapolation!T111, 5)) -> 0.02326
A110: 98 | B110: 0.02871504243 | C110: =ROUND(B110*(1+Shocks!H109)+Shocks!I109,5) -> 0.03446 | D110: =MAX(ROUND(B110*(1-Shocks!F109)-Shocks!G109,5), -1.25%) -> 0.02297 | E110: =IF(Extrapolation!FSP >= 15, ROUND(B110*(1+Shocks!H109)+Shocks!I109,5), ROUND(B110*(1+Shocks!L109)+Shocks!M109,5)) -> 0.03446 | F110: =IF(Extrapolation!FSP >= 15, ROUND(B110*(1-Shocks!F109)-Shocks!G109,5), ROUND(B110*(1-Shocks!J109)-Shocks!K109,5)) -> 0.02297 | H110: 0.02908168497 | I110: =ROUND(B110*(1+Shocks!H109)+Shocks!I109,5)+Extrapolation!T112 -> 0.03482664254 | J110: =MAX(ROUND(B110*(1-Shocks!F109)-Shocks!G109,5)+Extrapolation!T112, -1.25%) -> 0.02333664254 | K110: =IF(Extrapolation!FSP >= 15, ROUND(B110*(1+Shocks!H109)+Shocks!I109 + Extrapolation!T112, 5), ROUND(B110*(1+Shocks!L109)+Shocks!M109 + Extrapolation!T112,5)) -> 0.03482 | L110: =IF(Extrapolation!FSP >= 15, ROUND(B110*(1-Shocks!F109)-Shocks!G109+Extrapolation!T112, 5), ROUND(B110*(1-Shocks!J109)-Shocks!K109+Extrapolation!T112, 5)) -> 0.02334
A111: 99 | B111: 0.02881829373 | C111: =ROUND(B111*(1+Shocks!H110)+Shocks!I110,5) -> 0.03458 | D111: =MAX(ROUND(B111*(1-Shocks!F110)-Shocks!G110,5), -1.25%) -> 0.02305 | E111: =IF(Extrapolation!FSP >= 15, ROUND(B111*(1+Shocks!H110)+Shocks!I110,5), ROUND(B111*(1+Shocks!L110)+Shocks!M110,5)) -> 0.03458 | F111: =IF(Extrapolation!FSP >= 15, ROUND(B111*(1-Shocks!F110)-Shocks!G110,5), ROUND(B111*(1-Shocks!J110)-Shocks!K110,5)) -> 0.02305 | H111: 0.0291812706 | I111: =ROUND(B111*(1+Shocks!H110)+Shocks!I110,5)+Extrapolation!T113 -> 0.03494297686 | J111: =MAX(ROUND(B111*(1-Shocks!F110)-Shocks!G110,5)+Extrapolation!T113, -1.25%) -> 0.02341297686 | K111: =IF(Extrapolation!FSP >= 15, ROUND(B111*(1+Shocks!H110)+Shocks!I110 + Extrapolation!T113, 5), ROUND(B111*(1+Shocks!L110)+Shocks!M110 + Extrapolation!T113,5)) -> 0.03494 | L111: =IF(Extrapolation!FSP >= 15, ROUND(B111*(1-Shocks!F110)-Shocks!G110+Extrapolation!T113, 5), ROUND(B111*(1-Shocks!J110)-Shocks!K110+Extrapolation!T113, 5)) -> 0.02342
A112: 100 | B112: 0.02891950198 | C112: =ROUND(B112*(1+Shocks!H111)+Shocks!I111,5) -> 0.0347 | D112: =MAX(ROUND(B112*(1-Shocks!F111)-Shocks!G111,5), -1.25%) -> 0.02314 | E112: =IF(Extrapolation!FSP >= 15, ROUND(B112*(1+Shocks!H111)+Shocks!I111,5), ROUND(B112*(1+Shocks!L111)+Shocks!M111,5)) -> 0.0347 | F112: =IF(Extrapolation!FSP >= 15, ROUND(B112*(1-Shocks!F111)-Shocks!G111,5), ROUND(B112*(1-Shocks!J111)-Shocks!K111,5)) -> 0.02314 | H112: 0.02927888559 | I112: =ROUND(B112*(1+Shocks!H111)+Shocks!I111,5)+Extrapolation!T114 -> 0.03505938361 | J112: =MAX(ROUND(B112*(1-Shocks!F111)-Shocks!G111,5)+Extrapolation!T114, -1.25%) -> 0.02349938361 | K112: =IF(Extrapolation!FSP >= 15, ROUND(B112*(1+Shocks!H111)+Shocks!I111 + Extrapolation!T114, 5), ROUND(B112*(1+Shocks!L111)+Shocks!M111 + Extrapolation!T114,5)) -> 0.03506 | L112: =IF(Extrapolation!FSP >= 15, ROUND(B112*(1-Shocks!F111)-Shocks!G111+Extrapolation!T114, 5), ROUND(B112*(1-Shocks!J111)-Shocks!K111+Extrapolation!T114, 5)) -> 0.02349
A113: 101 | B113: 0.02901872644 | C113: =ROUND(B113*(1+Shocks!H112)+Shocks!I112,5) -> 0.03482 | D113: =MAX(ROUND(B113*(1-Shocks!F112)-Shocks!G112,5), -1.25%) -> 0.02321 | E113: =IF(Extrapolation!FSP >= 15, ROUND(B113*(1+Shocks!H112)+Shocks!I112,5), ROUND(B113*(1+Shocks!L112)+Shocks!M112,5)) -> 0.03482 | F113: =IF(Extrapolation!FSP >= 15, ROUND(B113*(1-Shocks!F112)-Shocks!G112,5), ROUND(B113*(1-Shocks!J112)-Shocks!K112,5)) -> 0.02321 | H113: 0.0293745871 | I113: =ROUND(B113*(1+Shocks!H112)+Shocks!I112,5)+Extrapolation!T115 -> 0.03517586066 | J113: =MAX(ROUND(B113*(1-Shocks!F112)-Shocks!G112,5)+Extrapolation!T115, -1.25%) -> 0.02356586066 | K113: =IF(Extrapolation!FSP >= 15, ROUND(B113*(1+Shocks!H112)+Shocks!I112 + Extrapolation!T115, 5), ROUND(B113*(1+Shocks!L112)+Shocks!M112 + Extrapolation!T115,5)) -> 0.03518 | L113: =IF(Extrapolation!FSP >= 15, ROUND(B113*(1-Shocks!F112)-Shocks!G112+Extrapolation!T115, 5), ROUND(B113*(1-Shocks!J112)-Shocks!K112+Extrapolation!T115, 5)) -> 0.02357
A114: 102 | B114: 0.02911602418 | C114: =ROUND(B114*(1+Shocks!H113)+Shocks!I113,5) -> 0.03494 | D114: =MAX(ROUND(B114*(1-Shocks!F113)-Shocks!G113,5), -1.25%) -> 0.02329 | E114: =IF(Extrapolation!FSP >= 15, ROUND(B114*(1+Shocks!H113)+Shocks!I113,5), ROUND(B114*(1+Shocks!L113)+Shocks!M113,5)) -> 0.03494 | F114: =IF(Extrapolation!FSP >= 15, ROUND(B114*(1-Shocks!F113)-Shocks!G113,5), ROUND(B114*(1-Shocks!J113)-Shocks!K113,5)) -> 0.02329 | H114: 0.02946843018 | I114: =ROUND(B114*(1+Shocks!H113)+Shocks!I113,5)+Extrapolation!T116 -> 0.03529240599 | J114: =MAX(ROUND(B114*(1-Shocks!F113)-Shocks!G113,5)+Extrapolation!T116, -1.25%) -> 0.02364240599 | K114: =IF(Extrapolation!FSP >= 15, ROUND(B114*(1+Shocks!H113)+Shocks!I113 + Extrapolation!T116, 5), ROUND(B114*(1+Shocks!L113)+Shocks!M113 + Extrapolation!T116,5)) -> 0.03529 | L114: =IF(Extrapolation!FSP >= 15, ROUND(B114*(1-Shocks!F113)-Shocks!G113+Extrapolation!T116, 5), ROUND(B114*(1-Shocks!J113)-Shocks!K113+Extrapolation!T116, 5)) -> 0.02365
A115: 103 | B115: 0.02921145015 | C115: =ROUND(B115*(1+Shocks!H114)+Shocks!I114,5) -> 0.03505 | D115: =MAX(ROUND(B115*(1-Shocks!F114)-Shocks!G114,5), -1.25%) -> 0.02337 | E115: =IF(Extrapolation!FSP >= 15, ROUND(B115*(1+Shocks!H114)+Shocks!I114,5), ROUND(B115*(1+Shocks!L114)+Shocks!M114,5)) -> 0.03505 | F115: =IF(Extrapolation!FSP >= 15, ROUND(B115*(1-Shocks!F114)-Shocks!G114,5), ROUND(B115*(1-Shocks!J114)-Shocks!K114,5)) -> 0.02337 | H115: 0.0295604678 | I115: =ROUND(B115*(1+Shocks!H114)+Shocks!I114,5)+Extrapolation!T117 -> 0.03539901765 | J115: =MAX(ROUND(B115*(1-Shocks!F114)-Shocks!G114,5)+Extrapolation!T117, -1.25%) -> 0.02371901765 | K115: =IF(Extrapolation!FSP >= 15, ROUND(B115*(1+Shocks!H114)+Shocks!I114 + Extrapolation!T117, 5), ROUND(B115*(1+Shocks!L114)+Shocks!M114 + Extrapolation!T117,5)) -> 0.0354 | L115: =IF(Extrapolation!FSP >= 15, ROUND(B115*(1-Shocks!F114)-Shocks!G114+Extrapolation!T117, 5), ROUND(B115*(1-Shocks!J114)-Shocks!K114+Extrapolation!T117, 5)) -> 0.02372
A116: 104 | B116: 0.02930505728 | C116: =ROUND(B116*(1+Shocks!H115)+Shocks!I115,5) -> 0.03517 | D116: =MAX(ROUND(B116*(1-Shocks!F115)-Shocks!G115,5), -1.25%) -> 0.02344 | E116: =IF(Extrapolation!FSP >= 15, ROUND(B116*(1+Shocks!H115)+Shocks!I115,5), ROUND(B116*(1+Shocks!L115)+Shocks!M115,5)) -> 0.03517 | F116: =IF(Extrapolation!FSP >= 15, ROUND(B116*(1-Shocks!F115)-Shocks!G115,5), ROUND(B116*(1-Shocks!J115)-Shocks!K115,5)) -> 0.02344 | H116: 0.02965075102 | I116: =ROUND(B116*(1+Shocks!H115)+Shocks!I115,5)+Extrapolation!T118 -> 0.03551569374 | J116: =MAX(ROUND(B116*(1-Shocks!F115)-Shocks!G115,5)+Extrapolation!T118, -1.25%) -> 0.02378569374 | K116: =IF(Extrapolation!FSP >= 15, ROUND(B116*(1+Shocks!H115)+Shocks!I115 + Extrapolation!T118, 5), ROUND(B116*(1+Shocks!L115)+Shocks!M115 + Extrapolation!T118,5)) -> 0.03551 | L116: =IF(Extrapolation!FSP >= 15, ROUND(B116*(1-Shocks!F115)-Shocks!G115+Extrapolation!T118, 5), ROUND(B116*(1-Shocks!J115)-Shocks!K115+Extrapolation!T118, 5)) -> 0.02379
A117: 105 | B117: 0.02939689657 | C117: =ROUND(B117*(1+Shocks!H116)+Shocks!I116,5) -> 0.03528 | D117: =MAX(ROUND(B117*(1-Shocks!F116)-Shocks!G116,5), -1.25%) -> 0.02352 | E117: =IF(Extrapolation!FSP >= 15, ROUND(B117*(1+Shocks!H116)+Shocks!I116,5), ROUND(B117*(1+Shocks!L116)+Shocks!M116,5)) -> 0.03528 | F117: =IF(Extrapolation!FSP >= 15, ROUND(B117*(1-Shocks!F116)-Shocks!G116,5), ROUND(B117*(1-Shocks!J116)-Shocks!K116,5)) -> 0.02352 | H117: 0.02973932904 | I117: =ROUND(B117*(1+Shocks!H116)+Shocks!I116,5)+Extrapolation!T119 -> 0.03562243246 | J117: =MAX(ROUND(B117*(1-Shocks!F116)-Shocks!G116,5)+Extrapolation!T119, -1.25%) -> 0.02386243246 | K117: =IF(Extrapolation!FSP >= 15, ROUND(B117*(1+Shocks!H116)+Shocks!I116 + Extrapolation!T119, 5), ROUND(B117*(1+Shocks!L116)+Shocks!M116 + Extrapolation!T119,5)) -> 0.03562 | L117: =IF(Extrapolation!FSP >= 15, ROUND(B117*(1-Shocks!F116)-Shocks!G116+Extrapolation!T119, 5), ROUND(B117*(1-Shocks!J116)-Shocks!K116+Extrapolation!T119, 5)) -> 0.02386
A118: 106 | B118: 0.02948701719 | C118: =ROUND(B118*(1+Shocks!H117)+Shocks!I117,5) -> 0.03538 | D118: =MAX(ROUND(B118*(1-Shocks!F117)-Shocks!G117,5), -1.25%) -> 0.02359 | E118: =IF(Extrapolation!FSP >= 15, ROUND(B118*(1+Shocks!H117)+Shocks!I117,5), ROUND(B118*(1+Shocks!L117)+Shocks!M117,5)) -> 0.03538 | F118: =IF(Extrapolation!FSP >= 15, ROUND(B118*(1-Shocks!F117)-Shocks!G117,5), ROUND(B118*(1-Shocks!J117)-Shocks!K117,5)) -> 0.02359 | H118: 0.02982624925 | I118: =ROUND(B118*(1+Shocks!H117)+Shocks!I117,5)+Extrapolation!T120 -> 0.03571923206 | J118: =MAX(ROUND(B118*(1-Shocks!F117)-Shocks!G117,5)+Extrapolation!T120, -1.25%) -> 0.02392923206 | K118: =IF(Extrapolation!FSP >= 15, ROUND(B118*(1+Shocks!H117)+Shocks!I117 + Extrapolation!T120, 5), ROUND(B118*(1+Shocks!L117)+Shocks!M117 + Extrapolation!T120,5)) -> 0.03572 | L118: =IF(Extrapolation!FSP >= 15, ROUND(B118*(1-Shocks!F117)-Shocks!G117+Extrapolation!T120, 5), ROUND(B118*(1-Shocks!J117)-Shocks!K117+Extrapolation!T120, 5)) -> 0.02393
A119: 107 | B119: 0.02957546651 | C119: =ROUND(B119*(1+Shocks!H118)+Shocks!I118,5) -> 0.03549 | D119: =MAX(ROUND(B119*(1-Shocks!F118)-Shocks!G118,5), -1.25%) -> 0.02366 | E119: =IF(Extrapolation!FSP >= 15, ROUND(B119*(1+Shocks!H118)+Shocks!I118,5), ROUND(B119*(1+Shocks!L118)+Shocks!M118,5)) -> 0.03549 | F119: =IF(Extrapolation!FSP >= 15, ROUND(B119*(1-Shocks!F118)-Shocks!G118,5), ROUND(B119*(1-Shocks!J118)-Shocks!K118,5)) -> 0.02366 | H119: 0.02991155736 | I119: =ROUND(B119*(1+Shocks!H118)+Shocks!I118,5)+Extrapolation!T121 -> 0.03582609086 | J119: =MAX(ROUND(B119*(1-Shocks!F118)-Shocks!G118,5)+Extrapolation!T121, -1.25%) -> 0.02399609086 | K119: =IF(Extrapolation!FSP >= 15, ROUND(B119*(1+Shocks!H118)+Shocks!I118 + Extrapolation!T121, 5), ROUND(B119*(1+Shocks!L118)+Shocks!M118 + Extrapolation!T121,5)) -> 0.03583 | L119: =IF(Extrapolation!FSP >= 15, ROUND(B119*(1-Shocks!F118)-Shocks!G118+Extrapolation!T121, 5), ROUND(B119*(1-Shocks!J118)-Shocks!K118+Extrapolation!T121, 5)) -> 0.024
A120: 108 | B120: 0.02966229022 | C120: =ROUND(B120*(1+Shocks!H119)+Shocks!I119,5) -> 0.03559 | D120: =MAX(ROUND(B120*(1-Shocks!F119)-Shocks!G119,5), -1.25%) -> 0.02373 | E120: =IF(Extrapolation!FSP >= 15, ROUND(B120*(1+Shocks!H119)+Shocks!I119,5), ROUND(B120*(1+Shocks!L119)+Shocks!M119,5)) -> 0.03559 | F120: =IF(Extrapolation!FSP >= 15, ROUND(B120*(1-Shocks!F119)-Shocks!G119,5), ROUND(B120*(1-Shocks!J119)-Shocks!K119,5)) -> 0.02373 | H120: 0.02999529745 | I120: =ROUND(B120*(1+Shocks!H119)+Shocks!I119,5)+Extrapolation!T122 -> 0.03592300723 | J120: =MAX(ROUND(B120*(1-Shocks!F119)-Shocks!G119,5)+Extrapolation!T122, -1.25%) -> 0.02406300723 | K120: =IF(Extrapolation!FSP >= 15, ROUND(B120*(1+Shocks!H119)+Shocks!I119 + Extrapolation!T122, 5), ROUND(B120*(1+Shocks!L119)+Shocks!M119 + Extrapolation!T122,5)) -> 0.03593 | L120: =IF(Extrapolation!FSP >= 15, ROUND(B120*(1-Shocks!F119)-Shocks!G119+Extrapolation!T122, 5), ROUND(B120*(1-Shocks!J119)-Shocks!K119+Extrapolation!T122, 5)) -> 0.02406
A121: 109 | B121: 0.02974753242 | C121: =ROUND(B121*(1+Shocks!H120)+Shocks!I120,5) -> 0.0357 | D121: =MAX(ROUND(B121*(1-Shocks!F120)-Shocks!G120,5), -1.25%) -> 0.0238 | E121: =IF(Extrapolation!FSP >= 15, ROUND(B121*(1+Shocks!H120)+Shocks!I120,5), ROUND(B121*(1+Shocks!L120)+Shocks!M120,5)) -> 0.0357 | F121: =IF(Extrapolation!FSP >= 15, ROUND(B121*(1-Shocks!F120)-Shocks!G120,5), ROUND(B121*(1-Shocks!J120)-Shocks!K120,5)) -> 0.0238 | H121: 0.03007751203 | I121: =ROUND(B121*(1+Shocks!H120)+Shocks!I120,5)+Extrapolation!T123 -> 0.03602997961 | J121: =MAX(ROUND(B121*(1-Shocks!F120)-Shocks!G120,5)+Extrapolation!T123, -1.25%) -> 0.02412997961 | K121: =IF(Extrapolation!FSP >= 15, ROUND(B121*(1+Shocks!H120)+Shocks!I120 + Extrapolation!T123, 5), ROUND(B121*(1+Shocks!L120)+Shocks!M120 + Extrapolation!T123,5)) -> 0.03603 | L121: =IF(Extrapolation!FSP >= 15, ROUND(B121*(1-Shocks!F120)-Shocks!G120+Extrapolation!T123, 5), ROUND(B121*(1-Shocks!J120)-Shocks!K120+Extrapolation!T123, 5)) -> 0.02413
A122: 110 | B122: 0.0298312356 | C122: =ROUND(B122*(1+Shocks!H121)+Shocks!I121,5) -> 0.0358 | D122: =MAX(ROUND(B122*(1-Shocks!F121)-Shocks!G121,5), -1.25%) -> 0.02386 | E122: =IF(Extrapolation!FSP >= 15, ROUND(B122*(1+Shocks!H121)+Shocks!I121,5), ROUND(B122*(1+Shocks!L121)+Shocks!M121,5)) -> 0.0358 | F122: =IF(Extrapolation!FSP >= 15, ROUND(B122*(1-Shocks!F121)-Shocks!G121,5), ROUND(B122*(1-Shocks!J121)-Shocks!K121,5)) -> 0.02386 | H122: 0.03015824211 | I122: =ROUND(B122*(1+Shocks!H121)+Shocks!I121,5)+Extrapolation!T124 -> 0.0361270065 | J122: =MAX(ROUND(B122*(1-Shocks!F121)-Shocks!G121,5)+Extrapolation!T124, -1.25%) -> 0.0241870065 | K122: =IF(Extrapolation!FSP >= 15, ROUND(B122*(1+Shocks!H121)+Shocks!I121 + Extrapolation!T124, 5), ROUND(B122*(1+Shocks!L121)+Shocks!M121 + Extrapolation!T124,5)) -> 0.03612 | L122: =IF(Extrapolation!FSP >= 15, ROUND(B122*(1-Shocks!F121)-Shocks!G121+Extrapolation!T124, 5), ROUND(B122*(1-Shocks!J121)-Shocks!K121+Extrapolation!T124, 5)) -> 0.02419
A123: 111 | B123: 0.02991344082 | C123: =ROUND(B123*(1+Shocks!H122)+Shocks!I122,5) -> 0.0359 | D123: =MAX(ROUND(B123*(1-Shocks!F122)-Shocks!G122,5), -1.25%) -> 0.02393 | E123: =IF(Extrapolation!FSP >= 15, ROUND(B123*(1+Shocks!H122)+Shocks!I122,5), ROUND(B123*(1+Shocks!L122)+Shocks!M122,5)) -> 0.0359 | F123: =IF(Extrapolation!FSP >= 15, ROUND(B123*(1-Shocks!F122)-Shocks!G122,5), ROUND(B123*(1-Shocks!J122)-Shocks!K122,5)) -> 0.02393 | H123: 0.03023752726 | I123: =ROUND(B123*(1+Shocks!H122)+Shocks!I122,5)+Extrapolation!T125 -> 0.03622408644 | J123: =MAX(ROUND(B123*(1-Shocks!F122)-Shocks!G122,5)+Extrapolation!T125, -1.25%) -> 0.02425408644 | K123: =IF(Extrapolation!FSP >= 15, ROUND(B123*(1+Shocks!H122)+Shocks!I122 + Extrapolation!T125, 5), ROUND(B123*(1+Shocks!L122)+Shocks!M122 + Extrapolation!T125,5)) -> 0.03622 | L123: =IF(Extrapolation!FSP >= 15, ROUND(B123*(1-Shocks!F122)-Shocks!G122+Extrapolation!T125, 5), ROUND(B123*(1-Shocks!J122)-Shocks!K122+Extrapolation!T125, 5)) -> 0.02425
A124: 112 | B124: 0.02999418769 | C124: =ROUND(B124*(1+Shocks!H123)+Shocks!I123,5) -> 0.03599 | D124: =MAX(ROUND(B124*(1-Shocks!F123)-Shocks!G123,5), -1.25%) -> 0.024 | E124: =IF(Extrapolation!FSP >= 15, ROUND(B124*(1+Shocks!H123)+Shocks!I123,5), ROUND(B124*(1+Shocks!L123)+Shocks!M123,5)) -> 0.03599 | F124: =IF(Extrapolation!FSP >= 15, ROUND(B124*(1-Shocks!F123)-Shocks!G123,5), ROUND(B124*(1-Shocks!J123)-Shocks!K123,5)) -> 0.024 | H124: 0.03031540571 | I124: =ROUND(B124*(1+Shocks!H123)+Shocks!I123,5)+Extrapolation!T126 -> 0.03631121803 | J124: =MAX(ROUND(B124*(1-Shocks!F123)-Shocks!G123,5)+Extrapolation!T126, -1.25%) -> 0.02432121803 | K124: =IF(Extrapolation!FSP >= 15, ROUND(B124*(1+Shocks!H123)+Shocks!I123 + Extrapolation!T126, 5), ROUND(B124*(1+Shocks!L123)+Shocks!M123 + Extrapolation!T126,5)) -> 0.03631 | L124: =IF(Extrapolation!FSP >= 15, ROUND(B124*(1-Shocks!F123)-Shocks!G123+Extrapolation!T126, 5), ROUND(B124*(1-Shocks!J123)-Shocks!K123+Extrapolation!T126, 5)) -> 0.02432
A125: 113 | B125: 0.03007351444 | C125: =ROUND(B125*(1+Shocks!H124)+Shocks!I124,5) -> 0.03609 | D125: =MAX(ROUND(B125*(1-Shocks!F124)-Shocks!G124,5), -1.25%) -> 0.02406 | E125: =IF(Extrapolation!FSP >= 15, ROUND(B125*(1+Shocks!H124)+Shocks!I124,5), ROUND(B125*(1+Shocks!L124)+Shocks!M124,5)) -> 0.03609 | F125: =IF(Extrapolation!FSP >= 15, ROUND(B125*(1-Shocks!F124)-Shocks!G124,5), ROUND(B125*(1-Shocks!J124)-Shocks!K124,5)) -> 0.02406 | H125: 0.03039191435 | I125: =ROUND(B125*(1+Shocks!H124)+Shocks!I124,5)+Extrapolation!T127 -> 0.0364083999 | J125: =MAX(ROUND(B125*(1-Shocks!F124)-Shocks!G124,5)+Extrapolation!T127, -1.25%) -> 0.0243783999 | K125: =IF(Extrapolation!FSP >= 15, ROUND(B125*(1+Shocks!H124)+Shocks!I124 + Extrapolation!T127, 5), ROUND(B125*(1+Shocks!L124)+Shocks!M124 + Extrapolation!T127,5)) -> 0.03641 | L125: =IF(Extrapolation!FSP >= 15, ROUND(B125*(1-Shocks!F124)-Shocks!G124+Extrapolation!T127, 5), ROUND(B125*(1-Shocks!J124)-Shocks!K124+Extrapolation!T127, 5)) -> 0.02438
A126: 114 | B126: 0.03015145803 | C126: =ROUND(B126*(1+Shocks!H125)+Shocks!I125,5) -> 0.03618 | D126: =MAX(ROUND(B126*(1-Shocks!F125)-Shocks!G125,5), -1.25%) -> 0.02412 | E126: =IF(Extrapolation!FSP >= 15, ROUND(B126*(1+Shocks!H125)+Shocks!I125,5), ROUND(B126*(1+Shocks!L125)+Shocks!M125,5)) -> 0.03618 | F126: =IF(Extrapolation!FSP >= 15, ROUND(B126*(1-Shocks!F125)-Shocks!G125,5), ROUND(B126*(1-Shocks!J125)-Shocks!K125,5)) -> 0.02412 | H126: 0.0304670888 | I126: =ROUND(B126*(1+Shocks!H125)+Shocks!I125,5)+Extrapolation!T128 -> 0.03649563077 | J126: =MAX(ROUND(B126*(1-Shocks!F125)-Shocks!G125,5)+Extrapolation!T128, -1.25%) -> 0.02443563077 | K126: =IF(Extrapolation!FSP >= 15, ROUND(B126*(1+Shocks!H125)+Shocks!I125 + Extrapolation!T128, 5), ROUND(B126*(1+Shocks!L125)+Shocks!M125 + Extrapolation!T128,5)) -> 0.0365 | L126: =IF(Extrapolation!FSP >= 15, ROUND(B126*(1-Shocks!F125)-Shocks!G125+Extrapolation!T128, 5), ROUND(B126*(1-Shocks!J125)-Shocks!K125+Extrapolation!T128, 5)) -> 0.02444
A127: 115 | B127: 0.03022805414 | C127: =ROUND(B127*(1+Shocks!H126)+Shocks!I126,5) -> 0.03627 | D127: =MAX(ROUND(B127*(1-Shocks!F126)-Shocks!G126,5), -1.25%) -> 0.02418 | E127: =IF(Extrapolation!FSP >= 15, ROUND(B127*(1+Shocks!H126)+Shocks!I126,5), ROUND(B127*(1+Shocks!L126)+Shocks!M126,5)) -> 0.03627 | F127: =IF(Extrapolation!FSP >= 15, ROUND(B127*(1-Shocks!F126)-Shocks!G126,5), ROUND(B127*(1-Shocks!J126)-Shocks!K126,5)) -> 0.02418 | H127: 0.03054096349 | I127: =ROUND(B127*(1+Shocks!H126)+Shocks!I126,5)+Extrapolation!T129 -> 0.03658290935 | J127: =MAX(ROUND(B127*(1-Shocks!F126)-Shocks!G126,5)+Extrapolation!T129, -1.25%) -> 0.02449290935 | K127: =IF(Extrapolation!FSP >= 15, ROUND(B127*(1+Shocks!H126)+Shocks!I126 + Extrapolation!T129, 5), ROUND(B127*(1+Shocks!L126)+Shocks!M126 + Extrapolation!T129,5)) -> 0.03659 | L127: =IF(Extrapolation!FSP >= 15, ROUND(B127*(1-Shocks!F126)-Shocks!G126+Extrapolation!T129, 5), ROUND(B127*(1-Shocks!J126)-Shocks!K126+Extrapolation!T129, 5)) -> 0.0245
A128: 116 | B128: 0.03030333725 | C128: =ROUND(B128*(1+Shocks!H127)+Shocks!I127,5) -> 0.03636 | D128: =MAX(ROUND(B128*(1-Shocks!F127)-Shocks!G127,5), -1.25%) -> 0.02424 | E128: =IF(Extrapolation!FSP >= 15, ROUND(B128*(1+Shocks!H127)+Shocks!I127,5), ROUND(B128*(1+Shocks!L127)+Shocks!M127,5)) -> 0.03636 | F128: =IF(Extrapolation!FSP >= 15, ROUND(B128*(1-Shocks!F127)-Shocks!G127,5), ROUND(B128*(1-Shocks!J127)-Shocks!K127,5)) -> 0.02424 | H128: 0.03061357168 | I128: =ROUND(B128*(1+Shocks!H127)+Shocks!I127,5)+Extrapolation!T130 -> 0.03667023443 | J128: =MAX(ROUND(B128*(1-Shocks!F127)-Shocks!G127,5)+Extrapolation!T130, -1.25%) -> 0.02455023443 | K128: =IF(Extrapolation!FSP >= 15, ROUND(B128*(1+Shocks!H127)+Shocks!I127 + Extrapolation!T130, 5), ROUND(B128*(1+Shocks!L127)+Shocks!M127 + Extrapolation!T130,5)) -> 0.03667 | L128: =IF(Extrapolation!FSP >= 15, ROUND(B128*(1-Shocks!F127)-Shocks!G127+Extrapolation!T130, 5), ROUND(B128*(1-Shocks!J127)-Shocks!K127+Extrapolation!T130, 5)) -> 0.02455
A129: 117 | B129: 0.03037734069 | C129: =ROUND(B129*(1+Shocks!H128)+Shocks!I128,5) -> 0.03645 | D129: =MAX(ROUND(B129*(1-Shocks!F128)-Shocks!G128,5), -1.25%) -> 0.0243 | E129: =IF(Extrapolation!FSP >= 15, ROUND(B129*(1+Shocks!H128)+Shocks!I128,5), ROUND(B129*(1+Shocks!L128)+Shocks!M128,5)) -> 0.03645 | F129: =IF(Extrapolation!FSP >= 15, ROUND(B129*(1-Shocks!F128)-Shocks!G128,5), ROUND(B129*(1-Shocks!J128)-Shocks!K128,5)) -> 0.0243 | H129: 0.03068494552 | I129: =ROUND(B129*(1+Shocks!H128)+Shocks!I128,5)+Extrapolation!T131 -> 0.03675760483 | J129: =MAX(ROUND(B129*(1-Shocks!F128)-Shocks!G128,5)+Extrapolation!T131, -1.25%) -> 0.02460760483 | K129: =IF(Extrapolation!FSP >= 15, ROUND(B129*(1+Shocks!H128)+Shocks!I128 + Extrapolation!T131, 5), ROUND(B129*(1+Shocks!L128)+Shocks!M128 + Extrapolation!T131,5)) -> 0.03676 | L129: =IF(Extrapolation!FSP >= 15, ROUND(B129*(1-Shocks!F128)-Shocks!G128+Extrapolation!T131, 5), ROUND(B129*(1-Shocks!J128)-Shocks!K128+Extrapolation!T131, 5)) -> 0.02461
A130: 118 | B130: 0.03045009669 | C130: =ROUND(B130*(1+Shocks!H129)+Shocks!I129,5) -> 0.03654 | D130: =MAX(ROUND(B130*(1-Shocks!F129)-Shocks!G129,5), -1.25%) -> 0.02436 | E130: =IF(Extrapolation!FSP >= 15, ROUND(B130*(1+Shocks!H129)+Shocks!I129,5), ROUND(B130*(1+Shocks!L129)+Shocks!M129,5)) -> 0.03654 | F130: =IF(Extrapolation!FSP >= 15, ROUND(B130*(1-Shocks!F129)-Shocks!G129,5), ROUND(B130*(1-Shocks!J129)-Shocks!K129,5)) -> 0.02436 | H130: 0.0307551161 | I130: =ROUND(B130*(1+Shocks!H129)+Shocks!I129,5)+Extrapolation!T132 -> 0.03684501941 | J130: =MAX(ROUND(B130*(1-Shocks!F129)-Shocks!G129,5)+Extrapolation!T132, -1.25%) -> 0.02466501941 | K130: =IF(Extrapolation!FSP >= 15, ROUND(B130*(1+Shocks!H129)+Shocks!I129 + Extrapolation!T132, 5), ROUND(B130*(1+Shocks!L129)+Shocks!M129 + Extrapolation!T132,5)) -> 0.03685 | L130: =IF(Extrapolation!FSP >= 15, ROUND(B130*(1-Shocks!F129)-Shocks!G129+Extrapolation!T132, 5), ROUND(B130*(1-Shocks!J129)-Shocks!K129+Extrapolation!T132, 5)) -> 0.02467
A131: 119 | B131: 0.03052163641 | C131: =ROUND(B131*(1+Shocks!H130)+Shocks!I130,5) -> 0.03663 | D131: =MAX(ROUND(B131*(1-Shocks!F130)-Shocks!G130,5), -1.25%) -> 0.02442 | E131: =IF(Extrapolation!FSP >= 15, ROUND(B131*(1+Shocks!H130)+Shocks!I130,5), ROUND(B131*(1+Shocks!L130)+Shocks!M130,5)) -> 0.03663 | F131: =IF(Extrapolation!FSP >= 15, ROUND(B131*(1-Shocks!F130)-Shocks!G130,5), ROUND(B131*(1-Shocks!J130)-Shocks!K130,5)) -> 0.02442 | H131: 0.03082411348 | I131: =ROUND(B131*(1+Shocks!H130)+Shocks!I130,5)+Extrapolation!T133 -> 0.03693247707 | J131: =MAX(ROUND(B131*(1-Shocks!F130)-Shocks!G130,5)+Extrapolation!T133, -1.25%) -> 0.02472247707 | K131: =IF(Extrapolation!FSP >= 15, ROUND(B131*(1+Shocks!H130)+Shocks!I130 + Extrapolation!T133, 5), ROUND(B131*(1+Shocks!L130)+Shocks!M130 + Extrapolation!T133,5)) -> 0.03693 | L131: =IF(Extrapolation!FSP >= 15, ROUND(B131*(1-Shocks!F130)-Shocks!G130+Extrapolation!T133, 5), ROUND(B131*(1-Shocks!J130)-Shocks!K130+Extrapolation!T133, 5)) -> 0.02472
A132: 120 | B132: 0.03059198999 | C132: =ROUND(B132*(1+Shocks!H131)+Shocks!I131,5) -> 0.03671 | D132: =MAX(ROUND(B132*(1-Shocks!F131)-Shocks!G131,5), -1.25%) -> 0.02447 | E132: =IF(Extrapolation!FSP >= 15, ROUND(B132*(1+Shocks!H131)+Shocks!I131,5), ROUND(B132*(1+Shocks!L131)+Shocks!M131,5)) -> 0.03671 | F132: =IF(Extrapolation!FSP >= 15, ROUND(B132*(1-Shocks!F131)-Shocks!G131,5), ROUND(B132*(1-Shocks!J131)-Shocks!K131,5)) -> 0.02447 | H132: 0.03089196673 | I132: =ROUND(B132*(1+Shocks!H131)+Shocks!I131,5)+Extrapolation!T134 -> 0.03700997674 | J132: =MAX(ROUND(B132*(1-Shocks!F131)-Shocks!G131,5)+Extrapolation!T134, -1.25%) -> 0.02476997674 | K132: =IF(Extrapolation!FSP >= 15, ROUND(B132*(1+Shocks!H131)+Shocks!I131 + Extrapolation!T134, 5), ROUND(B132*(1+Shocks!L131)+Shocks!M131 + Extrapolation!T134,5)) -> 0.03701 | L132: =IF(Extrapolation!FSP >= 15, ROUND(B132*(1-Shocks!F131)-Shocks!G131+Extrapolation!T134, 5), ROUND(B132*(1-Shocks!J131)-Shocks!K131+Extrapolation!T134, 5)) -> 0.02477
A133: 121 | B133: 0.03066118659 | C133: =ROUND(B133*(1+Shocks!H132)+Shocks!I132,5) -> 0.03679 | D133: =MAX(ROUND(B133*(1-Shocks!F132)-Shocks!G132,5), -1.25%) -> 0.02453 | E133: =IF(Extrapolation!FSP >= 15, ROUND(B133*(1+Shocks!H132)+Shocks!I132,5), ROUND(B133*(1+Shocks!L132)+Shocks!M132,5)) -> 0.03679 | F133: =IF(Extrapolation!FSP >= 15, ROUND(B133*(1-Shocks!F132)-Shocks!G132,5), ROUND(B133*(1-Shocks!J132)-Shocks!K132,5)) -> 0.02453 | H133: 0.03095870399 | I133: =ROUND(B133*(1+Shocks!H132)+Shocks!I132,5)+Extrapolation!T135 -> 0.03708751739 | J133: =MAX(ROUND(B133*(1-Shocks!F132)-Shocks!G132,5)+Extrapolation!T135, -1.25%) -> 0.02482751739 | K133: =IF(Extrapolation!FSP >= 15, ROUND(B133*(1+Shocks!H132)+Shocks!I132 + Extrapolation!T135, 5), ROUND(B133*(1+Shocks!L132)+Shocks!M132 + Extrapolation!T135,5)) -> 0.03709 | L133: =IF(Extrapolation!FSP >= 15, ROUND(B133*(1-Shocks!F132)-Shocks!G132+Extrapolation!T135, 5), ROUND(B133*(1-Shocks!J132)-Shocks!K132+Extrapolation!T135, 5)) -> 0.02483
A134: 122 | B134: 0.03072925444 | C134: =ROUND(B134*(1+Shocks!H133)+Shocks!I133,5) -> 0.03688 | D134: =MAX(ROUND(B134*(1-Shocks!F133)-Shocks!G133,5), -1.25%) -> 0.02458 | E134: =IF(Extrapolation!FSP >= 15, ROUND(B134*(1+Shocks!H133)+Shocks!I133,5), ROUND(B134*(1+Shocks!L133)+Shocks!M133,5)) -> 0.03688 | F134: =IF(Extrapolation!FSP >= 15, ROUND(B134*(1-Shocks!F133)-Shocks!G133,5), ROUND(B134*(1-Shocks!J133)-Shocks!K133,5)) -> 0.02458 | H134: 0.03102435247 | I134: =ROUND(B134*(1+Shocks!H133)+Shocks!I133,5)+Extrapolation!T136 -> 0.03717509803 | J134: =MAX(ROUND(B134*(1-Shocks!F133)-Shocks!G133,5)+Extrapolation!T136, -1.25%) -> 0.02487509803 | K134: =IF(Extrapolation!FSP >= 15, ROUND(B134*(1+Shocks!H133)+Shocks!I133 + Extrapolation!T136, 5), ROUND(B134*(1+Shocks!L133)+Shocks!M133 + Extrapolation!T136,5)) -> 0.03717 | L134: =IF(Extrapolation!FSP >= 15, ROUND(B134*(1-Shocks!F133)-Shocks!G133+Extrapolation!T136, 5), ROUND(B134*(1-Shocks!J133)-Shocks!K133+Extrapolation!T136, 5)) -> 0.02488
A135: 123 | B135: 0.03079622085 | C135: =ROUND(B135*(1+Shocks!H134)+Shocks!I134,5) -> 0.03696 | D135: =MAX(ROUND(B135*(1-Shocks!F134)-Shocks!G134,5), -1.25%) -> 0.02464 | E135: =IF(Extrapolation!FSP >= 15, ROUND(B135*(1+Shocks!H134)+Shocks!I134,5), ROUND(B135*(1+Shocks!L134)+Shocks!M134,5)) -> 0.03696 | F135: =IF(Extrapolation!FSP >= 15, ROUND(B135*(1-Shocks!F134)-Shocks!G134,5), ROUND(B135*(1-Shocks!J134)-Shocks!K134,5)) -> 0.02464 | H135: 0.03108893854 | I135: =ROUND(B135*(1+Shocks!H134)+Shocks!I134,5)+Extrapolation!T137 -> 0.03725271768 | J135: =MAX(ROUND(B135*(1-Shocks!F134)-Shocks!G134,5)+Extrapolation!T137, -1.25%) -> 0.02493271768 | K135: =IF(Extrapolation!FSP >= 15, ROUND(B135*(1+Shocks!H134)+Shocks!I134 + Extrapolation!T137, 5), ROUND(B135*(1+Shocks!L134)+Shocks!M134 + Extrapolation!T137,5)) -> 0.03725 | L135: =IF(Extrapolation!FSP >= 15, ROUND(B135*(1-Shocks!F134)-Shocks!G134+Extrapolation!T137, 5), ROUND(B135*(1-Shocks!J134)-Shocks!K134+Extrapolation!T137, 5)) -> 0.02493
A136: 124 | B136: 0.03086211228 | C136: =ROUND(B136*(1+Shocks!H135)+Shocks!I135,5) -> 0.03703 | D136: =MAX(ROUND(B136*(1-Shocks!F135)-Shocks!G135,5), -1.25%) -> 0.02469 | E136: =IF(Extrapolation!FSP >= 15, ROUND(B136*(1+Shocks!H135)+Shocks!I135,5), ROUND(B136*(1+Shocks!L135)+Shocks!M135,5)) -> 0.03703 | F136: =IF(Extrapolation!FSP >= 15, ROUND(B136*(1-Shocks!F135)-Shocks!G135,5), ROUND(B136*(1-Shocks!J135)-Shocks!K135,5)) -> 0.02469 | H136: 0.0311524877 | I136: =ROUND(B136*(1+Shocks!H135)+Shocks!I135,5)+Extrapolation!T138 -> 0.03732037541 | J136: =MAX(ROUND(B136*(1-Shocks!F135)-Shocks!G135,5)+Extrapolation!T138, -1.25%) -> 0.02498037541 | K136: =IF(Extrapolation!FSP >= 15, ROUND(B136*(1+Shocks!H135)+Shocks!I135 + Extrapolation!T138, 5), ROUND(B136*(1+Shocks!L135)+Shocks!M135 + Extrapolation!T138,5)) -> 0.03732 | L136: =IF(Extrapolation!FSP >= 15, ROUND(B136*(1-Shocks!F135)-Shocks!G135+Extrapolation!T138, 5), ROUND(B136*(1-Shocks!J135)-Shocks!K135+Extrapolation!T138, 5)) -> 0.02498
A137: 125 | B137: 0.03092695435 | C137: =ROUND(B137*(1+Shocks!H136)+Shocks!I136,5) -> 0.03711 | D137: =MAX(ROUND(B137*(1-Shocks!F136)-Shocks!G136,5), -1.25%) -> 0.02474 | E137: =IF(Extrapolation!FSP >= 15, ROUND(B137*(1+Shocks!H136)+Shocks!I136,5), ROUND(B137*(1+Shocks!L136)+Shocks!M136,5)) -> 0.03711 | F137: =IF(Extrapolation!FSP >= 15, ROUND(B137*(1-Shocks!F136)-Shocks!G136,5), ROUND(B137*(1-Shocks!J136)-Shocks!K136,5)) -> 0.02474 | H137: 0.03121502467 | I137: =ROUND(B137*(1+Shocks!H136)+Shocks!I136,5)+Extrapolation!T139 -> 0.03739807032 | J137: =MAX(ROUND(B137*(1-Shocks!F136)-Shocks!G136,5)+Extrapolation!T139, -1.25%) -> 0.02502807032 | K137: =IF(Extrapolation!FSP >= 15, ROUND(B137*(1+Shocks!H136)+Shocks!I136 + Extrapolation!T139, 5), ROUND(B137*(1+Shocks!L136)+Shocks!M136 + Extrapolation!T139,5)) -> 0.0374 | L137: =IF(Extrapolation!FSP >= 15, ROUND(B137*(1-Shocks!F136)-Shocks!G136+Extrapolation!T139, 5), ROUND(B137*(1-Shocks!J136)-Shocks!K136+Extrapolation!T139, 5)) -> 0.02503
A138: 126 | B138: 0.03099077185 | C138: =ROUND(B138*(1+Shocks!H137)+Shocks!I137,5) -> 0.03719 | D138: =MAX(ROUND(B138*(1-Shocks!F137)-Shocks!G137,5), -1.25%) -> 0.02479 | E138: =IF(Extrapolation!FSP >= 15, ROUND(B138*(1+Shocks!H137)+Shocks!I137,5), ROUND(B138*(1+Shocks!L137)+Shocks!M137,5)) -> 0.03719 | F138: =IF(Extrapolation!FSP >= 15, ROUND(B138*(1-Shocks!F137)-Shocks!G137,5), ROUND(B138*(1-Shocks!J137)-Shocks!K137,5)) -> 0.02479 | H138: 0.03127657339 | I138: =ROUND(B138*(1+Shocks!H137)+Shocks!I137,5)+Extrapolation!T140 -> 0.03747580153 | J138: =MAX(ROUND(B138*(1-Shocks!F137)-Shocks!G137,5)+Extrapolation!T140, -1.25%) -> 0.02507580153 | K138: =IF(Extrapolation!FSP >= 15, ROUND(B138*(1+Shocks!H137)+Shocks!I137 + Extrapolation!T140, 5), ROUND(B138*(1+Shocks!L137)+Shocks!M137 + Extrapolation!T140,5)) -> 0.03747 | L138: =IF(Extrapolation!FSP >= 15, ROUND(B138*(1-Shocks!F137)-Shocks!G137+Extrapolation!T140, 5), ROUND(B138*(1-Shocks!J137)-Shocks!K137+Extrapolation!T140, 5)) -> 0.02508
A139: 127 | B139: 0.03105358885 | C139: =ROUND(B139*(1+Shocks!H138)+Shocks!I138,5) -> 0.03726 | D139: =MAX(ROUND(B139*(1-Shocks!F138)-Shocks!G138,5), -1.25%) -> 0.02484 | E139: =IF(Extrapolation!FSP >= 15, ROUND(B139*(1+Shocks!H138)+Shocks!I138,5), ROUND(B139*(1+Shocks!L138)+Shocks!M138,5)) -> 0.03726 | F139: =IF(Extrapolation!FSP >= 15, ROUND(B139*(1-Shocks!F138)-Shocks!G138,5), ROUND(B139*(1-Shocks!J138)-Shocks!K138,5)) -> 0.02484 | H139: 0.03133715704 | I139: =ROUND(B139*(1+Shocks!H138)+Shocks!I138,5)+Extrapolation!T141 -> 0.03754356819 | J139: =MAX(ROUND(B139*(1-Shocks!F138)-Shocks!G138,5)+Extrapolation!T141, -1.25%) -> 0.02512356819 | K139: =IF(Extrapolation!FSP >= 15, ROUND(B139*(1+Shocks!H138)+Shocks!I138 + Extrapolation!T141, 5), ROUND(B139*(1+Shocks!L138)+Shocks!M138 + Extrapolation!T141,5)) -> 0.03755 | L139: =IF(Extrapolation!FSP >= 15, ROUND(B139*(1-Shocks!F138)-Shocks!G138+Extrapolation!T141, 5), ROUND(B139*(1-Shocks!J138)-Shocks!K138+Extrapolation!T141, 5)) -> 0.02513
A140: 128 | B140: 0.03111542864 | C140: =ROUND(B140*(1+Shocks!H139)+Shocks!I139,5) -> 0.03734 | D140: =MAX(ROUND(B140*(1-Shocks!F139)-Shocks!G139,5), -1.25%) -> 0.02489 | E140: =IF(Extrapolation!FSP >= 15, ROUND(B140*(1+Shocks!H139)+Shocks!I139,5), ROUND(B140*(1+Shocks!L139)+Shocks!M139,5)) -> 0.03734 | F140: =IF(Extrapolation!FSP >= 15, ROUND(B140*(1-Shocks!F139)-Shocks!G139,5), ROUND(B140*(1-Shocks!J139)-Shocks!K139,5)) -> 0.02489 | H140: 0.03139679811 | I140: =ROUND(B140*(1+Shocks!H139)+Shocks!I139,5)+Extrapolation!T142 -> 0.03762136947 | J140: =MAX(ROUND(B140*(1-Shocks!F139)-Shocks!G139,5)+Extrapolation!T142, -1.25%) -> 0.02517136947 | K140: =IF(Extrapolation!FSP >= 15, ROUND(B140*(1+Shocks!H139)+Shocks!I139 + Extrapolation!T142, 5), ROUND(B140*(1+Shocks!L139)+Shocks!M139 + Extrapolation!T142,5)) -> 0.03762 | L140: =IF(Extrapolation!FSP >= 15, ROUND(B140*(1-Shocks!F139)-Shocks!G139+Extrapolation!T142, 5), ROUND(B140*(1-Shocks!J139)-Shocks!K139+Extrapolation!T142, 5)) -> 0.02517
A141: 129 | B141: 0.0311763138 | C141: =ROUND(B141*(1+Shocks!H140)+Shocks!I140,5) -> 0.03741 | D141: =MAX(ROUND(B141*(1-Shocks!F140)-Shocks!G140,5), -1.25%) -> 0.02494 | E141: =IF(Extrapolation!FSP >= 15, ROUND(B141*(1+Shocks!H140)+Shocks!I140,5), ROUND(B141*(1+Shocks!L140)+Shocks!M140,5)) -> 0.03741 | F141: =IF(Extrapolation!FSP >= 15, ROUND(B141*(1-Shocks!F140)-Shocks!G140,5), ROUND(B141*(1-Shocks!J140)-Shocks!K140,5)) -> 0.02494 | H141: 0.03145551838 | I141: =ROUND(B141*(1+Shocks!H140)+Shocks!I140,5)+Extrapolation!T143 -> 0.03768920458 | J141: =MAX(ROUND(B141*(1-Shocks!F140)-Shocks!G140,5)+Extrapolation!T143, -1.25%) -> 0.02521920458 | K141: =IF(Extrapolation!FSP >= 15, ROUND(B141*(1+Shocks!H140)+Shocks!I140 + Extrapolation!T143, 5), ROUND(B141*(1+Shocks!L140)+Shocks!M140 + Extrapolation!T143,5)) -> 0.03769 | L141: =IF(Extrapolation!FSP >= 15, ROUND(B141*(1-Shocks!F140)-Shocks!G140+Extrapolation!T143, 5), ROUND(B141*(1-Shocks!J140)-Shocks!K140+Extrapolation!T143, 5)) -> 0.02522
A142: 130 | B142: 0.03123626624 | C142: =ROUND(B142*(1+Shocks!H141)+Shocks!I141,5) -> 0.03748 | D142: =MAX(ROUND(B142*(1-Shocks!F141)-Shocks!G141,5), -1.25%) -> 0.02499 | E142: =IF(Extrapolation!FSP >= 15, ROUND(B142*(1+Shocks!H141)+Shocks!I141,5), ROUND(B142*(1+Shocks!L141)+Shocks!M141,5)) -> 0.03748 | F142: =IF(Extrapolation!FSP >= 15, ROUND(B142*(1-Shocks!F141)-Shocks!G141,5), ROUND(B142*(1-Shocks!J141)-Shocks!K141,5)) -> 0.02499 | H142: 0.03151333898 | I142: =ROUND(B142*(1+Shocks!H141)+Shocks!I141,5)+Extrapolation!T144 -> 0.03775707274 | J142: =MAX(ROUND(B142*(1-Shocks!F141)-Shocks!G141,5)+Extrapolation!T144, -1.25%) -> 0.02526707274 | K142: =IF(Extrapolation!FSP >= 15, ROUND(B142*(1+Shocks!H141)+Shocks!I141 + Extrapolation!T144, 5), ROUND(B142*(1+Shocks!L141)+Shocks!M141 + Extrapolation!T144,5)) -> 0.03776 | L142: =IF(Extrapolation!FSP >= 15, ROUND(B142*(1-Shocks!F141)-Shocks!G141+Extrapolation!T144, 5), ROUND(B142*(1-Shocks!J141)-Shocks!K141+Extrapolation!T144, 5)) -> 0.02527
A143: 131 | B143: 0.03129530719 | C143: =ROUND(B143*(1+Shocks!H142)+Shocks!I142,5) -> 0.03755 | D143: =MAX(ROUND(B143*(1-Shocks!F142)-Shocks!G142,5), -1.25%) -> 0.02504 | E143: =IF(Extrapolation!FSP >= 15, ROUND(B143*(1+Shocks!H142)+Shocks!I142,5), ROUND(B143*(1+Shocks!L142)+Shocks!M142,5)) -> 0.03755 | F143: =IF(Extrapolation!FSP >= 15, ROUND(B143*(1-Shocks!F142)-Shocks!G142,5), ROUND(B143*(1-Shocks!J142)-Shocks!K142,5)) -> 0.02504 | H143: 0.03157028039 | I143: =ROUND(B143*(1+Shocks!H142)+Shocks!I142,5)+Extrapolation!T145 -> 0.0378249732 | J143: =MAX(ROUND(B143*(1-Shocks!F142)-Shocks!G142,5)+Extrapolation!T145, -1.25%) -> 0.0253149732 | K143: =IF(Extrapolation!FSP >= 15, ROUND(B143*(1+Shocks!H142)+Shocks!I142 + Extrapolation!T145, 5), ROUND(B143*(1+Shocks!L142)+Shocks!M142 + Extrapolation!T145,5)) -> 0.03783 | L143: =IF(Extrapolation!FSP >= 15, ROUND(B143*(1-Shocks!F142)-Shocks!G142+Extrapolation!T145, 5), ROUND(B143*(1-Shocks!J142)-Shocks!K142+Extrapolation!T145, 5)) -> 0.02531
A144: 132 | B144: 0.03135345726 | C144: =ROUND(B144*(1+Shocks!H143)+Shocks!I143,5) -> 0.03762 | D144: =MAX(ROUND(B144*(1-Shocks!F143)-Shocks!G143,5), -1.25%) -> 0.02508 | E144: =IF(Extrapolation!FSP >= 15, ROUND(B144*(1+Shocks!H143)+Shocks!I143,5), ROUND(B144*(1+Shocks!L143)+Shocks!M143,5)) -> 0.03762 | F144: =IF(Extrapolation!FSP >= 15, ROUND(B144*(1-Shocks!F143)-Shocks!G143,5), ROUND(B144*(1-Shocks!J143)-Shocks!K143,5)) -> 0.02508 | H144: 0.0316263625 | I144: =ROUND(B144*(1+Shocks!H143)+Shocks!I143,5)+Extrapolation!T146 -> 0.03789290524 | J144: =MAX(ROUND(B144*(1-Shocks!F143)-Shocks!G143,5)+Extrapolation!T146, -1.25%) -> 0.02535290524 | K144: =IF(Extrapolation!FSP >= 15, ROUND(B144*(1+Shocks!H143)+Shocks!I143 + Extrapolation!T146, 5), ROUND(B144*(1+Shocks!L143)+Shocks!M143 + Extrapolation!T146,5)) -> 0.0379 | L144: =IF(Extrapolation!FSP >= 15, ROUND(B144*(1-Shocks!F143)-Shocks!G143+Extrapolation!T146, 5), ROUND(B144*(1-Shocks!J143)-Shocks!K143+Extrapolation!T146, 5)) -> 0.02536
A145: 133 | B145: 0.03141073642 | C145: =ROUND(B145*(1+Shocks!H144)+Shocks!I144,5) -> 0.03769 | D145: =MAX(ROUND(B145*(1-Shocks!F144)-Shocks!G144,5), -1.25%) -> 0.02513 | E145: =IF(Extrapolation!FSP >= 15, ROUND(B145*(1+Shocks!H144)+Shocks!I144,5), ROUND(B145*(1+Shocks!L144)+Shocks!M144,5)) -> 0.03769 | F145: =IF(Extrapolation!FSP >= 15, ROUND(B145*(1-Shocks!F144)-Shocks!G144,5), ROUND(B145*(1-Shocks!J144)-Shocks!K144,5)) -> 0.02513 | H145: 0.03168160456 | I145: =ROUND(B145*(1+Shocks!H144)+Shocks!I144,5)+Extrapolation!T147 -> 0.03796086814 | J145: =MAX(ROUND(B145*(1-Shocks!F144)-Shocks!G144,5)+Extrapolation!T147, -1.25%) -> 0.02540086814 | K145: =IF(Extrapolation!FSP >= 15, ROUND(B145*(1+Shocks!H144)+Shocks!I144 + Extrapolation!T147, 5), ROUND(B145*(1+Shocks!L144)+Shocks!M144 + Extrapolation!T147,5)) -> 0.03796 | L145: =IF(Extrapolation!FSP >= 15, ROUND(B145*(1-Shocks!F144)-Shocks!G144+Extrapolation!T147, 5), ROUND(B145*(1-Shocks!J144)-Shocks!K144+Extrapolation!T147, 5)) -> 0.0254
A146: 134 | B146: 0.03146716408 | C146: =ROUND(B146*(1+Shocks!H145)+Shocks!I145,5) -> 0.03776 | D146: =MAX(ROUND(B146*(1-Shocks!F145)-Shocks!G145,5), -1.25%) -> 0.02517 | E146: =IF(Extrapolation!FSP >= 15, ROUND(B146*(1+Shocks!H145)+Shocks!I145,5), ROUND(B146*(1+Shocks!L145)+Shocks!M145,5)) -> 0.03776 | F146: =IF(Extrapolation!FSP >= 15, ROUND(B146*(1-Shocks!F145)-Shocks!G145,5), ROUND(B146*(1-Shocks!J145)-Shocks!K145,5)) -> 0.02517 | H146: 0.03173602531 | I146: =ROUND(B146*(1+Shocks!H145)+Shocks!I145,5)+Extrapolation!T148 -> 0.03802886123 | J146: =MAX(ROUND(B146*(1-Shocks!F145)-Shocks!G145,5)+Extrapolation!T148, -1.25%) -> 0.02543886123 | K146: =IF(Extrapolation!FSP >= 15, ROUND(B146*(1+Shocks!H145)+Shocks!I145 + Extrapolation!T148, 5), ROUND(B146*(1+Shocks!L145)+Shocks!M145 + Extrapolation!T148,5)) -> 0.03803 | L146: =IF(Extrapolation!FSP >= 15, ROUND(B146*(1-Shocks!F145)-Shocks!G145+Extrapolation!T148, 5), ROUND(B146*(1-Shocks!J145)-Shocks!K145+Extrapolation!T148, 5)) -> 0.02544
A147: 135 | B147: 0.03152275906 | C147: =ROUND(B147*(1+Shocks!H146)+Shocks!I146,5) -> 0.03783 | D147: =MAX(ROUND(B147*(1-Shocks!F146)-Shocks!G146,5), -1.25%) -> 0.02522 | E147: =IF(Extrapolation!FSP >= 15, ROUND(B147*(1+Shocks!H146)+Shocks!I146,5), ROUND(B147*(1+Shocks!L146)+Shocks!M146,5)) -> 0.03783 | F147: =IF(Extrapolation!FSP >= 15, ROUND(B147*(1-Shocks!F146)-Shocks!G146,5), ROUND(B147*(1-Shocks!J146)-Shocks!K146,5)) -> 0.02522 | H147: 0.03178964289 | I147: =ROUND(B147*(1+Shocks!H146)+Shocks!I146,5)+Extrapolation!T149 -> 0.03809688383 | J147: =MAX(ROUND(B147*(1-Shocks!F146)-Shocks!G146,5)+Extrapolation!T149, -1.25%) -> 0.02548688383 | K147: =IF(Extrapolation!FSP >= 15, ROUND(B147*(1+Shocks!H146)+Shocks!I146 + Extrapolation!T149, 5), ROUND(B147*(1+Shocks!L146)+Shocks!M146 + Extrapolation!T149,5)) -> 0.03809 | L147: =IF(Extrapolation!FSP >= 15, ROUND(B147*(1-Shocks!F146)-Shocks!G146+Extrapolation!T149, 5), ROUND(B147*(1-Shocks!J146)-Shocks!K146+Extrapolation!T149, 5)) -> 0.02549
A148: 136 | B148: 0.03157753963 | C148: =ROUND(B148*(1+Shocks!H147)+Shocks!I147,5) -> 0.03789 | D148: =MAX(ROUND(B148*(1-Shocks!F147)-Shocks!G147,5), -1.25%) -> 0.02526 | E148: =IF(Extrapolation!FSP >= 15, ROUND(B148*(1+Shocks!H147)+Shocks!I147,5), ROUND(B148*(1+Shocks!L147)+Shocks!M147,5)) -> 0.03789 | F148: =IF(Extrapolation!FSP >= 15, ROUND(B148*(1-Shocks!F147)-Shocks!G147,5), ROUND(B148*(1-Shocks!J147)-Shocks!K147,5)) -> 0.02526 | H148: 0.03184247494 | I148: =ROUND(B148*(1+Shocks!H147)+Shocks!I147,5)+Extrapolation!T150 -> 0.0381549353 | J148: =MAX(ROUND(B148*(1-Shocks!F147)-Shocks!G147,5)+Extrapolation!T150, -1.25%) -> 0.0255249353 | K148: =IF(Extrapolation!FSP >= 15, ROUND(B148*(1+Shocks!H147)+Shocks!I147 + Extrapolation!T150, 5), ROUND(B148*(1+Shocks!L147)+Shocks!M147 + Extrapolation!T150,5)) -> 0.03816 | L148: =IF(Extrapolation!FSP >= 15, ROUND(B148*(1-Shocks!F147)-Shocks!G147+Extrapolation!T150, 5), ROUND(B148*(1-Shocks!J147)-Shocks!K147+Extrapolation!T150, 5)) -> 0.02553
A149: 137 | B149: 0.03163152356 | C149: =ROUND(B149*(1+Shocks!H148)+Shocks!I148,5) -> 0.03796 | D149: =MAX(ROUND(B149*(1-Shocks!F148)-Shocks!G148,5), -1.25%) -> 0.02531 | E149: =IF(Extrapolation!FSP >= 15, ROUND(B149*(1+Shocks!H148)+Shocks!I148,5), ROUND(B149*(1+Shocks!L148)+Shocks!M148,5)) -> 0.03796 | F149: =IF(Extrapolation!FSP >= 15, ROUND(B149*(1-Shocks!F148)-Shocks!G148,5), ROUND(B149*(1-Shocks!J148)-Shocks!K148,5)) -> 0.02531 | H149: 0.03189453857 | I149: =ROUND(B149*(1+Shocks!H148)+Shocks!I148,5)+Extrapolation!T151 -> 0.03822301502 | J149: =MAX(ROUND(B149*(1-Shocks!F148)-Shocks!G148,5)+Extrapolation!T151, -1.25%) -> 0.02557301502 | K149: =IF(Extrapolation!FSP >= 15, ROUND(B149*(1+Shocks!H148)+Shocks!I148 + Extrapolation!T151, 5), ROUND(B149*(1+Shocks!L148)+Shocks!M148 + Extrapolation!T151,5)) -> 0.03822 | L149: =IF(Extrapolation!FSP >= 15, ROUND(B149*(1-Shocks!F148)-Shocks!G148+Extrapolation!T151, 5), ROUND(B149*(1-Shocks!J148)-Shocks!K148+Extrapolation!T151, 5)) -> 0.02557
A150: 138 | B150: 0.03168472806 | C150: =ROUND(B150*(1+Shocks!H149)+Shocks!I149,5) -> 0.03802 | D150: =MAX(ROUND(B150*(1-Shocks!F149)-Shocks!G149,5), -1.25%) -> 0.02535 | E150: =IF(Extrapolation!FSP >= 15, ROUND(B150*(1+Shocks!H149)+Shocks!I149,5), ROUND(B150*(1+Shocks!L149)+Shocks!M149,5)) -> 0.03802 | F150: =IF(Extrapolation!FSP >= 15, ROUND(B150*(1-Shocks!F149)-Shocks!G149,5), ROUND(B150*(1-Shocks!J149)-Shocks!K149,5)) -> 0.02535 | H150: 0.03194585042 | I150: =ROUND(B150*(1+Shocks!H149)+Shocks!I149,5)+Extrapolation!T152 -> 0.03828112237 | J150: =MAX(ROUND(B150*(1-Shocks!F149)-Shocks!G149,5)+Extrapolation!T152, -1.25%) -> 0.02561112237 | K150: =IF(Extrapolation!FSP >= 15, ROUND(B150*(1+Shocks!H149)+Shocks!I149 + Extrapolation!T152, 5), ROUND(B150*(1+Shocks!L149)+Shocks!M149 + Extrapolation!T152,5)) -> 0.03828 | L150: =IF(Extrapolation!FSP >= 15, ROUND(B150*(1-Shocks!F149)-Shocks!G149+Extrapolation!T152, 5), ROUND(B150*(1-Shocks!J149)-Shocks!K149+Extrapolation!T152, 5)) -> 0.02561
A151: 139 | B151: 0.03173716989 | C151: =ROUND(B151*(1+Shocks!H150)+Shocks!I150,5) -> 0.03808 | D151: =MAX(ROUND(B151*(1-Shocks!F150)-Shocks!G150,5), -1.25%) -> 0.02539 | E151: =IF(Extrapolation!FSP >= 15, ROUND(B151*(1+Shocks!H150)+Shocks!I150,5), ROUND(B151*(1+Shocks!L150)+Shocks!M150,5)) -> 0.03808 | F151: =IF(Extrapolation!FSP >= 15, ROUND(B151*(1-Shocks!F150)-Shocks!G150,5), ROUND(B151*(1-Shocks!J150)-Shocks!K150,5)) -> 0.02539 | H151: 0.03199642664 | I151: =ROUND(B151*(1+Shocks!H150)+Shocks!I150,5)+Extrapolation!T153 -> 0.03833925676 | J151: =MAX(ROUND(B151*(1-Shocks!F150)-Shocks!G150,5)+Extrapolation!T153, -1.25%) -> 0.02564925676 | K151: =IF(Extrapolation!FSP >= 15, ROUND(B151*(1+Shocks!H150)+Shocks!I150 + Extrapolation!T153, 5), ROUND(B151*(1+Shocks!L150)+Shocks!M150 + Extrapolation!T153,5)) -> 0.03834 | L151: =IF(Extrapolation!FSP >= 15, ROUND(B151*(1-Shocks!F150)-Shocks!G150+Extrapolation!T153, 5), ROUND(B151*(1-Shocks!J150)-Shocks!K150+Extrapolation!T153, 5)) -> 0.02565
A152: 140 | B152: 0.03178886532 | C152: =ROUND(B152*(1+Shocks!H151)+Shocks!I151,5) -> 0.03815 | D152: =MAX(ROUND(B152*(1-Shocks!F151)-Shocks!G151,5), -1.25%) -> 0.02543 | E152: =IF(Extrapolation!FSP >= 15, ROUND(B152*(1+Shocks!H151)+Shocks!I151,5), ROUND(B152*(1+Shocks!L151)+Shocks!M151,5)) -> 0.03815 | F152: =IF(Extrapolation!FSP >= 15, ROUND(B152*(1-Shocks!F151)-Shocks!G151,5), ROUND(B152*(1-Shocks!J151)-Shocks!K151,5)) -> 0.02543 | H152: 0.03204628293 | I152: =ROUND(B152*(1+Shocks!H151)+Shocks!I151,5)+Extrapolation!T154 -> 0.03840741761 | J152: =MAX(ROUND(B152*(1-Shocks!F151)-Shocks!G151,5)+Extrapolation!T154, -1.25%) -> 0.02568741761 | K152: =IF(Extrapolation!FSP >= 15, ROUND(B152*(1+Shocks!H151)+Shocks!I151 + Extrapolation!T154, 5), ROUND(B152*(1+Shocks!L151)+Shocks!M151 + Extrapolation!T154,5)) -> 0.0384 | L152: =IF(Extrapolation!FSP >= 15, ROUND(B152*(1-Shocks!F151)-Shocks!G151+Extrapolation!T154, 5), ROUND(B152*(1-Shocks!J151)-Shocks!K151+Extrapolation!T154, 5)) -> 0.02569
A153: 141 | B153: 0.03183983015 | C153: =ROUND(B153*(1+Shocks!H152)+Shocks!I152,5) -> 0.03821 | D153: =MAX(ROUND(B153*(1-Shocks!F152)-Shocks!G152,5), -1.25%) -> 0.02547 | E153: =IF(Extrapolation!FSP >= 15, ROUND(B153*(1+Shocks!H152)+Shocks!I152,5), ROUND(B153*(1+Shocks!L152)+Shocks!M152,5)) -> 0.03821 | F153: =IF(Extrapolation!FSP >= 15, ROUND(B153*(1-Shocks!F152)-Shocks!G152,5), ROUND(B153*(1-Shocks!J152)-Shocks!K152,5)) -> 0.02547 | H153: 0.03209543452 | I153: =ROUND(B153*(1+Shocks!H152)+Shocks!I152,5)+Extrapolation!T155 -> 0.03846560437 | J153: =MAX(ROUND(B153*(1-Shocks!F152)-Shocks!G152,5)+Extrapolation!T155, -1.25%) -> 0.02572560437 | K153: =IF(Extrapolation!FSP >= 15, ROUND(B153*(1+Shocks!H152)+Shocks!I152 + Extrapolation!T155, 5), ROUND(B153*(1+Shocks!L152)+Shocks!M152 + Extrapolation!T155,5)) -> 0.03846 | L153: =IF(Extrapolation!FSP >= 15, ROUND(B153*(1-Shocks!F152)-Shocks!G152+Extrapolation!T155, 5), ROUND(B153*(1-Shocks!J152)-Shocks!K152+Extrapolation!T155, 5)) -> 0.02573
A154: 142 | B154: 0.03189007976 | C154: =ROUND(B154*(1+Shocks!H153)+Shocks!I153,5) -> 0.03827 | D154: =MAX(ROUND(B154*(1-Shocks!F153)-Shocks!G153,5), -1.25%) -> 0.02551 | E154: =IF(Extrapolation!FSP >= 15, ROUND(B154*(1+Shocks!H153)+Shocks!I153,5), ROUND(B154*(1+Shocks!L153)+Shocks!M153,5)) -> 0.03827 | F154: =IF(Extrapolation!FSP >= 15, ROUND(B154*(1-Shocks!F153)-Shocks!G153,5), ROUND(B154*(1-Shocks!J153)-Shocks!K153,5)) -> 0.02551 | H154: 0.03214389626 | I154: =ROUND(B154*(1+Shocks!H153)+Shocks!I153,5)+Extrapolation!T156 -> 0.0385238165 | J154: =MAX(ROUND(B154*(1-Shocks!F153)-Shocks!G153,5)+Extrapolation!T156, -1.25%) -> 0.0257638165 | K154: =IF(Extrapolation!FSP >= 15, ROUND(B154*(1+Shocks!H153)+Shocks!I153 + Extrapolation!T156, 5), ROUND(B154*(1+Shocks!L153)+Shocks!M153 + Extrapolation!T156,5)) -> 0.03852 | L154: =IF(Extrapolation!FSP >= 15, ROUND(B154*(1-Shocks!F153)-Shocks!G153+Extrapolation!T156, 5), ROUND(B154*(1-Shocks!J153)-Shocks!K153+Extrapolation!T156, 5)) -> 0.02577
A155: 143 | B155: 0.03193962908 | C155: =ROUND(B155*(1+Shocks!H154)+Shocks!I154,5) -> 0.03833 | D155: =MAX(ROUND(B155*(1-Shocks!F154)-Shocks!G154,5), -1.25%) -> 0.02555 | E155: =IF(Extrapolation!FSP >= 15, ROUND(B155*(1+Shocks!H154)+Shocks!I154,5), ROUND(B155*(1+Shocks!L154)+Shocks!M154,5)) -> 0.03833 | F155: =IF(Extrapolation!FSP >= 15, ROUND(B155*(1-Shocks!F154)-Shocks!G154,5), ROUND(B155*(1-Shocks!J154)-Shocks!K154,5)) -> 0.02555 | H155: 0.03219168255 | I155: =ROUND(B155*(1+Shocks!H154)+Shocks!I154,5)+Extrapolation!T157 -> 0.03858205346 | J155: =MAX(ROUND(B155*(1-Shocks!F154)-Shocks!G154,5)+Extrapolation!T157, -1.25%) -> 0.02580205346 | K155: =IF(Extrapolation!FSP >= 15, ROUND(B155*(1+Shocks!H154)+Shocks!I154 + Extrapolation!T157, 5), ROUND(B155*(1+Shocks!L154)+Shocks!M154 + Extrapolation!T157,5)) -> 0.03858 | L155: =IF(Extrapolation!FSP >= 15, ROUND(B155*(1-Shocks!F154)-Shocks!G154+Extrapolation!T157, 5), ROUND(B155*(1-Shocks!J154)-Shocks!K154+Extrapolation!T157, 5)) -> 0.0258
A156: 144 | B156: 0.03198849266 | C156: =ROUND(B156*(1+Shocks!H155)+Shocks!I155,5) -> 0.03839 | D156: =MAX(ROUND(B156*(1-Shocks!F155)-Shocks!G155,5), -1.25%) -> 0.02559 | E156: =IF(Extrapolation!FSP >= 15, ROUND(B156*(1+Shocks!H155)+Shocks!I155,5), ROUND(B156*(1+Shocks!L155)+Shocks!M155,5)) -> 0.03839 | F156: =IF(Extrapolation!FSP >= 15, ROUND(B156*(1-Shocks!F155)-Shocks!G155,5), ROUND(B156*(1-Shocks!J155)-Shocks!K155,5)) -> 0.02559 | H156: 0.03223880741 | I156: =ROUND(B156*(1+Shocks!H155)+Shocks!I155,5)+Extrapolation!T158 -> 0.03864031475 | J156: =MAX(ROUND(B156*(1-Shocks!F155)-Shocks!G155,5)+Extrapolation!T158, -1.25%) -> 0.02584031475 | K156: =IF(Extrapolation!FSP >= 15, ROUND(B156*(1+Shocks!H155)+Shocks!I155 + Extrapolation!T158, 5), ROUND(B156*(1+Shocks!L155)+Shocks!M155 + Extrapolation!T158,5)) -> 0.03864 | L156: =IF(Extrapolation!FSP >= 15, ROUND(B156*(1-Shocks!F155)-Shocks!G155+Extrapolation!T158, 5), ROUND(B156*(1-Shocks!J155)-Shocks!K155+Extrapolation!T158, 5)) -> 0.02584
A157: 145 | B157: 0.03203668461 | C157: =ROUND(B157*(1+Shocks!H156)+Shocks!I156,5) -> 0.03844 | D157: =MAX(ROUND(B157*(1-Shocks!F156)-Shocks!G156,5), -1.25%) -> 0.02563 | E157: =IF(Extrapolation!FSP >= 15, ROUND(B157*(1+Shocks!H156)+Shocks!I156,5), ROUND(B157*(1+Shocks!L156)+Shocks!M156,5)) -> 0.03844 | F157: =IF(Extrapolation!FSP >= 15, ROUND(B157*(1-Shocks!F156)-Shocks!G156,5), ROUND(B157*(1-Shocks!J156)-Shocks!K156,5)) -> 0.02563 | H157: 0.03228528446 | I157: =ROUND(B157*(1+Shocks!H156)+Shocks!I156,5)+Extrapolation!T159 -> 0.03868859985 | J157: =MAX(ROUND(B157*(1-Shocks!F156)-Shocks!G156,5)+Extrapolation!T159, -1.25%) -> 0.02587859985 | K157: =IF(Extrapolation!FSP >= 15, ROUND(B157*(1+Shocks!H156)+Shocks!I156 + Extrapolation!T159, 5), ROUND(B157*(1+Shocks!L156)+Shocks!M156 + Extrapolation!T159,5)) -> 0.03869 | L157: =IF(Extrapolation!FSP >= 15, ROUND(B157*(1-Shocks!F156)-Shocks!G156+Extrapolation!T159, 5), ROUND(B157*(1-Shocks!J156)-Shocks!K156+Extrapolation!T159, 5)) -> 0.02588
A158: 146 | B158: 0.03208421868 | C158: =ROUND(B158*(1+Shocks!H157)+Shocks!I157,5) -> 0.0385 | D158: =MAX(ROUND(B158*(1-Shocks!F157)-Shocks!G157,5), -1.25%) -> 0.02567 | E158: =IF(Extrapolation!FSP >= 15, ROUND(B158*(1+Shocks!H157)+Shocks!I157,5), ROUND(B158*(1+Shocks!L157)+Shocks!M157,5)) -> 0.0385 | F158: =IF(Extrapolation!FSP >= 15, ROUND(B158*(1-Shocks!F157)-Shocks!G157,5), ROUND(B158*(1-Shocks!J157)-Shocks!K157,5)) -> 0.02567 | H158: 0.03233112698 | I158: =ROUND(B158*(1+Shocks!H157)+Shocks!I157,5)+Extrapolation!T160 -> 0.03874690829 | J158: =MAX(ROUND(B158*(1-Shocks!F157)-Shocks!G157,5)+Extrapolation!T160, -1.25%) -> 0.02591690829 | K158: =IF(Extrapolation!FSP >= 15, ROUND(B158*(1+Shocks!H157)+Shocks!I157 + Extrapolation!T160, 5), ROUND(B158*(1+Shocks!L157)+Shocks!M157 + Extrapolation!T160,5)) -> 0.03875 | L158: =IF(Extrapolation!FSP >= 15, ROUND(B158*(1-Shocks!F157)-Shocks!G157+Extrapolation!T160, 5), ROUND(B158*(1-Shocks!J157)-Shocks!K157+Extrapolation!T160, 5)) -> 0.02591
A159: 147 | B159: 0.03213110825 | C159: =ROUND(B159*(1+Shocks!H158)+Shocks!I158,5) -> 0.03856 | D159: =MAX(ROUND(B159*(1-Shocks!F158)-Shocks!G158,5), -1.25%) -> 0.0257 | E159: =IF(Extrapolation!FSP >= 15, ROUND(B159*(1+Shocks!H158)+Shocks!I158,5), ROUND(B159*(1+Shocks!L158)+Shocks!M158,5)) -> 0.03856 | F159: =IF(Extrapolation!FSP >= 15, ROUND(B159*(1-Shocks!F158)-Shocks!G158,5), ROUND(B159*(1-Shocks!J158)-Shocks!K158,5)) -> 0.0257 | H159: 0.03237634785 | I159: =ROUND(B159*(1+Shocks!H158)+Shocks!I158,5)+Extrapolation!T161 -> 0.0388052396 | J159: =MAX(ROUND(B159*(1-Shocks!F158)-Shocks!G158,5)+Extrapolation!T161, -1.25%) -> 0.0259452396 | K159: =IF(Extrapolation!FSP >= 15, ROUND(B159*(1+Shocks!H158)+Shocks!I158 + Extrapolation!T161, 5), ROUND(B159*(1+Shocks!L158)+Shocks!M158 + Extrapolation!T161,5)) -> 0.0388 | L159: =IF(Extrapolation!FSP >= 15, ROUND(B159*(1-Shocks!F158)-Shocks!G158+Extrapolation!T161, 5), ROUND(B159*(1-Shocks!J158)-Shocks!K158+Extrapolation!T161, 5)) -> 0.02595
A160: 148 | B160: 0.03217736634 | C160: =ROUND(B160*(1+Shocks!H159)+Shocks!I159,5) -> 0.03861 | D160: =MAX(ROUND(B160*(1-Shocks!F159)-Shocks!G159,5), -1.25%) -> 0.02574 | E160: =IF(Extrapolation!FSP >= 15, ROUND(B160*(1+Shocks!H159)+Shocks!I159,5), ROUND(B160*(1+Shocks!L159)+Shocks!M159,5)) -> 0.03861 | F160: =IF(Extrapolation!FSP >= 15, ROUND(B160*(1-Shocks!F159)-Shocks!G159,5), ROUND(B160*(1-Shocks!J159)-Shocks!K159,5)) -> 0.02574 | H160: 0.03242095964 | I160: =ROUND(B160*(1+Shocks!H159)+Shocks!I159,5)+Extrapolation!T162 -> 0.03885359331 | J160: =MAX(ROUND(B160*(1-Shocks!F159)-Shocks!G159,5)+Extrapolation!T162, -1.25%) -> 0.02598359331 | K160: =IF(Extrapolation!FSP >= 15, ROUND(B160*(1+Shocks!H159)+Shocks!I159 + Extrapolation!T162, 5), ROUND(B160*(1+Shocks!L159)+Shocks!M159 + Extrapolation!T162,5)) -> 0.03886 | L160: =IF(Extrapolation!FSP >= 15, ROUND(B160*(1-Shocks!F159)-Shocks!G159+Extrapolation!T162, 5), ROUND(B160*(1-Shocks!J159)-Shocks!K159+Extrapolation!T162, 5)) -> 0.02599
A161: 149 | B161: 0.0322230056 | C161: =ROUND(B161*(1+Shocks!H160)+Shocks!I160,5) -> 0.03867 | D161: =MAX(ROUND(B161*(1-Shocks!F160)-Shocks!G160,5), -1.25%) -> 0.02578 | E161: =IF(Extrapolation!FSP >= 15, ROUND(B161*(1+Shocks!H160)+Shocks!I160,5), ROUND(B161*(1+Shocks!L160)+Shocks!M160,5)) -> 0.03867 | F161: =IF(Extrapolation!FSP >= 15, ROUND(B161*(1-Shocks!F160)-Shocks!G160,5), ROUND(B161*(1-Shocks!J160)-Shocks!K160,5)) -> 0.02578 | H161: 0.03246497456 | I161: =ROUND(B161*(1+Shocks!H160)+Shocks!I160,5)+Extrapolation!T163 -> 0.03891196897 | J161: =MAX(ROUND(B161*(1-Shocks!F160)-Shocks!G160,5)+Extrapolation!T163, -1.25%) -> 0.02602196897 | K161: =IF(Extrapolation!FSP >= 15, ROUND(B161*(1+Shocks!H160)+Shocks!I160 + Extrapolation!T163, 5), ROUND(B161*(1+Shocks!L160)+Shocks!M160 + Extrapolation!T163,5)) -> 0.03891 | L161: =IF(Extrapolation!FSP >= 15, ROUND(B161*(1-Shocks!F160)-Shocks!G160+Extrapolation!T163, 5), ROUND(B161*(1-Shocks!J160)-Shocks!K160+Extrapolation!T163, 5)) -> 0.02602
A162: 150 | B162: 0.03226803836 | C162: =ROUND(B162*(1+Shocks!H161)+Shocks!I161,5) -> 0.03872 | D162: =MAX(ROUND(B162*(1-Shocks!F161)-Shocks!G161,5), -1.25%) -> 0.02581 | E162: =IF(Extrapolation!FSP >= 15, ROUND(B162*(1+Shocks!H161)+Shocks!I161,5), ROUND(B162*(1+Shocks!L161)+Shocks!M161,5)) -> 0.03872 | F162: =IF(Extrapolation!FSP >= 15, ROUND(B162*(1-Shocks!F161)-Shocks!G161,5), ROUND(B162*(1-Shocks!J161)-Shocks!K161,5)) -> 0.02581 | H162: 0.03250840451 | I162: =ROUND(B162*(1+Shocks!H161)+Shocks!I161,5)+Extrapolation!T164 -> 0.03896036615 | J162: =MAX(ROUND(B162*(1-Shocks!F161)-Shocks!G161,5)+Extrapolation!T164, -1.25%) -> 0.02605036615 | K162: =IF(Extrapolation!FSP >= 15, ROUND(B162*(1+Shocks!H161)+Shocks!I161 + Extrapolation!T164, 5), ROUND(B162*(1+Shocks!L161)+Shocks!M161 + Extrapolation!T164,5)) -> 0.03896 | L162: =IF(Extrapolation!FSP >= 15, ROUND(B162*(1-Shocks!F161)-Shocks!G161+Extrapolation!T164, 5), ROUND(B162*(1-Shocks!J161)-Shocks!K161+Extrapolation!T164, 5)) -> 0.02605

Sheet SRC & Scaling Factors
B9: Currency | C9: Risk corrected currency spread | D9: Scaling factor
B10: AUD | C10: 0.001420735253 | D10: 2.123142251
B11: BGN | C11: 0.001075977641 | D11: 2.493765586
B12: CAD | C12: 0.003628492139 | D12: 1.53609831
B13: CHF | C13: 0.0006957914156 | D13: 1.636661211
B14: CZK | C14: 0.001697904798 | D14: 1.494768311
B15: DKK | C15: 0.002462006052 | D15: 1.459854015
B16: EUR | C16: 0.001671833113 | D16: 1.412429379
B17: GBP | C17: 0.002116307514 | D17: 1.821493625
B18: HRK | C18: 0.0006422536695 | D18: 2.123142251
B19: HUF | C19: 0.0008127493192 | D19: 1.449275362
B20: ISK | C20: 0.001080714734 | D20: 1.923076923
B21: JPY | C21: 0.0001840590449 | D21: 2.036659878
B22: NOK | C22: 0.004806711016 | D22: 1.379310345
B23: PLN | C23: 0.001646115977 | D23: 1.517450683
B24: RON | C24: 0.001646063623 | D24: 1.404494382
B25: SEK | C25: 0.001159906489 | D25: 2.057613169
B26: USD | C26: 0.004079755003 | D26: 1.388888889

Sheet Extrapolation (hidden)
B2: inputs | D2: Alternative Extrapolation with VA - Derived from situation without VA
B3: outputs | D3: based on alternvative extrapolations from worksheet 2020 Review Term Structures | P3: Currency | Q3: ='Scenario Data'!$J$6 -> EUR
F4: =MATCH(Q3,L.ISO4217,0) -> 1
P6: Alternative Extrapolation with VA
E7: FSP | F7: =INDEX(tblRfrAltConfig[FSP],index) -> 20
E8: UFR | F8: =INDEX(tblRfrAltConfig[UFR],index)/100 -> 0.039
E9: MeanReversion | F9: =IF(Q3="SEK",40%,10%) -> 0.1 | P9: First weight | Q9: =INDEX(LLFRweights,FSP) -> 0.33
E10: VA | F10: ='Scenario Data'!J7 -> 15 | G10: bp AC | P10: First fw LLFR | Q10: =GetFirstFwLLFR($I$15:$I$64,DLT,LLFRweights) -> 0.009215560893
E11: LLFR | F11: =INDEX(TermStructuresLLFR,,2*index) -> 0.007051369015 | P11: LLFRVA | Q11: =Q9*(Q10+LN(1+VA/10000))+(LLFR-Q9*Q10) -> 0.007545998136
M12: + VA up to FSP
B13: Tenor | C13: DLT | D13: LLFRweights | E13: Tenor | F13: Zero AC | H13: Tenor | I13: Zero CC | J13: 1YFw CC | L13: Tenor | M13: Zero CC | N13: 1YFw CC | P13: Tenor | Q13: Zero+VA AC | R13: 1YFw+VA AC | S13: Discount | T13: VA
E14: 0 | H14: 0 | L14: 0 | P14: 0 | S14: 1
B15: 1 | C15: =INDEX(INDIRECT("tblRfrAltConfig[DLT"&B15&"]"),index) -> 1 | D15: =INDEX(INDIRECT("tblWeightsLLFR["&B15&"]"),index) -> 0 | E15: 1 | F15: =INDEX(TermStructures,,2*index) -> -0.004161 | H15: 1 | I15: =LN(1+F15) -> -0.00416968105 | J15: =$H15*I15-$H14*I14 -> -0.00416968105 | L15: 1 | M15: =AVERAGE(N$15:N15) -> -0.002670804926 | N15: =J15+($L15<=FSP)*LN(1+VA/10000) -> -0.002670804926 | P15: 1 | Q15: =AlternativeExtrapolation($M$15:$M$164,FSP,UFR,$Q$11,MeanReversion,"A") -> -0.0026672415 | R15: -0.0026672415 | S15: 1.002674375 | T15: =Q15-F15 -> 0.0014937585
B16: 2 | C16: 1 | D16: 0 | E16: 2 | F16: -0.003935444756 | H16: 2 | I16: -0.003943208996 | J16: =$H16*I16-$H15*I15 -> -0.003716736941 | L16: 2 | M16: =AVERAGE(N$15:N16) -> -0.002444332872 | N16: -0.002217860817 | P16: 2 | Q16: -0.002441347923 | R16: -0.002215403181 | S16: 1.004900635 | T16: =Q16-F16 -> 0.001494096833
B17: 3 | C17: 1 | D17: 0 | E17: 3 | F17: -0.00338213028 | H17: 3 | I17: -0.003387862612 | J17: -0.002277169844 | L17: 3 | M17: =AVERAGE(N$15:N17) -> -0.001888986488 | N17: -0.0007782937204 | P17: 3 | Q17: -0.001887203476 | R17: -0.0007779909284 | S17: 1.005683047 | T17: 0.001494926805
B18: 4 | C18: 1 | D18: 0 | E18: 4 | F18: -0.002748913431 | H18: 4 | I18: -0.002752698632 | J18: -0.0008472066913 | L18: 4 | M18: =AVERAGE(N$15:N18) -> -0.001253822508 | N18: 0.0006516694325 | P18: 4 | Q18: -0.001253036801 | R18: 0.0006518818151 | S18: 1.005027888 | T18: 0.00149587663
B19: 5 | C19: 1 | D19: 0 | E19: 5 | F19: -0.002199922184 | H19: 5 | I19: -0.002202345568 | J19: -9.333114419e-07 | L19: 5 | M19: =AVERAGE(N$15:N19) -> -0.0007034694438 | N19: 0.001497942812 | P19: 5 | Q19: -0.0007032220672 | R19: 0.001499065289 | S19: 1.00352354 | T19: 0.001496700117
B20: 6 | C20: 1 | D20: 0 | E20: 6 | F20: -0.001670325244 | H20: 6 | I20: -0.001671721792 | J20: 0.000981397083 | L20: 6 | M20: =AVERAGE(N$15:N20) -> -0.0001728456687 | N20: 0.002480273207 | P20: 6 | Q20: -0.0001728307318 | R20: 0.002483351629 | S20: 1.001037612 | T20: 0.001497494512
B21: 7 | C21: 1 | D21: 0 | E21: 7 | F21: -0.0008443968012 | H21: 7 | I21: -0.000844753505 | J21: 0.00411705622 | L21: 7 | M21: =AVERAGE(N$15:N21) -> 0.0006541226187 | N21: 0.005615932344 | P21: 7 | Q21: 0.0006543366036 | R21: 0.005631731253 | S21: 0.9954316087 | T21: 0.001498733405
B22: 8 | C22: 1 | D22: 0 | E22: 8 | F22: -0.0001812452493 | H22: 8 | I22: -0.0001812616762 | J22: 0.004463181125 | L22: 8 | M22: =AVERAGE(N$15:N22) -> 0.001317614448 | N22: 0.005962057249 | P22: 8 | Q22: 0.001318482883 | R22: 0.005979865686 | S22: 0.9895144452 | T22: 0.001499728132
B23: 9 | C23: 1 | D23: 0 | E23: 9 | F23: 0.0004640265319 | H23: 9 | I23: 0.0004639189049 | J23: 0.005625363554 | L23: 9 | M23: =AVERAGE(N$15:N23) -> 0.001962795029 | N23: 0.007124239678 | P23: 9 | Q23: 0.001964722572 | R23: 0.007149677446 | S23: 0.9824899589 | T23: 0.00150069604
B24: 10 | C24: 1 | D24: 0 | E24: 10 | F24: 0.001122066321 | H24: 10 | I24: 0.001121437275 | J24: 0.007039102603 | L24: 10 | M24: =AVERAGE(N$15:N24) -> 0.002620313398 | N24: 0.008537978726 | P24: 10 | Q24: 0.00262374942 | R24: 0.008574531221 | S24: 0.9741371891 | T24: 0.001501683099
B25: 11 | C25: 1 | D25: 0 | E25: 11 | F25: 0.001568824854 | H25: 11 | I25: 0.001567595534 | J25: 0.006029178126 | L25: 11 | M25: =AVERAGE(N$15:N25) -> 0.003066471658 | N25: 0.00752805425 | P25: 11 | Q25: 0.003071178091 | R25: 0.007556461289 | S25: 0.9668313654 | T25: 0.001502353237
B26: 12 | C26: 1 | D26: 0 | E26: 12 | F26: 0.002232633343 | H26: 12 | I26: 0.002230144721 | J26: 0.009518185777 | L26: 12 | M26: =AVERAGE(N$15:N26) -> 0.003729020845 | N26: 0.0110170619 | P26: 12 | Q26: 0.003735982293 | R26: 0.01107797321 | S26: 0.9562381844 | T26: 0.00150334895
B27: 13 | C27: 1 | D27: 0 | E27: 13 | F27: 0.002838508957 | H27: 13 | I27: 0.002834487997 | J27: 0.01008660732 | L27: 13 | M27: =AVERAGE(N$15:N27) -> 0.004333364121 | N27: 0.01158548344 | P27: 13 | Q27: 0.00434276672 | R27: 0.01165285508 | S27: 0.9452236304 | T27: 0.001504257763
B28: 14 | C28: 1 | D28: 0 | E28: 14 | F28: 0.003135820538 | H28: 14 | I28: 0.003130914107 | J28: 0.006984453537 | L28: 14 | M28: =AVERAGE(N$15:N28) -> 0.004629790231 | N28: 0.008483329661 | P28: 14 | Q28: 0.004640524269 | R28: 0.008519415071 | S28: 0.9372389031 | T28: 0.001504703731
B29: 15 | C29: 1 | D29: 0 | E29: 15 | F29: 0.003748100681 | H29: 15 | I29: 0.003741094054 | J29: 0.01228361331 | L29: 15 | M29: =AVERAGE(N$15:N29) -> 0.005239970178 | N29: 0.01378248943 | P29: 15 | Q29: 0.005253722832 | R29: 0.0138779058 | S29: 0.9244100279 | T29: 0.001505622151
B30: 16 | C30: 0 | D30: 0 | E30: 16 | F30: 0.004091596048 | H30: 16 | I30: 0.004083248232 | J30: 0.009215560893 | L30: 16 | M30: =AVERAGE(N$15:N30) -> 0.005582124355 | N30: 0.01071443702 | P30: 16 | Q30: 0.005597733442 | R30: 0.01077204215 | S30: 0.9145583666 | T30: 0.001506137394
B31: 17 | C31: 0 | D31: 0 | E31: 17 | F31: 0.004394777812 | H31: 17 | I31: 0.004385148976 | J31: 0.009215560893 | L31: 17 | M31: =AVERAGE(N$15:N31) -> 0.0058840251 | N31: 0.01071443702 | P31: 17 | Q31: 0.005901369978 | R31: 0.01077204215 | S31: 0.9048116969 | T31: 0.001506592167
B32: 18 | C32: 0 | D32: 0 | E32: 18 | F32: 0.004664349564 | H32: 18 | I32: 0.004653505194 | J32: 0.009215560893 | L32: 18 | M32: =AVERAGE(N$15:N32) -> 0.006152381318 | N32: 0.01071443702 | P32: 18 | Q32: 0.006171346089 | R32: 0.01077204215 | S32: 0.8951688997 | T32: 0.001506996524
B33: 19 | C33: 0 | D33: 0 | E33: 19 | F33: 0.00490560667 | H33: 19 | I33: 0.004893613389 | J33: 0.009215560893 | L33: 19 | M33: =AVERAGE(N$15:N33) -> 0.006392489512 | N33: 0.01071443702 | P33: 19 | Q33: 0.00641296508 | R33: 0.01077204215 | S33: 0.8856288682 | T33: 0.00150735841
B34: 20 | C34: 1 | D34: 0.33 | E34: 20 | F34: 0.005122787599 | H34: 20 | I34: 0.005109710764 | J34: 0.009215560893 | L34: 20 | M34: =AVERAGE(N$15:N34) -> 0.006608586888 | N34: 0.01071443702 | P34: 20 | Q34: 0.006630471781 | R34: 0.01077204215 | S34: 0.8761905072 | T34: 0.001507684181
B35: 21 | C35: 0 | D35: 0 | E35: 21 | F35: 0.005287990132 | H35: 21 | I35: 0.005274057806 | J35: 0.008560998659 | L35: 21 | M35: =AVERAGE(N$15:N35) -> 0.006701558877 | N35: 0.008560998659 | P35: 21 | Q35: 0.006746629911 | R35: 0.009072609374 | S35: 0.8683126457 | T35: 0.001458639779
B36: 22 | C36: 0 | D36: 0 | E36: 22 | F36: 0.005567364294 | H36: 22 | I36: 0.005551923804 | J36: 0.01138710975 | L36: 22 | M36: =AVERAGE(N$15:N36) -> 0.006914538462 | N36: 0.01138710975 | P36: 22 | Q36: 0.006979537713 | R36: 0.01188306765 | S36: 0.8581156 | T36: 0.001412173419
B37: 23 | C37: 0 | D37: 0 | E37: 23 | F37: 0.005934347779 | H37: 23 | I37: 0.005916808891 | J37: 0.01394428081 | L37: 23 | M37: =AVERAGE(N$15:N37) -> 0.007220179434 | N37: 0.01394428081 | P37: 23 | Q37: 0.007302451872 | R37: 0.01443282062 | S37: 0.8459067792 | T37: 0.001368104093
B38: 24 | C38: 0 | D38: 0 | E38: 24 | F38: 0.006367885544 | H38: 24 | I38: 0.006347696224 | J38: 0.01625810487 | L38: 24 | M38: =AVERAGE(N$15:N38) -> 0.00759675966 | N38: 0.01625810487 | P38: 24 | Q38: 0.007694154249 | R38: 0.01674546894 | S38: 0.8319749682 | T38: 0.001326268705
B39: 25 | C39: 1 | D39: 0.12 | E39: 25 | F39: 0.006851220918 | H39: 25 | I39: 0.006827857954 | J39: 0.01835173946 | L39: 25 | M39: =AVERAGE(N$15:N39) -> 0.008026958853 | N39: 0.01835173946 | P39: 25 | Q39: 0.008137740273 | R39: 0.01884258288 | S39: 0.8165883348 | T39: 0.001286519355
B40: 26 | C40: 0 | D40: 0 | E40: 26 | F40: 0.007370978567 | H40: 26 | I40: 0.007343945662 | J40: 0.02024613838 | L40: 26 | M40: =AVERAGE(N$15:N40) -> 0.008496927296 | N40: 0.02024613838 | P40: 26 | Q40: 0.008619699763 | R40: 0.02074385741 | S40: 0.7999933861 | T40: 0.001248721196
B41: 27 | C41: 0 | D41: 0 | E41: 27 | F41: 0.007916461471 | H41: 27 | I41: 0.00788529069 | J41: 0.02196026141 | L41: 27 | M41: =AVERAGE(N$15:N41) -> 0.0089955693 | N41: 0.02196026141 | P41: 27 | Q41: 0.009129212208 | R41: 0.02246725917 | S41: 0.7824146729 | T41: 0.001212750738
B42: 28 | C42: 0 | D42: 0 | E42: 28 | F42: 0.008479106875 | H42: 28 | I42: 0.008443361167 | J42: 0.02351126406 | L42: 28 | M42: =AVERAGE(N$15:N42) -> 0.00951398697 | N42: 0.02351126406 | P42: 28 | Q42: 0.00965760134 | R42: 0.02402916502 | S42: 0.7640550676 | T42: 0.001178494465
B43: 29 | C43: 0 | D43: 0 | E43: 29 | F43: 0.009052061645 | H43: 29 | I43: 0.009011337309 | J43: 0.02491466929 | L43: 29 | M43: =AVERAGE(N$15:N43) -> 0.01004504498 | N43: 0.02491466929 | P43: 29 | Q43: 0.01019790935 | R43: 0.02544449194 | S43: 0.7450964665 | T43: 0.001145847704
B44: 30 | C44: 1 | D44: 0.48 | E44: 30 | F44: 0.009629848279 | H44: 30 | I44: 0.009583776828 | J44: 0.02618452286 | L44: 30 | M44: =AVERAGE(N$15:N44) -> 0.01058302758 | N44: 0.02618452286 | P44: 30 | Q44: 0.01074456196 | R44: 0.0267268184 | S44: 0.7257007932 | T44: 0.001114713682
B45: 31 | C45: 0 | D45: 0 | E45: 31 | F45: 0.01020810041 | H45: 31 | I45: 0.01015634964 | J45: 0.02733353389 | L45: 31 | M45: =AVERAGE(N$15:N45) -> 0.01112336649 | N45: 0.02733353389 | P45: 31 | Q45: 0.01129310313 | R45: 0.02788849723 | S45: 0.7060112018 | T45: 0.001085002727
B46: 32 | C46: 0 | D46: 0 | E46: 32 | F46: 0.010783352 | H46: 32 | I46: 0.01072562627 | J46: 0.02837320205 | L46: 32 | M46: =AVERAGE(N$15:N46) -> 0.01166242385 | N46: 0.02837320205 | P46: 32 | Q46: 0.01183998359 | R46: 0.02894076036 | S46: 0.6861534006 | T46: 0.001056631589
B47: 33 | C47: =INDEX(INDIRECT("tblRfrAltConfig[DLT"&B47&"]"),index) -> 0 | D47: =INDEX(INDIRECT("tblWeightsLLFR["&B47&"]"),index) -> 0 | E47: 33 | F47: 0.01135286847 | H47: 33 | I47: =LN(1+F47) -> 0.01128890829 | J47: 0.02931393272 | L47: 33 | M47: =AVERAGE(N$15:N47) -> 0.01219731806 | N47: =J47+($L47<=FSP)*LN(1+VA/10000) -> 0.02931393272 | P47: 33 | Q47: 0.01238239132 | R47: 0.02989381571 | S47: 0.6662370335 | T47: 0.001029522855
B48: 34 | C48: 0 | D48: 0 | E48: 34 | F48: 0.0119145106 | H48: 34 | I48: 0.0118440916 | J48: 0.03016514102 | L48: 34 | M48: =AVERAGE(N$15:N48) -> 0.01272578344 | N48: 0.03016514102 | P48: 34 | Q48: 0.01291811503 | R48: 0.03075693659 | S48: 0.6463570701 | T48: 0.001003604436
B49: 35 | C49: 0 | D49: 0 | E49: 35 | F49: 0.01246662452 | H49: 35 | I49: 0.01238955602 | J49: 0.03093534614 | L49: 35 | M49: =AVERAGE(N$15:N49) -> 0.01324605666 | N49: 0.03093534614 | P49: 35 | Q49: 0.01344543364 | R49: 0.03153854402 | S49: 0.6265951707 | T49: 0.0009788091164
B50: 36 | C50: 0 | D50: 0 | E50: 36 | F50: 0.0130079523 | H50: 36 | I50: 0.01292407548 | J50: 0.03163225656 | L50: 36 | M50: =AVERAGE(N$15:N50) -> 0.01375678444 | N50: 0.03163225656 | P50: 36 | Q50: 0.01396302646 | R50: 0.03224628241 | S50: 0.6070210001 | T50: 0.0009550741597
B51: 37 | C51: 0 | D51: 0 | E51: 37 | F51: 0.01353755905 | H51: 37 | I51: 0.01344674498 | J51: 0.03226284718 | L51: 37 | M51: =AVERAGE(N$15:N51) -> 0.01425694829 | N51: 0.03226284718 | P51: 37 | Q51: 0.0144699 | R51: 0.03288708905 | S51: 0.5876934726 | T51: 0.0009323409495
B52: 38 | C52: 0 | D52: 0 | E52: 38 | F52: 0.01405477341 | H52: 38 | I52: 0.01395692088 | J52: 0.03283342917 | L52: 38 | M52: =AVERAGE(N$15:N52) -> 0.01474580305 | N52: 0.03283342917 | P52: 38 | Q52: 0.01496532809 | R52: 0.03346725769 | S52: 0.5686619176 | T52: 0.000910554673
B53: 39 | C53: 0 | D53: 0 | E53: 39 | F53: 0.01455913863 | H53: 39 | I53: 0.01445417197 | J53: 0.0333497131 | L53: 39 | M53: =AVERAGE(N$15:N53) -> 0.01522282639 | N53: 0.0333497131 | P53: 39 | Q53: 0.01544880267 | R53: 0.03399249681 | S53: 0.5499671607 | T53: 0.0008896640334
B54: 40 | C54: 1 | D54: 0.04 | E54: 40 | F54: 0.01505037248 | H54: 40 | I54: 0.01493823932 | J54: 0.03381686612 | L54: 40 | M54: =AVERAGE(N$15:N54) -> 0.01568767738 | N54: 0.03381686612 | P54: 40 | Q54: 0.01591999347 | R54: 0.03446798287 | S54: 0.5316425156 | T54: 0.0008696209895
B55: 41 | C55: 0 | D55: 0 | E55: 41 | F55: 0.01552833415 | H55: 41 | I55: 0.01540900333 | J55: 0.03423956365 | L55: 41 | M55: =AVERAGE(N$15:N55) -> 0.01614016241 | N55: 0.03423956365 | P55: 41 | Q55: 0.01637871467 | R55: 0.03489840887 | S55: 0.5137146903 | T55: 0.0008503805189
B56: 42 | C56: 0 | D56: 0 | E56: 42 | F56: 0.01599299708 | H56: 42 | I56: 0.01586645649 | J56: 0.0346220362 | L56: 42 | M56: =AVERAGE(N$15:N56) -> 0.01658020703 | N56: 0.0346220362 | P56: 42 | Q56: 0.01682489748 | R56: 0.03528802877 | S56: 0.4962046078 | T56: 0.0008319004023
B57: 43 | C57: 0 | D57: 0 | E57: 43 | F57: 0.01644442636 | H57: 43 | I57: 0.01631068103 | J57: 0.03496811167 | L57: 43 | M57: =AVERAGE(N$15:N57) -> 0.01700783272 | N57: 0.03496811167 | P57: 43 | Q57: 0.01725856738 | R57: 0.03564069783 | S57: 0.4791281463 | T57: 0.0008141410255
B58: 44 | C58: 0 | D58: 0 | E58: 44 | F58: 0.01688276023 | H58: 44 | I58: 0.01674183041 | J58: 0.0352812537 | L58: 44 | M58: =AVERAGE(N$15:N58) -> 0.01742313774 | N58: 0.0352812537 | P58: 44 | Q58: 0.01767982543 | R58: 0.03595990953 | S58: 0.4624968031 | T58: 0.0007970651979
B59: 45 | C59: 0 | D59: 0 | E59: 45 | F59: 0.01730819467 | H59: 45 | I59: 0.0171601141 | J59: 0.03556459633 | L59: 45 | M59: =AVERAGE(N$15:N59) -> 0.01782628126 | N59: 0.03556459633 | P59: 45 | Q59: 0.01808883265 | R59: 0.03624882901 | S59: 0.4463182878 | T59: 0.0007806379858
B60: 46 | C60: 0 | D60: 0 | E60: 46 | F60: 0.01772097072 | H60: 46 | I60: 0.01756578499 | J60: 0.03582097535 | L60: 46 | M60: =AVERAGE(N$15:N60) -> 0.01821747026 | N60: 0.03582097535 | P60: 46 | Q60: 0.01848579727 | R60: 0.03651032361 | S60: 0.4305970502 | T60: 0.0007648265585
B61: 47 | C61: 0 | D61: 0 | E61: 47 | F61: 0.01812136397 | H61: 47 | I61: 0.01795912907 | J61: 0.03605295667 | L61: 47 | M61: =AVERAGE(N$15:N61) -> 0.0185969487 | N61: 0.03605295667 | P61: 47 | Q61: 0.01887096402 | R61: 0.03674699057 | S61: 0.4153347481 | T61: 0.0007496000464
B62: 48 | C62: 0 | D62: 0 | E62: 48 | F62: 0.01850967596 | H62: 48 | I62: 0.01834045684 | J62: 0.03626286206 | L62: 48 | M62: =AVERAGE(N$15:N62) -> 0.01896498856 | N62: 0.03626286206 | P62: 48 | Q62: 0.01924460537 | R62: 0.03696118226 | S62: 0.4005306613 | T62: 0.0007349294098
B63: 49 | C63: 0 | D63: 0 | E63: 49 | F63: 0.01888622695 | H63: 49 | I63: 0.01871009634 | J63: 0.0364527923 | L63: 49 | M63: =AVERAGE(N$15:N63) -> 0.01932188251 | N63: 0.0364527923 | P63: 49 | Q63: 0.01960701427 | R63: 0.03715502905 | S63: 0.3861820558 | T63: 0.0007207873175
B64: 50 | C64: 1 | D64: 0.03 | E64: 50 | F64: 0.01925135016 | H64: 50 | I64: 0.01906838738 | J64: 0.03662464829 | L64: 50 | M64: =AVERAGE(N$15:N64) -> 0.01966793783 | N64: 0.03662464829 | P64: 50 | Q64: 0.0199584982 | R64: 0.03733046011 | S64: 0.372284504 | T64: 0.0007071480342
E65: 51 | F65: 0.01960538689 | H65: 51 | I65: 0.01941567684 | J65: 0.03678015003 | L65: 51 | M65: =AVERAGE(N$15:N65) -> 0.0200034714 | N65: 0.03678015003 | P65: 51 | Q65: 0.02029937421 | R65: 0.03748922227 | S65: 0.3588321652 | T65: 0.0006939873166
E66: 52 | F66: 0.01994868261 | H66: 52 | I66: 0.01975231486 | J66: 0.03692085381 | L66: 52 | M66: =AVERAGE(N$15:N66) -> 0.02032880568 | N66: 0.03692085381 | P66: 52 | Q66: 0.02062996492 | R66: 0.03763289715 | S66: 0.3458180308 | T66: 0.000681282316
E67: 53 | F67: 0.02028158376 | H67: 53 | I67: 0.02007865171 | J67: 0.03704816786 | L67: 53 | M67: =AVERAGE(N$15:N67) -> 0.02064426534 | N67: 0.03704816786 | P67: 53 | Q67: 0.02095059525 | R67: 0.0377629167 | S67: 0.3332341378 | T67: 0.0006690114887
E68: 54 | F68: 0.0206044352 | H68: 54 | I68: 0.02039503532 | J68: 0.03716336638 | L68: 54 | M68: =AVERAGE(N$15:N68) -> 0.02095017462 | N68: 0.03716336638 | P68: 54 | Q68: 0.02126158971 | R68: 0.0378805773 | S68: 0.3210717544 | T68: 0.0006571545126
E69: 55 | F69: 0.02091757808 | H69: 55 | I69: 0.02070180926 | J69: 0.03726760231 | L69: 55 | M69: =AVERAGE(N$15:N69) -> 0.02124685513 | N69: 0.03726760231 | P69: 55 | Q69: 0.02156327029 | R69: 0.03798705251 | S69: 0.3093215408 | T69: 0.0006456922089
E70: 56 | F70: 0.02122134824 | H70: 56 | I70: 0.02099931122 | J70: 0.03736191888 | L70: 56 | M70: =AVERAGE(N$15:N70) -> 0.02153462412 | N70: 0.03736191888 | P70: 56 | Q70: 0.02185595471 | R70: 0.03808340468 | S70: 0.2979736882 | T70: 0.0006346064702
E71: 57 | F71: 0.02151607491 | H71: 57 | I71: 0.02128787172 | J71: 0.03744726004 | L71: 57 | M71: =AVERAGE(N$15:N71) -> 0.02181379317 | N71: 0.03744726004 | P71: 57 | Q71: 0.0221399551 | R71: 0.03817059543 | S71: 0.2870180388 | T71: 0.000623880193
E72: 58 | F72: 0.0218020797 | H72: 58 | I72: 0.02156781325 | J72: 0.03752447991 | L72: 58 | M72: =AVERAGE(N$15:N72) -> 0.02208466708 | N72: 0.03752447991 | P72: 58 | Q72: 0.02241557692 | R72: 0.0382494952 | S72: 0.2764441882 | T72: 0.000613497215
E73: 59 | F73: 0.02207967588 | H73: 59 | I73: 0.02183944948 | J73: 0.03759435134 | L73: 59 | M73: =AVERAGE(N$15:N73) -> 0.02234754309 | N73: 0.03759435134 | P73: 59 | Q73: 0.02268311813 | R73: 0.03832089182 | S73: 0.2662415736 | T73: 0.0006034422563
E74: 60 | F74: 0.02234916779 | H74: 60 | I74: 0.02210308489 | J74: 0.03765757363 | L74: 60 | M74: =AVERAGE(N$15:N74) -> 0.02260271026 | N74: 0.03765757363 | P74: 60 | Q74: 0.02294286865 | R74: 0.0383854984 | S74: 0.2563995491 | T74: 0.0005937008653
E75: 61 | F75: 0.0226108505 | H75: 61 | I75: 0.02235901431 | J75: 0.03771477952 | L75: 61 | M75: =AVERAGE(N$15:N75) -> 0.0228504491 | N75: 0.03771477952 | P75: 61 | Q75: 0.02319510987 | R75: 0.03844396031 | S75: 0.246907449 | T75: 0.0005842593675
E76: 62 | F76: 0.02286500957 | H76: 62 | I76: 0.02260752281 | J76: 0.03776654155 | L76: 62 | M76: =AVERAGE(N$15:N76) -> 0.02309103124 | N76: 0.03776654155 | P76: 62 | Q76: 0.02344011439 | R76: 0.03849686166 | S76: 0.2377546414 | T76: 0.0005751048183
E77: 63 | F77: 0.02311192091 | H77: 63 | I77: 0.02284888559 | J77: 0.03781337777 | L77: 63 | M77: =AVERAGE(N$15:N77) -> 0.02332471928 | N77: 0.03781337777 | P77: 63 | Q77: 0.02367814587 | R77: 0.03854473112 | S77: 0.228930574 | T77: 0.0005662249584
E78: 64 | F78: 0.02335185074 | H78: 64 | I78: 0.02308336795 | J78: 0.03785575694 | L78: 64 | M78: =AVERAGE(N$15:N78) -> 0.02355176674 | N78: 0.03785575694 | P78: 64 | Q78: 0.02390945891 | R78: 0.03858804709 | S78: 0.220424811 | T78: 0.0005576081729
E79: 65 | F79: 0.02358505567 | H79: 65 | I79: =LN(1+F79) -> 0.02331122542 | J79: 0.03789410319 | L79: 65 | M79: =AVERAGE(N$15:N79) -> 0.02377241807 | N79: =J79+($L79<=FSP)*LN(1+VA/10000) -> 0.03789410319 | P79: 65 | Q79: 0.02413429912 | R79: 0.03862724256 | S79: 0.2122270647 | T79: 0.0005492434519
E80: 66 | F80: 0.02381178276 | H80: 66 | I80: 0.02353270383 | J80: =$H80*I80-$H79*I79 -> 0.03792880032 | L80: 66 | M80: =AVERAGE(N$15:N80) -> 0.02398690871 | N80: 0.03792880032 | P80: 66 | Q80: 0.02435290312 | R80: 0.03866270936 | S80: 0.2043272208 | T80: =Q80-F80 -> 0.0005411203552
E81: 67 | F81: 0.02403226972 | H81: 67 | I81: 0.02374803952 | J81: 0.03796019558 | L81: 67 | M81: =AVERAGE(N$15:N81) -> 0.02419546523 | N81: 0.03796019558 | P81: 67 | Q81: 0.0245654987 | R81: 0.03869480209 | S81: 0.1967153589 | T81: 0.0005332289782
E82: 68 | F82: 0.02424674507 | H82: 68 | I82: 0.02395745958 | J82: 0.03798860318 | L82: 68 | M82: =AVERAGE(N$15:N82) -> 0.0243983055 | N82: 0.03798860318 | P82: 68 | Q82: 0.02477230499 | R82: 0.03872384165 | S82: 0.1893817692 | T82: 0.00052555992
E83: 69 | F83: 0.02445542837 | H83: 69 | I83: 0.02416118201 | J83: 0.03801430745 | L83: 69 | M83: =AVERAGE(N$15:N83) -> 0.02459563886 | N83: 0.03801430745 | P83: 69 | Q83: 0.02497353262 | R83: 0.03875011844 | S83: 0.1823169652 | T83: 0.0005181042545
E84: 70 | F84: 0.02465853045 | H84: 70 | I84: 0.02435941606 | J84: 0.03803756563 | L84: 70 | M84: =AVERAGE(N$15:N84) -> 0.02478766638 | N84: 0.03803756563 | P84: 70 | Q84: 0.02516938395 | R84: 0.03877389522 | S84: 0.1755116932 | T84: 0.0005108535024
E85: 71 | F85: 0.0248562537 | H85: 71 | I85: 0.02455236246 | J85: 0.0380586105 | L85: 71 | M85: =AVERAGE(N$15:N85) -> 0.02497458109 | N85: 0.0380586105 | P85: 71 | Q85: 0.0253600533 | R85: 0.03879540982 | S85: 0.1689569395 | T85: 0.0005037996054
E86: 72 | F86: 0.02504879231 | H86: 72 | I86: 0.02474021372 | J86: 0.03807765268 | L86: 72 | M86: =AVERAGE(N$15:N86) -> 0.02515656819 | N86: 0.03807765268 | P86: 72 | Q86: 0.02554572722 | R86: 0.03881487741 | S86: 0.1626439351 | T86: 0.0004969349022
E87: 73 | F87: 0.02523633258 | H87: 73 | I87: 0.02492315439 | J87: 0.03809488277 | L87: 73 | M87: =AVERAGE(N$15:N87) -> 0.02533380538 | N87: 0.03809488277 | P87: 73 | Q87: 0.02572658469 | R87: 0.03883249274 | S87: 0.1565641586 | T87: 0.0004902521055
E88: 74 | F88: 0.02541905317 | H88: 74 | I88: 0.0251013614 | J88: 0.03811047319 | L88: 74 | M88: =AVERAGE(N$15:N88) -> 0.02550646305 | N88: 0.03811047319 | P88: 74 | Q88: 0.02590279745 | R88: 0.038848432 | S88: 0.1507093371 | T88: 0.000483744281
E89: 75 | F89: 0.02559712538 | H89: 75 | I89: 0.02527500431 | J89: 0.03812457999 | L89: 75 | M89: =AVERAGE(N$15:N89) -> 0.02567470461 | N89: 0.03812457999 | P89: 75 | Q89: 0.02607453021 | R89: 0.03886285465 | S89: 0.1450714466 | T89: 0.0004774048274
E90: 76 | F90: 0.02577071348 | H90: 76 | I90: 0.02544424563 | J90: 0.03813734435 | L90: 76 | M90: =AVERAGE(N$15:N90) -> 0.02583868671 | N90: 0.03813734435 | P90: 76 | Q90: 0.02624194093 | R90: 0.03887590497 | S90: 0.1396427099 | T90: 0.0004712274578
E91: 77 | F91: 0.02593997492 | H91: 77 | I91: 0.02560924106 | J91: 0.03814889402 | L91: 77 | M91: =AVERAGE(N$15:N91) -> 0.02599855954 | N91: 0.03814889402 | P91: 77 | Q91: 0.0264051811 | R91: 0.03888771354 | S91: 0.1344155947 | T91: 0.0004652061822
E92: 78 | F92: 0.02610506068 | H92: 78 | I92: 0.02577013983 | J92: 0.03815934459 | L92: 78 | M92: =AVERAGE(N$15:N92) -> 0.02615446704 | N92: 0.03815934459 | P92: 78 | Q92: 0.02656439597 | R92: 0.03889839849 | S92: 0.1293828106 | T92: 0.000459335291
E93: 79 | F93: 0.02626611545 | H93: 79 | I93: 0.0259270849 | J93: 0.03816880066 | L93: 79 | M93: =AVERAGE(N$15:N93) -> 0.02630654721 | N93: 0.03816880066 | P93: 79 | Q93: 0.02671972479 | R93: 0.03890806672 | S93: 0.1245373048 | T93: 0.0004536093397
E94: 80 | F94: 0.02642327797 | H94: 80 | I94: 0.0260802133 | J94: 0.03817735687 | L94: 80 | M94: =AVERAGE(N$15:N94) -> 0.02645493233 | N94: 0.03817735687 | P94: 80 | Q94: 0.0268713011 | R94: 0.03891681498 | S94: 0.1198722583 | T94: 0.0004480231343
E95: 81 | F95: 0.02657668124 | H95: 81 | I95: 0.02622965633 | J95: 0.03818509885 | L95: 81 | M95: =AVERAGE(N$15:N95) -> 0.0265997492 | N95: 0.03818509885 | P95: 81 | Q95: 0.02701925296 | R95: 0.03892473079 | S95: 0.1153810808 | T95: 0.0004425717181
E96: 82 | F96: 0.02672645277 | H96: 82 | I96: 0.02637553984 | J96: 0.03819210407 | L96: 82 | M96: =AVERAGE(N$15:N96) -> 0.02674111938 | N96: 0.03819210407 | P96: 82 | Q96: 0.02716370313 | R96: 0.03893189337 | S96: 0.1110574058 | T96: 0.0004372503584
E97: 83 | F97: 0.02687271484 | H97: 83 | I97: 0.02651798445 | J97: 0.03819844267 | L97: 83 | M97: =AVERAGE(N$15:N97) -> 0.02687915942 | N97: 0.03819844267 | P97: 83 | Q97: 0.02730476937 | R97: 0.03893837438 | S97: 0.1068950849 | T97: 0.0004320545349
E98: 84 | F98: 0.0270155847 | H98: 84 | I98: 0.02665710581 | J98: 0.03820417806 | L98: 84 | M98: =AVERAGE(N$15:N98) -> 0.02701398107 | N98: 0.03820417806 | P98: 84 | Q98: 0.02744256463 | R98: 0.03894423868 | S98: 0.102888183 | T98: 0.0004269799282
E99: 85 | F99: 0.02715517481 | H99: 85 | I99: 0.02679301477 | J99: 0.03820936767 | L99: 85 | M99: =AVERAGE(N$15:N99) -> 0.0271456915 | N99: 0.03820936767 | P99: 85 | Q99: 0.02757719722 | R99: 0.03894954494 | S99: 0.09903097168 | T99: 0.0004220224095
E100: 86 | F100: 0.02729159304 | H100: 86 | I100: 0.02692581766 | J100: 0.03821406341 | L100: 86 | M100: =AVERAGE(N$15:N100) -> 0.0272743935 | N100: 0.03821406341 | P100: 86 | Q100: 0.02770877107 | R100: 0.03895434627 | S100: 0.09531792425 | T100: 0.0004171780303
E101: 87 | F101: 0.0274249429 | H101: 87 | I101: 0.02705561645 | J101: 0.0382183123 | L101: 87 | M101: =AVERAGE(N$15:N101) -> 0.02740018567 | N101: 0.0382183123 | P101: 87 | Q101: 0.02783738591 | R101: 0.03895869071 | S101: 0.09174370945 | T101: 0.0004124430133
E102: 88 | F102: 0.0275553237 | H102: 88 | I102: 0.02718250895 | J102: 0.03822215685 | L102: 88 | M102: =AVERAGE(N$15:N102) -> 0.02752316262 | N102: 0.03822215685 | P102: 88 | Q102: 0.02796313744 | R102: 0.03896262174 | S102: 0.08830318582 | T102: 0.0004078137435
E103: 89 | F103: 0.02768283075 | H103: 89 | I103: 0.02730658903 | J103: 0.03822563554 | L103: 89 | M103: =AVERAGE(N$15:N103) -> 0.02764341512 | N103: 0.03822563554 | P103: 89 | Q103: 0.02808611751 | R103: 0.03896617869 | S103: 0.0849913959 | T103: 0.0004032867596
E104: 90 | F104: 0.02780755555 | H104: 90 | I104: 0.02742794674 | J104: 0.03822878319 | L104: 90 | M104: =AVERAGE(N$15:N104) -> 0.02776103032 | N104: 0.03822878319 | P104: 90 | Q104: 0.0282064143 | R104: 0.03896939717 | S104: 0.08180356047 | T104: 0.0003988587467
E105: 91 | F105: 0.02792958597 | H105: 91 | I105: 0.02754666855 | J105: 0.03823163131 | L105: 91 | M105: =AVERAGE(N$15:N105) -> 0.02787609187 | N105: 0.03823163131 | P105: 91 | Q105: 0.0283241125 | R105: 0.03897230937 | S105: 0.07873507285 | T105: 0.0003945265284
E106: 92 | F106: 0.02804900637 | H106: 92 | I106: 0.02766283746 | J106: 0.03823420839 | L106: 92 | M106: =AVERAGE(N$15:N106) -> 0.0279886801 | N106: 0.03823420839 | P106: 92 | Q106: 0.02843929343 | R106: 0.03897494445 | S106: 0.07578149335 | T106: 0.0003902870603
E107: 93 | F107: 0.02816589779 | H107: 93 | I107: 0.02777653319 | J107: 0.03823654023 | L107: 93 | M107: =AVERAGE(N$15:N107) -> 0.02809887214 | N107: 0.03823654023 | P107: 93 | Q107: 0.02855203522 | R107: 0.03897732878 | S107: 0.07293854375 | T107: 0.0003861374232
E108: 94 | F108: 0.02828033812 | H108: 94 | I108: 0.0278878323 | J108: 0.03823865016 | L108: 94 | M108: =AVERAGE(N$15:N108) -> 0.02820674212 | N108: 0.03823865016 | P108: 94 | Q108: 0.02866241293 | R108: 0.03897948621 | S108: 0.07020210189 | T108: 0.0003820748167
E109: 95 | F109: 0.02839240218 | H109: 95 | I109: 0.02799680838 | J109: 0.03824055931 | L109: 95 | M109: =AVERAGE(N$15:N109) -> 0.02831236125 | N109: 0.03824055931 | P109: 95 | Q109: 0.02877049873 | R109: 0.03898143834 | S109: 0.06756819641 | T109: 0.0003780965539
E110: 96 | F110: 0.02850216191 | H110: 96 | I110: 0.02810353211 | J110: 0.03824228678 | L110: 96 | M110: =AVERAGE(N$15:N110) -> 0.02841579797 | N110: 0.03824228678 | P110: 96 | Q110: 0.02887636197 | R110: 0.0389832047 | S110: 0.0650330016 | T110: 0.0003742000555
E111: 97 | F111: 0.02860968649 | H111: 97 | I111: =LN(1+F111) -> 0.02820807147 | J111: 0.03824384985 | L111: 97 | M111: =AVERAGE(N$15:N111) -> 0.02851711809 | N111: =J111+($L111<=FSP)*LN(1+VA/10000) -> 0.03824384985 | P111: 97 | Q111: 0.02898006933 | R111: 0.03898480297 | S111: 0.06259283236 | T111: 0.0003703828447
E112: 98 | F112: 0.02871504243 | H112: 98 | I112: 0.0283104918 | J112: 0.03824526419 | L112: 98 | M112: =AVERAGE(N$15:N112) -> 0.02861638489 | N112: 0.03824526419 | P112: 98 | Q112: 0.02908168497 | R112: 0.03898624915 | S112: 0.06024413933 | T112: 0.0003666425422
E113: 99 | F113: 0.02881829373 | H113: 99 | I113: 0.02841085597 | J113: 0.03824654393 | L113: 99 | M113: =AVERAGE(N$15:N113) -> 0.02871365922 | N113: 0.03824654393 | P113: 99 | Q113: 0.0291812706 | R113: 0.03898755771 | S113: 0.05798350412 | T113: 0.0003629768618
E114: 100 | F114: 0.02891950198 | H114: 100 | I114: 0.02850922443 | J114: 0.03824770188 | L114: 100 | M114: =AVERAGE(N$15:N114) -> 0.02880899965 | N114: 0.03824770188 | P114: 100 | Q114: 0.02927888559 | R114: 0.03898874174 | S114: 0.05580763467 | T114: 0.0003593836056
E115: 101 | F115: 0.02901872644 | H115: 101 | I115: 0.02860565537 | J115: 0.03824874964 | L115: 101 | M115: =AVERAGE(N$15:N115) -> 0.02890246252 | N115: 0.03824874964 | P115: 101 | Q115: 0.0293745871 | R115: 0.0389898131 | S115: 0.05371336077 | T115: 0.0003558606604
E116: 102 | F116: 0.02911602418 | H116: 102 | I116: 0.0287002048 | J116: 0.0382496977 | L116: 102 | M116: =AVERAGE(N$15:N116) -> 0.02899410208 | N116: 0.0382496977 | P116: 102 | Q116: 0.02946843018 | R116: 0.03899078251 | S116: 0.05169762973 | T116: 0.0003524059932
E117: 103 | F117: 0.02921145015 | H117: 103 | I117: 0.02879292666 | J117: 0.03825055553 | L117: 103 | M117: =AVERAGE(N$15:N117) -> 0.02908397056 | N117: 0.03825055553 | P117: 103 | Q117: 0.0295604678 | R117: 0.03899165967 | S117: 0.04975750214 | T117: 0.0003490176479
E118: 104 | F118: 0.02930505728 | H118: 104 | I118: 0.02888387286 | J118: 0.03825133174 | L118: 104 | M118: =AVERAGE(N$15:N118) -> 0.02917211827 | N118: 0.03825133174 | P118: 104 | Q118: 0.02965075102 | R118: 0.03899245335 | S118: 0.04789014779 | T118: 0.0003456937416
E119: 105 | F119: 0.02939689657 | H119: 105 | I119: 0.02897309344 | J119: 0.03825203407 | L119: 105 | M119: =AVERAGE(N$15:N119) -> 0.02925859365 | N119: 0.03825203407 | P119: 105 | Q119: 0.02973932904 | R119: 0.03899317151 | S119: 0.04609284171 | T119: 0.0003424324614
E120: 106 | F120: 0.02948701719 | H120: 106 | I120: 0.02906063661 | J120: 0.03825266957 | L120: 106 | M120: =AVERAGE(N$15:N120) -> 0.02934344343 | N120: 0.03825266957 | P120: 106 | Q120: 0.02982624925 | R120: 0.03899382132 | S120: 0.04436296036 | T120: 0.0003392320608
E121: 107 | F121: 0.02957546651 | H121: 107 | I121: 0.02914654884 | J121: 0.0382532446 | L121: 107 | M121: =AVERAGE(N$15:N121) -> 0.0294267126 | N121: 0.0382532446 | P121: 107 | Q121: 0.02991155736 | R121: 0.0389944093 | S121: 0.04269797793 | T121: 0.0003360908574
E122: 108 | F122: 0.02966229022 | H122: 108 | I122: 0.02923087491 | J122: 0.0382537649 | L122: 108 | M122: =AVERAGE(N$15:N122) -> 0.02950844456 | N122: 0.0382537649 | P122: 108 | Q122: 0.02999529745 | R122: 0.03899494132 | S122: 0.04109546277 | T122: 0.0003330072296
E123: 109 | F123: 0.02974753242 | H123: 109 | I123: 0.02931365804 | J123: 0.03825423569 | L123: 109 | M123: =AVERAGE(N$15:N123) -> 0.02958868118 | N123: 0.03825423569 | P123: 109 | Q123: 0.03007751203 | R123: 0.03899542272 | S123: 0.03955307393 | T123: 0.000329979614
E124: 110 | F124: 0.0298312356 | H124: 110 | I124: 0.02939493989 | J124: 0.03825466168 | L124: 110 | M124: =AVERAGE(N$15:N124) -> 0.02966746282 | N124: 0.03825466168 | P124: 110 | Q124: 0.03015824211 | R124: 0.0389958583 | S124: 0.03806855784 | T124: 0.0003270065029
E125: 111 | F125: 0.02991344082 | H125: 111 | I125: 0.02947476067 | J125: 0.03825504713 | L125: 111 | M125: =AVERAGE(N$15:N125) -> 0.02974482844 | N125: 0.03825504713 | P125: 111 | Q125: 0.03023752726 | R125: 0.03899625244 | S125: 0.0366397451 | T125: 0.0003240864418
E126: 112 | F126: 0.02999418769 | H126: 112 | I126: 0.0295531592 | J126: 0.0382553959 | L126: 112 | M126: =AVERAGE(N$15:N126) -> 0.02982081565 | N126: 0.0382553959 | P126: 112 | Q126: 0.03031540571 | R126: 0.03899660906 | S126: 0.03526454733 | T126: 0.0003212180273
E127: 113 | F127: 0.03007351444 | H127: 113 | I127: 0.02963017294 | J127: 0.03825571148 | L127: 113 | M127: =AVERAGE(N$15:N127) -> 0.02989546075 | N127: 0.03825571148 | P127: 113 | Q127: 0.03039191435 | R127: 0.03899693175 | S127: 0.03394095425 | T127: 0.0003183999044
E128: 114 | F128: 0.03015145803 | H128: 114 | I128: 0.02970583806 | J128: 0.03825599703 | L128: 114 | M128: =AVERAGE(N$15:N128) -> 0.02996879879 | N128: 0.03825599703 | P128: 114 | Q128: 0.0304670888 | R128: 0.03899722374 | S128: 0.03266703075 | T128: 0.0003156307653
E129: 115 | F129: 0.03022805414 | H129: 115 | I129: 0.02978018952 | J129: 0.0382562554 | L129: 115 | M129: =AVERAGE(N$15:N129) -> 0.03004086363 | N129: 0.0382562554 | P129: 115 | Q129: 0.03054096349 | R129: 0.03899748793 | S129: 0.03144091408 | T129: 0.0003129093465
E130: 116 | F130: 0.03030333725 | H130: 116 | I130: 0.02985326107 | J130: 0.03825648919 | L130: 116 | M130: =AVERAGE(N$15:N130) -> 0.03011168799 | N130: 0.03825648919 | P130: 116 | Q130: 0.03061357168 | R130: 0.03899772699 | S130: 0.03026081122 | T130: 0.0003102344275
E131: 117 | F131: 0.03037734069 | H131: 117 | I131: 0.02992508534 | J131: 0.03825670073 | L131: 117 | M131: =AVERAGE(N$15:N131) -> 0.03018130348 | N131: 0.03825670073 | P131: 117 | Q131: 0.03068494552 | R131: 0.03899794329 | S131: 0.02912499627 | T131: 0.000307604829
E132: 118 | F132: 0.03045009669 | H132: 118 | I132: 0.02999569387 | J132: 0.03825689214 | L132: 118 | M132: =AVERAGE(N$15:N132) -> 0.03024974067 | N132: 0.03825689214 | P132: 118 | Q132: 0.0307551161 | R132: 0.03899813901 | S132: 0.02803180793 | T132: 0.0003050194108
E133: 119 | F133: 0.03052163641 | H133: 119 | I133: 0.03006511716 | J133: 0.03825706533 | L133: 119 | M133: =AVERAGE(N$15:N133) -> 0.03031702911 | N133: 0.03825706533 | P133: 119 | Q133: 0.03082411348 | R133: 0.03899831611 | S133: 0.02697964712 | T133: 0.0003024770706
E134: 120 | F134: 0.03059198999 | H134: 120 | I134: 0.0301333847 | J134: 0.03825722204 | L134: 120 | M134: =AVERAGE(N$15:N134) -> 0.03038319739 | N134: 0.03825722204 | P134: 120 | Q134: 0.03089196673 | R134: 0.03899847635 | S134: 0.02596697467 | T134: 0.0002999767424
E135: 121 | F135: 0.03066118659 | H135: 121 | I135: 0.03020052502 | J135: 0.03825736384 | L135: 121 | M135: =AVERAGE(N$15:N135) -> 0.03044827314 | N135: 0.03825736384 | P135: 121 | Q135: 0.03095870399 | R135: 0.03899862135 | S135: 0.02499230908 | T135: 0.0002975173948
E136: 122 | F136: 0.03072925444 | H136: 122 | I136: 0.03026656574 | J136: 0.03825749215 | L136: 122 | M136: =AVERAGE(N$15:N136) -> 0.03051228314 | N136: 0.03825749215 | P136: 122 | Q136: 0.03102435247 | R136: 0.03899875254 | S136: 0.02405422433 | T136: 0.0002950980298
E137: 123 | F137: 0.03079622085 | H137: 123 | I137: 0.03033153356 | J137: 0.03825760824 | L137: 123 | M137: =AVERAGE(N$15:N137) -> 0.03057525326 | N137: 0.03825760824 | P137: 123 | Q137: 0.03108893854 | R137: 0.03899887125 | S137: 0.0231513479 | T137: 0.0002927176815
E138: 124 | F138: 0.03086211228 | H138: 124 | I138: 0.03039545437 | J138: 0.03825771329 | L138: 124 | M138: =AVERAGE(N$15:N138) -> 0.03063720858 | N138: 0.03825771329 | P138: 124 | Q138: 0.0311524877 | R138: 0.03899897867 | S138: 0.02228235867 | T138: 0.0002903754147
E139: 125 | F139: 0.03092695435 | H139: 125 | I139: 0.0304583532 | J139: 0.03825780834 | L139: 125 | M139: =AVERAGE(N$15:N139) -> 0.03069817338 | N139: 0.03825780834 | P139: 125 | Q139: 0.03121502467 | R139: 0.03899907586 | S139: 0.02144598507 | T139: 0.0002880703237
E140: 126 | F140: 0.03099077185 | H140: 126 | I140: 0.03052025432 | J140: 0.03825789435 | L140: 126 | M140: =AVERAGE(N$15:N140) -> 0.03075817116 | N140: 0.03825789435 | P140: 126 | Q140: 0.03127657339 | R140: 0.0389991638 | S140: 0.0206410032 | T140: 0.0002858015314
E141: 127 | F141: 0.03105358885 | H141: 127 | I141: 0.03058118123 | J141: 0.03825797217 | L141: 127 | M141: =AVERAGE(N$15:N141) -> 0.03081722472 | N141: 0.03825797217 | P141: 127 | Q141: 0.03133715704 | R141: 0.03899924338 | S141: 0.01986623507 | T141: 0.0002835681878
E142: 128 | F142: 0.03111542864 | H142: 128 | I142: 0.03064115671 | J142: 0.03825804258 | L142: 128 | M142: =AVERAGE(N$15:N142) -> 0.03087535611 | N142: 0.03825804258 | P142: 128 | Q142: 0.03139679811 | R142: 0.03899931538 | S142: 0.01912054683 | T142: 0.0002813694694
E143: 129 | F143: 0.0311763138 | H143: 129 | I143: =LN(1+F143) -> 0.03070020283 | J143: 0.0382581063 | L143: 129 | M143: =AVERAGE(N$15:N143) -> 0.03093258673 | N143: =J143+($L143<=FSP)*LN(1+VA/10000) -> 0.0382581063 | P143: 129 | Q143: 0.03145551838 | R143: 0.03899938053 | S143: 0.01840284719 | T143: 0.0002792045777
E144: 130 | F144: 0.03123626624 | H144: 130 | I144: 0.03075834099 | J144: =$H144*I144-$H143*I143 -> 0.03825816395 | L144: 130 | M144: =AVERAGE(N$15:N144) -> 0.03098893732 | N144: 0.03825816395 | P144: 130 | Q144: 0.03151333898 | R144: 0.03899943948 | S144: 0.01771208577 | T144: =Q144-F144 -> 0.0002770727386
E145: 131 | F145: 0.03129530719 | H145: 131 | I145: 0.03081559195 | J145: 0.03825821611 | L145: 131 | M145: =AVERAGE(N$15:N145) -> 0.031044428 | N145: 0.03825821611 | P145: 131 | Q145: 0.03157028039 | R145: 0.03899949282 | S145: 0.01704725161 | T145: 0.0002749732016
E146: 132 | F146: 0.03135345726 | H146: 132 | I146: 0.03087197582 | J146: 0.03825826332 | L146: 132 | M146: =AVERAGE(N$15:N146) -> 0.03109907827 | N146: 0.03825826332 | P146: 132 | Q146: 0.0316263625 | R146: 0.03899954109 | S146: 0.01640737164 | T146: 0.0002729052383
E147: 133 | F147: 0.03141073642 | H147: 133 | I147: 0.03092751214 | J147: 0.03825830602 | L147: 133 | M147: =AVERAGE(N$15:N147) -> 0.03115290705 | N147: 0.03825830602 | P147: 133 | Q147: 0.03168160456 | R147: 0.03899958476 | S147: 0.01579150934 | T147: 0.0002708681423
E148: 134 | F148: 0.03146716408 | H148: 134 | I148: 0.03098221985 | J148: 0.03825834467 | L148: 134 | M148: =AVERAGE(N$15:N148) -> 0.0312059327 | N148: 0.03825834467 | P148: 134 | Q148: 0.03173602531 | R148: 0.03899962427 | S148: 0.01519876328 | T148: 0.000268861228
E149: 135 | F149: 0.03152275906 | H149: 135 | I149: 0.03103611733 | J149: 0.03825837964 | L149: 135 | M149: =AVERAGE(N$15:N149) -> 0.03125817305 | N149: 0.03825837964 | P149: 135 | Q149: 0.03178964289 | R149: 0.03899966003 | S149: 0.01462826588 | T149: 0.00026688383
E150: 136 | F150: 0.03157753963 | H150: 136 | I150: 0.03108922243 | J150: 0.03825841128 | L150: 136 | M150: =AVERAGE(N$15:N150) -> 0.03130964539 | N150: 0.03825841128 | P150: 136 | Q150: 0.03184247494 | R150: 0.03899969238 | S150: 0.01407918211 | T150: 0.0002649353022
E151: 137 | F151: 0.03163152356 | H151: 137 | I151: 0.03114155248 | J151: 0.03825843991 | L151: 137 | M151: =AVERAGE(N$15:N151) -> 0.03136036652 | N151: 0.03825843991 | P151: 137 | Q151: 0.03189453857 | R151: 0.03899972165 | S151: 0.01355070826 | T151: 0.0002630150171
E152: 138 | F152: 0.03168472806 | H152: 138 | I152: 0.03119312432 | J152: 0.03825846581 | L152: 138 | M152: =AVERAGE(N$15:N152) -> 0.03141035274 | N152: 0.03825846581 | P152: 138 | Q152: 0.03194585042 | R152: 0.03899974814 | S152: 0.01304207078 | T152: 0.0002611223654
E153: 139 | F153: 0.03173716989 | H153: 139 | I153: 0.03124395428 | J153: 0.03825848925 | L153: 139 | M153: =AVERAGE(N$15:N153) -> 0.03145961991 | N153: 0.03825848925 | P153: 139 | Q153: 0.03199642664 | R153: 0.03899977211 | S153: 0.01255252516 | T153: 0.0002592567551
E154: 140 | F154: 0.03178886532 | H154: 140 | I154: 0.03129405826 | J154: 0.03825851046 | L154: 140 | M154: =AVERAGE(N$15:N154) -> 0.03150818342 | N154: 0.03825851046 | P154: 140 | Q154: 0.03204628293 | R154: 0.0389997938 | S154: 0.01208135482 | T154: 0.000257417611
E155: 141 | F155: 0.03183983015 | H155: 141 | I155: 0.03134345167 | J155: 0.03825852965 | L155: 141 | M155: =AVERAGE(N$15:N155) -> 0.03155605821 | N155: 0.03825852965 | P155: 141 | Q155: 0.03209543452 | R155: 0.03899981342 | S155: 0.01162787005 | T155: 0.0002556043742
E156: 142 | F156: 0.03189007976 | H156: 142 | I156: 0.03139214952 | J156: 0.03825854701 | L156: 142 | M156: =AVERAGE(N$15:N156) -> 0.03160325884 | N156: 0.03825854701 | P156: 142 | Q156: 0.03214389626 | R156: 0.03899983118 | S156: 0.01119140707 | T156: 0.000253816501
E157: 143 | F157: 0.03193962908 | H157: 143 | I157: 0.0314401664 | J157: 0.03825856272 | L157: 143 | M157: =AVERAGE(N$15:N157) -> 0.03164979942 | N157: 0.03825856272 | P157: 143 | Q157: 0.03219168255 | R157: 0.03899984724 | S157: 0.01077132696 | T157: 0.0002520534633
E158: 144 | F158: 0.03198849266 | H158: 144 | I158: 0.03148751647 | J158: 0.03825857694 | L158: 144 | M158: =AVERAGE(N$15:N158) -> 0.03169569371 | N158: 0.03825857694 | P158: 144 | Q158: 0.03223880741 | R158: 0.03899986178 | S158: 0.01036701482 | T158: 0.0002503147473
E159: 145 | F159: 0.03203668461 | H159: 145 | I159: 0.03153421353 | J159: 0.0382585898 | L159: 145 | M159: =AVERAGE(N$15:N159) -> 0.03174095506 | N159: 0.0382585898 | P159: 145 | Q159: 0.03228528446 | R159: 0.03899987493 | S159: 0.009977878792 | T159: 0.0002485998532
E160: 146 | F160: 0.03208421868 | H160: 146 | I160: 0.03158027098 | J160: 0.03825860144 | L160: 146 | M160: =AVERAGE(N$15:N160) -> 0.03178559648 | N160: 0.03825860144 | P160: 146 | Q160: 0.03233112698 | R160: 0.03899988683 | S160: 0.009603349258 | T160: 0.0002469082949
E161: 147 | F161: 0.03213110825 | H161: 147 | I161: 0.03162570187 | J161: 0.03825861198 | L161: 147 | M161: =AVERAGE(N$15:N161) -> 0.0318296306 | N161: 0.03825861198 | P161: 147 | Q161: 0.03237634785 | R161: 0.0389998976 | S161: 0.009242877964 | T161: 0.0002452395995
E162: 148 | F162: 0.03217736634 | H162: 148 | I162: 0.0316705189 | J162: 0.03825862151 | L162: 148 | M162: =AVERAGE(N$15:N162) -> 0.03187306972 | N162: 0.03825862151 | P162: 148 | Q162: 0.03242095964 | R162: 0.03899990735 | S162: 0.008895937236 | T162: 0.0002435933066
E163: 149 | F163: 0.0322230056 | H163: 149 | I163: 0.03171473441 | J163: 0.03825863013 | L163: 149 | M163: =AVERAGE(N$15:N163) -> 0.03191592583 | N163: 0.03825863013 | P163: 149 | Q163: 0.03246497456 | R163: 0.03899991616 | S163: 0.008562019205 | T163: 0.0002419689681
E164: 150 | F164: 0.03226803836 | H164: 150 | I164: 0.03175836043 | J164: 0.03825863793 | L164: 150 | M164: =AVERAGE(N$15:N164) -> 0.03195821058 | N164: 0.03825863793 | P164: 150 | Q164: 0.03250840451 | R164: 0.03899992414 | S164: 0.008240635062 | T164: 0.0002403661479

Sheet 2020 Review Term Structures (hidden)
A1: RFR Term Structures as of end of December 2019
A2: Alternative Extrapolation - Without VA
A3: All source data are Refinitiv based
C5: Country | D5: Currency | E5: Country | F5: Currency | G5: Country | H5: Currency | I5: Country | J5: Currency | K5: Country | L5: Currency | M5: Country | N5: Currency | O5: Country | P5: Currency | Q5: Country | R5: Currency | S5: Country | T5: Currency | U5: Country | V5: Currency | W5: Country | X5: Currency | Y5: Country | Z5: Currency | AA5: Country | AB5: Currency | AC5: Country | AD5: Currency | AE5: Country | AF5: Currency | AG5: Country | AH5: Currency | AI5: Country | AJ5: Currency | AK5: Country | AL5: Currency | AM5: Country | AN5: Currency | AO5: Country | AP5: Currency | AQ5: Country | AR5: Currency | AS5: Country | AT5: Currency | AU5: Country | AV5: Currency | AW5: Country | AX5: Currency | AY5: Country | AZ5: Currency | BA5: Country | BB5: Currency | BC5: Country | BD5: Currency | BE5: Country | BF5: Currency | BG5: Country | BH5: Currency | BI5: Country | BJ5: Currency | BK5: Country | BL5: Currency | BM5: Country | BN5: Currency | BO5: Country | BP5: Currency | BQ5: Country | BR5: Currency
C6: Euro | D6: EUR | E6: Bulgaria | F6: BGN | G6: Croatia | H6: HRK | I6: Czechia | J6: CZK | K6: Denmark | L6: DKK | M6: Hungary | N6: HUF | O6: Iceland | P6: ISK | Q6: Liechtenstein | R6: CHF | S6: Norway | T6: NOK | U6: Poland | V6: PLN | W6: Romania | X6: RON | Y6: Russia | Z6: RUB | AA6: Sweden | AB6: SEK | AC6: Switzerland | AD6: CHF | AE6: United Kingdom | AF6: GBP | AG6: Australia | AH6: AUD | AI6: Brazil | AJ6: BRL | AK6: Canada | AL6: CAD | AM6: Chile | AN6: CLP | AO6: China | AP6: CNY | AQ6: Colombia | AR6: COP | AS6: Hong Kong | AT6: HKD | AU6: India | AV6: INR | AW6: Japan | AX6: JPY | AY6: Malaysia | AZ6: MYR | BA6: Mexico | BB6: MXN | BC6: New Zealand | BD6: NZD | BE6: Singapore | BF6: SGD | BG6: South Africa | BH6: ZAR | BI6: South Korea | BJ6: KRW | BK6: Taiwan | BL6: TWD | BM6: Thailand | BN6: THB | BO6: Turkey | BP6: TRY | BQ6: United States | BR6: USD
C7: Date | E7: Date | G7: Date | I7: Date | K7: Date | M7: Date | O7: Date | Q7: Date | S7: Date | U7: Date | W7: Date | Y7: Date | AA7: Date | AC7: Date | AE7: Date | AG7: Date | AI7: Date | AK7: Date | AM7: Date | AO7: Date | AQ7: Date | AS7: Date | AU7: Date | AW7: Date | AY7: Date | BA7: Date | BC7: Date | BE7: Date | BG7: Date | BI7: Date | BK7: Date | BM7: Date | BO7: Date | BQ7: Date
C8: 2019-12-31 | E8: 2019-12-31 | G8: 2019-12-30 | I8: 2019-12-31 | K8: 2019-12-31 | M8: 2019-12-30 | O8: 2019-12-30 | Q8: 2019-12-31 | S8: 2019-12-31 | U8: 2019-12-30 | W8: 2019-12-30 | Y8: 2019-12-30 | AA8: 2019-12-31 | AC8: 2019-12-31 | AE8: 2019-12-31 | AG8: 2019-12-31 | AI8: 2019-12-30 | AK8: 2019-12-31 | AM8: 2019-12-30 | AO8: 2019-12-31 | AQ8: 2019-12-30 | AS8: 2019-12-31 | AU8: 2019-12-31 | AW8: 2019-12-31 | AY8: 2019-12-31 | BA8: 2019-12-31 | BC8: 2019-12-31 | BE8: 2019-12-31 | BG8: 2019-12-31 | BI8: 2019-12-31 | BK8: 2019-12-31 | BM8: 2019-12-30 | BO8: 2019-12-31 | BQ8: 2019-12-31
C9: CRA | D9: UFR | E9: CRA | F9: UFR | G9: CRA | H9: UFR | I9: CRA | J9: UFR | K9: CRA | L9: UFR | M9: CRA | N9: UFR | O9: CRA | P9: UFR | Q9: CRA | R9: UFR | S9: CRA | T9: UFR | U9: CRA | V9: UFR | W9: CRA | X9: UFR | Y9: CRA | Z9: UFR | AA9: CRA | AB9: UFR | AC9: CRA | AD9: UFR | AE9: CRA | AF9: UFR | AG9: CRA | AH9: UFR | AI9: CRA | AJ9: UFR | AK9: CRA | AL9: UFR | AM9: CRA | AN9: UFR | AO9: CRA | AP9: UFR | AQ9: CRA | AR9: UFR | AS9: CRA | AT9: UFR | AU9: CRA | AV9: UFR | AW9: CRA | AX9: UFR | AY9: CRA | AZ9: UFR | BA9: CRA | BB9: UFR | BC9: CRA | BD9: UFR | BE9: CRA | BF9: UFR | BG9: CRA | BH9: UFR | BI9: CRA | BJ9: UFR | BK9: CRA | BL9: UFR | BM9: CRA | BN9: UFR | BO9: CRA | BP9: UFR | BQ9: CRA | BR9: UFR
C10: 10 | D10: 3.9 | E10: 15 | F10: 3.9 | G10: 10 | H10: 3.9 | I10: 10 | J10: 3.9 | K10: 11 | L10: 3.9 | M10: 10 | N10: 4.5 | O10: 10 | P10: 3.9 | Q10: 10 | R10: 2.9 | S10: 10 | T10: 3.9 | U10: 10 | V10: 3.9 | W10: 10 | X10: 3.9 | Y10: 35 | Z10: 4.5 | AA10: 10 | AB10: 3.9 | AC10: 10 | AD10: 2.9 | AE10: 11 | AF10: 3.9 | AG10: 21 | AH10: 3.9 | AI10: 35 | AJ10: 5.5 | AK10: 15 | AL10: 3.9 | AM10: 17 | AN10: 4.5 | AO10: 22 | AP10: 4.5 | AQ10: 35 | AR10: 4.5 | AS10: 15 | AT10: 3.9 | AU10: 35 | AV10: 5.5 | AW10: 10 | AX10: 3.5 | AY10: 15 | AZ10: 3.9 | BA10: 35 | BB10: 4.9 | BC10: 11 | BD10: 3.9 | BE10: 11 | BF10: 3.9 | BG10: 35 | BH10: 5.5 | BI10: 10 | BJ10: 3.9 | BK10: 10 | BL10: 3.9 | BM10: 10 | BN10: 3.9 | BO10: 35 | BP10: 5.5 | BQ10: 13 | BR10: 3.9
D11: Alternative | F11: Alternative | H11: Alternative | J11: Alternative | L11: Alternative | N11: Alternative | P11: Alternative | R11: Alternative | T11: Alternative | V11: Alternative | X11: Alternative | Z11: Alternative | AB11: Alternative | AD11: Alternative | AF11: Alternative | AH11: Alternative | AJ11: Alternative | AL11: Alternative | AN11: Alternative | AP11: Alternative | AR11: Alternative | AT11: Alternative | AV11: Alternative | AX11: Alternative | AZ11: Alternative | BB11: Alternative | BD11: Alternative | BF11: Alternative | BH11: Alternative | BJ11: Alternative | BL11: Alternative | BN11: Alternative | BP11: Alternative | BR11: Alternative
D12: Instrument | F12: Instrument | H12: Instrument | J12: Instrument | L12: Instrument | N12: Instrument | P12: Instrument | R12: Instrument | T12: Instrument | V12: Instrument | X12: Instrument | Z12: Instrument | AB12: Instrument | AD12: Instrument | AF12: Instrument | AH12: Instrument | AJ12: Instrument | AL12: Instrument | AN12: Instrument | AP12: Instrument | AR12: Instrument | AT12: Instrument | AV12: Instrument | AX12: Instrument | AZ12: Instrument | BB12: Instrument | BD12: Instrument | BF12: Instrument | BH12: Instrument | BJ12: Instrument | BL12: Instrument | BN12: Instrument | BP12: Instrument | BR12: Instrument
D13: SWP | F13: SWP | H13: GVT | J13: SWP | L13: SWP | N13: SWP | P13: GVT | R13: SWP | T13: SWP | V13: SWP | X13: GVT | Z13: GVT | AB13: SWP | AD13: SWP | AF13: SWP | AH13: SWP | AJ13: GVT | AL13: SWP | AN13: GVT | AP13: SWP | AR13: GVT | AT13: SWP | AV13: GVT | AX13: SWP | AZ13: GVT | BB13: SWP | BD13: SWP | BF13: SWP | BH13: SWP | BJ13: SWP | BL13: GVT | BN13: GVT | BP13: GVT | BR13: SWP
D14: CouponFreq | F14: CouponFreq | H14: CouponFreq | J14: CouponFreq | L14: CouponFreq | N14: CouponFreq | P14: CouponFreq | R14: CouponFreq | T14: CouponFreq | V14: CouponFreq | X14: CouponFreq | Z14: CouponFreq | AB14: CouponFreq | AD14: CouponFreq | AF14: CouponFreq | AH14: CouponFreq | AJ14: CouponFreq | AL14: CouponFreq | AN14: CouponFreq | AP14: CouponFreq | AR14: CouponFreq | AT14: CouponFreq | AV14: CouponFreq | AX14: CouponFreq | AZ14: CouponFreq | BB14: CouponFreq | BD14: CouponFreq | BF14: CouponFreq | BH14: CouponFreq | BJ14: CouponFreq | BL14: CouponFreq | BN14: CouponFreq | BP14: CouponFreq | BR14: CouponFreq
D15: 1 | F15: 1 | H15: 0 | J15: 1 | L15: 1 | N15: 1 | P15: 0 | R15: 1 | T15: 1 | V15: 1 | X15: 0 | Z15: 0 | AB15: 1 | AD15: 1 | AF15: 2 | AH15: 2 | AJ15: 0 | AL15: 2 | AN15: 0 | AP15: 4 | AR15: 0 | AT15: 4 | AV15: 0 | AX15: 2 | AZ15: 0 | BB15: 13 | BD15: 2 | BF15: 2 | BH15: 4 | BJ15: 4 | BL15: 0 | BN15: 0 | BP15: 0 | BR15: 2
D16: FSP | F16: FSP | H16: FSP | J16: FSP | L16: FSP | N16: FSP | P16: FSP | R16: FSP | T16: FSP | V16: FSP | X16: FSP | Z16: FSP | AB16: FSP | AD16: FSP | AF16: FSP | AH16: FSP | AJ16: FSP | AL16: FSP | AN16: FSP | AP16: FSP | AR16: FSP | AT16: FSP | AV16: FSP | AX16: FSP | AZ16: FSP | BB16: FSP | BD16: FSP | BF16: FSP | BH16: FSP | BJ16: FSP | BL16: FSP | BN16: FSP | BP16: FSP | BR16: FSP
D17: 20 | F17: 20 | H17: 12 | J17: 10 | L17: 20 | N17: 10 | P17: 8 | R17: 10 | T17: 10 | V17: 10 | X17: 10 | Z17: 15 | AB17: 10 | AD17: 10 | AF17: 40 | AH17: 15 | AJ17: 10 | AL17: 30 | AN17: 10 | AP17: 10 | AR17: 10 | AT17: 15 | AV17: 10 | AX17: 25 | AZ17: 20 | BB17: 20 | BD17: 20 | BF17: 20 | BH17: 15 | BJ17: 20 | BL17: 10 | BN17: 15 | BP17: 9 | BR17: 25
D18: Mean Rev | F18: Mean Rev | H18: Mean Rev | J18: Mean Rev | L18: Mean Rev | N18: Mean Rev | P18: Mean Rev | R18: Mean Rev | T18: Mean Rev | V18: Mean Rev | X18: Mean Rev | Z18: Mean Rev | AB18: Mean Rev | AD18: Mean Rev | AF18: Mean Rev | AH18: Mean Rev | AJ18: Mean Rev | AL18: Mean Rev | AN18: Mean Rev | AP18: Mean Rev | AR18: Mean Rev | AT18: Mean Rev | AV18: Mean Rev | AX18: Mean Rev | AZ18: Mean Rev | BB18: Mean Rev | BD18: Mean Rev | BF18: Mean Rev | BH18: Mean Rev | BJ18: Mean Rev | BL18: Mean Rev | BN18: Mean Rev | BP18: Mean Rev | BR18: Mean Rev
D19: 0.1 | F19: 0.1 | H19: 0.1 | J19: 0.1 | L19: 0.1 | N19: 0.1 | P19: 0.1 | R19: 0.1 | T19: 0.1 | V19: 0.1 | X19: 0.1 | Z19: 0.1 | AB19: 0.4 | AD19: 0.1 | AF19: 0.1 | AH19: 0.1 | AJ19: 0.1 | AL19: 0.1 | AN19: 0.1 | AP19: 0.1 | AR19: 0.1 | AT19: 0.1 | AV19: 0.1 | AX19: 0.1 | AZ19: 0.1 | BB19: 0.1 | BD19: 0.1 | BF19: 0.1 | BH19: 0.1 | BJ19: 0.1 | BL19: 0.1 | BN19: 0.1 | BP19: 0.1 | BR19: 0.1
D20: LLFR | F20: LLFR | H20: LLFR | J20: LLFR | L20: LLFR | N20: LLFR | P20: LLFR | R20: LLFR | T20: LLFR | V20: LLFR | X20: LLFR | Z20: LLFR | AB20: LLFR | AD20: LLFR | AF20: LLFR | AH20: LLFR | AJ20: LLFR | AL20: LLFR | AN20: LLFR | AP20: LLFR | AR20: LLFR | AT20: LLFR | AV20: LLFR | AX20: LLFR | AZ20: LLFR | BB20: LLFR | BD20: LLFR | BF20: LLFR | BH20: LLFR | BJ20: LLFR | BL20: LLFR | BN20: LLFR | BP20: LLFR | BR20: LLFR
D21: 0.007051369015 | F21: 0.00654500674 | H21: 0.01750938371 | J21: 0.01256120037 | L21: 0.006950112773 | N21: 0.02118724069 | P21: 0.03412605729 | R21: 0.001101059971 | T21: 0.02013029126 | V21: 0.01845373849 | X21: 0.05696512797 | Z21: 0.07244766652 | AB21: 0.009968992353 | AD21: 0.001101059971 | AF21: 0.008024934791 | AH21: 0.02030672112 | AJ21: 0.069170229 | AL21: 0.0214988674 | AN21: 0.03798124122 | AP21: 0.03276603915 | AR21: 0.07707762186 | AT21: 0.01940001623 | AV21: 0.06897180837 | AX21: 0.005578874945 | AZ21: 0.0458344554 | BB21: 0.07365344829 | BD21: 0.02553362061 | BF21: 0.01898578033 | BH21: 0.09058574735 | BJ21: 0.01089529803 | BL21: 0.006920512357 | BN21: 0.02158683624 | BP21: 0.1330002734 | BR21: 0.01975791534
C22: Zero Rates AC | E22: Zero Rates AC | G22: Zero Rates AC | I22: Zero Rates AC | K22: Zero Rates AC | M22: Zero Rates AC | O22: Zero Rates AC | Q22: Zero Rates AC | S22: Zero Rates AC | U22: Zero Rates AC | W22: Zero Rates AC | Y22: Zero Rates AC | AA22: Zero Rates AC | AC22: Zero Rates AC | AE22: Zero Rates AC | AG22: Zero Rates AC | AI22: Zero Rates AC | AK22: Zero Rates AC | AM22: Zero Rates AC | AO22: Zero Rates AC | AQ22: Zero Rates AC | AS22: Zero Rates AC | AU22: Zero Rates AC | AW22: Zero Rates AC | AY22: Zero Rates AC | BA22: Zero Rates AC | BC22: Zero Rates AC | BE22: Zero Rates AC | BG22: Zero Rates AC | BI22: Zero Rates AC | BK22: Zero Rates AC | BM22: Zero Rates AC | BO22: Zero Rates AC | BQ22: Zero Rates AC
